Workbook

Sheet P-Fraktionierung
C2: Allgemeine Daten
C3: Datenfeld | F3: Wert | K3: Erläuterung
C4: Kläranlage
C5: Art der Phosphorelimination | K5: Vor-, Simultanfällung oder/und Nachfällung, Bio-P etc. (Bitte auch Kombinationen angeben)
C6: Ansprechpartner
C7: Telefon
C8: Probennahme | K8: händig mit Schöpfkelle (Eintrag: händig) oder automatisch mit Probenahmegerät (Eintrag: automatisch)
C9: Probenart | K9: Stichprobe (Eintrag: Stp) oder qualifizierte Stichprobe (Eintrag: qStp)
C11: Daten zur P-Fällung
C12: Datenfeld | E12: Wert | K12: Erläuterung
C13: Küvettentest | K13: siehe Nr. 3 der Analyseanleitung; Angabe der Produktbezeichnung (z.B. LCK 348) bzw. Produktnummer (z.B. 114546)
C14: Filter | K14: Angabe Produktbezeichnung oder Produktnummer
C15: Art des Fällmittels | K15: Bitte Produktbezeichnung aus Tabellenblatt Fällmittel eintragen
C16: Datenfeld | E16: Einheit | G16: Wert
C17: WSmMe | E17: [mol/kg]
C18: ρFML | E18: [kg/L]
C19: Qd,FM | E19: [L/d]
C20: βFäll | E20: [mol/L]
C21: CP,Z | E21: [g/m³] | K21: Mittlere Pges-Zulaufkonzentration des Jahres 2020 im Zulauf (Messwerte der Selbstüberwachung)
C22: Qd | E22: [m³/d] | K22: Mittlerer Tagesabfluss des Jahres 2020 im Ablauf (Messwerte der Selbstüberwachung)
C23: FMd | E23: [mol Me/d]
C25: Messwerte
C26: Erläuterungen
C27: WS = Wetterschlüssel : trocken = 1; Frost = 2; Regen = 3; Gewitter = 4; Schneeschmelze = 5; Schneefall = 6; Regennachlauf = 7; Hochwassereinfluss = 8
C28: C = Konzentration in der homogensierten Probe, S = Konzentration in der filtrierten Probe, X = Konzentration der partikulären Fraktion
C29: CP = Gesamtphosphor; SP = gelöster Phosphor; SPO4-P = Orthophosphat-Phosphor; XP = partikulärer Phosphor; GUP = unreaktiven Phosphor
C30: Qh, korres, Qd, korres: Wenn Zulaufmengenmessung vorhanden, korrespondierend zur Ablaufmessung
C31: CP,korres: Probenahme im Zulauf als qualifizierte Stichprobe korrespondierend zur Probenahme im Ablauf
E33: WS | F33: Ablauf | R33: Zulauf
C34: Datum | D34: Uhrzeit | F34: Qh | G34: Qd | H34: Nr | I34: CP | J34: SP | K34: SPO4-P | L34: XP | M34: GUP | N34: CCSB | O34: XAFS | P34: SNH4-N | Q34: CTNb | R34: Qh, korres | S34: Qd, korres | T34: CP_korres | U34: Bemerkung (Störstoffe, Eigenfärbung etc.)
C35: [-] | D35: [-] | E35: [-] | F35: [m³/h] | G35: [m³/d] | I35: [mg/L] | J35: [mg/L] | K35: [mg/L] | L35: [mg/L] | M35: [mg/L] | N35: [mg/L] | O35: [mg/L] | P35: [mg/L] | Q35: [mg/L] | R35: [m³/h] | S35: [m³/d] | T35: [mg/L] | U35: [-]
H36: 1 | L36: =I36-J36 -> 0 | M36: =J36-K36 -> 0
H37: 2 | L37: =I37-J37 -> 0 | M37: =J37-K37 -> 0
H38: 3 | L38: =I38-J38 -> 0 | M38: 0
H39: Ø | I39: =AVERAGE(I36:I38) ->  | J39: =AVERAGE(J36:J38) ->  | L39: =AVERAGE(L36:L38) -> 0 | M39: 0
H40: 1 | L40: =I40-J40 -> 0 | M40: =J40-K40 -> 0
H41: 2 | L41: =I41-J41 -> 0 | M41: 0
H42: 3 | L42: =I42-J42 -> 0 | M42: 0
H43: Ø | I43: =AVERAGE(I40:I42) ->  | J43: =AVERAGE(J40:J42) ->  | L43: =AVERAGE(L40:L42) -> 0 | M43: =AVERAGE(M40:M42) -> 0
H44: 1 | L44: =I44-J44 -> 0 | M44: =J44-K44 -> 0
H45: 2 | L45: =I45-J45 -> 0 | M45: =J45-K45 -> 0
H46: 3 | L46: =I46-J46 -> 0 | M46: 0
H47: Ø | I47: =AVERAGE(I44:I46) ->  | J47: =AVERAGE(J44:J46) ->  | L47: 0 | M47: 0
H48: 1 | L48: =I48-J48 -> 0 | M48: =J48-K48 -> 0
H49: 2 | L49: =I49-J49 -> 0 | M49: =J49-K49 -> 0
H50: 3 | L50: =I50-J50 -> 0 | M50: 0
H51: Ø | I51: =AVERAGE(I48:I50) ->  | J51: =AVERAGE(J48:J50) ->  | K51: =AVERAGE(K48:K50) ->  | L51: =AVERAGE(L48:L50) -> 0 | M51: 0
H52: 1 | L52: =I52-J52 -> 0 | M52: =J52-K52 -> 0
H53: 2 | L53: =I53-J53 -> 0 | M53: =J53-K53 -> 0
H54: 3 | L54: =I54-J54 -> 0 | M54: 0
H55: Ø | I55: =AVERAGE(I52:I54) ->  | J55: =AVERAGE(J52:J54) ->  | L55: =AVERAGE(L52:L54) -> 0 | M55: 0
H56: 1 | L56: =I56-J56 -> 0 | M56: =J56-K56 -> 0
H57: 2 | L57: =I57-J57 -> 0 | M57: =J57-K57 -> 0
H58: 3 | L58: =I58-J58 -> 0 | M58: 0
H59: Ø | I59: =AVERAGE(I56:I58) ->  | J59: =AVERAGE(J56:J58) ->  | K59: =AVERAGE(K56:K58) ->  | L59: =AVERAGE(L56:L58) -> 0 | M59: =AVERAGE(M56:M58) -> 0
H60: 1 | L60: =I60-J60 -> 0 | M60: =J60-K60 -> 0
H61: 2 | L61: =I61-J61 -> 0 | M61: =J61-K61 -> 0
H62: 3 | L62: =I62-J62 -> 0 | M62: 0
H63: Ø | I63: =AVERAGE(I60:I62) ->  | J63: =AVERAGE(J60:J62) ->  | K63: =AVERAGE(K60:K62) ->  | L63: =AVERAGE(L60:L62) -> 0 | M63: =AVERAGE(M60:M62) -> 0
H64: 1 | L64: =I64-J64 -> 0 | M64: =J64-K64 -> 0
H65: 2 | L65: =I65-J65 -> 0 | M65: =J65-K65 -> 0
H66: 3 | L66: =I66-J66 -> 0 | M66: 0
H67: Ø | I67: =AVERAGE(I64:I66) ->  | J67: =AVERAGE(J64:J66) ->  | K67: =AVERAGE(K64:K66) ->  | L67: =AVERAGE(L64:L66) -> 0 | M67: =AVERAGE(M64:M66) -> 0
H68: 1 | L68: =I68-J68 -> 0 | M68: =J68-K68 -> 0
H69: 2 | L69: =I69-J69 -> 0 | M69: =J69-K69 -> 0
H70: 3 | L70: =I70-J70 -> 0 | M70: 0
H71: Ø | I71: =AVERAGE(I68:I70) ->  | J71: =AVERAGE(J68:J70) ->  | K71: =AVERAGE(K68:K70) ->  | L71: =AVERAGE(L68:L70) -> 0 | M71: =AVERAGE(M68:M70) -> 0
H72: 1 | L72: =I72-J72 -> 0 | M72: =J72-K72 -> 0
H73: 2 | L73: =I73-J73 -> 0 | M73: =J73-K73 -> 0
H74: 3 | L74: =I74-J74 -> 0 | M74: 0
H75: Ø | I75: =AVERAGE(I72:I74) ->  | J75: =AVERAGE(J72:J74) ->  | K75: =AVERAGE(K72:K74) ->  | L75: =AVERAGE(L72:L74) -> 0 | M75: =AVERAGE(M72:M74) -> 0
H76: 1 | L76: =I76-J76 -> 0 | M76: =J76-K76 -> 0
H77: 2 | L77: =I77-J77 -> 0 | M77: =J77-K77 -> 0
H78: 3 | L78: =I78-J78 -> 0 | M78: 0
H79: Ø | I79: =AVERAGE(I76:I78) ->  | J79: =AVERAGE(J76:J78) ->  | K79: =AVERAGE(K76:K78) ->  | L79: =AVERAGE(L76:L78) -> 0 | M79: =AVERAGE(M76:M78) -> 0
H80: 1 | L80: =I80-J80 -> 0 | M80: =J80-K80 -> 0
H81: 2 | L81: =I81-J81 -> 0 | M81: =J81-K81 -> 0
H82: 3 | L82: =I82-J82 -> 0 | M82: 0
H83: Ø | I83: =AVERAGE(I80:I82) ->  | J83: =AVERAGE(J80:J82) ->  | K83: =AVERAGE(K80:K82) ->  | L83: =AVERAGE(L80:L82) -> 0 | M83: =AVERAGE(M80:M82) -> 0

Sheet Fällmittel

Sheet ÜbersichtMessSteuerRegeltechnik
B1: Bestand
B2: Übersicht Mess-, Steuer- und Regeltechnik P-Fällung
B3: Dosierstrategie | C3: Messstelle | D3: Messstellenort | E3: Dosierstelle | F3: Dosierstellenort
B4: Fest eingestellte, manuelle Dosierung | C4: 1 | D4: Ablauf Biologie | E4: 1 | F4: Biologie
C5: 2 | E5: 2
C6: 3 | E6: 3
B9: Geplant bis:
B10: Übersicht Mess-, Steuer- und Regeltechnik P-Fällung
B11: Dosierstrategie | C11: Messstelle | D11: Messstellenort | E11: Dosierstelle | F11: Dosierstellenort
B12: Steuerung (frachtabhängig) nach ortho-P-Onlinemessung | C12: 1 | D12: Ablauf Biologie | E12: 1 | F12: Biologie
C13: 2 | E13: 2
C14: 3 | E14: 3
B16: Weiße Felder = Dropdown - Auswahllisten

Sheet MST Listen
B2: Dosierstrategie | C2: Messstellen | D2: Dosierstellen
B3: Fest eingestellte, manuelle Dosierung | C3: Zulauf Vorklärung | D3: Zulauf Vorklärung
B4: Durchflussproportionale Fällmitteldosierung | C4: Zulauf Biologie | D4: Zulauf Biologie
B5: Automatisch nach Dosierungsprofil (Tagesganglinie) | C5: Ablauf Biologie (Belebungsbecken) | D5: Biologie
B6: Steuerung (frachtabhängig) nach ortho-P-Onlinemessung | C6: Ablauf Nachklärung | D6: Ablauf Biologie (Belebungsbecken)
B7: Regelung (frachtabhängig) nach ortho-P-Onlinemessung | C7: Zulaufmengenmessung | D7: Rücklaufschlamm
B8: Steuerung (frachtabhängig) nach ortho-P- und Pges-Onlinemessung | C8: Ablaufmengenmessung | D8: Verteilerbauwerk Nachklärung
B9: Regelung (frachtabhängig) nach ortho-P- und Pges-Onlinemessung
B10: Kombinierte Regelung und Steuerung nach ortho-P-Onlinemessung
B11: Kombinierte Regelung und Steuerung nach ortho-P , Pges-Onlinemessung

Sheet Pges_Betriebsmittelwert
A1: Ergebnisse der Selbstüberwachung | F1: Berichtsjahr:
A2: Pges-Messereignisse im Ablauf
A4: Kläranlage :
A6: WS = Wetterschlüssel : trocken = 1; Frost = 2; Regen = 3; Gewitter = 4; Schneeschmelze = 5;
A7: Schneefall = 6; Regennachlauf = 7; Hochwassereinfluss = 8
C9: Messereignis | I9: Pges - Tagesfracht (gemessen bzw. hochgerechnet)
C10: Abwassermenge | E10: Pges-Ablaufkonzentration | G10: AFS
A11: Datum | B11: WS | C11: Wert | D11: Einheit (l/s, m3/h, m3/2h, m3/d) | E11: Wert in mg/l | F11: Probenahmeart (qStp, 2h-MP, 24h-MP, k24h-MP) | G11: Wert in mg/l | H11: Probenahmeart (qStp, 2h-MP) | I11: kg/d
A32: Mittelwert Tagesfrachten in kg/d | E32: =IFERROR(ROUND(AVERAGE(E12:E31),2),"") ->  | I32: =IFERROR(ROUND(AVERAGE(I12:I31),2),"") -> 
A33: Jahresfracht in kg/a | I33: =IFERROR(ROUND(I32*365,0),"") -> 
A34: Gesamtabwassermenge in m3/a
A35: Pges-Betriebsmittelwert Ablauf in mg/l | I35: =IFERROR(ROUND((I33/I34)*1000,2),"") -> 

Sheet Vorlage 2h Fracht
A1: Ergebnisse der Selbstüberwachung | K1: Berichtsjahr:
A2: zusätzliche Anforderungen (§ 2 Nr. 5 EÜVOA)
A4: Kläranlage :
A6: Parameter: | C6: NH4-N | H6: BSB5 | L6: CSB / TOC
C7: Ablauf: 2h- Frachtwerte | H7: Ablauf: 2h- Frachtwerte | L7: Ablauf: 2h- Frachtwerte
F8: bei Trockenwetter | J8: bei Trockenwetter | N8: bei Trockenwetter
C9: Probenahmeart: | H9: Probenahmeart: | L9: Probenahmeart:
C11: Überwachungswert | H11: Überwachungswert | L11: Überwachungswert
F12: kg/2h | J12: kg/2h | N12: kg/2h
A14: Monat | C14: Meßwerte | E14: Mittel- | F14: Maximal- | H14: Meß- | I14: Mittel- | J14: Maximal- | L14: Meß- | M14: Mittel- | N14: Maximal-
C15: Gesamt | D15: > 12°C | E15: wert | F15: wert | H15: werte | I15: wert | J15: wert | L15: werte | M15: wert | N15: wert
A16: - | C16: Anzahl | D16: Anzahl | E16: kg/2h | F16: kg/2h | H16: Anzahl | I16: kg/2h | J16: kg/2h | L16: Anzahl | M16: kg/2h | N16: kg/2h
A17: Januar
A18: Februar
A19: März
A20: April
A21: Mai
A22: Juni
A23: Juli
A24: August
A25: September
A26: Oktober
A27: November
A28: Dezember
A29: Summe / | C29: =SUM(C17:C28) -> 0 | D29: =SUM(D17:D28) -> 0 | E29: =IF(C29=0,0,AVERAGE(E17:E28)) -> 0 | H29: =SUM(H17:H28) -> 0 | I29: =IF(H29=0,0,AVERAGE(I17:I28)) -> 0 | L29: =SUM(L17:L28) -> 0 | M29: =IF(L29=0,0,AVERAGE(M17:M28)) -> 0
A30: Jahresmittel
A32: Parameter : | C32: Nges, anorg. | H32: Pges
C33: Ablauf: 2h- Frachtwerte | H33: Ablauf: 2h- Frachtwerte
F34: bei Trockenwetter | J34: bei Trockenwetter | N34: bei Trockenwetter
C35: Probenahmeart: | H35: Probenahmeart: | L35: Probenahmeart:
C37: Überwachungswert | H37: Überwachungswert | L37: Überwachungswert
F38: kg/2h | J38: kg/2h
A40: Monat | C40: Meßwerte | E40: Mittel- | F40: Maximal- | H40: Meß- | I40: Mittel- | J40: Maximal- | L40: Meß- | M40: Mittel- | N40: Maximal-
C41: Gesamt | D41: > 12°C | E41: wert | F41: wert | H41: werte | I41: wert | J41: wert | L41: werte | M41: wert | N41: wert
A42: - | C42: Anzahl | D42: Anzahl | E42: kg/2h | F42: kg/2h | H42: Anzahl | I42: kg/2h | J42: kg/2h | L42: Anzahl
A43: Januar
A44: Februar
A45: März
A46: April
A47: Mai
A48: Juni
A49: Juli
A50: August
A51: September
A52: Oktober
A53: November
A54: Dezember
A55: Summe / | C55: =SUM(C43:C54) -> 0 | D55: =SUM(D43:D54) -> 0 | E55: =IF(C55=0,0,AVERAGE(E43:E54)) -> 0 | H55: =SUM(H43:H54) -> 0 | I55: =IF(H55=0,0,AVERAGE(I43:I54)) -> 0 | L55: =SUM(L43:L54) -> 0 | M55: =IF(L55=0,0,AVERAGE(M43:M54)) -> 0
A56: Jahresmittel

Sheet Vorlage k24h Fracht
A1: Ergebnisse der Selbstüberwachung | J1: Berichtsjahr:
A4: Kläranlage :
A6: Parameter: | C6: CSB | I6: TOC
C7: Reinigungsleistungen | I7: Reinigungsleistungen
C8: ermittelt aus korrespondierenden | I8: ermittelt aus korrespondierenden
C9: 24-h-Mischproben | I9: 24-h-Mischproben
C10: bei Trocken- und Regenwetter | I10: bei Trocken- und Regenwetter
A11: Monat | C11: Mess- | D11: Mittelwert | I11: Mess- | J11: Mittelwert
C12: werte | D12: Zulauf | E12: Ablauf | F12: Reinigung | I12: werte | J12: Zulauf | K12: Ablauf | L12: Reinigung
A13: - | C13: Anzahl | D13: kg/d | E13: kg/d | F13: % | I13: Anzahl | J13: kg/d | K13: kg/d | L13: %
A14: Januar
A15: Februar
A16: März
A17: April
A18: Mai
A19: Juni
A20: Juli
A21: August
A22: September
A23: Oktober
A24: November
A25: Dezember
A26: Summe / | D26: =IF(C26=0,0,AVERAGE(D14:D25)) -> 0 | E26: =IF(C26=0,0,AVERAGE(E14:E25)) -> 0 | I26: =SUM(I14:I25) -> 0 | J26: =IF(I26=0,0,AVERAGE(J14:J25)) -> 0 | K26: =IF(I26=0,0,AVERAGE(K14:K25)) -> 0
A27: Jahresmittel
A29: Parameter: | C29: TNb | I29: Pges
C30: Reinigungsleistungen | I30: Reinigungsleistungen
C31: ermittelt aus korrespondierenden | I31: ermittelt aus korrespondierenden
C32: 24-h-Mischproben | I32: 24-h-Mischproben
C33: bei Trocken- und Regenwetter | I33: bei Trocken- und Regenwetter
A34: Monat | C34: Mess- | D34: Mittelwert | I34: Mess- | J34: Mittelwert
C35: werte | D35: Zulauf | E35: Ablauf | F35: Reinigung | I35: werte | J35: Zulauf | K35: Ablauf | L35: Reinigung
A36: - | C36: Anzahl | D36: kg/d | E36: kg/d | F36: % | I36: Anzahl | J36: kg/d | K36: kg/d | L36: %
A37: Januar
A38: Februar
A39: März
A40: April
A41: Mai
A42: Juni
A43: Juli
A44: August
A45: September
A46: Oktober
A47: November
A48: Dezember
A49: Summe / | C49: =SUM(C37:C48) -> 0 | D49: =IF(C49=0,0,AVERAGE(D37:D48)) -> 0 | E49: =IF(C49=0,0,AVERAGE(E37:E48)) -> 0 | I49: =SUM(I37:I48) -> 0 | J49: =IF(I49=0,0,AVERAGE(J37:J48)) -> 0 | K49: =IF(I49=0,0,AVERAGE(K37:K48)) -> 0
A50: Jahresmittel

Sheet Vorlage Überschreitg
A1: Ergebnisse der Selbstüberwachung | E1: Berichtsjahr
A2: zusätzliche Anforderungen (§ 2 Nr. 5 EÜVOA)
A4: Kläranlage :
A6: Probenahmestelle: | B6: Ablauf der Kläranlage
A8: Überschreitungen der Überwachungsparameter
A10: Parameter | B10: Einheit | C10: Datum | D10: Messwert | E10: Temp. Ablauf Biologie bei Stickstoff-parametern | F10: Über-wachungs / Höchstwert

Sheet Vorlage Fremdwasser
A1: Ergebnisse der Selbstüberwachung | O1: Berichtsjahr :
A4: Kläranlage :
A6: Meßprotokoll - Fremdwasserermittlung
A9: Die Ermittlung erfolgt bei Trockenwetter anhand des geringsten Durchflusses (z.B. Nachtmessungen gegen 3 Uhr)
A10: und Messungen des Tagesabwasserzuflusses über 24 Stunden (Zählwerksablesung).
A12: Spitzenzufluß bei Trockenwetter nach Planung: | E12: l/s
A13: Derzeit angeschlossene (echte) Einwohner etwa: | E13: EZ
A14: Durchflußmeßeinrichtung (Meßverfahren):
A15: Oberer Meßbereich des Gerätes bis:
A16: Meßanlage überprüft am:
A17: Kanal Einzugsgebiet: | E17: ha
A18: geschätzte längste Fließzeit
D20: Einheit | E20: Datum der Fremdwasserbestimmung
D21: Nr. | E21: 1 | F21: 2 | G21: 3 | H21: 4 | I21: 5 | J21: 6 | K21: 7 | L21: 8 | M21: 9 | N21: 10 | O21: 11 | P21: 12
D22: Datum
A23: A | B23: gemessener geringster Nachtzufluß | D23: l/s
A24: B | B24: Abzug für geschätzten Nachtzufluss der angeschlossenen Einwohner (q*EZ / 1000) | D24: l/s
A25: C | B25: abzüglich geschätzter Nachtzufluß aus Industrie | D25: l/s
A26: D | B26: Fremdwasserzufluß = (a - b - c) | D26: l/s | E26: =E23-E24-E25 -> 0 | F26: 0 | G26: 0 | H26: 0 | I26: 0 | J26: 0 | K26: 0 | L26: 0 | M26: 0 | N26: 0 | O26: 0 | P26: 0
A27: E | B27: Tagesfremdwasserzufluß (d x 86,4) | D27: m3/d | E27: =E26*86.4 -> 0 | F27: 0 | G27: 0 | H27: 0 | I27: 0 | J27: 0 | K27: 0 | L27: 0 | M27: 0 | N27: 0 | O27: 0 | P27: 0 | Q27: =SUM(E27:P27) -> 0
A28: F | B28: gemessener Tagesabwasserzufluß (24 Std. bei TW)
B29: einschl. Fremdwasser | D29: m3/d | Q29: =SUM(E29:P29) -> 0
A30: G | B30: Tagesschmutzwasserzufluß (f - e) | D30: m3/d | E30: =E29-E27 -> 0 | F30: 0 | G30: 0 | H30: 0 | I30: 0 | J30: 0 | K30: 0 | L30: 0 | M30: 0 | N30: 0 | O30: 0 | P30: 0
A31: H | B31: Fremdwasseranteil im Jahresmittel (e/f * 100) | D31: % | E31: =IF(E29=0,0,E27/E29) -> 0 | F31: 0 | G31: 0 | H31: 0 | I31: 0 | J31: 0 | K31: 0 | L31: 0 | M31: 0 | N31: 0 | O31: 0 | P31: 0 | Q31: 0
J33: Einwohnerzahl (EZ) | L33: Faktor q
J34: < 5000 | L34: 0.3 | M34: gleichförmiges Kanalnetz ohne Einrichtungen, die zu einer deutlischen Verlängerung der tatsächlichen Flieszeiten bei Trcokenwetter führen.
A35: Fremdwasser-Anteil (e/f x 100) | G35: =Q31*100 -> 0 | H35: % | J35: 5.000 - 100.000 | L35: 0.5
J36: > 100.000 | L36: 1 | M36: große Kanalnetze oder Flieszeiten bei Trockenwetter von mehr als 10 Stunden.

Sheet Prüfergebnis Durchflussmessung
A1: Prüfergebnis der Durchflussmesseinrichtung
A3: Unternehmer der Abwasserbeseitigung:
A4: Kläranlage:
A5: Ausbaugröße:
A7: Prüfergebnis der Durchflussmesseinrichtung
A10: Ort der Messstelle
A12: Messverfahren/Messprinzip
A13: Hersteller
A14: Gerätetyp
A15: Messwertaufnehmer
A16: Messwertumformer
A17: Messwertregistrierung
A18: Messbereich (l/s) von bis
A19: Qm l/s
A20: Prüfverfahren (gleichwertiges oder besseres Messverfahren als die vorhandenen Durchflussmesseinrichtung, ggf. Erläuterung)
A21: Datum der Prüfung
A22: Festgestellte Abweichungen in % bei
A27: Beurteilung
A36: Erforderliche Maßnahmen

Sheet JSM Eingabe+TW
A1: JSM
B2: Ergebnisse der Selbstüberwachung | AB2: Programmversion 7.3.5
B5: Ermittlung der Jahresschmutzwassermenge (JSM) und des Fremdwassers (QF) | AB5: Blatt 1
B7: Kläranlage : | L7: VG / Stadt: | AA7: Berichtsjahr :
B9: Eingabedaten
B12: INFO | D12: INFO- Feld mit dem Mauszeiger anfahren | J12: angeschlossene EZ: | L12: E | R12: Trinkwasserverbrauch kommunales Netz: | T12: m³/a | Z12: Durchflußmeßeinrichtung (Meßverfahren):
R13: Abzug für Verluste ( i.d.R. 5 - 10 %): | T13: % | Z13: Oberer Meßbereich des Gerätes bis:
R14: ODER alternativ Verlustabzug in cbm: | T14: m³/a | Z14: Unterer Meßbereich des Gerätes bis:
R15: Trinkwasserverbrauch Eigenwasserversorgungsanlagen: | T15: m³/a | Z15: Meßanlage letztmalig überprüft am:
J16: Rechnerischer Mindestabfluss der KA Q t min, d: | K16: =IF($K$12<>"",ROUND((($K$12/2)*80)/1000,0),"") ->  | L16: m³/d | R16: Abzug für Verluste aus Eigenversorgungen: | T16: % | Z16: Spitzenzufluß bei Trockenwetter nach Wasserrecht Q t, h: | AB16: m³/h
J17: Spitzenzufluß bei Trockenwetter nach Wasserrecht Q t, d: | L17: m³/d | R17: Trinkwasserverbrauch gesamt: | S17: =SUM(S12+S15) -> 0 | T17: m³/a | Z17: Kanal- Einzugsgebiet AE: | AB17: ha
B18: nur reines Trennsystem: x | J18: zugelassener Abfluss der KA Q m: | L18: l/s | R18: Reduzierter Trinkwasserverbrauch: | S18: =IF(S13=0,S12-S14+S15*(100-S16)/100,S12*(100-S13)/100+S15*(100-S16)/100) -> 0 | T18: m³/a | Z18: geschätzte längste Fließzeit: | AB18: h | DX18: =SUMIF(DX32:EI62,8,DX32:EI62)/8 -> 365 | DY18: mal Erstatzwert eingefügt
D23: gemessen wurde | E23: automatisch | K23: Rot = auffälliger Wert | AA23: W = Wetterschlüssel : trocken = 1; Frost = 2; Regen = 3; Gewitter = 4; Schneeschmelze = 5; Schneefall = 6; Regennachlauf = 7; Hochwassereinfluss = 8 | EK23: d | EL23: e | EM23: f | EN23: g | ET23: Gesamtmittelwert | EV23: =AVERAGE(EL32:EL62,EN32:EN62,EP32:EP62,ER32:ER62,ET32:ET62,EV32:EV62,EX32:EX62,EZ32:EZ62,FB32:FB62,FD32:FD62,FF32:FF62,FH32:FH62,0.000001) -> 1e-06
E24: im Zulauf | AA24: Trockenwetter ist bei einer Niederschlagshöhe von weniger oder gleich 1,0 mm/d und weniger oder gleich 1,0 mm/d am Vortag
E25: oder im Ablauf | AA25: Bei fehlenden oder fehlerhaften Tagesmessungen leeres Feld oder begründeten Schätzwert, aber bitte nicht 0 oder andere Informationen eintragen. | EK25: Trockenwetter
AF26: Für Dichtemittel. Nicht gemessene Tage bleiben unberücksichtigt. Messungen bei HW werden berücksichtigt. | AU26: Tagesmengen ohne Hochwasser und Ersatzwerte | BV26: In dieser Tabelle wird bei HW und fehlenden Messungen ein plausibler Ersatzwert eingefügt | CI26: Hierbei werden Fehltage mit W = 8 (=Hochwassser) geführt | CW26: für gleitendes Minimum | CZ26: Tagesmessungen bei Hochwasser und fehlende Messungen werden durch Erstatzwert ersetzt. | DJ26: für Jahresdauerlinie | DM26: Tagesmessungen bei Hochwasser und fehlende Messungen werden durch Erstatzwert ersetzt. | DX26: Wetterschlüssel
B28: Wetterschlüssel (W) und Mischwasser-Tagesabfluss (Q) in m³/d:
E29: Januar | G29: Februar | I29: März | K29: April | M29: Mai | O29: Juni | Q29: Juli | S29: August | U29: September | W29: Oktober | Y29: November | AA29: Dezember | AF29: Jan | AG29: Feb | AH29: Mrz | AI29: Apr | AJ29: Mai | AK29: Jun | AL29: Jul | AM29: Aug | AN29: Sep | AO29: Okt | AP29: Nov | AQ29: Dez | AV29: Januar | AX29: Februar | AZ29: März | BB29: April | BD29: Mai | BF29: Juni | BH29: Juli | BJ29: August | BL29: September | BN29: Oktober | BP29: November | BR29: Dezember | BW29: Januar | BY29: Februar | CA29: März | CC29: April | CE29: Mai | CG29: Juni | CI29: Juli | CK29: August | CM29: September | CO29: Oktober | CQ29: November | CS29: Dezember | CW29: Jan | CX29: Feb | CY29: Mrz | CZ29: Apr | DA29: Mai | DB29: Jun | DC29: Jul | DD29: Aug | DE29: Sep | DF29: Okt | DG29: Nov | DH29: Dez | DJ29: Jan | DK29: Feb | DL29: Mrz | DM29: Apr | DN29: Mai | DO29: Jun | DP29: Jul | DQ29: Aug | DR29: Sep | DS29: Okt | DT29: Nov | DU29: Dez | EL29: Januar | EN29: Februar | EP29: März | ER29: April | ET29: Mai | EV29: Juni | EX29: Juli | EZ29: August | FB29: September | FD29: Oktober | FF29: November | FH29: Dezember
B30: Tag | D30: W | E30: Q | F30: W | G30: Q | H30: W | I30: Q | J30: W | K30: Q | L30: W | M30: Q | N30: W | O30: Q | P30: W | Q30: Q | R30: W | S30: Q | T30: W | U30: Q | V30: W | W30: Q | X30: W | Y30: Q | Z30: W | AA30: Q | AU30: W | AW30: W | AY30: W | BA30: W | BC30: W | BE30: W | BG30: W | BI30: W | BK30: W | BM30: W | BO30: W | BQ30: W | BV30: W | BX30: W | BZ30: W | CB30: W | CD30: W | CF30: W | CH30: W | CJ30: W | CL30: W | CN30: W | CP30: W | CR30: W | EK30: W | EM30: W | EO30: W | EQ30: W | ES30: W | EU30: W | EW30: W | EY30: W | FA30: W | FC30: W | FE30: W | FG30: W
AW31: Tagesabflußmengen in cbm/d | BW31: Tagesabflußmengen in cbm/d
B32: 1 | AF32: =IF(E32=0," ",IF(E32>0,E32," ")) ->  | AG32: =IF(G32=0," ",IF(G32>0,G32," ")) ->  | AH32: =IF(I32=0," ",IF(I32>0,I32," ")) ->  | AI32: =IF(K32=0," ",IF(K32>0,K32," ")) ->  | AJ32: =IF(M32=0," ",IF(M32>0,M32," ")) ->  | AK32: =IF(O32=0," ",IF(O32>0,O32," ")) ->  | AL32: =IF(Q32=0," ",IF(Q32>0,Q32," ")) ->  | AM32: =IF(S32=0," ",IF(S32>0,S32," ")) ->  | AN32: =IF(U32=0," ",IF(U32>0,U32," ")) ->  | AO32: =IF(W32=0," ",IF(W32>0,W32," ")) ->  | AP32: =IF(Y32=0," ",IF(Y32>0,Y32," ")) ->  | AQ32: =IF(AA32=0," ",IF(AA32>0,AA32," ")) ->  | AU32: =D32 -> 0 | AV32: =IF(AU32=8,"",IF(E32="","",E32)) ->  | AW32: =F32 -> 0 | AX32: =IF(AW32=8,"",IF(G32="","",G32)) ->  | AY32: =H32 -> 0 | AZ32: =IF(AY32=8,"",IF(I32="","",I32)) ->  | BA32: =J32 -> 0 | BB32: =IF(BA32=8,"",IF(K32="","",K32)) ->  | BC32: =L32 -> 0 | BD32: =IF(BC32=8,"",IF(M32="","",M32)) ->  | BE32: =N32 -> 0 | BF32: =IF(BE32=8,"",IF(O32="","",O32)) ->  | BG32: =P32 -> 0 | BH32: =IF(BG32=8,"",IF(Q32="","",Q32)) ->  | BI32: =R32 -> 0 | BJ32: =IF(BI32=8,"",IF(S32="","",S32)) ->  | BK32: =T32 -> 0 | BL32: =IF(BK32=8,"",IF(U32="","",U32)) ->  | BM32: =V32 -> 0 | BN32: =IF(BM32=8,"",IF(W32="","",W32)) ->  | BO32: =X32 -> 0 | BP32: =IF(BO32=8,"",IF(Y32="","",Y32)) ->  | BQ32: =Z32 -> 0 | BR32: =IF(BQ32=8,"",IF(AA32="","",AA32)) ->  | BV32: =IF(E32=0,8,IF(E32=" ",8,D32)) -> 8 | BW32: =IF(BV32=8,'JSM Jahresdauerlinie'!$E$26,E32) -> 1e-06 | BX32: =IF(G32=0,8,IF(G32=" ",8,F32)) -> 8 | BY32: =IF(BX32=8,'JSM Jahresdauerlinie'!$E$26,G32) -> 1e-06 | BZ32: =IF(I32=0,8,IF(I32=" ",8,H32)) -> 8 | CA32: =IF(BZ32=8,'JSM Jahresdauerlinie'!$E$26,I32) -> 1e-06 | CB32: =IF(K32=0,8,IF(K32=" ",8,J32)) -> 8 | CC32: =IF(CB32=8,'JSM Jahresdauerlinie'!$E$26,K32) -> 1e-06 | CD32: =IF(M32=0,8,IF(M32=" ",8,L32)) -> 8 | CE32: =IF(CD32=8,'JSM Jahresdauerlinie'!$E$26,M32) -> 1e-06 | CF32: =IF(O32=0,8,IF(O32=" ",8,N32)) -> 8 | CG32: =IF(CF32=8,'JSM Jahresdauerlinie'!$E$26,O32) -> 1e-06 | CH32: =IF(Q32=0,8,IF(Q32=" ",8,P32)) -> 8 | CI32: =IF(CH32=8,'JSM Jahresdauerlinie'!$E$26,Q32) -> 1e-06 | CJ32: =IF(S32=0,8,IF(S32=" ",8,R32)) -> 8 | CK32: =IF(CJ32=8,'JSM Jahresdauerlinie'!$E$26,S32) -> 1e-06 | CL32: =IF(U32=0,8,IF(U32=" ",8,T32)) -> 8 | CM32: =IF(CL32=8,'JSM Jahresdauerlinie'!$E$26,U32) -> 1e-06 | CN32: =IF(W32=0,8,IF(W32=" ",8,V32)) -> 8 | CO32: =IF(CN32=8,'JSM Jahresdauerlinie'!$E$26,W32) -> 1e-06 | CP32: =IF(Y32=0,8,IF(Y32=" ",8,X32)) -> 8 | CQ32: =IF(CP32=8,'JSM Jahresdauerlinie'!$E$26,Y32) -> 1e-06 | CR32: =IF(AA32=0,8,IF(AA32=" ",8,Z32)) -> 8 | CS32: =IF(CR32=8,'JSM Jahresdauerlinie'!$E$26,AA32) -> 1e-06 | CW32: =IF(D32=8,'JSM Jahresdauerlinie'!$E$26,IF(BW32=0," ",BW32)) -> 1e-06 | CX32: =IF(F32=8,'JSM Jahresdauerlinie'!$E$26,IF(BY32=0," ",BY32)) -> 1e-06 | CY32: =IF(H32=8,'JSM Jahresdauerlinie'!$E$26,IF(CA32=0," ",CA32)) -> 1e-06 | CZ32: =IF(J32=8,'JSM Jahresdauerlinie'!$E$26,IF(CC32=0," ",CC32)) -> 1e-06 | DA32: =IF(L32=8,'JSM Jahresdauerlinie'!$E$26,IF(CE32=0," ",CE32)) -> 1e-06 | DB32: =IF(N32=8,'JSM Jahresdauerlinie'!$E$26,IF(CG32=0," ",CG32)) -> 1e-06 | DC32: =IF(P32=8,'JSM Jahresdauerlinie'!$E$26,IF(CI32=0," ",CI32)) -> 1e-06 | DD32: =IF(R32=8,'JSM Jahresdauerlinie'!$E$26,IF(CK32=0," ",CK32)) -> 1e-06 | DE32: =IF(T32=8,'JSM Jahresdauerlinie'!$E$26,IF(CM32=0," ",CM32)) -> 1e-06 | DF32: =IF(V32=8,'JSM Jahresdauerlinie'!$E$26,IF(CO32=0," ",CO32)) -> 1e-06 | DG32: =IF(X32=8,'JSM Jahresdauerlinie'!$E$26,IF(CQ32=0," ",CQ32)) -> 1e-06 | DH32: =IF(Z32=8,'JSM Jahresdauerlinie'!$E$26,IF(CS32=0," ",CS32)) -> 1e-06 | DJ32: =IF(CW32=" ",$CU$92+0.01,CW32) -> 1e-06 | DK32: 1e-06 | DL32: 1e-06 | DM32: 1e-06 | DN32: 1e-06 | DO32: 1e-06 | DP32: 1e-06 | DQ32: 1e-06 | DR32: 1e-06 | DS32: 1e-06 | DT32: 1e-06 | DU32: =IF(DH32=" ",$CU$92+0.01,DH32) -> 1e-06 | DX32: =BV32 -> 8 | DY32: =BX32 -> 8 | DZ32: =BZ32 -> 8 | EA32: =CB32 -> 8 | EB32: =CD32 -> 8 | EC32: =CF32 -> 8 | ED32: =CH32 -> 8 | EE32: =CJ32 -> 8 | EF32: =CL32 -> 8 | EG32: =CN32 -> 8 | EH32: =CP32 -> 8 | EI32: =CR32 -> 8 | EK32: =IF(D32=0," ",D32) ->  | EL32: =IF(E32=0," ",IF(EK32=" "," ",IF(D32<=2,E32," "))) ->  | EM32: =IF(F32=0," ",F32) ->  | EN32: =IF(G32=0," ",IF(EM32=" "," ",IF(F32<=2,G32," "))) ->  | EO32: =IF(H32=0," ",H32) ->  | EP32: =IF(I32=0," ",IF(EO32=" "," ",IF(H32<=2,I32," "))) ->  | EQ32: =IF(J32=0," ",J32) ->  | ER32: =IF(K32=0," ",IF(EQ32=" "," ",IF(J32<=2,K32," "))) ->  | ES32: =IF(L32=0," ",L32) ->  | ET32: =IF(M32=0," ",IF(ES32=" "," ",IF(L32<=2,M32," "))) ->  | EU32: =IF(N32=0," ",N32) ->  | EV32: =IF(O32=0," ",IF(EU32=" "," ",IF(N32<=2,O32," "))) ->  | EW32: =IF(P32=0," ",P32) ->  | EX32: =IF(Q32=0," ",IF(EW32=" "," ",IF(P32<=2,Q32," "))) ->  | EY32: =IF(R32=0," ",R32) ->  | EZ32: =IF(S32=0," ",IF(EY32=" "," ",IF(R32<=2,S32," "))) ->  | FA32: =IF(T32=0," ",T32) ->  | FB32: =IF(U32=0," ",IF(FA32=" "," ",IF(T32<=2,U32," "))) ->  | FC32: =IF(V32=0," ",V32) ->  | FD32: =IF(W32=0," ",IF(FC32=" "," ",IF(V32<=2,W32," "))) ->  | FE32: =IF(X32=0," ",X32) ->  | FF32: =IF(Y32=0," ",IF(FE32=" "," ",IF(X32<=2,Y32," "))) ->  | FG32: =IF(Z32=0," ",Z32) ->  | FH32: =IF(AA32=0," ",IF(FG32=" "," ",IF(Z32<=2,AA32," "))) -> 
B33: 2 | AF33: =IF(E33=0," ",IF(E33>0,E33," ")) ->  | AU33: =D33 -> 0 | AV33: =IF(AU33=8,"",IF(E33="","",E33)) ->  | AW33: 0 | AY33: 0 | BA33: 0 | BC33: 0 | BE33: 0 | BG33: 0 | BI33: 0 | BK33: 0 | BM33: 0 | BN33: =IF(BM33=8,"",IF(W33="","",W33)) ->  | BO33: 0 | BQ33: 0 | BV33: =IF(E33=0,8,IF(E33=" ",8,D33)) -> 8 | BW33: =IF(BV33=8,'JSM Jahresdauerlinie'!$E$26,E33) -> 1e-06 | BX33: =IF(G33=0,8,IF(G33=" ",8,F33)) -> 8 | BY33: =IF(BX33=8,'JSM Jahresdauerlinie'!$E$26,G33) -> 1e-06 | BZ33: =IF(I33=0,8,IF(I33=" ",8,H33)) -> 8 | CA33: =IF(BZ33=8,'JSM Jahresdauerlinie'!$E$26,I33) -> 1e-06 | CB33: =IF(K33=0,8,IF(K33=" ",8,J33)) -> 8 | CC33: =IF(CB33=8,'JSM Jahresdauerlinie'!$E$26,K33) -> 1e-06 | CD33: =IF(M33=0,8,IF(M33=" ",8,L33)) -> 8 | CE33: =IF(CD33=8,'JSM Jahresdauerlinie'!$E$26,M33) -> 1e-06 | CF33: =IF(O33=0,8,IF(O33=" ",8,N33)) -> 8 | CG33: =IF(CF33=8,'JSM Jahresdauerlinie'!$E$26,O33) -> 1e-06 | CH33: =IF(Q33=0,8,IF(Q33=" ",8,P33)) -> 8 | CI33: =IF(CH33=8,'JSM Jahresdauerlinie'!$E$26,Q33) -> 1e-06 | CJ33: =IF(S33=0,8,IF(S33=" ",8,R33)) -> 8 | CK33: =IF(CJ33=8,'JSM Jahresdauerlinie'!$E$26,S33) -> 1e-06 | CL33: =IF(U33=0,8,IF(U33=" ",8,T33)) -> 8 | CM33: =IF(CL33=8,'JSM Jahresdauerlinie'!$E$26,U33) -> 1e-06 | CN33: =IF(W33=0,8,IF(W33=" ",8,V33)) -> 8 | CO33: =IF(CN33=8,'JSM Jahresdauerlinie'!$E$26,W33) -> 1e-06 | CP33: =IF(Y33=0,8,IF(Y33=" ",8,X33)) -> 8 | CQ33: =IF(CP33=8,'JSM Jahresdauerlinie'!$E$26,Y33) -> 1e-06 | CR33: =IF(AA33=0,8,IF(AA33=" ",8,Z33)) -> 8 | CS33: =IF(CR33=8,'JSM Jahresdauerlinie'!$E$26,AA33) -> 1e-06 | CW33: =IF(D33=8,'JSM Jahresdauerlinie'!$E$26,IF(BW33=0," ",BW33)) -> 1e-06 | CX33: =IF(F33=8,'JSM Jahresdauerlinie'!$E$26,IF(BY33=0," ",BY33)) -> 1e-06 | CY33: =IF(H33=8,'JSM Jahresdauerlinie'!$E$26,IF(CA33=0," ",CA33)) -> 1e-06 | CZ33: =IF(J33=8,'JSM Jahresdauerlinie'!$E$26,IF(CC33=0," ",CC33)) -> 1e-06 | DA33: =IF(L33=8,'JSM Jahresdauerlinie'!$E$26,IF(CE33=0," ",CE33)) -> 1e-06 | DB33: =IF(N33=8,'JSM Jahresdauerlinie'!$E$26,IF(CG33=0," ",CG33)) -> 1e-06 | DC33: =IF(P33=8,'JSM Jahresdauerlinie'!$E$26,IF(CI33=0," ",CI33)) -> 1e-06 | DD33: =IF(R33=8,'JSM Jahresdauerlinie'!$E$26,IF(CK33=0," ",CK33)) -> 1e-06 | DE33: =IF(T33=8,'JSM Jahresdauerlinie'!$E$26,IF(CM33=0," ",CM33)) -> 1e-06 | DF33: =IF(V33=8,'JSM Jahresdauerlinie'!$E$26,IF(CO33=0," ",CO33)) -> 1e-06 | DG33: =IF(X33=8,'JSM Jahresdauerlinie'!$E$26,IF(CQ33=0," ",CQ33)) -> 1e-06 | DH33: =IF(Z33=8,'JSM Jahresdauerlinie'!$E$26,IF(CS33=0," ",CS33)) -> 1e-06 | DJ33: =IF(CW33=" ",$CU$92+0.01,CW33) -> 1e-06 | DK33: =IF(CX33=" ",$CU$92+0.01,CX33) -> 1e-06 | DL33: =IF(CY33=" ",$CU$92+0.01,CY33) -> 1e-06 | DM33: =IF(CZ33=" ",$CU$92+0.01,CZ33) -> 1e-06 | DN33: =IF(DA33=" ",$CU$92+0.01,DA33) -> 1e-06 | DO33: =IF(DB33=" ",$CU$92+0.01,DB33) -> 1e-06 | DP33: =IF(DC33=" ",$CU$92+0.01,DC33) -> 1e-06 | DQ33: =IF(DD33=" ",$CU$92+0.01,DD33) -> 1e-06 | DR33: =IF(DE33=" ",$CU$92+0.01,DE33) -> 1e-06 | DS33: =IF(DF33=" ",$CU$92+0.01,DF33) -> 1e-06 | DT33: =IF(DG33=" ",$CU$92+0.01,DG33) -> 1e-06 | DU33: 1e-06 | DX33: =BV33 -> 8 | DY33: 8 | DZ33: 8 | EA33: 8 | EB33: 8 | EC33: 8 | ED33: =CH33 -> 8 | EE33: 8 | EF33: 8 | EG33: 8 | EH33: 8 | EI33: 8 | EK33: =IF(D33=0," ",D33) ->  | EL33: =IF(E33=0," ",IF(EK33=" "," ",IF(D33<=2,E33," "))) ->  | FC33: =IF(V33=0," ",V33) ->  | FD33: =IF(W33=0," ",IF(FC33=" "," ",IF(V33<=2,W33," "))) -> 
B34: 3 | AU34: 0 | AW34: 0 | AY34: 0 | BA34: 0 | BC34: 0 | BE34: 0 | BG34: 0 | BI34: 0 | BK34: 0 | BM34: 0 | BO34: 0 | BQ34: 0 | BV34: 8 | BW34: =IF(BV34=8,'JSM Jahresdauerlinie'!$E$26,E34) -> 1e-06 | BX34: 8 | BY34: =IF(BX34=8,'JSM Jahresdauerlinie'!$E$26,G34) -> 1e-06 | BZ34: 8 | CA34: =IF(BZ34=8,'JSM Jahresdauerlinie'!$E$26,I34) -> 1e-06 | CB34: 8 | CC34: =IF(CB34=8,'JSM Jahresdauerlinie'!$E$26,K34) -> 1e-06 | CD34: 8 | CE34: =IF(CD34=8,'JSM Jahresdauerlinie'!$E$26,M34) -> 1e-06 | CF34: 8 | CG34: =IF(CF34=8,'JSM Jahresdauerlinie'!$E$26,O34) -> 1e-06 | CH34: 8 | CI34: =IF(CH34=8,'JSM Jahresdauerlinie'!$E$26,Q34) -> 1e-06 | CJ34: 8 | CK34: =IF(CJ34=8,'JSM Jahresdauerlinie'!$E$26,S34) -> 1e-06 | CL34: 8 | CM34: =IF(CL34=8,'JSM Jahresdauerlinie'!$E$26,U34) -> 1e-06 | CN34: 8 | CO34: =IF(CN34=8,'JSM Jahresdauerlinie'!$E$26,W34) -> 1e-06 | CP34: 8 | CQ34: =IF(CP34=8,'JSM Jahresdauerlinie'!$E$26,Y34) -> 1e-06 | CR34: 8 | CS34: =IF(CR34=8,'JSM Jahresdauerlinie'!$E$26,AA34) -> 1e-06 | CW34: =IF(D34=8,'JSM Jahresdauerlinie'!$E$26,IF(BW34=0," ",BW34)) -> 1e-06 | CX34: =IF(F34=8,'JSM Jahresdauerlinie'!$E$26,IF(BY34=0," ",BY34)) -> 1e-06 | CY34: =IF(H34=8,'JSM Jahresdauerlinie'!$E$26,IF(CA34=0," ",CA34)) -> 1e-06 | CZ34: =IF(J34=8,'JSM Jahresdauerlinie'!$E$26,IF(CC34=0," ",CC34)) -> 1e-06 | DA34: =IF(L34=8,'JSM Jahresdauerlinie'!$E$26,IF(CE34=0," ",CE34)) -> 1e-06 | DB34: =IF(N34=8,'JSM Jahresdauerlinie'!$E$26,IF(CG34=0," ",CG34)) -> 1e-06 | DC34: =IF(P34=8,'JSM Jahresdauerlinie'!$E$26,IF(CI34=0," ",CI34)) -> 1e-06 | DD34: =IF(R34=8,'JSM Jahresdauerlinie'!$E$26,IF(CK34=0," ",CK34)) -> 1e-06 | DE34: =IF(T34=8,'JSM Jahresdauerlinie'!$E$26,IF(CM34=0," ",CM34)) -> 1e-06 | DF34: =IF(V34=8,'JSM Jahresdauerlinie'!$E$26,IF(CO34=0," ",CO34)) -> 1e-06 | DG34: =IF(X34=8,'JSM Jahresdauerlinie'!$E$26,IF(CQ34=0," ",CQ34)) -> 1e-06 | DH34: =IF(Z34=8,'JSM Jahresdauerlinie'!$E$26,IF(CS34=0," ",CS34)) -> 1e-06 | DJ34: 1e-06 | DK34: 1e-06 | DL34: 1e-06 | DM34: 1e-06 | DN34: 1e-06 | DO34: 1e-06 | DP34: 1e-06 | DQ34: 1e-06 | DR34: 1e-06 | DS34: 1e-06 | DT34: 1e-06 | DU34: 1e-06 | DX34: 8 | DY34: 8 | DZ34: 8 | EA34: 8 | EB34: 8 | EC34: 8 | ED34: 8 | EE34: 8 | EF34: 8 | EG34: 8 | EH34: 8 | EI34: 8
B35: 4 | AU35: 0 | AW35: 0 | AY35: 0 | BA35: 0 | BC35: 0 | BE35: 0 | BG35: 0 | BI35: 0 | BK35: 0 | BM35: 0 | BO35: 0 | BQ35: 0 | BV35: 8 | BW35: =IF(BV35=8,'JSM Jahresdauerlinie'!$E$26,E35) -> 1e-06 | BX35: 8 | BY35: =IF(BX35=8,'JSM Jahresdauerlinie'!$E$26,G35) -> 1e-06 | BZ35: 8 | CA35: =IF(BZ35=8,'JSM Jahresdauerlinie'!$E$26,I35) -> 1e-06 | CB35: 8 | CC35: =IF(CB35=8,'JSM Jahresdauerlinie'!$E$26,K35) -> 1e-06 | CD35: 8 | CE35: =IF(CD35=8,'JSM Jahresdauerlinie'!$E$26,M35) -> 1e-06 | CF35: 8 | CG35: =IF(CF35=8,'JSM Jahresdauerlinie'!$E$26,O35) -> 1e-06 | CH35: 8 | CI35: =IF(CH35=8,'JSM Jahresdauerlinie'!$E$26,Q35) -> 1e-06 | CJ35: 8 | CK35: =IF(CJ35=8,'JSM Jahresdauerlinie'!$E$26,S35) -> 1e-06 | CL35: 8 | CM35: =IF(CL35=8,'JSM Jahresdauerlinie'!$E$26,U35) -> 1e-06 | CN35: 8 | CO35: =IF(CN35=8,'JSM Jahresdauerlinie'!$E$26,W35) -> 1e-06 | CP35: 8 | CQ35: =IF(CP35=8,'JSM Jahresdauerlinie'!$E$26,Y35) -> 1e-06 | CR35: 8 | CS35: =IF(CR35=8,'JSM Jahresdauerlinie'!$E$26,AA35) -> 1e-06 | CW35: =IF(D35=8,'JSM Jahresdauerlinie'!$E$26,IF(BW35=0," ",BW35)) -> 1e-06 | CX35: =IF(F35=8,'JSM Jahresdauerlinie'!$E$26,IF(BY35=0," ",BY35)) -> 1e-06 | CY35: =IF(H35=8,'JSM Jahresdauerlinie'!$E$26,IF(CA35=0," ",CA35)) -> 1e-06 | CZ35: =IF(J35=8,'JSM Jahresdauerlinie'!$E$26,IF(CC35=0," ",CC35)) -> 1e-06 | DA35: =IF(L35=8,'JSM Jahresdauerlinie'!$E$26,IF(CE35=0," ",CE35)) -> 1e-06 | DB35: =IF(N35=8,'JSM Jahresdauerlinie'!$E$26,IF(CG35=0," ",CG35)) -> 1e-06 | DC35: =IF(P35=8,'JSM Jahresdauerlinie'!$E$26,IF(CI35=0," ",CI35)) -> 1e-06 | DD35: =IF(R35=8,'JSM Jahresdauerlinie'!$E$26,IF(CK35=0," ",CK35)) -> 1e-06 | DE35: =IF(T35=8,'JSM Jahresdauerlinie'!$E$26,IF(CM35=0," ",CM35)) -> 1e-06 | DF35: =IF(V35=8,'JSM Jahresdauerlinie'!$E$26,IF(CO35=0," ",CO35)) -> 1e-06 | DG35: =IF(X35=8,'JSM Jahresdauerlinie'!$E$26,IF(CQ35=0," ",CQ35)) -> 1e-06 | DH35: =IF(Z35=8,'JSM Jahresdauerlinie'!$E$26,IF(CS35=0," ",CS35)) -> 1e-06 | DJ35: 1e-06 | DK35: 1e-06 | DL35: 1e-06 | DM35: 1e-06 | DN35: 1e-06 | DO35: 1e-06 | DP35: 1e-06 | DQ35: 1e-06 | DR35: 1e-06 | DS35: 1e-06 | DT35: 1e-06 | DU35: 1e-06 | DX35: 8 | DY35: 8 | DZ35: 8 | EA35: 8 | EB35: 8 | EC35: 8 | ED35: 8 | EE35: 8 | EF35: 8 | EG35: 8 | EH35: 8 | EI35: 8
B36: 5 | AU36: 0 | AW36: 0 | AY36: 0 | BA36: 0 | BC36: 0 | BE36: 0 | BG36: 0 | BI36: 0 | BK36: 0 | BM36: 0 | BO36: 0 | BQ36: 0 | BV36: 8 | BW36: =IF(BV36=8,'JSM Jahresdauerlinie'!$E$26,E36) -> 1e-06 | BX36: 8 | BY36: =IF(BX36=8,'JSM Jahresdauerlinie'!$E$26,G36) -> 1e-06 | BZ36: 8 | CA36: =IF(BZ36=8,'JSM Jahresdauerlinie'!$E$26,I36) -> 1e-06 | CB36: 8 | CC36: =IF(CB36=8,'JSM Jahresdauerlinie'!$E$26,K36) -> 1e-06 | CD36: 8 | CE36: =IF(CD36=8,'JSM Jahresdauerlinie'!$E$26,M36) -> 1e-06 | CF36: 8 | CG36: =IF(CF36=8,'JSM Jahresdauerlinie'!$E$26,O36) -> 1e-06 | CH36: 8 | CI36: =IF(CH36=8,'JSM Jahresdauerlinie'!$E$26,Q36) -> 1e-06 | CJ36: 8 | CK36: =IF(CJ36=8,'JSM Jahresdauerlinie'!$E$26,S36) -> 1e-06 | CL36: 8 | CM36: =IF(CL36=8,'JSM Jahresdauerlinie'!$E$26,U36) -> 1e-06 | CN36: 8 | CO36: =IF(CN36=8,'JSM Jahresdauerlinie'!$E$26,W36) -> 1e-06 | CP36: 8 | CQ36: =IF(CP36=8,'JSM Jahresdauerlinie'!$E$26,Y36) -> 1e-06 | CR36: 8 | CS36: =IF(CR36=8,'JSM Jahresdauerlinie'!$E$26,AA36) -> 1e-06 | CW36: =IF(D36=8,'JSM Jahresdauerlinie'!$E$26,IF(BW36=0," ",BW36)) -> 1e-06 | CX36: =IF(F36=8,'JSM Jahresdauerlinie'!$E$26,IF(BY36=0," ",BY36)) -> 1e-06 | CY36: =IF(H36=8,'JSM Jahresdauerlinie'!$E$26,IF(CA36=0," ",CA36)) -> 1e-06 | CZ36: =IF(J36=8,'JSM Jahresdauerlinie'!$E$26,IF(CC36=0," ",CC36)) -> 1e-06 | DA36: =IF(L36=8,'JSM Jahresdauerlinie'!$E$26,IF(CE36=0," ",CE36)) -> 1e-06 | DB36: =IF(N36=8,'JSM Jahresdauerlinie'!$E$26,IF(CG36=0," ",CG36)) -> 1e-06 | DC36: =IF(P36=8,'JSM Jahresdauerlinie'!$E$26,IF(CI36=0," ",CI36)) -> 1e-06 | DD36: =IF(R36=8,'JSM Jahresdauerlinie'!$E$26,IF(CK36=0," ",CK36)) -> 1e-06 | DE36: =IF(T36=8,'JSM Jahresdauerlinie'!$E$26,IF(CM36=0," ",CM36)) -> 1e-06 | DF36: =IF(V36=8,'JSM Jahresdauerlinie'!$E$26,IF(CO36=0," ",CO36)) -> 1e-06 | DG36: =IF(X36=8,'JSM Jahresdauerlinie'!$E$26,IF(CQ36=0," ",CQ36)) -> 1e-06 | DH36: =IF(Z36=8,'JSM Jahresdauerlinie'!$E$26,IF(CS36=0," ",CS36)) -> 1e-06 | DJ36: 1e-06 | DK36: 1e-06 | DL36: 1e-06 | DM36: 1e-06 | DN36: 1e-06 | DO36: 1e-06 | DP36: 1e-06 | DQ36: 1e-06 | DR36: 1e-06 | DS36: 1e-06 | DT36: 1e-06 | DU36: 1e-06 | DX36: 8 | DY36: 8 | DZ36: 8 | EA36: 8 | EB36: 8 | EC36: 8 | ED36: 8 | EE36: 8 | EF36: 8 | EG36: 8 | EH36: 8 | EI36: 8
B37: 6 | AU37: 0 | AW37: 0 | AY37: 0 | BA37: 0 | BC37: 0 | BE37: 0 | BG37: 0 | BI37: 0 | BK37: 0 | BM37: 0 | BO37: 0 | BQ37: 0 | BV37: 8 | BW37: =IF(BV37=8,'JSM Jahresdauerlinie'!$E$26,E37) -> 1e-06 | BX37: 8 | BY37: =IF(BX37=8,'JSM Jahresdauerlinie'!$E$26,G37) -> 1e-06 | BZ37: 8 | CA37: =IF(BZ37=8,'JSM Jahresdauerlinie'!$E$26,I37) -> 1e-06 | CB37: 8 | CC37: =IF(CB37=8,'JSM Jahresdauerlinie'!$E$26,K37) -> 1e-06 | CD37: 8 | CE37: =IF(CD37=8,'JSM Jahresdauerlinie'!$E$26,M37) -> 1e-06 | CF37: 8 | CG37: =IF(CF37=8,'JSM Jahresdauerlinie'!$E$26,O37) -> 1e-06 | CH37: 8 | CI37: =IF(CH37=8,'JSM Jahresdauerlinie'!$E$26,Q37) -> 1e-06 | CJ37: 8 | CK37: =IF(CJ37=8,'JSM Jahresdauerlinie'!$E$26,S37) -> 1e-06 | CL37: 8 | CM37: =IF(CL37=8,'JSM Jahresdauerlinie'!$E$26,U37) -> 1e-06 | CN37: 8 | CO37: =IF(CN37=8,'JSM Jahresdauerlinie'!$E$26,W37) -> 1e-06 | CP37: 8 | CQ37: =IF(CP37=8,'JSM Jahresdauerlinie'!$E$26,Y37) -> 1e-06 | CR37: 8 | CS37: =IF(CR37=8,'JSM Jahresdauerlinie'!$E$26,AA37) -> 1e-06 | CW37: =IF(D37=8,'JSM Jahresdauerlinie'!$E$26,IF(BW37=0," ",BW37)) -> 1e-06 | CX37: =IF(F37=8,'JSM Jahresdauerlinie'!$E$26,IF(BY37=0," ",BY37)) -> 1e-06 | CY37: =IF(H37=8,'JSM Jahresdauerlinie'!$E$26,IF(CA37=0," ",CA37)) -> 1e-06 | CZ37: =IF(J37=8,'JSM Jahresdauerlinie'!$E$26,IF(CC37=0," ",CC37)) -> 1e-06 | DA37: =IF(L37=8,'JSM Jahresdauerlinie'!$E$26,IF(CE37=0," ",CE37)) -> 1e-06 | DB37: =IF(N37=8,'JSM Jahresdauerlinie'!$E$26,IF(CG37=0," ",CG37)) -> 1e-06 | DC37: =IF(P37=8,'JSM Jahresdauerlinie'!$E$26,IF(CI37=0," ",CI37)) -> 1e-06 | DD37: =IF(R37=8,'JSM Jahresdauerlinie'!$E$26,IF(CK37=0," ",CK37)) -> 1e-06 | DE37: =IF(T37=8,'JSM Jahresdauerlinie'!$E$26,IF(CM37=0," ",CM37)) -> 1e-06 | DF37: =IF(V37=8,'JSM Jahresdauerlinie'!$E$26,IF(CO37=0," ",CO37)) -> 1e-06 | DG37: =IF(X37=8,'JSM Jahresdauerlinie'!$E$26,IF(CQ37=0," ",CQ37)) -> 1e-06 | DH37: =IF(Z37=8,'JSM Jahresdauerlinie'!$E$26,IF(CS37=0," ",CS37)) -> 1e-06 | DJ37: 1e-06 | DK37: 1e-06 | DL37: 1e-06 | DM37: 1e-06 | DN37: 1e-06 | DO37: 1e-06 | DP37: 1e-06 | DQ37: 1e-06 | DR37: 1e-06 | DS37: 1e-06 | DT37: 1e-06 | DU37: 1e-06 | DX37: 8 | DY37: 8 | DZ37: 8 | EA37: 8 | EB37: 8 | EC37: 8 | ED37: 8 | EE37: 8 | EF37: 8 | EG37: 8 | EH37: 8 | EI37: 8
B38: 7 | AU38: 0 | AW38: 0 | AY38: 0 | BA38: 0 | BC38: 0 | BE38: 0 | BG38: 0 | BI38: 0 | BK38: 0 | BM38: 0 | BO38: 0 | BQ38: 0 | BV38: 8 | BW38: =IF(BV38=8,'JSM Jahresdauerlinie'!$E$26,E38) -> 1e-06 | BX38: 8 | BY38: =IF(BX38=8,'JSM Jahresdauerlinie'!$E$26,G38) -> 1e-06 | BZ38: 8 | CA38: =IF(BZ38=8,'JSM Jahresdauerlinie'!$E$26,I38) -> 1e-06 | CB38: 8 | CC38: =IF(CB38=8,'JSM Jahresdauerlinie'!$E$26,K38) -> 1e-06 | CD38: 8 | CE38: =IF(CD38=8,'JSM Jahresdauerlinie'!$E$26,M38) -> 1e-06 | CF38: 8 | CG38: =IF(CF38=8,'JSM Jahresdauerlinie'!$E$26,O38) -> 1e-06 | CH38: 8 | CI38: =IF(CH38=8,'JSM Jahresdauerlinie'!$E$26,Q38) -> 1e-06 | CJ38: 8 | CK38: =IF(CJ38=8,'JSM Jahresdauerlinie'!$E$26,S38) -> 1e-06 | CL38: 8 | CM38: =IF(CL38=8,'JSM Jahresdauerlinie'!$E$26,U38) -> 1e-06 | CN38: 8 | CO38: =IF(CN38=8,'JSM Jahresdauerlinie'!$E$26,W38) -> 1e-06 | CP38: 8 | CQ38: =IF(CP38=8,'JSM Jahresdauerlinie'!$E$26,Y38) -> 1e-06 | CR38: 8 | CS38: =IF(CR38=8,'JSM Jahresdauerlinie'!$E$26,AA38) -> 1e-06 | CW38: =IF(D38=8,'JSM Jahresdauerlinie'!$E$26,IF(BW38=0," ",BW38)) -> 1e-06 | CX38: =IF(F38=8,'JSM Jahresdauerlinie'!$E$26,IF(BY38=0," ",BY38)) -> 1e-06 | CY38: =IF(H38=8,'JSM Jahresdauerlinie'!$E$26,IF(CA38=0," ",CA38)) -> 1e-06 | CZ38: =IF(J38=8,'JSM Jahresdauerlinie'!$E$26,IF(CC38=0," ",CC38)) -> 1e-06 | DA38: =IF(L38=8,'JSM Jahresdauerlinie'!$E$26,IF(CE38=0," ",CE38)) -> 1e-06 | DB38: =IF(N38=8,'JSM Jahresdauerlinie'!$E$26,IF(CG38=0," ",CG38)) -> 1e-06 | DC38: =IF(P38=8,'JSM Jahresdauerlinie'!$E$26,IF(CI38=0," ",CI38)) -> 1e-06 | DD38: =IF(R38=8,'JSM Jahresdauerlinie'!$E$26,IF(CK38=0," ",CK38)) -> 1e-06 | DE38: =IF(T38=8,'JSM Jahresdauerlinie'!$E$26,IF(CM38=0," ",CM38)) -> 1e-06 | DF38: =IF(V38=8,'JSM Jahresdauerlinie'!$E$26,IF(CO38=0," ",CO38)) -> 1e-06 | DG38: =IF(X38=8,'JSM Jahresdauerlinie'!$E$26,IF(CQ38=0," ",CQ38)) -> 1e-06 | DH38: =IF(Z38=8,'JSM Jahresdauerlinie'!$E$26,IF(CS38=0," ",CS38)) -> 1e-06 | DJ38: 1e-06 | DK38: 1e-06 | DL38: 1e-06 | DM38: 1e-06 | DN38: 1e-06 | DO38: 1e-06 | DP38: 1e-06 | DQ38: 1e-06 | DR38: 1e-06 | DS38: 1e-06 | DT38: 1e-06 | DU38: 1e-06 | DX38: 8 | DY38: 8 | DZ38: 8 | EA38: 8 | EB38: 8 | EC38: 8 | ED38: 8 | EE38: 8 | EF38: 8 | EG38: 8 | EH38: 8 | EI38: 8
B39: 8 | AU39: 0 | AW39: 0 | AY39: 0 | BA39: 0 | BC39: 0 | BE39: 0 | BG39: 0 | BI39: 0 | BK39: 0 | BM39: 0 | BO39: 0 | BQ39: 0 | BV39: 8 | BW39: =IF(BV39=8,'JSM Jahresdauerlinie'!$E$26,E39) -> 1e-06 | BX39: 8 | BY39: =IF(BX39=8,'JSM Jahresdauerlinie'!$E$26,G39) -> 1e-06 | BZ39: 8 | CA39: =IF(BZ39=8,'JSM Jahresdauerlinie'!$E$26,I39) -> 1e-06 | CB39: 8 | CC39: =IF(CB39=8,'JSM Jahresdauerlinie'!$E$26,K39) -> 1e-06 | CD39: 8 | CE39: =IF(CD39=8,'JSM Jahresdauerlinie'!$E$26,M39) -> 1e-06 | CF39: 8 | CG39: =IF(CF39=8,'JSM Jahresdauerlinie'!$E$26,O39) -> 1e-06 | CH39: 8 | CI39: =IF(CH39=8,'JSM Jahresdauerlinie'!$E$26,Q39) -> 1e-06 | CJ39: 8 | CK39: =IF(CJ39=8,'JSM Jahresdauerlinie'!$E$26,S39) -> 1e-06 | CL39: 8 | CM39: =IF(CL39=8,'JSM Jahresdauerlinie'!$E$26,U39) -> 1e-06 | CN39: 8 | CO39: =IF(CN39=8,'JSM Jahresdauerlinie'!$E$26,W39) -> 1e-06 | CP39: 8 | CQ39: =IF(CP39=8,'JSM Jahresdauerlinie'!$E$26,Y39) -> 1e-06 | CR39: 8 | CS39: =IF(CR39=8,'JSM Jahresdauerlinie'!$E$26,AA39) -> 1e-06 | CW39: =IF(D39=8,'JSM Jahresdauerlinie'!$E$26,IF(BW39=0," ",BW39)) -> 1e-06 | CX39: =IF(F39=8,'JSM Jahresdauerlinie'!$E$26,IF(BY39=0," ",BY39)) -> 1e-06 | CY39: =IF(H39=8,'JSM Jahresdauerlinie'!$E$26,IF(CA39=0," ",CA39)) -> 1e-06 | CZ39: =IF(J39=8,'JSM Jahresdauerlinie'!$E$26,IF(CC39=0," ",CC39)) -> 1e-06 | DA39: =IF(L39=8,'JSM Jahresdauerlinie'!$E$26,IF(CE39=0," ",CE39)) -> 1e-06 | DB39: =IF(N39=8,'JSM Jahresdauerlinie'!$E$26,IF(CG39=0," ",CG39)) -> 1e-06 | DC39: =IF(P39=8,'JSM Jahresdauerlinie'!$E$26,IF(CI39=0," ",CI39)) -> 1e-06 | DD39: =IF(R39=8,'JSM Jahresdauerlinie'!$E$26,IF(CK39=0," ",CK39)) -> 1e-06 | DE39: =IF(T39=8,'JSM Jahresdauerlinie'!$E$26,IF(CM39=0," ",CM39)) -> 1e-06 | DF39: =IF(V39=8,'JSM Jahresdauerlinie'!$E$26,IF(CO39=0," ",CO39)) -> 1e-06 | DG39: =IF(X39=8,'JSM Jahresdauerlinie'!$E$26,IF(CQ39=0," ",CQ39)) -> 1e-06 | DH39: =IF(Z39=8,'JSM Jahresdauerlinie'!$E$26,IF(CS39=0," ",CS39)) -> 1e-06 | DJ39: 1e-06 | DK39: 1e-06 | DL39: 1e-06 | DM39: 1e-06 | DN39: 1e-06 | DO39: 1e-06 | DP39: 1e-06 | DQ39: 1e-06 | DR39: 1e-06 | DS39: 1e-06 | DT39: 1e-06 | DU39: 1e-06 | DX39: 8 | DY39: 8 | DZ39: 8 | EA39: 8 | EB39: 8 | EC39: 8 | ED39: 8 | EE39: 8 | EF39: 8 | EG39: 8 | EH39: 8 | EI39: 8
B40: 9 | AU40: 0 | AW40: 0 | AY40: 0 | BA40: 0 | BC40: 0 | BE40: 0 | BG40: 0 | BI40: 0 | BK40: 0 | BM40: 0 | BO40: 0 | BQ40: 0 | BV40: 8 | BW40: =IF(BV40=8,'JSM Jahresdauerlinie'!$E$26,E40) -> 1e-06 | BX40: 8 | BY40: =IF(BX40=8,'JSM Jahresdauerlinie'!$E$26,G40) -> 1e-06 | BZ40: 8 | CA40: =IF(BZ40=8,'JSM Jahresdauerlinie'!$E$26,I40) -> 1e-06 | CB40: 8 | CC40: =IF(CB40=8,'JSM Jahresdauerlinie'!$E$26,K40) -> 1e-06 | CD40: 8 | CE40: =IF(CD40=8,'JSM Jahresdauerlinie'!$E$26,M40) -> 1e-06 | CF40: 8 | CG40: =IF(CF40=8,'JSM Jahresdauerlinie'!$E$26,O40) -> 1e-06 | CH40: 8 | CI40: =IF(CH40=8,'JSM Jahresdauerlinie'!$E$26,Q40) -> 1e-06 | CJ40: 8 | CK40: =IF(CJ40=8,'JSM Jahresdauerlinie'!$E$26,S40) -> 1e-06 | CL40: 8 | CM40: =IF(CL40=8,'JSM Jahresdauerlinie'!$E$26,U40) -> 1e-06 | CN40: 8 | CO40: =IF(CN40=8,'JSM Jahresdauerlinie'!$E$26,W40) -> 1e-06 | CP40: 8 | CQ40: =IF(CP40=8,'JSM Jahresdauerlinie'!$E$26,Y40) -> 1e-06 | CR40: 8 | CS40: =IF(CR40=8,'JSM Jahresdauerlinie'!$E$26,AA40) -> 1e-06 | CW40: =IF(D40=8,'JSM Jahresdauerlinie'!$E$26,IF(BW40=0," ",BW40)) -> 1e-06 | CX40: =IF(F40=8,'JSM Jahresdauerlinie'!$E$26,IF(BY40=0," ",BY40)) -> 1e-06 | CY40: =IF(H40=8,'JSM Jahresdauerlinie'!$E$26,IF(CA40=0," ",CA40)) -> 1e-06 | CZ40: =IF(J40=8,'JSM Jahresdauerlinie'!$E$26,IF(CC40=0," ",CC40)) -> 1e-06 | DA40: =IF(L40=8,'JSM Jahresdauerlinie'!$E$26,IF(CE40=0," ",CE40)) -> 1e-06 | DB40: =IF(N40=8,'JSM Jahresdauerlinie'!$E$26,IF(CG40=0," ",CG40)) -> 1e-06 | DC40: =IF(P40=8,'JSM Jahresdauerlinie'!$E$26,IF(CI40=0," ",CI40)) -> 1e-06 | DD40: =IF(R40=8,'JSM Jahresdauerlinie'!$E$26,IF(CK40=0," ",CK40)) -> 1e-06 | DE40: =IF(T40=8,'JSM Jahresdauerlinie'!$E$26,IF(CM40=0," ",CM40)) -> 1e-06 | DF40: =IF(V40=8,'JSM Jahresdauerlinie'!$E$26,IF(CO40=0," ",CO40)) -> 1e-06 | DG40: =IF(X40=8,'JSM Jahresdauerlinie'!$E$26,IF(CQ40=0," ",CQ40)) -> 1e-06 | DH40: =IF(Z40=8,'JSM Jahresdauerlinie'!$E$26,IF(CS40=0," ",CS40)) -> 1e-06 | DJ40: 1e-06 | DK40: 1e-06 | DL40: 1e-06 | DM40: 1e-06 | DN40: 1e-06 | DO40: 1e-06 | DP40: 1e-06 | DQ40: 1e-06 | DR40: 1e-06 | DS40: 1e-06 | DT40: 1e-06 | DU40: 1e-06 | DX40: 8 | DY40: 8 | DZ40: 8 | EA40: 8 | EB40: 8 | EC40: 8 | ED40: 8 | EE40: 8 | EF40: 8 | EG40: 8 | EH40: 8 | EI40: 8
B41: 10 | AU41: 0 | AW41: 0 | AY41: 0 | BA41: 0 | BC41: 0 | BE41: 0 | BG41: 0 | BI41: 0 | BK41: 0 | BM41: 0 | BO41: 0 | BQ41: 0 | BV41: 8 | BW41: =IF(BV41=8,'JSM Jahresdauerlinie'!$E$26,E41) -> 1e-06 | BX41: 8 | BY41: =IF(BX41=8,'JSM Jahresdauerlinie'!$E$26,G41) -> 1e-06 | BZ41: 8 | CA41: =IF(BZ41=8,'JSM Jahresdauerlinie'!$E$26,I41) -> 1e-06 | CB41: 8 | CC41: =IF(CB41=8,'JSM Jahresdauerlinie'!$E$26,K41) -> 1e-06 | CD41: 8 | CE41: =IF(CD41=8,'JSM Jahresdauerlinie'!$E$26,M41) -> 1e-06 | CF41: 8 | CG41: =IF(CF41=8,'JSM Jahresdauerlinie'!$E$26,O41) -> 1e-06 | CH41: 8 | CI41: =IF(CH41=8,'JSM Jahresdauerlinie'!$E$26,Q41) -> 1e-06 | CJ41: 8 | CK41: =IF(CJ41=8,'JSM Jahresdauerlinie'!$E$26,S41) -> 1e-06 | CL41: 8 | CM41: =IF(CL41=8,'JSM Jahresdauerlinie'!$E$26,U41) -> 1e-06 | CN41: 8 | CO41: =IF(CN41=8,'JSM Jahresdauerlinie'!$E$26,W41) -> 1e-06 | CP41: 8 | CQ41: =IF(CP41=8,'JSM Jahresdauerlinie'!$E$26,Y41) -> 1e-06 | CR41: 8 | CS41: =IF(CR41=8,'JSM Jahresdauerlinie'!$E$26,AA41) -> 1e-06 | CW41: =IF(D41=8,'JSM Jahresdauerlinie'!$E$26,IF(BW41=0," ",BW41)) -> 1e-06 | CX41: =IF(F41=8,'JSM Jahresdauerlinie'!$E$26,IF(BY41=0," ",BY41)) -> 1e-06 | CY41: =IF(H41=8,'JSM Jahresdauerlinie'!$E$26,IF(CA41=0," ",CA41)) -> 1e-06 | CZ41: =IF(J41=8,'JSM Jahresdauerlinie'!$E$26,IF(CC41=0," ",CC41)) -> 1e-06 | DA41: =IF(L41=8,'JSM Jahresdauerlinie'!$E$26,IF(CE41=0," ",CE41)) -> 1e-06 | DB41: =IF(N41=8,'JSM Jahresdauerlinie'!$E$26,IF(CG41=0," ",CG41)) -> 1e-06 | DC41: =IF(P41=8,'JSM Jahresdauerlinie'!$E$26,IF(CI41=0," ",CI41)) -> 1e-06 | DD41: =IF(R41=8,'JSM Jahresdauerlinie'!$E$26,IF(CK41=0," ",CK41)) -> 1e-06 | DE41: =IF(T41=8,'JSM Jahresdauerlinie'!$E$26,IF(CM41=0," ",CM41)) -> 1e-06 | DF41: =IF(V41=8,'JSM Jahresdauerlinie'!$E$26,IF(CO41=0," ",CO41)) -> 1e-06 | DG41: =IF(X41=8,'JSM Jahresdauerlinie'!$E$26,IF(CQ41=0," ",CQ41)) -> 1e-06 | DH41: =IF(Z41=8,'JSM Jahresdauerlinie'!$E$26,IF(CS41=0," ",CS41)) -> 1e-06 | DJ41: 1e-06 | DK41: 1e-06 | DL41: 1e-06 | DM41: 1e-06 | DN41: 1e-06 | DO41: 1e-06 | DP41: 1e-06 | DQ41: 1e-06 | DR41: 1e-06 | DS41: 1e-06 | DT41: 1e-06 | DU41: 1e-06 | DX41: 8 | DY41: 8 | DZ41: 8 | EA41: 8 | EB41: 8 | EC41: 8 | ED41: 8 | EE41: 8 | EF41: 8 | EG41: 8 | EH41: 8 | EI41: 8
B42: 11 | AU42: 0 | AW42: 0 | AY42: 0 | BA42: 0 | BC42: 0 | BE42: 0 | BG42: 0 | BI42: 0 | BK42: 0 | BM42: 0 | BO42: 0 | BQ42: 0 | BV42: 8 | BW42: =IF(BV42=8,'JSM Jahresdauerlinie'!$E$26,E42) -> 1e-06 | BX42: 8 | BY42: =IF(BX42=8,'JSM Jahresdauerlinie'!$E$26,G42) -> 1e-06 | BZ42: 8 | CA42: =IF(BZ42=8,'JSM Jahresdauerlinie'!$E$26,I42) -> 1e-06 | CB42: 8 | CC42: =IF(CB42=8,'JSM Jahresdauerlinie'!$E$26,K42) -> 1e-06 | CD42: 8 | CE42: =IF(CD42=8,'JSM Jahresdauerlinie'!$E$26,M42) -> 1e-06 | CF42: 8 | CG42: =IF(CF42=8,'JSM Jahresdauerlinie'!$E$26,O42) -> 1e-06 | CH42: 8 | CI42: =IF(CH42=8,'JSM Jahresdauerlinie'!$E$26,Q42) -> 1e-06 | CJ42: 8 | CK42: =IF(CJ42=8,'JSM Jahresdauerlinie'!$E$26,S42) -> 1e-06 | CL42: 8 | CM42: =IF(CL42=8,'JSM Jahresdauerlinie'!$E$26,U42) -> 1e-06 | CN42: 8 | CO42: =IF(CN42=8,'JSM Jahresdauerlinie'!$E$26,W42) -> 1e-06 | CP42: 8 | CQ42: =IF(CP42=8,'JSM Jahresdauerlinie'!$E$26,Y42) -> 1e-06 | CR42: 8 | CS42: =IF(CR42=8,'JSM Jahresdauerlinie'!$E$26,AA42) -> 1e-06 | CW42: =IF(D42=8,'JSM Jahresdauerlinie'!$E$26,IF(BW42=0," ",BW42)) -> 1e-06 | CX42: =IF(F42=8,'JSM Jahresdauerlinie'!$E$26,IF(BY42=0," ",BY42)) -> 1e-06 | CY42: =IF(H42=8,'JSM Jahresdauerlinie'!$E$26,IF(CA42=0," ",CA42)) -> 1e-06 | CZ42: =IF(J42=8,'JSM Jahresdauerlinie'!$E$26,IF(CC42=0," ",CC42)) -> 1e-06 | DA42: =IF(L42=8,'JSM Jahresdauerlinie'!$E$26,IF(CE42=0," ",CE42)) -> 1e-06 | DB42: =IF(N42=8,'JSM Jahresdauerlinie'!$E$26,IF(CG42=0," ",CG42)) -> 1e-06 | DC42: =IF(P42=8,'JSM Jahresdauerlinie'!$E$26,IF(CI42=0," ",CI42)) -> 1e-06 | DD42: =IF(R42=8,'JSM Jahresdauerlinie'!$E$26,IF(CK42=0," ",CK42)) -> 1e-06 | DE42: =IF(T42=8,'JSM Jahresdauerlinie'!$E$26,IF(CM42=0," ",CM42)) -> 1e-06 | DF42: =IF(V42=8,'JSM Jahresdauerlinie'!$E$26,IF(CO42=0," ",CO42)) -> 1e-06 | DG42: =IF(X42=8,'JSM Jahresdauerlinie'!$E$26,IF(CQ42=0," ",CQ42)) -> 1e-06 | DH42: =IF(Z42=8,'JSM Jahresdauerlinie'!$E$26,IF(CS42=0," ",CS42)) -> 1e-06 | DJ42: 1e-06 | DK42: 1e-06 | DL42: 1e-06 | DM42: 1e-06 | DN42: 1e-06 | DO42: 1e-06 | DP42: 1e-06 | DQ42: 1e-06 | DR42: 1e-06 | DS42: 1e-06 | DT42: 1e-06 | DU42: 1e-06 | DX42: 8 | DY42: 8 | DZ42: 8 | EA42: 8 | EB42: 8 | EC42: 8 | ED42: 8 | EE42: 8 | EF42: 8 | EG42: 8 | EH42: 8 | EI42: 8
B43: 12 | AU43: 0 | AW43: 0 | AY43: =H43 -> 0 | BA43: =J43 -> 0 | BC43: =L43 -> 0 | BE43: =N43 -> 0 | BG43: =P43 -> 0 | BI43: =R43 -> 0 | BK43: =T43 -> 0 | BM43: =V43 -> 0 | BO43: =X43 -> 0 | BQ43: =Z43 -> 0 | BV43: 8 | BW43: =IF(BV43=8,'JSM Jahresdauerlinie'!$E$26,E43) -> 1e-06 | BX43: 8 | BY43: =IF(BX43=8,'JSM Jahresdauerlinie'!$E$26,G43) -> 1e-06 | BZ43: 8 | CA43: =IF(BZ43=8,'JSM Jahresdauerlinie'!$E$26,I43) -> 1e-06 | CB43: 8 | CC43: =IF(CB43=8,'JSM Jahresdauerlinie'!$E$26,K43) -> 1e-06 | CD43: 8 | CE43: =IF(CD43=8,'JSM Jahresdauerlinie'!$E$26,M43) -> 1e-06 | CF43: 8 | CG43: =IF(CF43=8,'JSM Jahresdauerlinie'!$E$26,O43) -> 1e-06 | CH43: 8 | CI43: =IF(CH43=8,'JSM Jahresdauerlinie'!$E$26,Q43) -> 1e-06 | CJ43: 8 | CK43: =IF(CJ43=8,'JSM Jahresdauerlinie'!$E$26,S43) -> 1e-06 | CL43: 8 | CM43: =IF(CL43=8,'JSM Jahresdauerlinie'!$E$26,U43) -> 1e-06 | CN43: 8 | CO43: =IF(CN43=8,'JSM Jahresdauerlinie'!$E$26,W43) -> 1e-06 | CP43: 8 | CQ43: =IF(CP43=8,'JSM Jahresdauerlinie'!$E$26,Y43) -> 1e-06 | CR43: 8 | CS43: =IF(CR43=8,'JSM Jahresdauerlinie'!$E$26,AA43) -> 1e-06 | CW43: =IF(D43=8,'JSM Jahresdauerlinie'!$E$26,IF(BW43=0," ",BW43)) -> 1e-06 | CX43: =IF(F43=8,'JSM Jahresdauerlinie'!$E$26,IF(BY43=0," ",BY43)) -> 1e-06 | CY43: =IF(H43=8,'JSM Jahresdauerlinie'!$E$26,IF(CA43=0," ",CA43)) -> 1e-06 | CZ43: =IF(J43=8,'JSM Jahresdauerlinie'!$E$26,IF(CC43=0," ",CC43)) -> 1e-06 | DA43: =IF(L43=8,'JSM Jahresdauerlinie'!$E$26,IF(CE43=0," ",CE43)) -> 1e-06 | DB43: =IF(N43=8,'JSM Jahresdauerlinie'!$E$26,IF(CG43=0," ",CG43)) -> 1e-06 | DC43: =IF(P43=8,'JSM Jahresdauerlinie'!$E$26,IF(CI43=0," ",CI43)) -> 1e-06 | DD43: =IF(R43=8,'JSM Jahresdauerlinie'!$E$26,IF(CK43=0," ",CK43)) -> 1e-06 | DE43: =IF(T43=8,'JSM Jahresdauerlinie'!$E$26,IF(CM43=0," ",CM43)) -> 1e-06 | DF43: =IF(V43=8,'JSM Jahresdauerlinie'!$E$26,IF(CO43=0," ",CO43)) -> 1e-06 | DG43: =IF(X43=8,'JSM Jahresdauerlinie'!$E$26,IF(CQ43=0," ",CQ43)) -> 1e-06 | DH43: =IF(Z43=8,'JSM Jahresdauerlinie'!$E$26,IF(CS43=0," ",CS43)) -> 1e-06 | DJ43: 1e-06 | DK43: 1e-06 | DL43: 1e-06 | DM43: 1e-06 | DN43: 1e-06 | DO43: 1e-06 | DP43: 1e-06 | DQ43: 1e-06 | DR43: 1e-06 | DS43: 1e-06 | DT43: 1e-06 | DU43: 1e-06 | DX43: 8 | DY43: 8 | DZ43: 8 | EA43: 8 | EB43: 8 | EC43: 8 | ED43: 8 | EE43: 8 | EF43: 8 | EG43: 8 | EH43: 8 | EI43: 8
B44: 13 | AU44: 0 | AW44: =F44 -> 0 | AY44: 0 | BA44: 0 | BC44: 0 | BE44: 0 | BG44: 0 | BI44: 0 | BK44: 0 | BM44: 0 | BO44: 0 | BQ44: 0 | BV44: 8 | BW44: =IF(BV44=8,'JSM Jahresdauerlinie'!$E$26,E44) -> 1e-06 | BX44: 8 | BY44: =IF(BX44=8,'JSM Jahresdauerlinie'!$E$26,G44) -> 1e-06 | BZ44: 8 | CA44: =IF(BZ44=8,'JSM Jahresdauerlinie'!$E$26,I44) -> 1e-06 | CB44: 8 | CC44: =IF(CB44=8,'JSM Jahresdauerlinie'!$E$26,K44) -> 1e-06 | CD44: 8 | CE44: =IF(CD44=8,'JSM Jahresdauerlinie'!$E$26,M44) -> 1e-06 | CF44: 8 | CG44: =IF(CF44=8,'JSM Jahresdauerlinie'!$E$26,O44) -> 1e-06 | CH44: 8 | CI44: =IF(CH44=8,'JSM Jahresdauerlinie'!$E$26,Q44) -> 1e-06 | CJ44: 8 | CK44: =IF(CJ44=8,'JSM Jahresdauerlinie'!$E$26,S44) -> 1e-06 | CL44: 8 | CM44: =IF(CL44=8,'JSM Jahresdauerlinie'!$E$26,U44) -> 1e-06 | CN44: 8 | CO44: =IF(CN44=8,'JSM Jahresdauerlinie'!$E$26,W44) -> 1e-06 | CP44: 8 | CQ44: =IF(CP44=8,'JSM Jahresdauerlinie'!$E$26,Y44) -> 1e-06 | CR44: 8 | CS44: =IF(CR44=8,'JSM Jahresdauerlinie'!$E$26,AA44) -> 1e-06 | CW44: =IF(D44=8,'JSM Jahresdauerlinie'!$E$26,IF(BW44=0," ",BW44)) -> 1e-06 | CX44: =IF(F44=8,'JSM Jahresdauerlinie'!$E$26,IF(BY44=0," ",BY44)) -> 1e-06 | CY44: =IF(H44=8,'JSM Jahresdauerlinie'!$E$26,IF(CA44=0," ",CA44)) -> 1e-06 | CZ44: =IF(J44=8,'JSM Jahresdauerlinie'!$E$26,IF(CC44=0," ",CC44)) -> 1e-06 | DA44: =IF(L44=8,'JSM Jahresdauerlinie'!$E$26,IF(CE44=0," ",CE44)) -> 1e-06 | DB44: =IF(N44=8,'JSM Jahresdauerlinie'!$E$26,IF(CG44=0," ",CG44)) -> 1e-06 | DC44: =IF(P44=8,'JSM Jahresdauerlinie'!$E$26,IF(CI44=0," ",CI44)) -> 1e-06 | DD44: =IF(R44=8,'JSM Jahresdauerlinie'!$E$26,IF(CK44=0," ",CK44)) -> 1e-06 | DE44: =IF(T44=8,'JSM Jahresdauerlinie'!$E$26,IF(CM44=0," ",CM44)) -> 1e-06 | DF44: =IF(V44=8,'JSM Jahresdauerlinie'!$E$26,IF(CO44=0," ",CO44)) -> 1e-06 | DG44: =IF(X44=8,'JSM Jahresdauerlinie'!$E$26,IF(CQ44=0," ",CQ44)) -> 1e-06 | DH44: =IF(Z44=8,'JSM Jahresdauerlinie'!$E$26,IF(CS44=0," ",CS44)) -> 1e-06 | DJ44: 1e-06 | DK44: 1e-06 | DL44: 1e-06 | DM44: 1e-06 | DN44: 1e-06 | DO44: 1e-06 | DP44: 1e-06 | DQ44: 1e-06 | DR44: 1e-06 | DS44: 1e-06 | DT44: 1e-06 | DU44: 1e-06 | DX44: 8 | DY44: 8 | DZ44: 8 | EA44: 8 | EB44: 8 | EC44: 8 | ED44: 8 | EE44: 8 | EF44: 8 | EG44: 8 | EH44: 8 | EI44: 8
B45: 14 | AU45: 0 | AW45: 0 | AY45: 0 | BA45: 0 | BC45: 0 | BE45: 0 | BG45: 0 | BI45: 0 | BK45: 0 | BM45: 0 | BO45: 0 | BQ45: 0 | BV45: 8 | BW45: =IF(BV45=8,'JSM Jahresdauerlinie'!$E$26,E45) -> 1e-06 | BX45: 8 | BY45: =IF(BX45=8,'JSM Jahresdauerlinie'!$E$26,G45) -> 1e-06 | BZ45: 8 | CA45: =IF(BZ45=8,'JSM Jahresdauerlinie'!$E$26,I45) -> 1e-06 | CB45: 8 | CC45: =IF(CB45=8,'JSM Jahresdauerlinie'!$E$26,K45) -> 1e-06 | CD45: 8 | CE45: =IF(CD45=8,'JSM Jahresdauerlinie'!$E$26,M45) -> 1e-06 | CF45: 8 | CG45: =IF(CF45=8,'JSM Jahresdauerlinie'!$E$26,O45) -> 1e-06 | CH45: 8 | CI45: =IF(CH45=8,'JSM Jahresdauerlinie'!$E$26,Q45) -> 1e-06 | CJ45: 8 | CK45: =IF(CJ45=8,'JSM Jahresdauerlinie'!$E$26,S45) -> 1e-06 | CL45: 8 | CM45: =IF(CL45=8,'JSM Jahresdauerlinie'!$E$26,U45) -> 1e-06 | CN45: 8 | CO45: =IF(CN45=8,'JSM Jahresdauerlinie'!$E$26,W45) -> 1e-06 | CP45: 8 | CQ45: =IF(CP45=8,'JSM Jahresdauerlinie'!$E$26,Y45) -> 1e-06 | CR45: 8 | CS45: =IF(CR45=8,'JSM Jahresdauerlinie'!$E$26,AA45) -> 1e-06 | CW45: =IF(D45=8,'JSM Jahresdauerlinie'!$E$26,IF(BW45=0," ",BW45)) -> 1e-06 | CX45: =IF(F45=8,'JSM Jahresdauerlinie'!$E$26,IF(BY45=0," ",BY45)) -> 1e-06 | CY45: =IF(H45=8,'JSM Jahresdauerlinie'!$E$26,IF(CA45=0," ",CA45)) -> 1e-06 | CZ45: =IF(J45=8,'JSM Jahresdauerlinie'!$E$26,IF(CC45=0," ",CC45)) -> 1e-06 | DA45: =IF(L45=8,'JSM Jahresdauerlinie'!$E$26,IF(CE45=0," ",CE45)) -> 1e-06 | DB45: =IF(N45=8,'JSM Jahresdauerlinie'!$E$26,IF(CG45=0," ",CG45)) -> 1e-06 | DC45: =IF(P45=8,'JSM Jahresdauerlinie'!$E$26,IF(CI45=0," ",CI45)) -> 1e-06 | DD45: =IF(R45=8,'JSM Jahresdauerlinie'!$E$26,IF(CK45=0," ",CK45)) -> 1e-06 | DE45: =IF(T45=8,'JSM Jahresdauerlinie'!$E$26,IF(CM45=0," ",CM45)) -> 1e-06 | DF45: =IF(V45=8,'JSM Jahresdauerlinie'!$E$26,IF(CO45=0," ",CO45)) -> 1e-06 | DG45: =IF(X45=8,'JSM Jahresdauerlinie'!$E$26,IF(CQ45=0," ",CQ45)) -> 1e-06 | DH45: =IF(Z45=8,'JSM Jahresdauerlinie'!$E$26,IF(CS45=0," ",CS45)) -> 1e-06 | DJ45: 1e-06 | DK45: 1e-06 | DL45: 1e-06 | DM45: 1e-06 | DN45: 1e-06 | DO45: 1e-06 | DP45: 1e-06 | DQ45: 1e-06 | DR45: 1e-06 | DS45: 1e-06 | DT45: 1e-06 | DU45: 1e-06 | DX45: 8 | DY45: 8 | DZ45: 8 | EA45: 8 | EB45: 8 | EC45: 8 | ED45: 8 | EE45: 8 | EF45: 8 | EG45: 8 | EH45: 8 | EI45: 8
B46: 15 | AU46: 0 | AW46: 0 | AY46: 0 | BA46: 0 | BC46: 0 | BE46: 0 | BG46: 0 | BI46: 0 | BK46: 0 | BM46: 0 | BO46: 0 | BQ46: 0 | BV46: 8 | BW46: =IF(BV46=8,'JSM Jahresdauerlinie'!$E$26,E46) -> 1e-06 | BX46: 8 | BY46: =IF(BX46=8,'JSM Jahresdauerlinie'!$E$26,G46) -> 1e-06 | BZ46: 8 | CA46: =IF(BZ46=8,'JSM Jahresdauerlinie'!$E$26,I46) -> 1e-06 | CB46: 8 | CC46: =IF(CB46=8,'JSM Jahresdauerlinie'!$E$26,K46) -> 1e-06 | CD46: 8 | CE46: =IF(CD46=8,'JSM Jahresdauerlinie'!$E$26,M46) -> 1e-06 | CF46: 8 | CG46: =IF(CF46=8,'JSM Jahresdauerlinie'!$E$26,O46) -> 1e-06 | CH46: 8 | CI46: =IF(CH46=8,'JSM Jahresdauerlinie'!$E$26,Q46) -> 1e-06 | CJ46: 8 | CK46: =IF(CJ46=8,'JSM Jahresdauerlinie'!$E$26,S46) -> 1e-06 | CL46: 8 | CM46: =IF(CL46=8,'JSM Jahresdauerlinie'!$E$26,U46) -> 1e-06 | CN46: 8 | CO46: =IF(CN46=8,'JSM Jahresdauerlinie'!$E$26,W46) -> 1e-06 | CP46: 8 | CQ46: =IF(CP46=8,'JSM Jahresdauerlinie'!$E$26,Y46) -> 1e-06 | CR46: 8 | CS46: =IF(CR46=8,'JSM Jahresdauerlinie'!$E$26,AA46) -> 1e-06 | CW46: =IF(D46=8,'JSM Jahresdauerlinie'!$E$26,IF(BW46=0," ",BW46)) -> 1e-06 | CX46: =IF(F46=8,'JSM Jahresdauerlinie'!$E$26,IF(BY46=0," ",BY46)) -> 1e-06 | CY46: =IF(H46=8,'JSM Jahresdauerlinie'!$E$26,IF(CA46=0," ",CA46)) -> 1e-06 | CZ46: =IF(J46=8,'JSM Jahresdauerlinie'!$E$26,IF(CC46=0," ",CC46)) -> 1e-06 | DA46: =IF(L46=8,'JSM Jahresdauerlinie'!$E$26,IF(CE46=0," ",CE46)) -> 1e-06 | DB46: =IF(N46=8,'JSM Jahresdauerlinie'!$E$26,IF(CG46=0," ",CG46)) -> 1e-06 | DC46: =IF(P46=8,'JSM Jahresdauerlinie'!$E$26,IF(CI46=0," ",CI46)) -> 1e-06 | DD46: =IF(R46=8,'JSM Jahresdauerlinie'!$E$26,IF(CK46=0," ",CK46)) -> 1e-06 | DE46: =IF(T46=8,'JSM Jahresdauerlinie'!$E$26,IF(CM46=0," ",CM46)) -> 1e-06 | DF46: =IF(V46=8,'JSM Jahresdauerlinie'!$E$26,IF(CO46=0," ",CO46)) -> 1e-06 | DG46: =IF(X46=8,'JSM Jahresdauerlinie'!$E$26,IF(CQ46=0," ",CQ46)) -> 1e-06 | DH46: =IF(Z46=8,'JSM Jahresdauerlinie'!$E$26,IF(CS46=0," ",CS46)) -> 1e-06 | DJ46: 1e-06 | DK46: 1e-06 | DL46: 1e-06 | DM46: 1e-06 | DN46: 1e-06 | DO46: 1e-06 | DP46: 1e-06 | DQ46: 1e-06 | DR46: 1e-06 | DS46: 1e-06 | DT46: 1e-06 | DU46: 1e-06 | DX46: 8 | DY46: 8 | DZ46: 8 | EA46: 8 | EB46: 8 | EC46: 8 | ED46: 8 | EE46: 8 | EF46: 8 | EG46: 8 | EH46: 8 | EI46: 8
B47: 16 | AU47: 0 | AW47: 0 | AY47: 0 | BA47: 0 | BC47: 0 | BE47: 0 | BG47: 0 | BI47: 0 | BK47: 0 | BM47: 0 | BO47: 0 | BQ47: 0 | BV47: 8 | BW47: =IF(BV47=8,'JSM Jahresdauerlinie'!$E$26,E47) -> 1e-06 | BX47: 8 | BY47: =IF(BX47=8,'JSM Jahresdauerlinie'!$E$26,G47) -> 1e-06 | BZ47: 8 | CA47: =IF(BZ47=8,'JSM Jahresdauerlinie'!$E$26,I47) -> 1e-06 | CB47: 8 | CC47: =IF(CB47=8,'JSM Jahresdauerlinie'!$E$26,K47) -> 1e-06 | CD47: 8 | CE47: =IF(CD47=8,'JSM Jahresdauerlinie'!$E$26,M47) -> 1e-06 | CF47: 8 | CG47: =IF(CF47=8,'JSM Jahresdauerlinie'!$E$26,O47) -> 1e-06 | CH47: 8 | CI47: =IF(CH47=8,'JSM Jahresdauerlinie'!$E$26,Q47) -> 1e-06 | CJ47: 8 | CK47: =IF(CJ47=8,'JSM Jahresdauerlinie'!$E$26,S47) -> 1e-06 | CL47: 8 | CM47: =IF(CL47=8,'JSM Jahresdauerlinie'!$E$26,U47) -> 1e-06 | CN47: 8 | CO47: =IF(CN47=8,'JSM Jahresdauerlinie'!$E$26,W47) -> 1e-06 | CP47: 8 | CQ47: =IF(CP47=8,'JSM Jahresdauerlinie'!$E$26,Y47) -> 1e-06 | CR47: 8 | CS47: =IF(CR47=8,'JSM Jahresdauerlinie'!$E$26,AA47) -> 1e-06 | CW47: =IF(D47=8,'JSM Jahresdauerlinie'!$E$26,IF(BW47=0," ",BW47)) -> 1e-06 | CX47: =IF(F47=8,'JSM Jahresdauerlinie'!$E$26,IF(BY47=0," ",BY47)) -> 1e-06 | CY47: =IF(H47=8,'JSM Jahresdauerlinie'!$E$26,IF(CA47=0," ",CA47)) -> 1e-06 | CZ47: =IF(J47=8,'JSM Jahresdauerlinie'!$E$26,IF(CC47=0," ",CC47)) -> 1e-06 | DA47: =IF(L47=8,'JSM Jahresdauerlinie'!$E$26,IF(CE47=0," ",CE47)) -> 1e-06 | DB47: =IF(N47=8,'JSM Jahresdauerlinie'!$E$26,IF(CG47=0," ",CG47)) -> 1e-06 | DC47: =IF(P47=8,'JSM Jahresdauerlinie'!$E$26,IF(CI47=0," ",CI47)) -> 1e-06 | DD47: =IF(R47=8,'JSM Jahresdauerlinie'!$E$26,IF(CK47=0," ",CK47)) -> 1e-06 | DE47: =IF(T47=8,'JSM Jahresdauerlinie'!$E$26,IF(CM47=0," ",CM47)) -> 1e-06 | DF47: =IF(V47=8,'JSM Jahresdauerlinie'!$E$26,IF(CO47=0," ",CO47)) -> 1e-06 | DG47: =IF(X47=8,'JSM Jahresdauerlinie'!$E$26,IF(CQ47=0," ",CQ47)) -> 1e-06 | DH47: =IF(Z47=8,'JSM Jahresdauerlinie'!$E$26,IF(CS47=0," ",CS47)) -> 1e-06 | DJ47: 1e-06 | DK47: 1e-06 | DL47: 1e-06 | DM47: 1e-06 | DN47: 1e-06 | DO47: 1e-06 | DP47: 1e-06 | DQ47: 1e-06 | DR47: 1e-06 | DS47: 1e-06 | DT47: 1e-06 | DU47: 1e-06 | DX47: 8 | DY47: 8 | DZ47: 8 | EA47: 8 | EB47: 8 | EC47: 8 | ED47: 8 | EE47: 8 | EF47: 8 | EG47: 8 | EH47: 8 | EI47: 8
B48: 17 | AG48: =IF(G48=0," ",IF(G48>0,G48," ")) ->  | AH48: =IF(I48=0," ",IF(I48>0,I48," ")) ->  | AI48: =IF(K48=0," ",IF(K48>0,K48," ")) ->  | AJ48: =IF(M48=0," ",IF(M48>0,M48," ")) ->  | AK48: =IF(O48=0," ",IF(O48>0,O48," ")) ->  | AL48: =IF(Q48=0," ",IF(Q48>0,Q48," ")) ->  | AM48: =IF(S48=0," ",IF(S48>0,S48," ")) ->  | AU48: 0 | AW48: 0 | AY48: 0 | BA48: 0 | BC48: 0 | BE48: 0 | BG48: 0 | BI48: 0 | BK48: 0 | BL48: =IF(BK48=8,"",IF(U48="","",U48)) ->  | BM48: 0 | BO48: 0 | BQ48: 0 | BV48: 8 | BW48: =IF(BV48=8,'JSM Jahresdauerlinie'!$E$26,E48) -> 1e-06 | BX48: 8 | BY48: =IF(BX48=8,'JSM Jahresdauerlinie'!$E$26,G48) -> 1e-06 | BZ48: 8 | CA48: =IF(BZ48=8,'JSM Jahresdauerlinie'!$E$26,I48) -> 1e-06 | CB48: 8 | CC48: =IF(CB48=8,'JSM Jahresdauerlinie'!$E$26,K48) -> 1e-06 | CD48: 8 | CE48: =IF(CD48=8,'JSM Jahresdauerlinie'!$E$26,M48) -> 1e-06 | CF48: 8 | CG48: =IF(CF48=8,'JSM Jahresdauerlinie'!$E$26,O48) -> 1e-06 | CH48: 8 | CI48: =IF(CH48=8,'JSM Jahresdauerlinie'!$E$26,Q48) -> 1e-06 | CJ48: 8 | CK48: =IF(CJ48=8,'JSM Jahresdauerlinie'!$E$26,S48) -> 1e-06 | CL48: 8 | CM48: =IF(CL48=8,'JSM Jahresdauerlinie'!$E$26,U48) -> 1e-06 | CN48: 8 | CO48: =IF(CN48=8,'JSM Jahresdauerlinie'!$E$26,W48) -> 1e-06 | CP48: 8 | CQ48: =IF(CP48=8,'JSM Jahresdauerlinie'!$E$26,Y48) -> 1e-06 | CR48: 8 | CS48: =IF(CR48=8,'JSM Jahresdauerlinie'!$E$26,AA48) -> 1e-06 | CW48: =IF(D48=8,'JSM Jahresdauerlinie'!$E$26,IF(BW48=0," ",BW48)) -> 1e-06 | CX48: =IF(F48=8,'JSM Jahresdauerlinie'!$E$26,IF(BY48=0," ",BY48)) -> 1e-06 | CY48: =IF(H48=8,'JSM Jahresdauerlinie'!$E$26,IF(CA48=0," ",CA48)) -> 1e-06 | CZ48: =IF(J48=8,'JSM Jahresdauerlinie'!$E$26,IF(CC48=0," ",CC48)) -> 1e-06 | DA48: =IF(L48=8,'JSM Jahresdauerlinie'!$E$26,IF(CE48=0," ",CE48)) -> 1e-06 | DB48: =IF(N48=8,'JSM Jahresdauerlinie'!$E$26,IF(CG48=0," ",CG48)) -> 1e-06 | DC48: =IF(P48=8,'JSM Jahresdauerlinie'!$E$26,IF(CI48=0," ",CI48)) -> 1e-06 | DD48: =IF(R48=8,'JSM Jahresdauerlinie'!$E$26,IF(CK48=0," ",CK48)) -> 1e-06 | DE48: =IF(T48=8,'JSM Jahresdauerlinie'!$E$26,IF(CM48=0," ",CM48)) -> 1e-06 | DF48: =IF(V48=8,'JSM Jahresdauerlinie'!$E$26,IF(CO48=0," ",CO48)) -> 1e-06 | DG48: =IF(X48=8,'JSM Jahresdauerlinie'!$E$26,IF(CQ48=0," ",CQ48)) -> 1e-06 | DH48: =IF(Z48=8,'JSM Jahresdauerlinie'!$E$26,IF(CS48=0," ",CS48)) -> 1e-06 | DJ48: 1e-06 | DK48: =IF(CX48=" ",$CU$92+0.01,CX48) -> 1e-06 | DL48: =IF(CY48=" ",$CU$92+0.01,CY48) -> 1e-06 | DM48: =IF(CZ48=" ",$CU$92+0.01,CZ48) -> 1e-06 | DN48: =IF(DA48=" ",$CU$92+0.01,DA48) -> 1e-06 | DO48: =IF(DB48=" ",$CU$92+0.01,DB48) -> 1e-06 | DP48: =IF(DC48=" ",$CU$92+0.01,DC48) -> 1e-06 | DQ48: =IF(DD48=" ",$CU$92+0.01,DD48) -> 1e-06 | DR48: =IF(DE48=" ",$CU$92+0.01,DE48) -> 1e-06 | DS48: =IF(DF48=" ",$CU$92+0.01,DF48) -> 1e-06 | DT48: =IF(DG48=" ",$CU$92+0.01,DG48) -> 1e-06 | DU48: =IF(DH48=" ",$CU$92+0.01,DH48) -> 1e-06 | DX48: 8 | DY48: 8 | DZ48: 8 | EA48: 8 | EB48: 8 | EC48: 8 | ED48: 8 | EE48: 8 | EF48: 8 | EG48: 8 | EH48: 8 | EI48: 8 | FA48: =IF(T48=0," ",T48) ->  | FB48: =IF(U48=0," ",IF(FA48=" "," ",IF(T48<=2,U48," "))) -> 
B49: 18 | AU49: 0 | AW49: 0 | AY49: 0 | BA49: 0 | BC49: 0 | BE49: 0 | BG49: 0 | BI49: 0 | BK49: 0 | BM49: 0 | BO49: 0 | BQ49: 0 | BV49: 8 | BW49: =IF(BV49=8,'JSM Jahresdauerlinie'!$E$26,E49) -> 1e-06 | BX49: 8 | BY49: =IF(BX49=8,'JSM Jahresdauerlinie'!$E$26,G49) -> 1e-06 | BZ49: 8 | CA49: =IF(BZ49=8,'JSM Jahresdauerlinie'!$E$26,I49) -> 1e-06 | CB49: 8 | CC49: =IF(CB49=8,'JSM Jahresdauerlinie'!$E$26,K49) -> 1e-06 | CD49: 8 | CE49: =IF(CD49=8,'JSM Jahresdauerlinie'!$E$26,M49) -> 1e-06 | CF49: 8 | CG49: =IF(CF49=8,'JSM Jahresdauerlinie'!$E$26,O49) -> 1e-06 | CH49: 8 | CI49: =IF(CH49=8,'JSM Jahresdauerlinie'!$E$26,Q49) -> 1e-06 | CJ49: 8 | CK49: =IF(CJ49=8,'JSM Jahresdauerlinie'!$E$26,S49) -> 1e-06 | CL49: 8 | CM49: =IF(CL49=8,'JSM Jahresdauerlinie'!$E$26,U49) -> 1e-06 | CN49: 8 | CO49: =IF(CN49=8,'JSM Jahresdauerlinie'!$E$26,W49) -> 1e-06 | CP49: 8 | CQ49: =IF(CP49=8,'JSM Jahresdauerlinie'!$E$26,Y49) -> 1e-06 | CR49: 8 | CS49: =IF(CR49=8,'JSM Jahresdauerlinie'!$E$26,AA49) -> 1e-06 | CW49: =IF(D49=8,'JSM Jahresdauerlinie'!$E$26,IF(BW49=0," ",BW49)) -> 1e-06 | CX49: =IF(F49=8,'JSM Jahresdauerlinie'!$E$26,IF(BY49=0," ",BY49)) -> 1e-06 | CY49: =IF(H49=8,'JSM Jahresdauerlinie'!$E$26,IF(CA49=0," ",CA49)) -> 1e-06 | CZ49: =IF(J49=8,'JSM Jahresdauerlinie'!$E$26,IF(CC49=0," ",CC49)) -> 1e-06 | DA49: =IF(L49=8,'JSM Jahresdauerlinie'!$E$26,IF(CE49=0," ",CE49)) -> 1e-06 | DB49: =IF(N49=8,'JSM Jahresdauerlinie'!$E$26,IF(CG49=0," ",CG49)) -> 1e-06 | DC49: =IF(P49=8,'JSM Jahresdauerlinie'!$E$26,IF(CI49=0," ",CI49)) -> 1e-06 | DD49: =IF(R49=8,'JSM Jahresdauerlinie'!$E$26,IF(CK49=0," ",CK49)) -> 1e-06 | DE49: =IF(T49=8,'JSM Jahresdauerlinie'!$E$26,IF(CM49=0," ",CM49)) -> 1e-06 | DF49: =IF(V49=8,'JSM Jahresdauerlinie'!$E$26,IF(CO49=0," ",CO49)) -> 1e-06 | DG49: =IF(X49=8,'JSM Jahresdauerlinie'!$E$26,IF(CQ49=0," ",CQ49)) -> 1e-06 | DH49: =IF(Z49=8,'JSM Jahresdauerlinie'!$E$26,IF(CS49=0," ",CS49)) -> 1e-06 | DJ49: 1e-06 | DK49: 1e-06 | DL49: 1e-06 | DM49: 1e-06 | DN49: 1e-06 | DO49: 1e-06 | DP49: 1e-06 | DQ49: 1e-06 | DR49: 1e-06 | DS49: 1e-06 | DT49: 1e-06 | DU49: 1e-06 | DX49: 8 | DY49: 8 | DZ49: 8 | EA49: 8 | EB49: 8 | EC49: 8 | ED49: 8 | EE49: 8 | EF49: 8 | EG49: 8 | EH49: 8 | EI49: 8
B50: 19 | AU50: 0 | AW50: 0 | AY50: 0 | BA50: 0 | BC50: 0 | BE50: 0 | BG50: 0 | BI50: 0 | BK50: 0 | BM50: 0 | BO50: 0 | BQ50: 0 | BV50: 8 | BW50: =IF(BV50=8,'JSM Jahresdauerlinie'!$E$26,E50) -> 1e-06 | BX50: 8 | BY50: =IF(BX50=8,'JSM Jahresdauerlinie'!$E$26,G50) -> 1e-06 | BZ50: 8 | CA50: =IF(BZ50=8,'JSM Jahresdauerlinie'!$E$26,I50) -> 1e-06 | CB50: 8 | CC50: =IF(CB50=8,'JSM Jahresdauerlinie'!$E$26,K50) -> 1e-06 | CD50: 8 | CE50: =IF(CD50=8,'JSM Jahresdauerlinie'!$E$26,M50) -> 1e-06 | CF50: 8 | CG50: =IF(CF50=8,'JSM Jahresdauerlinie'!$E$26,O50) -> 1e-06 | CH50: 8 | CI50: =IF(CH50=8,'JSM Jahresdauerlinie'!$E$26,Q50) -> 1e-06 | CJ50: 8 | CK50: =IF(CJ50=8,'JSM Jahresdauerlinie'!$E$26,S50) -> 1e-06 | CL50: 8 | CM50: =IF(CL50=8,'JSM Jahresdauerlinie'!$E$26,U50) -> 1e-06 | CN50: 8 | CO50: =IF(CN50=8,'JSM Jahresdauerlinie'!$E$26,W50) -> 1e-06 | CP50: 8 | CQ50: =IF(CP50=8,'JSM Jahresdauerlinie'!$E$26,Y50) -> 1e-06 | CR50: 8 | CS50: =IF(CR50=8,'JSM Jahresdauerlinie'!$E$26,AA50) -> 1e-06 | CW50: =IF(D50=8,'JSM Jahresdauerlinie'!$E$26,IF(BW50=0," ",BW50)) -> 1e-06 | CX50: =IF(F50=8,'JSM Jahresdauerlinie'!$E$26,IF(BY50=0," ",BY50)) -> 1e-06 | CY50: =IF(H50=8,'JSM Jahresdauerlinie'!$E$26,IF(CA50=0," ",CA50)) -> 1e-06 | CZ50: =IF(J50=8,'JSM Jahresdauerlinie'!$E$26,IF(CC50=0," ",CC50)) -> 1e-06 | DA50: =IF(L50=8,'JSM Jahresdauerlinie'!$E$26,IF(CE50=0," ",CE50)) -> 1e-06 | DB50: =IF(N50=8,'JSM Jahresdauerlinie'!$E$26,IF(CG50=0," ",CG50)) -> 1e-06 | DC50: =IF(P50=8,'JSM Jahresdauerlinie'!$E$26,IF(CI50=0," ",CI50)) -> 1e-06 | DD50: =IF(R50=8,'JSM Jahresdauerlinie'!$E$26,IF(CK50=0," ",CK50)) -> 1e-06 | DE50: =IF(T50=8,'JSM Jahresdauerlinie'!$E$26,IF(CM50=0," ",CM50)) -> 1e-06 | DF50: =IF(V50=8,'JSM Jahresdauerlinie'!$E$26,IF(CO50=0," ",CO50)) -> 1e-06 | DG50: =IF(X50=8,'JSM Jahresdauerlinie'!$E$26,IF(CQ50=0," ",CQ50)) -> 1e-06 | DH50: =IF(Z50=8,'JSM Jahresdauerlinie'!$E$26,IF(CS50=0," ",CS50)) -> 1e-06 | DJ50: 1e-06 | DK50: 1e-06 | DL50: 1e-06 | DM50: 1e-06 | DN50: 1e-06 | DO50: 1e-06 | DP50: 1e-06 | DQ50: 1e-06 | DR50: 1e-06 | DS50: 1e-06 | DT50: 1e-06 | DU50: 1e-06 | DX50: 8 | DY50: 8 | DZ50: 8 | EA50: 8 | EB50: 8 | EC50: 8 | ED50: 8 | EE50: 8 | EF50: 8 | EG50: 8 | EH50: 8 | EI50: 8
B51: 20 | AU51: 0 | AW51: 0 | AY51: 0 | BA51: 0 | BC51: 0 | BE51: 0 | BG51: 0 | BI51: 0 | BK51: 0 | BM51: 0 | BO51: 0 | BQ51: 0 | BV51: 8 | BW51: =IF(BV51=8,'JSM Jahresdauerlinie'!$E$26,E51) -> 1e-06 | BX51: 8 | BY51: =IF(BX51=8,'JSM Jahresdauerlinie'!$E$26,G51) -> 1e-06 | BZ51: 8 | CA51: =IF(BZ51=8,'JSM Jahresdauerlinie'!$E$26,I51) -> 1e-06 | CB51: 8 | CC51: =IF(CB51=8,'JSM Jahresdauerlinie'!$E$26,K51) -> 1e-06 | CD51: 8 | CE51: =IF(CD51=8,'JSM Jahresdauerlinie'!$E$26,M51) -> 1e-06 | CF51: 8 | CG51: =IF(CF51=8,'JSM Jahresdauerlinie'!$E$26,O51) -> 1e-06 | CH51: 8 | CI51: =IF(CH51=8,'JSM Jahresdauerlinie'!$E$26,Q51) -> 1e-06 | CJ51: 8 | CK51: =IF(CJ51=8,'JSM Jahresdauerlinie'!$E$26,S51) -> 1e-06 | CL51: 8 | CM51: =IF(CL51=8,'JSM Jahresdauerlinie'!$E$26,U51) -> 1e-06 | CN51: 8 | CO51: =IF(CN51=8,'JSM Jahresdauerlinie'!$E$26,W51) -> 1e-06 | CP51: 8 | CQ51: =IF(CP51=8,'JSM Jahresdauerlinie'!$E$26,Y51) -> 1e-06 | CR51: 8 | CS51: =IF(CR51=8,'JSM Jahresdauerlinie'!$E$26,AA51) -> 1e-06 | CW51: =IF(D51=8,'JSM Jahresdauerlinie'!$E$26,IF(BW51=0," ",BW51)) -> 1e-06 | CX51: =IF(F51=8,'JSM Jahresdauerlinie'!$E$26,IF(BY51=0," ",BY51)) -> 1e-06 | CY51: =IF(H51=8,'JSM Jahresdauerlinie'!$E$26,IF(CA51=0," ",CA51)) -> 1e-06 | CZ51: =IF(J51=8,'JSM Jahresdauerlinie'!$E$26,IF(CC51=0," ",CC51)) -> 1e-06 | DA51: =IF(L51=8,'JSM Jahresdauerlinie'!$E$26,IF(CE51=0," ",CE51)) -> 1e-06 | DB51: =IF(N51=8,'JSM Jahresdauerlinie'!$E$26,IF(CG51=0," ",CG51)) -> 1e-06 | DC51: =IF(P51=8,'JSM Jahresdauerlinie'!$E$26,IF(CI51=0," ",CI51)) -> 1e-06 | DD51: =IF(R51=8,'JSM Jahresdauerlinie'!$E$26,IF(CK51=0," ",CK51)) -> 1e-06 | DE51: =IF(T51=8,'JSM Jahresdauerlinie'!$E$26,IF(CM51=0," ",CM51)) -> 1e-06 | DF51: =IF(V51=8,'JSM Jahresdauerlinie'!$E$26,IF(CO51=0," ",CO51)) -> 1e-06 | DG51: =IF(X51=8,'JSM Jahresdauerlinie'!$E$26,IF(CQ51=0," ",CQ51)) -> 1e-06 | DH51: =IF(Z51=8,'JSM Jahresdauerlinie'!$E$26,IF(CS51=0," ",CS51)) -> 1e-06 | DJ51: 1e-06 | DK51: 1e-06 | DL51: 1e-06 | DM51: 1e-06 | DN51: 1e-06 | DO51: 1e-06 | DP51: 1e-06 | DQ51: 1e-06 | DR51: 1e-06 | DS51: 1e-06 | DT51: 1e-06 | DU51: 1e-06 | DX51: 8 | DY51: 8 | DZ51: 8 | EA51: 8 | EB51: 8 | EC51: 8 | ED51: 8 | EE51: 8 | EF51: 8 | EG51: 8 | EH51: 8 | EI51: 8
B52: 21 | AU52: 0 | AW52: 0 | AY52: 0 | BA52: 0 | BC52: 0 | BE52: 0 | BG52: 0 | BI52: 0 | BK52: 0 | BM52: 0 | BO52: 0 | BQ52: 0 | BV52: 8 | BW52: =IF(BV52=8,'JSM Jahresdauerlinie'!$E$26,E52) -> 1e-06 | BX52: 8 | BY52: =IF(BX52=8,'JSM Jahresdauerlinie'!$E$26,G52) -> 1e-06 | BZ52: 8 | CA52: =IF(BZ52=8,'JSM Jahresdauerlinie'!$E$26,I52) -> 1e-06 | CB52: 8 | CC52: =IF(CB52=8,'JSM Jahresdauerlinie'!$E$26,K52) -> 1e-06 | CD52: 8 | CE52: =IF(CD52=8,'JSM Jahresdauerlinie'!$E$26,M52) -> 1e-06 | CF52: 8 | CG52: =IF(CF52=8,'JSM Jahresdauerlinie'!$E$26,O52) -> 1e-06 | CH52: 8 | CI52: =IF(CH52=8,'JSM Jahresdauerlinie'!$E$26,Q52) -> 1e-06 | CJ52: 8 | CK52: =IF(CJ52=8,'JSM Jahresdauerlinie'!$E$26,S52) -> 1e-06 | CL52: 8 | CM52: =IF(CL52=8,'JSM Jahresdauerlinie'!$E$26,U52) -> 1e-06 | CN52: 8 | CO52: =IF(CN52=8,'JSM Jahresdauerlinie'!$E$26,W52) -> 1e-06 | CP52: 8 | CQ52: =IF(CP52=8,'JSM Jahresdauerlinie'!$E$26,Y52) -> 1e-06 | CR52: 8 | CS52: =IF(CR52=8,'JSM Jahresdauerlinie'!$E$26,AA52) -> 1e-06 | CW52: =IF(D52=8,'JSM Jahresdauerlinie'!$E$26,IF(BW52=0," ",BW52)) -> 1e-06 | CX52: =IF(F52=8,'JSM Jahresdauerlinie'!$E$26,IF(BY52=0," ",BY52)) -> 1e-06 | CY52: =IF(H52=8,'JSM Jahresdauerlinie'!$E$26,IF(CA52=0," ",CA52)) -> 1e-06 | CZ52: =IF(J52=8,'JSM Jahresdauerlinie'!$E$26,IF(CC52=0," ",CC52)) -> 1e-06 | DA52: =IF(L52=8,'JSM Jahresdauerlinie'!$E$26,IF(CE52=0," ",CE52)) -> 1e-06 | DB52: =IF(N52=8,'JSM Jahresdauerlinie'!$E$26,IF(CG52=0," ",CG52)) -> 1e-06 | DC52: =IF(P52=8,'JSM Jahresdauerlinie'!$E$26,IF(CI52=0," ",CI52)) -> 1e-06 | DD52: =IF(R52=8,'JSM Jahresdauerlinie'!$E$26,IF(CK52=0," ",CK52)) -> 1e-06 | DE52: =IF(T52=8,'JSM Jahresdauerlinie'!$E$26,IF(CM52=0," ",CM52)) -> 1e-06 | DF52: =IF(V52=8,'JSM Jahresdauerlinie'!$E$26,IF(CO52=0," ",CO52)) -> 1e-06 | DG52: =IF(X52=8,'JSM Jahresdauerlinie'!$E$26,IF(CQ52=0," ",CQ52)) -> 1e-06 | DH52: =IF(Z52=8,'JSM Jahresdauerlinie'!$E$26,IF(CS52=0," ",CS52)) -> 1e-06 | DJ52: 1e-06 | DK52: 1e-06 | DL52: 1e-06 | DM52: 1e-06 | DN52: 1e-06 | DO52: 1e-06 | DP52: 1e-06 | DQ52: 1e-06 | DR52: 1e-06 | DS52: 1e-06 | DT52: 1e-06 | DU52: 1e-06 | DX52: 8 | DY52: 8 | DZ52: 8 | EA52: 8 | EB52: 8 | EC52: 8 | ED52: 8 | EE52: 8 | EF52: 8 | EG52: 8 | EH52: 8 | EI52: 8
B53: 22 | AU53: 0 | AW53: 0 | AY53: 0 | BA53: 0 | BC53: 0 | BE53: 0 | BG53: 0 | BI53: 0 | BK53: 0 | BM53: 0 | BO53: 0 | BQ53: 0 | BV53: 8 | BW53: =IF(BV53=8,'JSM Jahresdauerlinie'!$E$26,E53) -> 1e-06 | BX53: 8 | BY53: =IF(BX53=8,'JSM Jahresdauerlinie'!$E$26,G53) -> 1e-06 | BZ53: 8 | CA53: =IF(BZ53=8,'JSM Jahresdauerlinie'!$E$26,I53) -> 1e-06 | CB53: 8 | CC53: =IF(CB53=8,'JSM Jahresdauerlinie'!$E$26,K53) -> 1e-06 | CD53: 8 | CE53: =IF(CD53=8,'JSM Jahresdauerlinie'!$E$26,M53) -> 1e-06 | CF53: 8 | CG53: =IF(CF53=8,'JSM Jahresdauerlinie'!$E$26,O53) -> 1e-06 | CH53: 8 | CI53: =IF(CH53=8,'JSM Jahresdauerlinie'!$E$26,Q53) -> 1e-06 | CJ53: 8 | CK53: =IF(CJ53=8,'JSM Jahresdauerlinie'!$E$26,S53) -> 1e-06 | CL53: 8 | CM53: =IF(CL53=8,'JSM Jahresdauerlinie'!$E$26,U53) -> 1e-06 | CN53: 8 | CO53: =IF(CN53=8,'JSM Jahresdauerlinie'!$E$26,W53) -> 1e-06 | CP53: 8 | CQ53: =IF(CP53=8,'JSM Jahresdauerlinie'!$E$26,Y53) -> 1e-06 | CR53: 8 | CS53: =IF(CR53=8,'JSM Jahresdauerlinie'!$E$26,AA53) -> 1e-06 | CW53: =IF(D53=8,'JSM Jahresdauerlinie'!$E$26,IF(BW53=0," ",BW53)) -> 1e-06 | CX53: =IF(F53=8,'JSM Jahresdauerlinie'!$E$26,IF(BY53=0," ",BY53)) -> 1e-06 | CY53: =IF(H53=8,'JSM Jahresdauerlinie'!$E$26,IF(CA53=0," ",CA53)) -> 1e-06 | CZ53: =IF(J53=8,'JSM Jahresdauerlinie'!$E$26,IF(CC53=0," ",CC53)) -> 1e-06 | DA53: =IF(L53=8,'JSM Jahresdauerlinie'!$E$26,IF(CE53=0," ",CE53)) -> 1e-06 | DB53: =IF(N53=8,'JSM Jahresdauerlinie'!$E$26,IF(CG53=0," ",CG53)) -> 1e-06 | DC53: =IF(P53=8,'JSM Jahresdauerlinie'!$E$26,IF(CI53=0," ",CI53)) -> 1e-06 | DD53: =IF(R53=8,'JSM Jahresdauerlinie'!$E$26,IF(CK53=0," ",CK53)) -> 1e-06 | DE53: =IF(T53=8,'JSM Jahresdauerlinie'!$E$26,IF(CM53=0," ",CM53)) -> 1e-06 | DF53: =IF(V53=8,'JSM Jahresdauerlinie'!$E$26,IF(CO53=0," ",CO53)) -> 1e-06 | DG53: =IF(X53=8,'JSM Jahresdauerlinie'!$E$26,IF(CQ53=0," ",CQ53)) -> 1e-06 | DH53: =IF(Z53=8,'JSM Jahresdauerlinie'!$E$26,IF(CS53=0," ",CS53)) -> 1e-06 | DJ53: 1e-06 | DK53: 1e-06 | DL53: 1e-06 | DM53: 1e-06 | DN53: 1e-06 | DO53: 1e-06 | DP53: 1e-06 | DQ53: 1e-06 | DR53: 1e-06 | DS53: 1e-06 | DT53: 1e-06 | DU53: 1e-06 | DX53: 8 | DY53: 8 | DZ53: 8 | EA53: 8 | EB53: 8 | EC53: 8 | ED53: 8 | EE53: 8 | EF53: 8 | EG53: 8 | EH53: 8 | EI53: 8
B54: 23 | AU54: 0 | AW54: 0 | AY54: 0 | BA54: 0 | BC54: 0 | BE54: 0 | BG54: 0 | BI54: 0 | BK54: 0 | BM54: 0 | BO54: 0 | BQ54: 0 | BV54: 8 | BW54: =IF(BV54=8,'JSM Jahresdauerlinie'!$E$26,E54) -> 1e-06 | BX54: 8 | BY54: =IF(BX54=8,'JSM Jahresdauerlinie'!$E$26,G54) -> 1e-06 | BZ54: 8 | CA54: =IF(BZ54=8,'JSM Jahresdauerlinie'!$E$26,I54) -> 1e-06 | CB54: 8 | CC54: =IF(CB54=8,'JSM Jahresdauerlinie'!$E$26,K54) -> 1e-06 | CD54: 8 | CE54: =IF(CD54=8,'JSM Jahresdauerlinie'!$E$26,M54) -> 1e-06 | CF54: 8 | CG54: =IF(CF54=8,'JSM Jahresdauerlinie'!$E$26,O54) -> 1e-06 | CH54: 8 | CI54: =IF(CH54=8,'JSM Jahresdauerlinie'!$E$26,Q54) -> 1e-06 | CJ54: 8 | CK54: =IF(CJ54=8,'JSM Jahresdauerlinie'!$E$26,S54) -> 1e-06 | CL54: 8 | CM54: =IF(CL54=8,'JSM Jahresdauerlinie'!$E$26,U54) -> 1e-06 | CN54: 8 | CO54: =IF(CN54=8,'JSM Jahresdauerlinie'!$E$26,W54) -> 1e-06 | CP54: 8 | CQ54: =IF(CP54=8,'JSM Jahresdauerlinie'!$E$26,Y54) -> 1e-06 | CR54: 8 | CS54: =IF(CR54=8,'JSM Jahresdauerlinie'!$E$26,AA54) -> 1e-06 | CW54: =IF(D54=8,'JSM Jahresdauerlinie'!$E$26,IF(BW54=0," ",BW54)) -> 1e-06 | CX54: =IF(F54=8,'JSM Jahresdauerlinie'!$E$26,IF(BY54=0," ",BY54)) -> 1e-06 | CY54: =IF(H54=8,'JSM Jahresdauerlinie'!$E$26,IF(CA54=0," ",CA54)) -> 1e-06 | CZ54: =IF(J54=8,'JSM Jahresdauerlinie'!$E$26,IF(CC54=0," ",CC54)) -> 1e-06 | DA54: =IF(L54=8,'JSM Jahresdauerlinie'!$E$26,IF(CE54=0," ",CE54)) -> 1e-06 | DB54: =IF(N54=8,'JSM Jahresdauerlinie'!$E$26,IF(CG54=0," ",CG54)) -> 1e-06 | DC54: =IF(P54=8,'JSM Jahresdauerlinie'!$E$26,IF(CI54=0," ",CI54)) -> 1e-06 | DD54: =IF(R54=8,'JSM Jahresdauerlinie'!$E$26,IF(CK54=0," ",CK54)) -> 1e-06 | DE54: =IF(T54=8,'JSM Jahresdauerlinie'!$E$26,IF(CM54=0," ",CM54)) -> 1e-06 | DF54: =IF(V54=8,'JSM Jahresdauerlinie'!$E$26,IF(CO54=0," ",CO54)) -> 1e-06 | DG54: =IF(X54=8,'JSM Jahresdauerlinie'!$E$26,IF(CQ54=0," ",CQ54)) -> 1e-06 | DH54: =IF(Z54=8,'JSM Jahresdauerlinie'!$E$26,IF(CS54=0," ",CS54)) -> 1e-06 | DJ54: 1e-06 | DK54: 1e-06 | DL54: 1e-06 | DM54: 1e-06 | DN54: 1e-06 | DO54: 1e-06 | DP54: 1e-06 | DQ54: 1e-06 | DR54: 1e-06 | DS54: 1e-06 | DT54: 1e-06 | DU54: 1e-06 | DX54: 8 | DY54: 8 | DZ54: 8 | EA54: 8 | EB54: 8 | EC54: 8 | ED54: 8 | EE54: 8 | EF54: 8 | EG54: 8 | EH54: 8 | EI54: 8
B55: 24 | AU55: 0 | AW55: 0 | AY55: 0 | BA55: 0 | BC55: 0 | BE55: 0 | BG55: 0 | BI55: 0 | BK55: 0 | BM55: 0 | BO55: 0 | BQ55: 0 | BV55: 8 | BW55: =IF(BV55=8,'JSM Jahresdauerlinie'!$E$26,E55) -> 1e-06 | BX55: 8 | BY55: =IF(BX55=8,'JSM Jahresdauerlinie'!$E$26,G55) -> 1e-06 | BZ55: 8 | CA55: =IF(BZ55=8,'JSM Jahresdauerlinie'!$E$26,I55) -> 1e-06 | CB55: 8 | CC55: =IF(CB55=8,'JSM Jahresdauerlinie'!$E$26,K55) -> 1e-06 | CD55: 8 | CE55: =IF(CD55=8,'JSM Jahresdauerlinie'!$E$26,M55) -> 1e-06 | CF55: 8 | CG55: =IF(CF55=8,'JSM Jahresdauerlinie'!$E$26,O55) -> 1e-06 | CH55: 8 | CI55: =IF(CH55=8,'JSM Jahresdauerlinie'!$E$26,Q55) -> 1e-06 | CJ55: 8 | CK55: =IF(CJ55=8,'JSM Jahresdauerlinie'!$E$26,S55) -> 1e-06 | CL55: 8 | CM55: =IF(CL55=8,'JSM Jahresdauerlinie'!$E$26,U55) -> 1e-06 | CN55: 8 | CO55: =IF(CN55=8,'JSM Jahresdauerlinie'!$E$26,W55) -> 1e-06 | CP55: 8 | CQ55: =IF(CP55=8,'JSM Jahresdauerlinie'!$E$26,Y55) -> 1e-06 | CR55: 8 | CS55: =IF(CR55=8,'JSM Jahresdauerlinie'!$E$26,AA55) -> 1e-06 | CW55: =IF(D55=8,'JSM Jahresdauerlinie'!$E$26,IF(BW55=0," ",BW55)) -> 1e-06 | CX55: =IF(F55=8,'JSM Jahresdauerlinie'!$E$26,IF(BY55=0," ",BY55)) -> 1e-06 | CY55: =IF(H55=8,'JSM Jahresdauerlinie'!$E$26,IF(CA55=0," ",CA55)) -> 1e-06 | CZ55: =IF(J55=8,'JSM Jahresdauerlinie'!$E$26,IF(CC55=0," ",CC55)) -> 1e-06 | DA55: =IF(L55=8,'JSM Jahresdauerlinie'!$E$26,IF(CE55=0," ",CE55)) -> 1e-06 | DB55: =IF(N55=8,'JSM Jahresdauerlinie'!$E$26,IF(CG55=0," ",CG55)) -> 1e-06 | DC55: =IF(P55=8,'JSM Jahresdauerlinie'!$E$26,IF(CI55=0," ",CI55)) -> 1e-06 | DD55: =IF(R55=8,'JSM Jahresdauerlinie'!$E$26,IF(CK55=0," ",CK55)) -> 1e-06 | DE55: =IF(T55=8,'JSM Jahresdauerlinie'!$E$26,IF(CM55=0," ",CM55)) -> 1e-06 | DF55: =IF(V55=8,'JSM Jahresdauerlinie'!$E$26,IF(CO55=0," ",CO55)) -> 1e-06 | DG55: =IF(X55=8,'JSM Jahresdauerlinie'!$E$26,IF(CQ55=0," ",CQ55)) -> 1e-06 | DH55: =IF(Z55=8,'JSM Jahresdauerlinie'!$E$26,IF(CS55=0," ",CS55)) -> 1e-06 | DJ55: 1e-06 | DK55: 1e-06 | DL55: 1e-06 | DM55: 1e-06 | DN55: 1e-06 | DO55: 1e-06 | DP55: 1e-06 | DQ55: 1e-06 | DR55: 1e-06 | DS55: 1e-06 | DT55: 1e-06 | DU55: 1e-06 | DX55: 8 | DY55: 8 | DZ55: 8 | EA55: 8 | EB55: 8 | EC55: 8 | ED55: 8 | EE55: 8 | EF55: 8 | EG55: 8 | EH55: 8 | EI55: 8
B56: 25 | AU56: 0 | AW56: 0 | AY56: 0 | BA56: 0 | BC56: 0 | BE56: 0 | BG56: 0 | BI56: 0 | BK56: 0 | BM56: 0 | BO56: 0 | BQ56: 0 | BV56: 8 | BW56: =IF(BV56=8,'JSM Jahresdauerlinie'!$E$26,E56) -> 1e-06 | BX56: 8 | BY56: =IF(BX56=8,'JSM Jahresdauerlinie'!$E$26,G56) -> 1e-06 | BZ56: 8 | CA56: =IF(BZ56=8,'JSM Jahresdauerlinie'!$E$26,I56) -> 1e-06 | CB56: 8 | CC56: =IF(CB56=8,'JSM Jahresdauerlinie'!$E$26,K56) -> 1e-06 | CD56: 8 | CE56: =IF(CD56=8,'JSM Jahresdauerlinie'!$E$26,M56) -> 1e-06 | CF56: 8 | CG56: =IF(CF56=8,'JSM Jahresdauerlinie'!$E$26,O56) -> 1e-06 | CH56: 8 | CI56: =IF(CH56=8,'JSM Jahresdauerlinie'!$E$26,Q56) -> 1e-06 | CJ56: 8 | CK56: =IF(CJ56=8,'JSM Jahresdauerlinie'!$E$26,S56) -> 1e-06 | CL56: 8 | CM56: =IF(CL56=8,'JSM Jahresdauerlinie'!$E$26,U56) -> 1e-06 | CN56: 8 | CO56: =IF(CN56=8,'JSM Jahresdauerlinie'!$E$26,W56) -> 1e-06 | CP56: 8 | CQ56: =IF(CP56=8,'JSM Jahresdauerlinie'!$E$26,Y56) -> 1e-06 | CR56: 8 | CS56: =IF(CR56=8,'JSM Jahresdauerlinie'!$E$26,AA56) -> 1e-06 | CW56: =IF(D56=8,'JSM Jahresdauerlinie'!$E$26,IF(BW56=0," ",BW56)) -> 1e-06 | CX56: =IF(F56=8,'JSM Jahresdauerlinie'!$E$26,IF(BY56=0," ",BY56)) -> 1e-06 | CY56: =IF(H56=8,'JSM Jahresdauerlinie'!$E$26,IF(CA56=0," ",CA56)) -> 1e-06 | CZ56: =IF(J56=8,'JSM Jahresdauerlinie'!$E$26,IF(CC56=0," ",CC56)) -> 1e-06 | DA56: =IF(L56=8,'JSM Jahresdauerlinie'!$E$26,IF(CE56=0," ",CE56)) -> 1e-06 | DB56: =IF(N56=8,'JSM Jahresdauerlinie'!$E$26,IF(CG56=0," ",CG56)) -> 1e-06 | DC56: =IF(P56=8,'JSM Jahresdauerlinie'!$E$26,IF(CI56=0," ",CI56)) -> 1e-06 | DD56: =IF(R56=8,'JSM Jahresdauerlinie'!$E$26,IF(CK56=0," ",CK56)) -> 1e-06 | DE56: =IF(T56=8,'JSM Jahresdauerlinie'!$E$26,IF(CM56=0," ",CM56)) -> 1e-06 | DF56: =IF(V56=8,'JSM Jahresdauerlinie'!$E$26,IF(CO56=0," ",CO56)) -> 1e-06 | DG56: =IF(X56=8,'JSM Jahresdauerlinie'!$E$26,IF(CQ56=0," ",CQ56)) -> 1e-06 | DH56: =IF(Z56=8,'JSM Jahresdauerlinie'!$E$26,IF(CS56=0," ",CS56)) -> 1e-06 | DJ56: 1e-06 | DK56: 1e-06 | DL56: 1e-06 | DM56: 1e-06 | DN56: 1e-06 | DO56: 1e-06 | DP56: 1e-06 | DQ56: 1e-06 | DR56: 1e-06 | DS56: 1e-06 | DT56: 1e-06 | DU56: 1e-06 | DX56: 8 | DY56: 8 | DZ56: 8 | EA56: 8 | EB56: 8 | EC56: 8 | ED56: 8 | EE56: 8 | EF56: 8 | EG56: 8 | EH56: 8 | EI56: 8
B57: 26 | AU57: 0 | AW57: 0 | AY57: 0 | BA57: 0 | BC57: 0 | BE57: 0 | BG57: 0 | BI57: 0 | BK57: 0 | BM57: 0 | BO57: 0 | BQ57: 0 | BV57: 8 | BW57: =IF(BV57=8,'JSM Jahresdauerlinie'!$E$26,E57) -> 1e-06 | BX57: 8 | BY57: =IF(BX57=8,'JSM Jahresdauerlinie'!$E$26,G57) -> 1e-06 | BZ57: 8 | CA57: =IF(BZ57=8,'JSM Jahresdauerlinie'!$E$26,I57) -> 1e-06 | CB57: 8 | CC57: =IF(CB57=8,'JSM Jahresdauerlinie'!$E$26,K57) -> 1e-06 | CD57: 8 | CE57: =IF(CD57=8,'JSM Jahresdauerlinie'!$E$26,M57) -> 1e-06 | CF57: 8 | CG57: =IF(CF57=8,'JSM Jahresdauerlinie'!$E$26,O57) -> 1e-06 | CH57: 8 | CI57: =IF(CH57=8,'JSM Jahresdauerlinie'!$E$26,Q57) -> 1e-06 | CJ57: 8 | CK57: =IF(CJ57=8,'JSM Jahresdauerlinie'!$E$26,S57) -> 1e-06 | CL57: 8 | CM57: =IF(CL57=8,'JSM Jahresdauerlinie'!$E$26,U57) -> 1e-06 | CN57: 8 | CO57: =IF(CN57=8,'JSM Jahresdauerlinie'!$E$26,W57) -> 1e-06 | CP57: 8 | CQ57: =IF(CP57=8,'JSM Jahresdauerlinie'!$E$26,Y57) -> 1e-06 | CR57: 8 | CS57: =IF(CR57=8,'JSM Jahresdauerlinie'!$E$26,AA57) -> 1e-06 | CW57: =IF(D57=8,'JSM Jahresdauerlinie'!$E$26,IF(BW57=0," ",BW57)) -> 1e-06 | CX57: =IF(F57=8,'JSM Jahresdauerlinie'!$E$26,IF(BY57=0," ",BY57)) -> 1e-06 | CY57: =IF(H57=8,'JSM Jahresdauerlinie'!$E$26,IF(CA57=0," ",CA57)) -> 1e-06 | CZ57: =IF(J57=8,'JSM Jahresdauerlinie'!$E$26,IF(CC57=0," ",CC57)) -> 1e-06 | DA57: =IF(L57=8,'JSM Jahresdauerlinie'!$E$26,IF(CE57=0," ",CE57)) -> 1e-06 | DB57: =IF(N57=8,'JSM Jahresdauerlinie'!$E$26,IF(CG57=0," ",CG57)) -> 1e-06 | DC57: =IF(P57=8,'JSM Jahresdauerlinie'!$E$26,IF(CI57=0," ",CI57)) -> 1e-06 | DD57: =IF(R57=8,'JSM Jahresdauerlinie'!$E$26,IF(CK57=0," ",CK57)) -> 1e-06 | DE57: =IF(T57=8,'JSM Jahresdauerlinie'!$E$26,IF(CM57=0," ",CM57)) -> 1e-06 | DF57: =IF(V57=8,'JSM Jahresdauerlinie'!$E$26,IF(CO57=0," ",CO57)) -> 1e-06 | DG57: =IF(X57=8,'JSM Jahresdauerlinie'!$E$26,IF(CQ57=0," ",CQ57)) -> 1e-06 | DH57: =IF(Z57=8,'JSM Jahresdauerlinie'!$E$26,IF(CS57=0," ",CS57)) -> 1e-06 | DJ57: 1e-06 | DK57: 1e-06 | DL57: 1e-06 | DM57: 1e-06 | DN57: 1e-06 | DO57: 1e-06 | DP57: 1e-06 | DQ57: 1e-06 | DR57: 1e-06 | DS57: 1e-06 | DT57: 1e-06 | DU57: 1e-06 | DX57: 8 | DY57: 8 | DZ57: 8 | EA57: 8 | EB57: 8 | EC57: 8 | ED57: 8 | EE57: 8 | EF57: 8 | EG57: 8 | EH57: 8 | EI57: 8
B58: 27 | AU58: 0 | AW58: 0 | AY58: 0 | BA58: 0 | BC58: 0 | BE58: 0 | BG58: 0 | BI58: 0 | BK58: 0 | BM58: 0 | BO58: 0 | BQ58: 0 | BV58: 8 | BW58: =IF(BV58=8,'JSM Jahresdauerlinie'!$E$26,E58) -> 1e-06 | BX58: 8 | BY58: =IF(BX58=8,'JSM Jahresdauerlinie'!$E$26,G58) -> 1e-06 | BZ58: 8 | CA58: =IF(BZ58=8,'JSM Jahresdauerlinie'!$E$26,I58) -> 1e-06 | CB58: 8 | CC58: =IF(CB58=8,'JSM Jahresdauerlinie'!$E$26,K58) -> 1e-06 | CD58: 8 | CE58: =IF(CD58=8,'JSM Jahresdauerlinie'!$E$26,M58) -> 1e-06 | CF58: 8 | CG58: =IF(CF58=8,'JSM Jahresdauerlinie'!$E$26,O58) -> 1e-06 | CH58: 8 | CI58: =IF(CH58=8,'JSM Jahresdauerlinie'!$E$26,Q58) -> 1e-06 | CJ58: 8 | CK58: =IF(CJ58=8,'JSM Jahresdauerlinie'!$E$26,S58) -> 1e-06 | CL58: 8 | CM58: =IF(CL58=8,'JSM Jahresdauerlinie'!$E$26,U58) -> 1e-06 | CN58: 8 | CO58: =IF(CN58=8,'JSM Jahresdauerlinie'!$E$26,W58) -> 1e-06 | CP58: 8 | CQ58: =IF(CP58=8,'JSM Jahresdauerlinie'!$E$26,Y58) -> 1e-06 | CR58: 8 | CS58: =IF(CR58=8,'JSM Jahresdauerlinie'!$E$26,AA58) -> 1e-06 | CW58: =IF(D58=8,'JSM Jahresdauerlinie'!$E$26,IF(BW58=0," ",BW58)) -> 1e-06 | CX58: =IF(F58=8,'JSM Jahresdauerlinie'!$E$26,IF(BY58=0," ",BY58)) -> 1e-06 | CY58: =IF(H58=8,'JSM Jahresdauerlinie'!$E$26,IF(CA58=0," ",CA58)) -> 1e-06 | CZ58: =IF(J58=8,'JSM Jahresdauerlinie'!$E$26,IF(CC58=0," ",CC58)) -> 1e-06 | DA58: =IF(L58=8,'JSM Jahresdauerlinie'!$E$26,IF(CE58=0," ",CE58)) -> 1e-06 | DB58: =IF(N58=8,'JSM Jahresdauerlinie'!$E$26,IF(CG58=0," ",CG58)) -> 1e-06 | DC58: =IF(P58=8,'JSM Jahresdauerlinie'!$E$26,IF(CI58=0," ",CI58)) -> 1e-06 | DD58: =IF(R58=8,'JSM Jahresdauerlinie'!$E$26,IF(CK58=0," ",CK58)) -> 1e-06 | DE58: =IF(T58=8,'JSM Jahresdauerlinie'!$E$26,IF(CM58=0," ",CM58)) -> 1e-06 | DF58: =IF(V58=8,'JSM Jahresdauerlinie'!$E$26,IF(CO58=0," ",CO58)) -> 1e-06 | DG58: =IF(X58=8,'JSM Jahresdauerlinie'!$E$26,IF(CQ58=0," ",CQ58)) -> 1e-06 | DH58: =IF(Z58=8,'JSM Jahresdauerlinie'!$E$26,IF(CS58=0," ",CS58)) -> 1e-06 | DJ58: 1e-06 | DK58: 1e-06 | DL58: 1e-06 | DM58: 1e-06 | DN58: 1e-06 | DO58: 1e-06 | DP58: 1e-06 | DQ58: 1e-06 | DR58: 1e-06 | DS58: 1e-06 | DT58: 1e-06 | DU58: 1e-06 | DX58: 8 | DY58: 8 | DZ58: 8 | EA58: 8 | EB58: 8 | EC58: 8 | ED58: 8 | EE58: 8 | EF58: 8 | EG58: 8 | EH58: 8 | EI58: 8
B59: 28 | AU59: 0 | AW59: 0 | AY59: 0 | BA59: 0 | BC59: 0 | BE59: 0 | BG59: 0 | BI59: 0 | BK59: 0 | BM59: 0 | BO59: 0 | BQ59: 0 | BV59: 8 | BW59: =IF(BV59=8,'JSM Jahresdauerlinie'!$E$26,E59) -> 1e-06 | BX59: 8 | BY59: =IF(BX59=8,'JSM Jahresdauerlinie'!$E$26,G59) -> 1e-06 | BZ59: 8 | CA59: =IF(BZ59=8,'JSM Jahresdauerlinie'!$E$26,I59) -> 1e-06 | CB59: 8 | CC59: =IF(CB59=8,'JSM Jahresdauerlinie'!$E$26,K59) -> 1e-06 | CD59: 8 | CE59: =IF(CD59=8,'JSM Jahresdauerlinie'!$E$26,M59) -> 1e-06 | CF59: 8 | CG59: =IF(CF59=8,'JSM Jahresdauerlinie'!$E$26,O59) -> 1e-06 | CH59: 8 | CI59: =IF(CH59=8,'JSM Jahresdauerlinie'!$E$26,Q59) -> 1e-06 | CJ59: 8 | CK59: =IF(CJ59=8,'JSM Jahresdauerlinie'!$E$26,S59) -> 1e-06 | CL59: 8 | CM59: =IF(CL59=8,'JSM Jahresdauerlinie'!$E$26,U59) -> 1e-06 | CN59: 8 | CO59: =IF(CN59=8,'JSM Jahresdauerlinie'!$E$26,W59) -> 1e-06 | CP59: 8 | CQ59: =IF(CP59=8,'JSM Jahresdauerlinie'!$E$26,Y59) -> 1e-06 | CR59: 8 | CS59: =IF(CR59=8,'JSM Jahresdauerlinie'!$E$26,AA59) -> 1e-06 | CW59: =IF(D59=8,'JSM Jahresdauerlinie'!$E$26,IF(BW59=0," ",BW59)) -> 1e-06 | CX59: =IF(F59=8,'JSM Jahresdauerlinie'!$E$26,IF(BY59=0," ",BY59)) -> 1e-06 | CY59: =IF(H59=8,'JSM Jahresdauerlinie'!$E$26,IF(CA59=0," ",CA59)) -> 1e-06 | CZ59: =IF(J59=8,'JSM Jahresdauerlinie'!$E$26,IF(CC59=0," ",CC59)) -> 1e-06 | DA59: =IF(L59=8,'JSM Jahresdauerlinie'!$E$26,IF(CE59=0," ",CE59)) -> 1e-06 | DB59: =IF(N59=8,'JSM Jahresdauerlinie'!$E$26,IF(CG59=0," ",CG59)) -> 1e-06 | DC59: =IF(P59=8,'JSM Jahresdauerlinie'!$E$26,IF(CI59=0," ",CI59)) -> 1e-06 | DD59: =IF(R59=8,'JSM Jahresdauerlinie'!$E$26,IF(CK59=0," ",CK59)) -> 1e-06 | DE59: =IF(T59=8,'JSM Jahresdauerlinie'!$E$26,IF(CM59=0," ",CM59)) -> 1e-06 | DF59: =IF(V59=8,'JSM Jahresdauerlinie'!$E$26,IF(CO59=0," ",CO59)) -> 1e-06 | DG59: =IF(X59=8,'JSM Jahresdauerlinie'!$E$26,IF(CQ59=0," ",CQ59)) -> 1e-06 | DH59: =IF(Z59=8,'JSM Jahresdauerlinie'!$E$26,IF(CS59=0," ",CS59)) -> 1e-06 | DJ59: 1e-06 | DK59: 1e-06 | DL59: 1e-06 | DM59: 1e-06 | DN59: 1e-06 | DO59: 1e-06 | DP59: 1e-06 | DQ59: 1e-06 | DR59: 1e-06 | DS59: 1e-06 | DT59: 1e-06 | DU59: 1e-06 | DX59: 8 | DY59: 8 | DZ59: 8 | EA59: 8 | EB59: 8 | EC59: 8 | ED59: 8 | EE59: 8 | EF59: 8 | EG59: 8 | EH59: 8 | EI59: 8
B60: 29 | AU60: 0 | AW60: 0 | AY60: 0 | BA60: 0 | BC60: 0 | BE60: 0 | BG60: 0 | BI60: 0 | BK60: 0 | BM60: 0 | BO60: 0 | BQ60: 0 | BV60: 8 | BW60: =IF(BV60=8,'JSM Jahresdauerlinie'!$E$26,E60) -> 1e-06 | BZ60: 8 | CA60: =IF(BZ60=8,'JSM Jahresdauerlinie'!$E$26,I60) -> 1e-06 | CB60: 8 | CC60: =IF(CB60=8,'JSM Jahresdauerlinie'!$E$26,K60) -> 1e-06 | CD60: 8 | CE60: =IF(CD60=8,'JSM Jahresdauerlinie'!$E$26,M60) -> 1e-06 | CF60: 8 | CG60: =IF(CF60=8,'JSM Jahresdauerlinie'!$E$26,O60) -> 1e-06 | CH60: 8 | CI60: =IF(CH60=8,'JSM Jahresdauerlinie'!$E$26,Q60) -> 1e-06 | CJ60: 8 | CK60: =IF(CJ60=8,'JSM Jahresdauerlinie'!$E$26,S60) -> 1e-06 | CL60: 8 | CM60: =IF(CL60=8,'JSM Jahresdauerlinie'!$E$26,U60) -> 1e-06 | CN60: 8 | CO60: =IF(CN60=8,'JSM Jahresdauerlinie'!$E$26,W60) -> 1e-06 | CP60: 8 | CQ60: =IF(CP60=8,'JSM Jahresdauerlinie'!$E$26,Y60) -> 1e-06 | CR60: 8 | CS60: =IF(CR60=8,'JSM Jahresdauerlinie'!$E$26,AA60) -> 1e-06 | CW60: =IF(D60=8,'JSM Jahresdauerlinie'!$E$26,IF(BW60=0," ",BW60)) -> 1e-06 | CX60: =IF(F60=8,$Q$102,IF(BY60=0," ",BY60)) ->  | CY60: =IF(H60=8,'JSM Jahresdauerlinie'!$E$26,IF(CA60=0," ",CA60)) -> 1e-06 | CZ60: =IF(J60=8,'JSM Jahresdauerlinie'!$E$26,IF(CC60=0," ",CC60)) -> 1e-06 | DA60: =IF(L60=8,'JSM Jahresdauerlinie'!$E$26,IF(CE60=0," ",CE60)) -> 1e-06 | DB60: =IF(N60=8,'JSM Jahresdauerlinie'!$E$26,IF(CG60=0," ",CG60)) -> 1e-06 | DC60: =IF(P60=8,'JSM Jahresdauerlinie'!$E$26,IF(CI60=0," ",CI60)) -> 1e-06 | DD60: =IF(R60=8,'JSM Jahresdauerlinie'!$E$26,IF(CK60=0," ",CK60)) -> 1e-06 | DE60: =IF(T60=8,'JSM Jahresdauerlinie'!$E$26,IF(CM60=0," ",CM60)) -> 1e-06 | DF60: =IF(V60=8,'JSM Jahresdauerlinie'!$E$26,IF(CO60=0," ",CO60)) -> 1e-06 | DG60: =IF(X60=8,'JSM Jahresdauerlinie'!$E$26,IF(CQ60=0," ",CQ60)) -> 1e-06 | DH60: =IF(Z60=8,'JSM Jahresdauerlinie'!$E$26,IF(CS60=0," ",CS60)) -> 1e-06 | DJ60: 1e-06 | DL60: 1e-06 | DM60: 1e-06 | DN60: 1e-06 | DO60: 1e-06 | DP60: 1e-06 | DQ60: 1e-06 | DR60: 1e-06 | DS60: 1e-06 | DT60: 1e-06 | DU60: 1e-06 | DX60: 8 | DY60: 0 | DZ60: 8 | EA60: 8 | EB60: 8 | EC60: 8 | ED60: 8 | EE60: 8 | EF60: 8 | EG60: 8 | EH60: 8 | EI60: 8
B61: 30 | AU61: 0 | AW61: 0 | AY61: 0 | BA61: 0 | BC61: 0 | BE61: 0 | BG61: 0 | BI61: 0 | BK61: 0 | BM61: 0 | BO61: 0 | BQ61: 0 | BV61: 8 | BW61: =IF(BV61=8,'JSM Jahresdauerlinie'!$E$26,E61) -> 1e-06 | BZ61: 8 | CA61: =IF(BZ61=8,'JSM Jahresdauerlinie'!$E$26,I61) -> 1e-06 | CB61: 8 | CC61: =IF(CB61=8,'JSM Jahresdauerlinie'!$E$26,K61) -> 1e-06 | CD61: 8 | CE61: =IF(CD61=8,'JSM Jahresdauerlinie'!$E$26,M61) -> 1e-06 | CF61: 8 | CG61: =IF(CF61=8,'JSM Jahresdauerlinie'!$E$26,O61) -> 1e-06 | CH61: 8 | CI61: =IF(CH61=8,'JSM Jahresdauerlinie'!$E$26,Q61) -> 1e-06 | CJ61: 8 | CK61: =IF(CJ61=8,'JSM Jahresdauerlinie'!$E$26,S61) -> 1e-06 | CL61: 8 | CM61: =IF(CL61=8,'JSM Jahresdauerlinie'!$E$26,U61) -> 1e-06 | CN61: 8 | CO61: =IF(CN61=8,'JSM Jahresdauerlinie'!$E$26,W61) -> 1e-06 | CP61: 8 | CQ61: =IF(CP61=8,'JSM Jahresdauerlinie'!$E$26,Y61) -> 1e-06 | CR61: 8 | CS61: =IF(CR61=8,'JSM Jahresdauerlinie'!$E$26,AA61) -> 1e-06 | CW61: =IF(D61=8,'JSM Jahresdauerlinie'!$E$26,IF(BW61=0," ",BW61)) -> 1e-06 | CX61: =IF(F61=8,$Q$102,IF(BY61=0," ",BY61)) ->  | CY61: =IF(H61=8,'JSM Jahresdauerlinie'!$E$26,IF(CA61=0," ",CA61)) -> 1e-06 | CZ61: =IF(J61=8,'JSM Jahresdauerlinie'!$E$26,IF(CC61=0," ",CC61)) -> 1e-06 | DA61: =IF(L61=8,'JSM Jahresdauerlinie'!$E$26,IF(CE61=0," ",CE61)) -> 1e-06 | DB61: =IF(N61=8,'JSM Jahresdauerlinie'!$E$26,IF(CG61=0," ",CG61)) -> 1e-06 | DC61: =IF(P61=8,'JSM Jahresdauerlinie'!$E$26,IF(CI61=0," ",CI61)) -> 1e-06 | DD61: =IF(R61=8,'JSM Jahresdauerlinie'!$E$26,IF(CK61=0," ",CK61)) -> 1e-06 | DE61: =IF(T61=8,'JSM Jahresdauerlinie'!$E$26,IF(CM61=0," ",CM61)) -> 1e-06 | DF61: =IF(V61=8,'JSM Jahresdauerlinie'!$E$26,IF(CO61=0," ",CO61)) -> 1e-06 | DG61: =IF(X61=8,'JSM Jahresdauerlinie'!$E$26,IF(CQ61=0," ",CQ61)) -> 1e-06 | DH61: =IF(Z61=8,'JSM Jahresdauerlinie'!$E$26,IF(CS61=0," ",CS61)) -> 1e-06 | DJ61: 1e-06 | DL61: 1e-06 | DM61: 1e-06 | DN61: 1e-06 | DO61: 1e-06 | DP61: 1e-06 | DQ61: 1e-06 | DR61: 1e-06 | DS61: 1e-06 | DT61: 1e-06 | DU61: 1e-06 | DX61: 8 | DY61: 0 | DZ61: 8 | EA61: 8 | EB61: 8 | EC61: 8 | ED61: 8 | EE61: 8 | EF61: 8 | EG61: 8 | EH61: 8 | EI61: 8
B62: 31 | AU62: 0 | AW62: 0 | AY62: 0 | BA62: 0 | BC62: 0 | BE62: 0 | BG62: 0 | BI62: 0 | BK62: 0 | BM62: 0 | BO62: 0 | BQ62: 0 | BV62: 8 | BW62: =IF(BV62=8,'JSM Jahresdauerlinie'!$E$26,E62) -> 1e-06 | BZ62: 8 | CA62: =IF(BZ62=8,'JSM Jahresdauerlinie'!$E$26,I62) -> 1e-06 | CD62: 8 | CE62: =IF(CD62=8,'JSM Jahresdauerlinie'!$E$26,M62) -> 1e-06 | CH62: 8 | CI62: =IF(CH62=8,'JSM Jahresdauerlinie'!$E$26,Q62) -> 1e-06 | CJ62: 8 | CK62: =IF(CJ62=8,'JSM Jahresdauerlinie'!$E$26,S62) -> 1e-06 | CN62: 8 | CO62: =IF(CN62=8,'JSM Jahresdauerlinie'!$E$26,W62) -> 1e-06 | CR62: 8 | CS62: =IF(CR62=8,'JSM Jahresdauerlinie'!$E$26,AA62) -> 1e-06 | CW62: =IF(D62=8,'JSM Jahresdauerlinie'!$E$26,IF(BW62=0," ",BW62)) -> 1e-06 | CX62: =IF(F62=8,$Q$102,IF(BY62=0," ",BY62)) ->  | CY62: =IF(H62=8,'JSM Jahresdauerlinie'!$E$26,IF(CA62=0," ",CA62)) -> 1e-06 | CZ62: =IF(J62=8,$Q$102,IF(CC62=0," ",CC62)) ->  | DA62: =IF(L62=8,'JSM Jahresdauerlinie'!$E$26,IF(CE62=0," ",CE62)) -> 1e-06 | DB62: =IF(N62=8,$Q$102,IF(CG62=0," ",CG62)) ->  | DC62: =IF(P62=8,'JSM Jahresdauerlinie'!$E$26,IF(CI62=0," ",CI62)) -> 1e-06 | DD62: =IF(R62=8,'JSM Jahresdauerlinie'!$E$26,IF(CK62=0," ",CK62)) -> 1e-06 | DE62: =IF(T62=8,$Q$102,IF(CM62=0," ",CM62)) ->  | DF62: =IF(V62=8,'JSM Jahresdauerlinie'!$E$26,IF(CO62=0," ",CO62)) -> 1e-06 | DG62: =IF(X62=8,$Q$102,IF(CQ62=0," ",CQ62)) ->  | DH62: =IF(Z62=8,'JSM Jahresdauerlinie'!$E$26,IF(CS62=0," ",CS62)) -> 1e-06 | DJ62: 1e-06 | DL62: 1e-06 | DN62: 1e-06 | DP62: 1e-06 | DQ62: 1e-06 | DS62: 1e-06 | DU62: 1e-06 | DX62: 8 | DY62: 0 | DZ62: 8 | EA62: 0 | EB62: 8 | EC62: 0 | ED62: 8 | EE62: 8 | EF62: 0 | EG62: 8 | EH62: 0 | EI62: 8
AB63: Jahressummen: | CU63: Jahressummen
B64: Anzahl TW- Tage | E64: =EL89 -> 0 | G64: =EN89 -> 0 | I64: =EP89 -> 0 | K64: =ER89 -> 0 | M64: =ET89 -> 0 | O64: =EV89 -> 0 | Q64: =EX89 -> 0 | S64: =EZ89 -> 0 | U64: =FB89 -> 0 | W64: =FD89 -> 0 | Y64: =FF89 -> 0 | AA64: =FH89 -> 0 | AB64: =SUM(E64:AA64) -> 0 | AF64: Anzahl der Messwerte:
B65: max. Tages-TW | E65: =EL92 ->  | G65: =EN92 ->  | I65: =EP92 ->  | K65: =ER92 ->  | M65: =ET92 ->  | O65: =EV92 ->  | Q65: =EX92 ->  | S65: =EZ92 ->  | U65: =FB92 ->  | W65: =FD92 ->  | Y65: =FF92 ->  | AA65: =FH92 ->  | AB65: 0 | AE65: n= | AF65: =COUNTIF(AF32:AQ62,">0") -> 0
B66: Gesamt der TW-Tage | E66: =EL88 -> 0 | G66: =EN88 -> 0 | I66: =EP88 -> 0 | K66: =ER88 -> 0 | M66: =ET88 -> 0 | O66: =EV88 -> 0 | Q66: =EX88 -> 0 | S66: =EZ88 -> 0 | U66: =FB88 -> 0 | W66: =FD88 -> 0 | Y66: =FF88 -> 0 | AA66: =FH88 -> 0 | AB66: 0
B67: monatl. Gesamt-TW | E67: =IF(E64=0,0,E93/E64*31) -> 0 | G67: =IF(G64=0,0,G93/G64*28) -> 0 | I67: =IF(I64=0,0,I93/I64*31) -> 0 | K67: =IF(K64=0,0,K93/K64*30) -> 0 | M67: =IF(M64=0,0,M93/M64*31) -> 0 | O67: =IF(O64=0,0,O93/O64*30) -> 0 | Q67: =IF(Q64=0,0,Q93/Q64*31) -> 0 | S67: =IF(S64=0,0,S93/S64*31) -> 0 | U67: =IF(U64=0,0,U93/U64*30) -> 0 | W67: =IF(W64=0,0,W93/W64*31) -> 0 | Y67: =IF(Y64=0,0,Y93/Y64*30) -> 0 | AA67: =IF(AA64=0,0,AA93/AA64*31) -> 0 | AB67: 0
A68: monatl. Gesamt | E68: =SUM(E32:E62) -> 0 | G68: =SUM(G32:G62) -> 0 | I68: =SUM(I32:I62) -> 0 | K68: =SUM(K32:K62) -> 0 | M68: =SUM(M32:M62) -> 0 | O68: =SUM(O32:O62) -> 0 | Q68: =SUM(Q32:Q62) -> 0 | S68: =SUM(S32:S62) -> 0 | U68: =SUM(U32:U62) -> 0 | W68: =SUM(W32:W62) -> 0 | Y68: =SUM(Y32:Y62) -> 0 | AA68: =SUM(AA32:AA62) -> 0 | AB68: 0
A69: monatl. Gesamt (einschl. Ersatzwerte) | E69: =SUM(BW32:BW62) -> 3.1e-05 | G69: =SUM(BY32:BY62) -> 2.8e-05 | I69: 3.1e-05 | K69: 3e-05 | M69: 3.1e-05 | O69: 3e-05 | Q69: 3.1e-05 | S69: 3.1e-05 | U69: 3e-05 | W69: 3.1e-05 | Y69: 3e-05 | AA69: 3.1e-05 | AB69: 0.000365
AA71: JSM überTW nach Jahresmittel | AB71: =IF(AB64=0,0,AB66/AB64*365) -> 0
AA72: JSM nach den Trockenwettertagen im Jahresmittel in m³: | AB72: =IF(AB64=0,0,AB71) -> 0
D73: Bemerkung
BR76: =IFERROR(BR93/BR94,"") ->  | BW76: =SUMIF(BV32:BV62,"<=2",BW32:BW62) -> 0 | BY76: =SUMIF(BX32:BX62,"<=2",BY32:BY62) -> 0 | CA76: =SUMIF(BZ32:BZ62,"<=2",CA32:CA62) -> 0 | CC76: =SUMIF(CB32:CB62,"<=2",CC32:CC62) -> 0 | CE76: =SUMIF(CD$32:CD$62,"<=2",CE$32:CE$62) -> 0 | CG76: =SUMIF(CF32:CF62,"<=2",CG32:CG62) -> 0 | CI76: =SUMIF(CH32:CH62,"<=2",CI32:CI62) -> 0 | CK76: =SUMIF(CJ32:CJ62,"<=2",CK32:CK62) -> 0 | CM76: =SUMIF(CL32:CL62,"<=2",CM32:CM62) -> 0 | CO76: =SUMIF(CN32:CN62,"<=2",CO32:CO62) -> 0 | CQ76: =SUMIF(CP32:CP62,"<=2",CQ32:CQ62) -> 0 | CS76: =SUMIF(CR32:CR62,"<=2",CS32:CS62) -> 0 | CU76: =SUM(BW76:CS76) -> 0
BW78: =IF(BW94=0,0,BW76/BW94*31) -> 0 | BY78: =IF(BY94=0,0,BY76/BY94*28) -> 0 | CA78: =IF(CA94=0,0,CA76/CA94*31) -> 0 | CC78: =IF(CC94=0,0,CC76/CC94*30) -> 0 | CE78: =IF(CE94=0,0,CE76/CE94*31) -> 0 | CG78: =IF(CG94=0,0,CG76/CG94*30) -> 0 | CI78: =IF(CI94=0,0,CI76/CI94*31) -> 0 | CK78: =IF(CK94=0,0,CK76/CK94*31) -> 0 | CM78: =IF(CM94=0,0,CM76/CM94*30) -> 0 | CO78: =IF(CO94=0,0,CO76/CO94*31) -> 0 | CQ78: =IF(CQ94=0,0,CQ76/CQ94*30) -> 0 | CS78: =IF(CS94=0,0,CS76/CS94*31) -> 0 | CU78: =SUM(BW78:CS78) -> 0
E79: =IF(AB84=365," ","Achtung, es besteht die Möglichkeit, dass beim Einkopieren von Daten ein Fehler entstanden ist. Anhand der Anzahl der Messtage überprüfen.") -> Achtung, es besteht die Möglichkeit, dass beim Einkopieren von Daten ein Fehler entstanden ist. Anhand der Anzahl der Messtage überprüfen.
B84: Messtage | E84: =COUNT(E32:E62) -> 0 | G84: =COUNT(G32:G62) -> 0 | I84: =COUNT(I32:I62) -> 0 | K84: =COUNT(K32:K62) -> 0 | M84: =COUNT(M32:M62) -> 0 | O84: =COUNT(O32:O62) -> 0 | Q84: =COUNT(Q32:Q62) -> 0 | S84: =COUNT(S32:S62) -> 0 | U84: =COUNT(U32:U62) -> 0 | W84: =COUNT(W32:W62) -> 0 | Y84: =COUNT(Y32:Y62) -> 0 | AA84: =COUNT(AA32:AA62) -> 0 | AB84: =SUM(E84:AA84) -> 0
B85: Kleinstwert | E85: =IF(E84=0," ",SMALL(E32:E62,1)) ->  | AB85: =IFERROR(SMALL(E85:AA85,1),"") -> 
B86: Größtwert | E86: =IF(E84=0," ",LARGE(E32:E62,1)) ->  | AB86: =IFERROR(LARGE(E86:AA86,1),"") -> 
AV88: =SUM(AV32:AV63) -> 0 | AX88: =SUM(AX32:AX63) -> 0 | AZ88: 0 | BB88: 0 | BD88: 0 | BF88: 0 | BH88: 0 | BJ88: 0 | BL88: 0 | BN88: 0 | BP88: 0 | BR88: 0 | BS88: 0 | BW88: =SUM(BW32:BW62) -> 3.1e-05 | BY88: =SUM(BY32:BY62) -> 2.8e-05 | CA88: =SUM(CA32:CA62) -> 3.1e-05 | CC88: =SUM(CC32:CC62) -> 3e-05 | CE88: =SUM(CE32:CE62) -> 3.1e-05 | CG88: =SUM(CG32:CG62) -> 3e-05 | CI88: =SUM(CI32:CI62) -> 3.1e-05 | CK88: =SUM(CK32:CK62) -> 3.1e-05 | CM88: =SUM(CM32:CM62) -> 3e-05 | CO88: =SUM(CO32:CO62) -> 3.1e-05 | CQ88: =SUM(CQ32:CQ62) -> 3e-05 | CS88: =SUM(CS32:CS62) -> 3.1e-05 | CU88: =SUM(BW88:CS88) -> 0.000365 | EL88: =SUM(EL32:EL62) -> 0 | EN88: =SUM(EN32:EN62) -> 0 | EP88: =SUM(EP32:EP62) -> 0 | ER88: =SUM(ER32:ER62) -> 0 | ET88: =SUM(ET32:ET62) -> 0 | EV88: =SUM(EV32:EV62) -> 0 | EX88: =SUM(EX32:EX62) -> 0 | EZ88: =SUM(EZ32:EZ62) -> 0 | FB88: =SUM(FB32:FB62) -> 0 | FD88: =SUM(FD32:FD62) -> 0 | FF88: =SUM(FF32:FF62) -> 0 | FH88: =SUM(FH32:FH62) -> 0
AF89: =COUNT(AF32:AF62) -> 0 | AG89: 0 | AH89: 0 | AI89: 0 | AJ89: 0 | AK89: 0 | AL89: 0 | AM89: 0 | AN89: 0 | AO89: 0 | AP89: 0 | AQ89: 0 | AV89: =COUNT(AV32:AV62) -> 0 | AX89: =COUNT(AX32:AX62) -> 0 | AZ89: =COUNT(AZ32:AZ62) -> 0 | BB89: =COUNT(BB32:BB62) -> 0 | BD89: =COUNT(BD32:BD62) -> 0 | BF89: =COUNT(BF32:BF62) -> 0 | BH89: =COUNT(BH32:BH62) -> 0 | BJ89: =COUNT(BJ32:BJ62) -> 0 | BL89: =COUNT(BL32:BL62) -> 0 | BN89: =COUNT(BN32:BN62) -> 0 | BP89: =COUNT(BP32:BP62) -> 0 | BR89: =COUNT(BR32:BR62) -> 0 | BW89: =COUNT(BW32:BW62) -> 31 | BY89: =COUNT(BY32:BY62) -> 28 | CA89: =COUNT(CA32:CA62) -> 31 | CC89: =COUNT(CC32:CC62) -> 30 | CE89: =COUNT(CE32:CE62) -> 31 | CG89: =COUNT(CG32:CG62) -> 30 | CI89: =COUNT(CI32:CI62) -> 31 | CK89: =COUNT(CK32:CK62) -> 31 | CM89: =COUNT(CM32:CM62) -> 30 | CO89: =COUNT(CO32:CO62) -> 31 | CQ89: =COUNT(CQ32:CQ62) -> 30 | CS89: =COUNT(CS32:CS62) -> 31 | CU89: =SUM(BW89:CS89) -> 365 | EL89: =COUNT(EL32:EL62) -> 0 | EN89: =COUNT(EN32:EN62) -> 0 | EP89: =COUNT(EP32:EP62) -> 0 | ER89: =COUNT(ER32:ER62) -> 0 | ET89: =COUNT(ET32:ET62) -> 0 | EV89: =COUNT(EV32:EV62) -> 0 | EX89: =COUNT(EX32:EX62) -> 0 | EZ89: =COUNT(EZ32:EZ62) -> 0 | FB89: =COUNT(FB32:FB62) -> 0 | FD89: =COUNT(FD32:FD62) -> 0 | FF89: =COUNT(FF32:FF62) -> 0 | FH89: =COUNT(FH32:FH62) -> 0
E90: =IF(AB64<365/2,"weniger als die Hälfte an Trockenwettertagen ! "," ") -> weniger als die Hälfte an Trockenwettertagen !
E91: =AF91 -> Das Ergebnis nach Wetterschlüssel hinterfragen. Es fehlen die Daten von mindestens einem Monat. | AF91: =IF(COUNTIF(AF89:AQ89,0),"Das Ergebnis nach Wetterschlüssel hinterfragen. Es fehlen die Daten von mindestens einem Monat."," ") -> Das Ergebnis nach Wetterschlüssel hinterfragen. Es fehlen die Daten von mindestens einem Monat. | BW91: =IF(BW89=0," ",SMALL(BW32:BW62,1)) -> 1e-06 | BY91: 1e-06 | CA91: 1e-06 | CC91: 1e-06 | CE91: 1e-06 | CG91: 1e-06 | CI91: 1e-06 | CK91: 1e-06 | CM91: 1e-06 | CO91: 1e-06 | CQ91: 1e-06 | CS91: 1e-06 | CU91: =SMALL(BW91:CS91,1) -> 1e-06 | EL91: =IF(EL89=0," ",SMALL(EL32:EL62,1)) ->  | FI91: Kleinstwert | FJ91: =IFERROR(SMALL(EL91:FH91,1),"") -> 
E92: =IF(AF65<48,"Achtung, statistische Verfahren können wegen zu wenigen Daten nicht gewertet werden!"," ") -> Achtung, statistische Verfahren können wegen zu wenigen Daten nicht gewertet werden! | BW92: =IF(BW89=0," ",LARGE(BW32:BW62,1)) -> 1e-06 | BY92: 1e-06 | CA92: 1e-06 | CC92: 1e-06 | CE92: 1e-06 | CG92: 1e-06 | CI92: 1e-06 | CK92: 1e-06 | CM92: 1e-06 | CO92: 1e-06 | CQ92: 1e-06 | CS92: 1e-06 | CU92: =LARGE(BW92:CS92,1) -> 1e-06 | EL92: =IF(EL89=0," ",LARGE(EL32:EL62,1)) ->  | FI92: Größtwert | FJ92: =IFERROR(LARGE(EL92:FH92,1),"") -> 
B93: cbm bei Wetter 1-2 | E93: =SUMIF(D32:D62,"<=2",E32:E62) -> 0 | G93: =SUMIF(F32:F62,"<=2",G32:G62) -> 0 | I93: =SUMIF(H32:H62,"<=2",I32:I62) -> 0 | K93: =SUMIF(J32:J62,"<=2",K32:K62) -> 0 | M93: =SUMIF(L$32:L$62,"<=2",M$32:M$62) -> 0 | O93: =SUMIF(N32:N62,"<=2",O32:O62) -> 0 | Q93: =SUMIF(P32:P62,"<=2",Q32:Q62) -> 0 | S93: =SUMIF(R32:R62,"<=2",S32:S62) -> 0 | U93: =SUMIF(T32:T62,"<=2",U32:U62) -> 0 | W93: =SUMIF(V32:V62,"<=2",W32:W62) -> 0 | Y93: =SUMIF(X32:X62,"<=2",Y32:Y62) -> 0 | AA93: =SUMIF(Z32:Z62,"<=2",AA32:AA62) -> 0 | AB93: =SUM(E93:AA93) -> 0 | BR93: =SUM(AV88:BR88) -> 0 | EJ93: Mittelwert | EL93: =IF(EL89=0," ",AVERAGE(EL32:EL62)) ->  | EN93: =IF(EN89=0," ",AVERAGE(EN32:EN62)) ->  | EP93: =IF(EP89=0," ",AVERAGE(EP32:EP62)) ->  | ER93: =IF(ER89=0," ",AVERAGE(ER32:ER62)) ->  | ET93: =IF(ET89=0," ",AVERAGE(ET32:ET62)) ->  | EV93: =IF(EV89=0," ",AVERAGE(EV32:EV62)) ->  | EX93: =IF(EX89=0," ",AVERAGE(EX32:EX62)) ->  | EZ93: =IF(EZ89=0," ",AVERAGE(EZ32:EZ62)) ->  | FB93: =IF(FB89=0," ",AVERAGE(FB32:FB62)) ->  | FD93: =IF(FD89=0," ",AVERAGE(FD32:FD62)) ->  | FF93: =IF(FF89=0," ",AVERAGE(FF32:FF62)) ->  | FH93: =IF(FH89=0," ",AVERAGE(FH32:FH62)) -> 
B94: TW aller gemess. Tg. | E94: =IF(E64=0,0,E93/E64*E84) -> 0 | G94: =IF(G64=0,0,G93/G64*G84) -> 0 | I94: =IF(I64=0,0,I93/I64*I84) -> 0 | K94: =IF(K64=0,0,K93/K64*K84) -> 0 | M94: =IF(M64=0,0,M93/M64*M$84) -> 0 | O94: =IF(O64=0,0,O93/O64*O84) -> 0 | Q94: =IF(Q64=0,0,Q93/Q64*Q84) -> 0 | S94: =IF(S64=0,0,S93/S64*S84) -> 0 | U94: =IF(U64=0,0,U93/U64*U84) -> 0 | W94: =IF(W64=0,0,W93/W64*W84) -> 0 | Y94: =IF(Y64=0,0,Y93/Y64*Y84) -> 0 | AA94: =IF(AA64=0,0,AA93/AA64*AA84) -> 0 | AB94: =SUM(E94:AA94) -> 0 | BR94: =SUM(AV89:BR89) -> 0 | BW94: =COUNTIF(BV32:BV62,"<=2") -> 0 | BY94: =COUNTIF(BX32:BX62,"<=2") -> 0 | CA94: =COUNTIF(BZ32:BZ62,"<=2") -> 0 | CC94: =COUNTIF(CB32:CB62,"<=2") -> 0 | CE94: =COUNTIF(CD32:CD62,"<=2") -> 0 | CG94: =COUNTIF(CF32:CF62,"<=2") -> 0 | CI94: =COUNTIF(CH32:CH62,"<=2") -> 0 | CK94: =COUNTIF(CJ32:CJ62,"<=2") -> 0 | CM94: =COUNTIF(CL32:CL62,"<=2") -> 0 | CO94: =COUNTIF(CN32:CN62,"<=2") -> 0 | CQ94: =COUNTIF(CP32:CP62,"<=2") -> 0 | CS94: =COUNTIF(CR32:CR62,"<=2") -> 0 | CU94: =SUM(BW94:CS94) -> 0 | EL94: =COUNTIF(EK32:EK62,"<=2") -> 0 | EN94: =COUNTIF(EM32:EM62,"<=2") -> 0 | EP94: =COUNTIF(EO32:EO62,"<=2") -> 0 | ER94: =COUNTIF(EQ32:EQ62,"<=2") -> 0 | ET94: =COUNTIF(ES32:ES62,"<=2") -> 0 | EV94: =COUNTIF(EU32:EU62,"<=2") -> 0 | EX94: =COUNTIF(EW32:EW62,"<=2") -> 0 | EZ94: =COUNTIF(EY32:EY62,"<=2") -> 0 | FB94: =COUNTIF(FA32:FA62,"<=2") -> 0 | FD94: =COUNTIF(FC32:FC62,"<=2") -> 0 | FF94: =COUNTIF(FE32:FE62,"<=2") -> 0 | FH94: =COUNTIF(FG32:FG62,"<=2") -> 0
B95: TW / d | E95: =IF(E64=0,0,E93/E64) -> 0 | G95: =IF(G64=0,0,G93/G64) -> 0 | I95: =IF(I64=0,0,I93/I64) -> 0 | K95: =IF(K64=0,0,K93/K64) -> 0 | M95: =IF(M64=0,0,M93/M64) -> 0 | O95: =IF(O64=0,0,O93/O64) -> 0 | Q95: =IF(Q64=0,0,Q93/Q64) -> 0 | S95: =IF(S64=0,0,S93/S64) -> 0 | U95: =IF(U64=0,0,U93/U64) -> 0 | W95: =IF(W64=0,0,W93/W64) -> 0 | Y95: =IF(Y64=0,0,Y93/Y64) -> 0 | AA95: =IF(AA64=0,0,AA93/AA64) -> 0 | AB95: --- | BP95: Mittelwert | BR95: =IFERROR(AVERAGE(AV32:AV62,AX32:AX62,AZ32:AZ62,BB32:BB62,BD32:BD62,BF32:BF62,BH32:BH62,BJ32:BJ62,BL32:BL62,BN32:BN62,BP32:BP62,BR32:BR62),"") ->  | BW95: =IF(BW94=0,0,BW76/BW94*BW89) -> 0 | BY95: =IF(BY94=0,0,BY76/BY94*BY89) -> 0 | CA95: =IF(CA94=0,0,CA76/CA94*CA89) -> 0 | CC95: =IF(CC94=0,0,CC76/CC94*CC89) -> 0 | CE95: =IF(CE94=0,0,CE76/CE94*CE$89) -> 0 | CG95: =IF(CG94=0,0,CG76/CG94*CG89) -> 0 | CI95: =IF(CI94=0,0,CI76/CI94*CI89) -> 0 | CK95: =IF(CK94=0,0,CK76/CK94*CK89) -> 0 | CM95: =IF(CM94=0,0,CM76/CM94*CM89) -> 0 | CO95: =IF(CO94=0,0,CO76/CO94*CO89) -> 0 | CQ95: =IF(CQ94=0,0,CQ76/CQ94*CQ89) -> 0 | CS95: =IF(CS94=0,0,CS76/CS94*CS89) -> 0 | CU95: =SUM(BW95:CS95) -> 0
B96: TW / Mon | AB96: =SUM(E67:AA67) -> 0
CS97: Jahresschmutzwassermenge nach Wetterschlüssel über die Monatssummen | CU97: =CU78 -> 0
AA98: Jahresschmutzwassermenge nach Wetterschlüssel über die Monatssummen | AB98: =AB96 -> 0 | AC98: cbm an TW-Tagen
CS99: Nicht nach Wetterschlüssel über die Jahressummen !
D101: =SUM(D32:D62) -> 0 | Q101: Bei Hochwasser und fehlender Tagesmessung wird für die Dauerlinie und das gleitendes Minimum folgender Ersatzwert eingesetzt:
H102: mittlerer Tageswert des Jahres : | I102: =BR95 ->  | L102: Kleinstwert: | M102: =AB85 ->  | P102: Mittelwert: | Q102: =IFERROR((M102+I102)/2,"") -> 
H103: größtes TW: | I103: =FJ92 ->  | L103: kleinstes TW: | M103: =FJ91 ->  | P103: mittleres TW: | Q103: =EV23 -> 1e-06
M104: Erstatzwert für insgesamt | N104: =DX18 -> 365 | P104: Ausfall-/ HW-Tage: | Q104: ='JSM Jahresdauerlinie'!E26 -> 1e-06 | R104: m³/d | T104: Dieser Wert kann auf dem Blatt "JSM Jahresdauerlinie" verändert werden

Sheet JSM Dichtemittel
B2: ='JSM Eingabe+TW'!B2 -> Ergebnisse der Selbstüberwachung | Q2: Berichtsjahr : | R2: =IF(LEN('JSM Eingabe+TW'!AB7)>0,'JSM Eingabe+TW'!AB7,"") -> 
B5: ='JSM Eingabe+TW'!B5 -> Ermittlung der Jahresschmutzwassermenge (JSM) und des Fremdwassers (QF) | R5: Blatt 2
B7: Kläranlage : | C7: =IF(LEN('JSM Eingabe+TW'!D7)>0,'JSM Eingabe+TW'!D7,"") ->  | I7: VG / Stadt: | J7: =IF(LEN('JSM Eingabe+TW'!M7)>0,'JSM Eingabe+TW'!M7,"") ->  | R7: ='JSM Eingabe+TW'!AB2 -> Programmversion 7.3.5
B9: JSM nach dem Dichtemittel
B14: Größtwert: | C14: ='JSM Eingabe+TW'!AB86 ->  | O14: INFO | P14: INFO- Feld mit dem Mauszeiger anfahren
B15: Klassenmittel-Kleinstwert: | C15: ='JSM Eingabe+TW'!AB85 -> 
B16: Klassenbreite: | C16: =IFERROR((C14-C15)/(C29^0.5),"") -> 
A20: 1) | B20: gewählte Klassenbreite: | C20: =C16 ->  | N20: Achtung: wenn in der Spitze die gleiche Klassenanzahl zweimal auftritt, wird die JSM fälschlich doppelt so hoch angegeben. In diesem Fall die Klassenbreite leicht verändern.
B21: =IF(M45<O45,"Achtung, es werden nicht alle Werte berücksichtigt. Ggf. Klassenbreite ändern"," ") -> 
A24: 2) | B24: Eingangswert: | C24: =IFERROR(IF(C15-C20/2<0,0,C15-C20/2),"") -> 
B25: (von-Wert 1. Klasse) | E25: Klasse | F25: von | G25: Klassenmittel | H25: bis | J25: Summen | K25: Klassenanzahl | L25: Rang
E26: 1 | F26: =C24 ->  | G26: =IFERROR((F26+H26)/2,"") ->  | H26: =IFERROR(F26+C20,"") ->  | J26: =COUNTIF('JSM Eingabe+TW'!$AF$32:$AQ$62,"<="&H26) -> 0 | K26: =J26 -> 0 | L26: =RANK(K26,$K$26:$K$46) -> 1 | P26: Maximalwert der Klassenanzahl | Q26: =LARGE(K26:K46,1) -> 0
B27: =IF(C24>C15,"Achtung, Kleinstwert ist überschritten, korrigieren!"," ") ->  | E27: 2 | F27: =IFERROR(H26+1,"") ->  | G27: =IFERROR((F27+H27)/2,"") ->  | H27: =IFERROR(H26+$C$20,"") ->  | J27: =COUNTIF('JSM Eingabe+TW'!$AF$32:$AQ$62,"<="&H27) -> 0 | K27: =J27-J26 -> 0 | L27: 1 | P27: zug. Klassenmittel | Q27: =SUMIF(K26:K46,Q26,G26:G46) -> 0
E28: 3 | F28: =IFERROR(H27+1,"") ->  | H28: =IFERROR(H27+$C$20,"") ->  | J28: =COUNTIF('JSM Eingabe+TW'!$AF$32:$AQ$62,"<="&H28) -> 0 | K28: 0 | L28: 1 | N28: X | O28: (X = zutreffend) | P28: JSM | Q28: =IFERROR(IF(M45=0,0,C30*Q27),0) -> 0 | R28: m 3
B29: auswertbare Jahrestage: | C29: ='JSM Eingabe+TW'!AB84 -> 0 | E29: 4 | J29: =COUNTIF('JSM Eingabe+TW'!$AF$32:$AQ$62,"<="&H29) -> 0 | K29: 0 | L29: 1 | N29: (Normalfall)
B30: abzurechnende Tage: | C30: 365 | E30: 5 | J30: =COUNTIF('JSM Eingabe+TW'!$AF$32:$AQ$62,"<="&H30) -> 0 | K30: 0 | L30: 1
E31: 6 | J31: =COUNTIF('JSM Eingabe+TW'!$AF$32:$AQ$62,"<="&H31) -> 0 | K31: 0 | L31: 1 | N31: Wenn mehrere Spitzen zu berücksichtigen sind:
E32: 7 | J32: =COUNTIF('JSM Eingabe+TW'!$AF$32:$AQ$62,"<="&H32) -> 0 | K32: 0 | L32: 1
E33: 8 | J33: =COUNTIF('JSM Eingabe+TW'!$AF$32:$AQ$62,"<="&H33) -> 0 | K33: 0 | L33: 1 | O33: - bei 2 Spitzen:
E34: 9 | J34: =COUNTIF('JSM Eingabe+TW'!$AF$32:$AQ$62,"<="&H34) -> 0 | K34: 0 | L34: 1 | P34: zweitgrößte Klassenanzahl | Q34: =LARGE(K26:K46,2) -> 0
E35: 10 | J35: =COUNTIF('JSM Eingabe+TW'!$AF$32:$AQ$62,"<="&H35) -> 0 | K35: 0 | L35: 1 | P35: zug. Klassenmittel | Q35: =SUMIF($K$26:$K$46,Q34,$G$26:$G$46) -> 0
E36: 11 | J36: =COUNTIF('JSM Eingabe+TW'!$AF$32:$AQ$62,"<="&H36) -> 0 | K36: 0 | L36: 1 | O36: (X = zutreffend) | P36: JSM | Q36: =IFERROR(($Q26*$Q27+$Q34*$Q35)/($Q26+$Q34)*C30,0) -> 0 | R36: m 3
E37: 12 | J37: =COUNTIF('JSM Eingabe+TW'!$AF$32:$AQ$62,"<="&H37) -> 0 | K37: 0 | L37: 1
E38: 13 | J38: =COUNTIF('JSM Eingabe+TW'!$AF$32:$AQ$62,"<="&H38) -> 0 | K38: 0 | L38: 1 | O38: - bei 3 Spitzen:
E39: 14 | J39: =COUNTIF('JSM Eingabe+TW'!$AF$32:$AQ$62,"<="&H39) -> 0 | K39: 0 | L39: 1 | P39: drittgößte Klassenanzahl | Q39: =LARGE($K$26:$K$46,3) -> 0
E40: 15 | J40: =COUNTIF('JSM Eingabe+TW'!$AF$32:$AQ$62,"<="&H40) -> 0 | K40: 0 | L40: 1 | P40: zug. Klassenmittel | Q40: =SUMIF($K$26:$K$46,Q39,$G$26:$G$46) -> 0
E41: 16 | J41: =COUNTIF('JSM Eingabe+TW'!$AF$32:$AQ$62,"<="&H41) -> 0 | K41: 0 | L41: 1 | O41: (X = zutreffend) | P41: JSM | Q41: =IFERROR(($Q$26*$Q$27+$Q$34*Q$35+Q$39*Q$40)/($Q$26+$Q$34+$Q$39)*C30,0) -> 0 | R41: m 3
E42: 17 | J42: =COUNTIF('JSM Eingabe+TW'!$AF$32:$AQ$62,"<="&H42) -> 0 | K42: 0 | L42: 1
E43: 18 | J43: =COUNTIF('JSM Eingabe+TW'!$AF$32:$AQ$62,"<="&H43) -> 0 | K43: 0 | L43: 1
C44: erforderliche Anzahl der Klassen: | D44: =ROUNDUP(C29^(1/2),0) -> 0 | E44: 19 | J44: =COUNTIF('JSM Eingabe+TW'!$AF$32:$AQ$62,"<="&H44) -> 0 | K44: 0 | L44: 1
B45: =IF(D44>20,"Achtung, Klassenanzahl anpassen!",IF(D44<20,"Prüfen, ob alle Messungen in den berücksichtigten Klassen enthalten sind. Ggf. 1) oder 2) ändern. ","")) -> Prüfen, ob alle Messungen in den berücksichtigten Klassen enthalten sind. Ggf. 1) oder 2) ändern. | E45: 20 | J45: =COUNTIF('JSM Eingabe+TW'!$AF$32:$AQ$62,"<="&H45) -> 0 | K45: 0 | L45: 1 | M45: =SUM(K26:K45) -> 0 | N45: von | O45: =C$29 -> 0 | P45: Messungen wurden berücksichtigt
E46: 21 | J46: =COUNTIF('JSM Eingabe+TW'!$AF$32:$AQ$62,"<="&H46) -> 0 | K46: =J46-J45 -> 0 | L46: 1
M48: ERGEBNIS: | P48: Jahresschmutzwassermenge | Q48: ='JSM Ergebnis'!H15 -> 0 | R48: m 3
B49: Bemerkungen:

Sheet JSM GM A198
B2: ='JSM Eingabe+TW'!B2 -> Ergebnisse der Selbstüberwachung | N2: Berichtsjahr : | O2: =IF(LEN('JSM Eingabe+TW'!AB7)>0,'JSM Eingabe+TW'!AB7,"") -> 
B5: ='JSM Eingabe+TW'!B5 -> Ermittlung der Jahresschmutzwassermenge (JSM) und des Fremdwassers (QF) | O5: Blatt 4
C7: Kläranlage : | D7: =IF(LEN('JSM Eingabe+TW'!D7)>0,'JSM Eingabe+TW'!D7,"") ->  | G7: VG / Stadt: | H7: =IF(LEN('JSM Eingabe+TW'!M7)>0,'JSM Eingabe+TW'!M7,"") ->  | O7: ='JSM Eingabe+TW'!AB2 -> Programmversion 7.3.5
B9: JSM über das gleitende Minimum in Anlehnung an ATV-DVWK-A 198
O14: cbm/d
B15: INFO | C15: INFO- Feld mit dem Maus-zeiger anfahren | E15: reduzierter Trinkwasserverbrauch: | F15: ='JSM Eingabe+TW'!S18 -> 0 | G15: cbm/a nach Angabe der VG / Stadt | N15: mittlerer Trinkwasserverbrauch : | O15: =F15/365 -> 0
N16: gemessener Kleinstwert Abwasser : | O16: ='JSM Eingabe+TW'!AB85 -> 
N17: Mittelwert (alle Daten ohne Hochwasser) : | O17: ='JSM Eingabe+TW'!BR95 -> 
N18: mittleres Trockenwetter der Trockenwetterauswertung : | O18: ='JSM Eingabe+TW'!EV23 -> 1e-06
N19: =IF('JSM Eingabe+TW'!DX18>0,"Für fehlende Einträge und für Hochwassertage wurde jeweils folgender Ersatzwert eingesetzt :"," ") -> Für fehlende Einträge und für Hochwassertage wurde jeweils folgender Ersatzwert eingesetzt : | O19: =IF('JSM Eingabe+TW'!DX18>0,'JSM Jahresdauerlinie'!E26," ") -> 1e-06
B21: Jahresganglinie
AD25: 2 | AE25: =AD25 -> 2
AD26: 2 | AE26: =AD26 -> 2
AD27: 1 | AE27: =AD27 -> 1
AD28: 1 | AE28: =AD28 -> 1
AD29: 1 | AE29: =AD29 -> 1
C45: Die Fläche unter dem mittleren Frischwasser ist der angegebene Wasserverbrauch im Einzugsgebiet der KA
C46: Die Fläche zwischen dem gleitenden Minimum und dem mittleren Frischwasser ist Fremdwasser
B47: ERGEBNIS:
B48: Qf = | C48: =M53 -> 0.000365 | D48: m³/a | E48: gleitendes Minimum = | F48: =F53 -> 0.000365 | G48: m³/a | M48: gleitendes Minimum gem. ATV-DVWK A 198 = | N48: ='JSM Ergebnis'!H18 -> 0 | O48: m³
B50: im Jahr | D50: Abwasser-menge | E50: mittleres Frischwasser | F50: gleitendes Minimum | G50: Erhöhung um 20% | J50: JSM gem. A 198 | K50: Qf = gleit. Minimum - mittl. Frischwasser | Q50: =IF(H52="X",IF(SUMIF(M55:M419,"<0",M55:M419)<0,"das bereichsweise Unterschneiden des gleitenden Minimums unter das Frischwasser-mittel wurde für die Fremdwasserermittlung unterdrückt"," ")," ") -> 
B51: ='JSM Eingabe+TW'!AB7 -> 0 | G51: gem. A 198
D52: cbm /a | K52: Unterschneiden wird unterdrückt | M52: Unterschneiden wird nicht unterdrückt | P52: x
B53: Summe | D53: =SUM(D55:D419) -> 0.000365 | E53: =SUM(E55:E419) -> 0 | F53: =SUM(F55:F419) -> 0.000365 | G53: =G420 -> 0.000438 | J53: =J424 -> 0.000365 | K53: =SUM(K55:K419) -> 0.000365 | L53: =K53/F53 -> 1 | M53: =M420 -> 0.000365 | O53: =M53/F53 -> 1
D54: Abwassermenge | E54: mittleres Frischwasser | F54: gleitendes Minimum | G54: Schwankungsbreite nach A 198 | H54: Qt,d | I54: max. mögl. Tagesmenge Qm, d
B55: 2002-01-01 | C55: 1 | D55: ='JSM Eingabe+TW'!CW32 -> 1e-06 | E55: =O15 -> 0 | F55: =F56 -> 1e-06 | G55: =F55*1.2 -> 1.2e-06 | H55: ='JSM Eingabe+TW'!K17 -> 0 | I55: ='JSM Eingabe+TW'!$K$18*3.6*24 -> 0 | J55: =IF(D55<=G55,D55,0) -> 1e-06 | K55: =IF(F55<E55,0,F55-E55) -> 1e-06 | L55: =IF(M55<0,1, " ") ->  | M55: =F55-E55 -> 1e-06
B56: 2002-01-02 | C56: 2 | D56: ='JSM Eingabe+TW'!CW33 -> 1e-06 | E56: =$E$55 -> 0 | F56: 1e-06 | G56: =F56*1.2 -> 1.2e-06 | H56: =H55 -> 0 | I56: ='JSM Eingabe+TW'!$K$18*3.6*24 -> 0 | J56: 1e-06 | K56: 1e-06 | M56: 1e-06
B57: 2002-01-03 | C57: 3 | D57: ='JSM Eingabe+TW'!CW34 -> 1e-06 | E57: 0 | F57: =F58 -> 1e-06 | G57: 1.2e-06 | H57: =H56 -> 0 | I57: ='JSM Eingabe+TW'!$K$18*3.6*24 -> 0 | J57: 1e-06 | K57: 1e-06 | M57: 1e-06
B58: 2002-01-04 | C58: 4 | D58: ='JSM Eingabe+TW'!CW35 -> 1e-06 | E58: 0 | F58: 1e-06 | G58: 1.2e-06 | H58: 0 | I58: ='JSM Eingabe+TW'!$K$18*3.6*24 -> 0 | J58: 1e-06 | K58: 1e-06 | M58: 1e-06
B59: 2002-01-05 | C59: 5 | D59: ='JSM Eingabe+TW'!CW36 -> 1e-06 | E59: 0 | F59: 1e-06 | G59: 1.2e-06 | H59: 0 | I59: ='JSM Eingabe+TW'!$K$18*3.6*24 -> 0 | J59: 1e-06 | K59: 1e-06 | M59: 1e-06
B60: 2002-01-06 | C60: 6 | D60: ='JSM Eingabe+TW'!CW37 -> 1e-06 | E60: 0 | F60: 1e-06 | G60: 1.2e-06 | H60: 0 | I60: ='JSM Eingabe+TW'!$K$18*3.6*24 -> 0 | J60: 1e-06 | K60: 1e-06 | M60: 1e-06
B61: 2002-01-07 | C61: 7 | D61: ='JSM Eingabe+TW'!CW38 -> 1e-06 | E61: 0 | F61: 1e-06 | G61: 1.2e-06 | H61: 0 | I61: ='JSM Eingabe+TW'!$K$18*3.6*24 -> 0 | J61: 1e-06 | K61: 1e-06 | M61: 1e-06
B62: 2002-01-08 | C62: 8 | D62: ='JSM Eingabe+TW'!CW39 -> 1e-06 | E62: 0 | F62: 1e-06 | G62: 1.2e-06 | H62: 0 | I62: ='JSM Eingabe+TW'!$K$18*3.6*24 -> 0 | J62: 1e-06 | K62: 1e-06 | M62: 1e-06
B63: 2002-01-09 | C63: 9 | D63: ='JSM Eingabe+TW'!CW40 -> 1e-06 | E63: 0 | F63: 1e-06 | G63: 1.2e-06 | H63: 0 | I63: ='JSM Eingabe+TW'!$K$18*3.6*24 -> 0 | J63: 1e-06 | K63: 1e-06 | M63: 1e-06
B64: 2002-01-10 | C64: 10 | D64: ='JSM Eingabe+TW'!CW41 -> 1e-06 | E64: 0 | F64: 1e-06 | G64: 1.2e-06 | H64: 0 | I64: ='JSM Eingabe+TW'!$K$18*3.6*24 -> 0 | J64: 1e-06 | K64: 1e-06 | M64: 1e-06
B65: 2002-01-11 | C65: 11 | D65: ='JSM Eingabe+TW'!CW42 -> 1e-06 | E65: 0 | F65: =SMALL(D55:D75,1) -> 1e-06 | G65: 1.2e-06 | H65: 0 | I65: ='JSM Eingabe+TW'!$K$18*3.6*24 -> 0 | J65: 1e-06 | K65: 1e-06 | M65: 1e-06
B66: 2002-01-12 | C66: 12 | D66: ='JSM Eingabe+TW'!CW43 -> 1e-06 | E66: 0 | F66: =SMALL(D56:D76,1) -> 1e-06 | G66: 1.2e-06 | H66: 0 | I66: ='JSM Eingabe+TW'!$K$18*3.6*24 -> 0 | J66: 1e-06 | K66: 1e-06 | M66: 1e-06
B67: 2002-01-13 | C67: 13 | D67: ='JSM Eingabe+TW'!CW44 -> 1e-06 | E67: 0 | F67: 1e-06 | G67: 1.2e-06 | H67: 0 | I67: ='JSM Eingabe+TW'!$K$18*3.6*24 -> 0 | J67: 1e-06 | K67: 1e-06 | M67: 1e-06
B68: 2002-01-14 | C68: 14 | D68: ='JSM Eingabe+TW'!CW45 -> 1e-06 | E68: 0 | F68: 1e-06 | G68: 1.2e-06 | H68: 0 | I68: ='JSM Eingabe+TW'!$K$18*3.6*24 -> 0 | J68: 1e-06 | K68: 1e-06 | M68: 1e-06
B69: 2002-01-15 | C69: 15 | D69: ='JSM Eingabe+TW'!CW46 -> 1e-06 | E69: 0 | F69: 1e-06 | G69: 1.2e-06 | H69: 0 | I69: ='JSM Eingabe+TW'!$K$18*3.6*24 -> 0 | J69: 1e-06 | K69: 1e-06 | M69: 1e-06
B70: 2002-01-16 | C70: 16 | D70: ='JSM Eingabe+TW'!CW47 -> 1e-06 | E70: 0 | F70: 1e-06 | G70: 1.2e-06 | H70: 0 | I70: ='JSM Eingabe+TW'!$K$18*3.6*24 -> 0 | J70: 1e-06 | K70: 1e-06 | M70: 1e-06
B71: 2002-01-17 | C71: 17 | D71: ='JSM Eingabe+TW'!CW48 -> 1e-06 | E71: 0 | F71: 1e-06 | G71: 1.2e-06 | H71: 0 | I71: ='JSM Eingabe+TW'!$K$18*3.6*24 -> 0 | J71: 1e-06 | K71: 1e-06 | M71: 1e-06
B72: 2002-01-18 | C72: 18 | D72: ='JSM Eingabe+TW'!CW49 -> 1e-06 | E72: 0 | F72: 1e-06 | G72: 1.2e-06 | H72: 0 | I72: ='JSM Eingabe+TW'!$K$18*3.6*24 -> 0 | J72: 1e-06 | K72: 1e-06 | M72: 1e-06
B73: 2002-01-19 | C73: 19 | D73: ='JSM Eingabe+TW'!CW50 -> 1e-06 | E73: 0 | F73: 1e-06 | G73: 1.2e-06 | H73: 0 | I73: ='JSM Eingabe+TW'!$K$18*3.6*24 -> 0 | J73: 1e-06 | K73: 1e-06 | M73: 1e-06
B74: 2002-01-20 | C74: 20 | D74: ='JSM Eingabe+TW'!CW51 -> 1e-06 | E74: 0 | F74: 1e-06 | G74: 1.2e-06 | H74: 0 | I74: ='JSM Eingabe+TW'!$K$18*3.6*24 -> 0 | J74: 1e-06 | K74: 1e-06 | M74: 1e-06
B75: 2002-01-21 | C75: 21 | D75: ='JSM Eingabe+TW'!CW52 -> 1e-06 | E75: 0 | F75: 1e-06 | G75: 1.2e-06 | H75: 0 | I75: ='JSM Eingabe+TW'!$K$18*3.6*24 -> 0 | J75: 1e-06 | K75: 1e-06 | M75: 1e-06
B76: 2002-01-22 | C76: 22 | D76: ='JSM Eingabe+TW'!CW53 -> 1e-06 | E76: 0 | F76: 1e-06 | G76: 1.2e-06 | H76: 0 | I76: ='JSM Eingabe+TW'!$K$18*3.6*24 -> 0 | J76: 1e-06 | K76: 1e-06 | M76: 1e-06
B77: 2002-01-23 | C77: 23 | D77: ='JSM Eingabe+TW'!CW54 -> 1e-06 | E77: 0 | F77: 1e-06 | G77: 1.2e-06 | H77: 0 | I77: ='JSM Eingabe+TW'!$K$18*3.6*24 -> 0 | J77: 1e-06 | K77: 1e-06 | M77: 1e-06
B78: 2002-01-24 | C78: 24 | D78: ='JSM Eingabe+TW'!CW55 -> 1e-06 | E78: 0 | F78: 1e-06 | G78: 1.2e-06 | H78: 0 | I78: ='JSM Eingabe+TW'!$K$18*3.6*24 -> 0 | J78: 1e-06 | K78: 1e-06 | M78: 1e-06
B79: 2002-01-25 | C79: 25 | D79: ='JSM Eingabe+TW'!CW56 -> 1e-06 | E79: 0 | F79: 1e-06 | G79: 1.2e-06 | H79: 0 | I79: ='JSM Eingabe+TW'!$K$18*3.6*24 -> 0 | J79: 1e-06 | K79: 1e-06 | M79: 1e-06
B80: 2002-01-26 | C80: 26 | D80: ='JSM Eingabe+TW'!CW57 -> 1e-06 | E80: 0 | F80: 1e-06 | G80: 1.2e-06 | H80: 0 | I80: ='JSM Eingabe+TW'!$K$18*3.6*24 -> 0 | J80: 1e-06 | K80: 1e-06 | M80: 1e-06
B81: 2002-01-27 | C81: 27 | D81: ='JSM Eingabe+TW'!CW58 -> 1e-06 | E81: 0 | F81: 1e-06 | G81: 1.2e-06 | H81: 0 | I81: ='JSM Eingabe+TW'!$K$18*3.6*24 -> 0 | J81: 1e-06 | K81: 1e-06 | M81: 1e-06
B82: 2002-01-28 | C82: 28 | D82: ='JSM Eingabe+TW'!CW59 -> 1e-06 | E82: 0 | F82: 1e-06 | G82: 1.2e-06 | H82: 0 | I82: ='JSM Eingabe+TW'!$K$18*3.6*24 -> 0 | J82: 1e-06 | K82: 1e-06 | M82: 1e-06
B83: 2002-01-29 | C83: 29 | D83: ='JSM Eingabe+TW'!CW60 -> 1e-06 | E83: 0 | F83: 1e-06 | G83: 1.2e-06 | H83: 0 | I83: ='JSM Eingabe+TW'!$K$18*3.6*24 -> 0 | J83: 1e-06 | K83: 1e-06 | M83: 1e-06
B84: 2002-01-30 | C84: 30 | D84: ='JSM Eingabe+TW'!CW61 -> 1e-06 | E84: 0 | F84: 1e-06 | G84: 1.2e-06 | H84: 0 | I84: ='JSM Eingabe+TW'!$K$18*3.6*24 -> 0 | J84: 1e-06 | K84: 1e-06 | M84: 1e-06
B85: 2002-01-31 | C85: 31 | D85: ='JSM Eingabe+TW'!CW62 -> 1e-06 | E85: 0 | F85: 1e-06 | G85: 1.2e-06 | H85: 0 | I85: ='JSM Eingabe+TW'!$K$18*3.6*24 -> 0 | J85: 1e-06 | K85: 1e-06 | M85: 1e-06
B86: 2002-02-01 | C86: 32 | D86: ='JSM Eingabe+TW'!CX32 -> 1e-06 | E86: 0 | F86: 1e-06 | G86: 1.2e-06 | H86: 0 | I86: ='JSM Eingabe+TW'!$K$18*3.6*24 -> 0 | J86: 1e-06 | K86: 1e-06 | M86: 1e-06
B87: 2002-02-02 | C87: 33 | D87: ='JSM Eingabe+TW'!CX33 -> 1e-06 | E87: 0 | F87: 1e-06 | G87: 1.2e-06 | H87: 0 | I87: ='JSM Eingabe+TW'!$K$18*3.6*24 -> 0 | J87: 1e-06 | K87: 1e-06 | M87: 1e-06
B88: 2002-02-03 | C88: 34 | D88: ='JSM Eingabe+TW'!CX34 -> 1e-06 | E88: 0 | F88: 1e-06 | G88: 1.2e-06 | H88: 0 | I88: ='JSM Eingabe+TW'!$K$18*3.6*24 -> 0 | J88: 1e-06 | K88: 1e-06 | M88: 1e-06
B89: 2002-02-04 | C89: 35 | D89: ='JSM Eingabe+TW'!CX35 -> 1e-06 | E89: 0 | F89: 1e-06 | G89: 1.2e-06 | H89: 0 | I89: ='JSM Eingabe+TW'!$K$18*3.6*24 -> 0 | J89: 1e-06 | K89: 1e-06 | M89: 1e-06
B90: 2002-02-05 | C90: 36 | D90: ='JSM Eingabe+TW'!CX36 -> 1e-06 | E90: 0 | F90: 1e-06 | G90: 1.2e-06 | H90: 0 | I90: ='JSM Eingabe+TW'!$K$18*3.6*24 -> 0 | J90: 1e-06 | K90: 1e-06 | M90: 1e-06
B91: 2002-02-06 | C91: 37 | D91: ='JSM Eingabe+TW'!CX37 -> 1e-06 | E91: 0 | F91: 1e-06 | G91: 1.2e-06 | H91: 0 | I91: ='JSM Eingabe+TW'!$K$18*3.6*24 -> 0 | J91: 1e-06 | K91: 1e-06 | M91: 1e-06
B92: 2002-02-07 | C92: 38 | D92: ='JSM Eingabe+TW'!CX38 -> 1e-06 | E92: 0 | F92: 1e-06 | G92: 1.2e-06 | H92: 0 | I92: ='JSM Eingabe+TW'!$K$18*3.6*24 -> 0 | J92: 1e-06 | K92: 1e-06 | M92: 1e-06
B93: 2002-02-08 | C93: 39 | D93: ='JSM Eingabe+TW'!CX39 -> 1e-06 | E93: 0 | F93: 1e-06 | G93: 1.2e-06 | H93: 0 | I93: ='JSM Eingabe+TW'!$K$18*3.6*24 -> 0 | J93: 1e-06 | K93: 1e-06 | M93: 1e-06
B94: 2002-02-09 | C94: 40 | D94: ='JSM Eingabe+TW'!CX40 -> 1e-06 | E94: 0 | F94: 1e-06 | G94: 1.2e-06 | H94: 0 | I94: ='JSM Eingabe+TW'!$K$18*3.6*24 -> 0 | J94: 1e-06 | K94: 1e-06 | M94: 1e-06
B95: 2002-02-10 | C95: 41 | D95: ='JSM Eingabe+TW'!CX41 -> 1e-06 | E95: 0 | F95: 1e-06 | G95: 1.2e-06 | H95: 0 | I95: ='JSM Eingabe+TW'!$K$18*3.6*24 -> 0 | J95: 1e-06 | K95: 1e-06 | M95: 1e-06
B96: 2002-02-11 | C96: 42 | D96: ='JSM Eingabe+TW'!CX42 -> 1e-06 | E96: 0 | F96: 1e-06 | G96: 1.2e-06 | H96: 0 | I96: ='JSM Eingabe+TW'!$K$18*3.6*24 -> 0 | J96: 1e-06 | K96: 1e-06 | M96: 1e-06
B97: 2002-02-12 | C97: 43 | D97: ='JSM Eingabe+TW'!CX43 -> 1e-06 | E97: 0 | F97: 1e-06 | G97: 1.2e-06 | H97: 0 | I97: ='JSM Eingabe+TW'!$K$18*3.6*24 -> 0 | J97: 1e-06 | K97: 1e-06 | M97: 1e-06
B98: 2002-02-13 | C98: 44 | D98: ='JSM Eingabe+TW'!CX44 -> 1e-06 | E98: 0 | F98: 1e-06 | G98: 1.2e-06 | H98: 0 | I98: ='JSM Eingabe+TW'!$K$18*3.6*24 -> 0 | J98: 1e-06 | K98: 1e-06 | M98: 1e-06
B99: 2002-02-14 | C99: 45 | D99: ='JSM Eingabe+TW'!CX45 -> 1e-06 | E99: 0 | F99: 1e-06 | G99: 1.2e-06 | H99: 0 | I99: ='JSM Eingabe+TW'!$K$18*3.6*24 -> 0 | J99: 1e-06 | K99: 1e-06 | M99: 1e-06
B100: 2002-02-15 | C100: 46 | D100: ='JSM Eingabe+TW'!CX46 -> 1e-06 | E100: 0 | F100: 1e-06 | G100: 1.2e-06 | H100: 0 | I100: ='JSM Eingabe+TW'!$K$18*3.6*24 -> 0 | J100: 1e-06 | K100: 1e-06 | M100: 1e-06
B101: 2002-02-16 | C101: 47 | D101: ='JSM Eingabe+TW'!CX47 -> 1e-06 | E101: 0 | F101: 1e-06 | G101: 1.2e-06 | H101: 0 | I101: ='JSM Eingabe+TW'!$K$18*3.6*24 -> 0 | J101: 1e-06 | K101: 1e-06 | M101: 1e-06
B102: 2002-02-17 | C102: 48 | D102: ='JSM Eingabe+TW'!CX48 -> 1e-06 | E102: 0 | F102: 1e-06 | G102: 1.2e-06 | H102: 0 | I102: ='JSM Eingabe+TW'!$K$18*3.6*24 -> 0 | J102: 1e-06 | K102: 1e-06 | M102: 1e-06
B103: 2002-02-18 | C103: 49 | D103: ='JSM Eingabe+TW'!CX49 -> 1e-06 | E103: 0 | F103: 1e-06 | G103: 1.2e-06 | H103: 0 | I103: ='JSM Eingabe+TW'!$K$18*3.6*24 -> 0 | J103: 1e-06 | K103: 1e-06 | M103: 1e-06
B104: 2002-02-19 | C104: 50 | D104: ='JSM Eingabe+TW'!CX50 -> 1e-06 | E104: 0 | F104: 1e-06 | G104: 1.2e-06 | H104: 0 | I104: ='JSM Eingabe+TW'!$K$18*3.6*24 -> 0 | J104: 1e-06 | K104: 1e-06 | M104: 1e-06
B105: 2002-02-20 | C105: 51 | D105: ='JSM Eingabe+TW'!CX51 -> 1e-06 | E105: 0 | F105: 1e-06 | G105: 1.2e-06 | H105: 0 | I105: ='JSM Eingabe+TW'!$K$18*3.6*24 -> 0 | J105: 1e-06 | K105: 1e-06 | M105: 1e-06
B106: 2002-02-21 | C106: 52 | D106: ='JSM Eingabe+TW'!CX52 -> 1e-06 | E106: 0 | F106: 1e-06 | G106: 1.2e-06 | H106: 0 | I106: ='JSM Eingabe+TW'!$K$18*3.6*24 -> 0 | J106: 1e-06 | K106: 1e-06 | M106: 1e-06
B107: 2002-02-22 | C107: 53 | D107: ='JSM Eingabe+TW'!CX53 -> 1e-06 | E107: 0 | F107: 1e-06 | G107: 1.2e-06 | H107: 0 | I107: ='JSM Eingabe+TW'!$K$18*3.6*24 -> 0 | J107: 1e-06 | K107: 1e-06 | M107: 1e-06
B108: 2002-02-23 | C108: 54 | D108: ='JSM Eingabe+TW'!CX54 -> 1e-06 | E108: 0 | F108: 1e-06 | G108: 1.2e-06 | H108: 0 | I108: ='JSM Eingabe+TW'!$K$18*3.6*24 -> 0 | J108: 1e-06 | K108: 1e-06 | M108: 1e-06
B109: 2002-02-24 | C109: 55 | D109: ='JSM Eingabe+TW'!CX55 -> 1e-06 | E109: 0 | F109: 1e-06 | G109: 1.2e-06 | H109: 0 | I109: ='JSM Eingabe+TW'!$K$18*3.6*24 -> 0 | J109: 1e-06 | K109: 1e-06 | M109: 1e-06
B110: 2002-02-25 | C110: 56 | D110: ='JSM Eingabe+TW'!CX56 -> 1e-06 | E110: 0 | F110: 1e-06 | G110: 1.2e-06 | H110: 0 | I110: ='JSM Eingabe+TW'!$K$18*3.6*24 -> 0 | J110: 1e-06 | K110: 1e-06 | M110: 1e-06
B111: 2002-02-26 | C111: 57 | D111: ='JSM Eingabe+TW'!CX57 -> 1e-06 | E111: 0 | F111: 1e-06 | G111: 1.2e-06 | H111: 0 | I111: ='JSM Eingabe+TW'!$K$18*3.6*24 -> 0 | J111: 1e-06 | K111: 1e-06 | M111: 1e-06
B112: 2002-02-27 | C112: 58 | D112: ='JSM Eingabe+TW'!CX58 -> 1e-06 | E112: 0 | F112: 1e-06 | G112: 1.2e-06 | H112: 0 | I112: ='JSM Eingabe+TW'!$K$18*3.6*24 -> 0 | J112: 1e-06 | K112: 1e-06 | M112: 1e-06
B113: 2002-02-28 | C113: 59 | D113: ='JSM Eingabe+TW'!CX59 -> 1e-06 | E113: 0 | F113: 1e-06 | G113: 1.2e-06 | H113: 0 | I113: ='JSM Eingabe+TW'!$K$18*3.6*24 -> 0 | J113: 1e-06 | K113: 1e-06 | M113: 1e-06
B114: 2002-03-01 | C114: 60 | D114: ='JSM Eingabe+TW'!CY32 -> 1e-06 | E114: 0 | F114: 1e-06 | G114: 1.2e-06 | H114: 0 | I114: ='JSM Eingabe+TW'!$K$18*3.6*24 -> 0 | J114: 1e-06 | K114: 1e-06 | M114: 1e-06
B115: 2002-03-02 | C115: 61 | D115: ='JSM Eingabe+TW'!CY33 -> 1e-06 | E115: 0 | F115: 1e-06 | G115: 1.2e-06 | H115: 0 | I115: ='JSM Eingabe+TW'!$K$18*3.6*24 -> 0 | J115: 1e-06 | K115: 1e-06 | M115: 1e-06
B116: 2002-03-03 | C116: 62 | D116: ='JSM Eingabe+TW'!CY34 -> 1e-06 | E116: 0 | F116: 1e-06 | G116: 1.2e-06 | H116: 0 | I116: ='JSM Eingabe+TW'!$K$18*3.6*24 -> 0 | J116: 1e-06 | K116: 1e-06 | M116: 1e-06
B117: 2002-03-04 | C117: 63 | D117: ='JSM Eingabe+TW'!CY35 -> 1e-06 | E117: 0 | F117: 1e-06 | G117: 1.2e-06 | H117: 0 | I117: ='JSM Eingabe+TW'!$K$18*3.6*24 -> 0 | J117: 1e-06 | K117: 1e-06 | M117: 1e-06
B118: 2002-03-05 | C118: 64 | D118: ='JSM Eingabe+TW'!CY36 -> 1e-06 | E118: 0 | F118: 1e-06 | G118: 1.2e-06 | H118: 0 | I118: ='JSM Eingabe+TW'!$K$18*3.6*24 -> 0 | J118: 1e-06 | K118: 1e-06 | M118: 1e-06
B119: 2002-03-06 | C119: 65 | D119: ='JSM Eingabe+TW'!CY37 -> 1e-06 | E119: 0 | F119: 1e-06 | G119: 1.2e-06 | H119: 0 | I119: ='JSM Eingabe+TW'!$K$18*3.6*24 -> 0 | J119: =IF(D119<=G119,D119,0) -> 1e-06 | K119: =IF(F119<E119,0,F119-E119) -> 1e-06 | L119: =IF(M119<0,1, " ") ->  | M119: =F119-E119 -> 1e-06
B120: 2002-03-07 | C120: 66 | D120: ='JSM Eingabe+TW'!CY38 -> 1e-06 | E120: =$E$55 -> 0 | F120: 1e-06 | G120: =F120*1.2 -> 1.2e-06 | H120: 0 | I120: ='JSM Eingabe+TW'!$K$18*3.6*24 -> 0 | J120: 1e-06 | K120: 1e-06 | M120: 1e-06
B121: 2002-03-08 | C121: 67 | D121: ='JSM Eingabe+TW'!CY39 -> 1e-06 | E121: 0 | F121: 1e-06 | G121: 1.2e-06 | H121: =H120 -> 0 | I121: ='JSM Eingabe+TW'!$K$18*3.6*24 -> 0 | J121: 1e-06 | K121: 1e-06 | M121: 1e-06
B122: 2002-03-09 | C122: 68 | D122: ='JSM Eingabe+TW'!CY40 -> 1e-06 | E122: 0 | F122: 1e-06 | G122: 1.2e-06 | H122: 0 | I122: ='JSM Eingabe+TW'!$K$18*3.6*24 -> 0 | J122: 1e-06 | K122: 1e-06 | M122: 1e-06
B123: 2002-03-10 | C123: 69 | D123: ='JSM Eingabe+TW'!CY41 -> 1e-06 | E123: 0 | F123: 1e-06 | G123: 1.2e-06 | H123: 0 | I123: ='JSM Eingabe+TW'!$K$18*3.6*24 -> 0 | J123: 1e-06 | K123: 1e-06 | M123: 1e-06
B124: 2002-03-11 | C124: 70 | D124: ='JSM Eingabe+TW'!CY42 -> 1e-06 | E124: 0 | F124: 1e-06 | G124: 1.2e-06 | H124: 0 | I124: ='JSM Eingabe+TW'!$K$18*3.6*24 -> 0 | J124: 1e-06 | K124: 1e-06 | M124: 1e-06
B125: 2002-03-12 | C125: 71 | D125: ='JSM Eingabe+TW'!CY43 -> 1e-06 | E125: 0 | F125: 1e-06 | G125: 1.2e-06 | H125: 0 | I125: ='JSM Eingabe+TW'!$K$18*3.6*24 -> 0 | J125: 1e-06 | K125: 1e-06 | M125: 1e-06
B126: 2002-03-13 | C126: 72 | D126: ='JSM Eingabe+TW'!CY44 -> 1e-06 | E126: 0 | F126: 1e-06 | G126: 1.2e-06 | H126: 0 | I126: ='JSM Eingabe+TW'!$K$18*3.6*24 -> 0 | J126: 1e-06 | K126: 1e-06 | M126: 1e-06
B127: 2002-03-14 | C127: 73 | D127: ='JSM Eingabe+TW'!CY45 -> 1e-06 | E127: 0 | F127: 1e-06 | G127: 1.2e-06 | H127: 0 | I127: ='JSM Eingabe+TW'!$K$18*3.6*24 -> 0 | J127: 1e-06 | K127: 1e-06 | M127: 1e-06
B128: 2002-03-15 | C128: 74 | D128: ='JSM Eingabe+TW'!CY46 -> 1e-06 | E128: 0 | F128: 1e-06 | G128: 1.2e-06 | H128: 0 | I128: ='JSM Eingabe+TW'!$K$18*3.6*24 -> 0 | J128: 1e-06 | K128: 1e-06 | M128: 1e-06
B129: 2002-03-16 | C129: 75 | D129: ='JSM Eingabe+TW'!CY47 -> 1e-06 | E129: 0 | F129: 1e-06 | G129: 1.2e-06 | H129: 0 | I129: ='JSM Eingabe+TW'!$K$18*3.6*24 -> 0 | J129: 1e-06 | K129: 1e-06 | M129: 1e-06
B130: 2002-03-17 | C130: 76 | D130: ='JSM Eingabe+TW'!CY48 -> 1e-06 | E130: 0 | F130: =SMALL(D120:D140,1) -> 1e-06 | G130: 1.2e-06 | H130: 0 | I130: ='JSM Eingabe+TW'!$K$18*3.6*24 -> 0 | J130: 1e-06 | K130: 1e-06 | M130: 1e-06
B131: 2002-03-18 | C131: 77 | D131: ='JSM Eingabe+TW'!CY49 -> 1e-06 | E131: 0 | F131: 1e-06 | G131: 1.2e-06 | H131: 0 | I131: ='JSM Eingabe+TW'!$K$18*3.6*24 -> 0 | J131: 1e-06 | K131: 1e-06 | M131: 1e-06
B132: 2002-03-19 | C132: 78 | D132: ='JSM Eingabe+TW'!CY50 -> 1e-06 | E132: 0 | F132: 1e-06 | G132: 1.2e-06 | H132: 0 | I132: ='JSM Eingabe+TW'!$K$18*3.6*24 -> 0 | J132: 1e-06 | K132: 1e-06 | M132: 1e-06
B133: 2002-03-20 | C133: 79 | D133: ='JSM Eingabe+TW'!CY51 -> 1e-06 | E133: 0 | F133: 1e-06 | G133: 1.2e-06 | H133: 0 | I133: ='JSM Eingabe+TW'!$K$18*3.6*24 -> 0 | J133: 1e-06 | K133: 1e-06 | M133: 1e-06
B134: 2002-03-21 | C134: 80 | D134: ='JSM Eingabe+TW'!CY52 -> 1e-06 | E134: 0 | F134: 1e-06 | G134: 1.2e-06 | H134: 0 | I134: ='JSM Eingabe+TW'!$K$18*3.6*24 -> 0 | J134: 1e-06 | K134: 1e-06 | M134: 1e-06
B135: 2002-03-22 | C135: 81 | D135: ='JSM Eingabe+TW'!CY53 -> 1e-06 | E135: 0 | F135: 1e-06 | G135: 1.2e-06 | H135: 0 | I135: ='JSM Eingabe+TW'!$K$18*3.6*24 -> 0 | J135: 1e-06 | K135: 1e-06 | M135: 1e-06
B136: 2002-03-23 | C136: 82 | D136: ='JSM Eingabe+TW'!CY54 -> 1e-06 | E136: 0 | F136: 1e-06 | G136: 1.2e-06 | H136: 0 | I136: ='JSM Eingabe+TW'!$K$18*3.6*24 -> 0 | J136: 1e-06 | K136: 1e-06 | M136: 1e-06
B137: 2002-03-24 | C137: 83 | D137: ='JSM Eingabe+TW'!CY55 -> 1e-06 | E137: 0 | F137: 1e-06 | G137: 1.2e-06 | H137: 0 | I137: ='JSM Eingabe+TW'!$K$18*3.6*24 -> 0 | J137: 1e-06 | K137: 1e-06 | M137: 1e-06
B138: 2002-03-25 | C138: 84 | D138: ='JSM Eingabe+TW'!CY56 -> 1e-06 | E138: 0 | F138: 1e-06 | G138: 1.2e-06 | H138: 0 | I138: ='JSM Eingabe+TW'!$K$18*3.6*24 -> 0 | J138: 1e-06 | K138: 1e-06 | M138: 1e-06
B139: 2002-03-26 | C139: 85 | D139: ='JSM Eingabe+TW'!CY57 -> 1e-06 | E139: 0 | F139: 1e-06 | G139: 1.2e-06 | H139: 0 | I139: ='JSM Eingabe+TW'!$K$18*3.6*24 -> 0 | J139: 1e-06 | K139: 1e-06 | M139: 1e-06
B140: 2002-03-27 | C140: 86 | D140: ='JSM Eingabe+TW'!CY58 -> 1e-06 | E140: 0 | F140: 1e-06 | G140: 1.2e-06 | H140: 0 | I140: ='JSM Eingabe+TW'!$K$18*3.6*24 -> 0 | J140: 1e-06 | K140: 1e-06 | M140: 1e-06
B141: 2002-03-28 | C141: 87 | D141: ='JSM Eingabe+TW'!CY59 -> 1e-06 | E141: 0 | F141: 1e-06 | G141: 1.2e-06 | H141: 0 | I141: ='JSM Eingabe+TW'!$K$18*3.6*24 -> 0 | J141: 1e-06 | K141: 1e-06 | M141: 1e-06
B142: 2002-03-29 | C142: 88 | D142: ='JSM Eingabe+TW'!CY60 -> 1e-06 | E142: 0 | F142: 1e-06 | G142: 1.2e-06 | H142: 0 | I142: ='JSM Eingabe+TW'!$K$18*3.6*24 -> 0 | J142: 1e-06 | K142: 1e-06 | M142: 1e-06
B143: 2002-03-30 | C143: 89 | D143: ='JSM Eingabe+TW'!CY61 -> 1e-06 | E143: 0 | F143: 1e-06 | G143: 1.2e-06 | H143: 0 | I143: ='JSM Eingabe+TW'!$K$18*3.6*24 -> 0 | J143: 1e-06 | K143: 1e-06 | M143: 1e-06
B144: 2002-03-31 | C144: 90 | D144: ='JSM Eingabe+TW'!CY62 -> 1e-06 | E144: 0 | F144: 1e-06 | G144: 1.2e-06 | H144: 0 | I144: ='JSM Eingabe+TW'!$K$18*3.6*24 -> 0 | J144: 1e-06 | K144: 1e-06 | M144: 1e-06
B145: 2002-04-01 | C145: 91 | D145: ='JSM Eingabe+TW'!CZ32 -> 1e-06 | E145: 0 | F145: 1e-06 | G145: 1.2e-06 | H145: 0 | I145: ='JSM Eingabe+TW'!$K$18*3.6*24 -> 0 | J145: 1e-06 | K145: 1e-06 | M145: 1e-06
B146: 2002-04-02 | C146: 92 | D146: ='JSM Eingabe+TW'!CZ33 -> 1e-06 | E146: 0 | F146: 1e-06 | G146: 1.2e-06 | H146: 0 | I146: ='JSM Eingabe+TW'!$K$18*3.6*24 -> 0 | J146: 1e-06 | K146: 1e-06 | M146: 1e-06
B147: 2002-04-03 | C147: 93 | D147: ='JSM Eingabe+TW'!CZ34 -> 1e-06 | E147: 0 | F147: 1e-06 | G147: 1.2e-06 | H147: 0 | I147: ='JSM Eingabe+TW'!$K$18*3.6*24 -> 0 | J147: 1e-06 | K147: 1e-06 | M147: 1e-06
B148: 2002-04-04 | C148: 94 | D148: ='JSM Eingabe+TW'!CZ35 -> 1e-06 | E148: 0 | F148: 1e-06 | G148: 1.2e-06 | H148: 0 | I148: ='JSM Eingabe+TW'!$K$18*3.6*24 -> 0 | J148: 1e-06 | K148: 1e-06 | M148: 1e-06
B149: 2002-04-05 | C149: 95 | D149: ='JSM Eingabe+TW'!CZ36 -> 1e-06 | E149: 0 | F149: 1e-06 | G149: 1.2e-06 | H149: 0 | I149: ='JSM Eingabe+TW'!$K$18*3.6*24 -> 0 | J149: 1e-06 | K149: 1e-06 | M149: 1e-06
B150: 2002-04-06 | C150: 96 | D150: ='JSM Eingabe+TW'!CZ37 -> 1e-06 | E150: 0 | F150: 1e-06 | G150: 1.2e-06 | H150: 0 | I150: ='JSM Eingabe+TW'!$K$18*3.6*24 -> 0 | J150: 1e-06 | K150: 1e-06 | M150: 1e-06
B151: 2002-04-07 | C151: 97 | D151: ='JSM Eingabe+TW'!CZ38 -> 1e-06 | E151: 0 | F151: 1e-06 | G151: 1.2e-06 | H151: 0 | I151: ='JSM Eingabe+TW'!$K$18*3.6*24 -> 0 | J151: 1e-06 | K151: 1e-06 | M151: 1e-06
B152: 2002-04-08 | C152: 98 | D152: ='JSM Eingabe+TW'!CZ39 -> 1e-06 | E152: 0 | F152: 1e-06 | G152: 1.2e-06 | H152: 0 | I152: ='JSM Eingabe+TW'!$K$18*3.6*24 -> 0 | J152: 1e-06 | K152: 1e-06 | M152: 1e-06
B153: 2002-04-09 | C153: 99 | D153: ='JSM Eingabe+TW'!CZ40 -> 1e-06 | E153: 0 | F153: 1e-06 | G153: 1.2e-06 | H153: 0 | I153: ='JSM Eingabe+TW'!$K$18*3.6*24 -> 0 | J153: 1e-06 | K153: 1e-06 | M153: 1e-06
B154: 2002-04-10 | C154: 100 | D154: ='JSM Eingabe+TW'!CZ41 -> 1e-06 | E154: 0 | F154: 1e-06 | G154: 1.2e-06 | H154: 0 | I154: ='JSM Eingabe+TW'!$K$18*3.6*24 -> 0 | J154: 1e-06 | K154: 1e-06 | M154: 1e-06
B155: 2002-04-11 | C155: 101 | D155: ='JSM Eingabe+TW'!CZ42 -> 1e-06 | E155: 0 | F155: 1e-06 | G155: 1.2e-06 | H155: 0 | I155: ='JSM Eingabe+TW'!$K$18*3.6*24 -> 0 | J155: 1e-06 | K155: 1e-06 | M155: 1e-06
B156: 2002-04-12 | C156: 102 | D156: ='JSM Eingabe+TW'!CZ43 -> 1e-06 | E156: 0 | F156: 1e-06 | G156: 1.2e-06 | H156: 0 | I156: ='JSM Eingabe+TW'!$K$18*3.6*24 -> 0 | J156: 1e-06 | K156: 1e-06 | M156: 1e-06
B157: 2002-04-13 | C157: 103 | D157: ='JSM Eingabe+TW'!CZ44 -> 1e-06 | E157: 0 | F157: 1e-06 | G157: 1.2e-06 | H157: 0 | I157: ='JSM Eingabe+TW'!$K$18*3.6*24 -> 0 | J157: 1e-06 | K157: 1e-06 | M157: 1e-06
B158: 2002-04-14 | C158: 104 | D158: ='JSM Eingabe+TW'!CZ45 -> 1e-06 | E158: 0 | F158: 1e-06 | G158: 1.2e-06 | H158: 0 | I158: ='JSM Eingabe+TW'!$K$18*3.6*24 -> 0 | J158: 1e-06 | K158: 1e-06 | M158: 1e-06
B159: 2002-04-15 | C159: 105 | D159: ='JSM Eingabe+TW'!CZ46 -> 1e-06 | E159: 0 | F159: 1e-06 | G159: 1.2e-06 | H159: 0 | I159: ='JSM Eingabe+TW'!$K$18*3.6*24 -> 0 | J159: 1e-06 | K159: 1e-06 | M159: 1e-06
B160: 2002-04-16 | C160: 106 | D160: ='JSM Eingabe+TW'!CZ47 -> 1e-06 | E160: 0 | F160: 1e-06 | G160: 1.2e-06 | H160: 0 | I160: ='JSM Eingabe+TW'!$K$18*3.6*24 -> 0 | J160: 1e-06 | K160: 1e-06 | M160: 1e-06
B161: 2002-04-17 | C161: 107 | D161: ='JSM Eingabe+TW'!CZ48 -> 1e-06 | E161: 0 | F161: 1e-06 | G161: 1.2e-06 | H161: 0 | I161: ='JSM Eingabe+TW'!$K$18*3.6*24 -> 0 | J161: 1e-06 | K161: 1e-06 | M161: 1e-06
B162: 2002-04-18 | C162: 108 | D162: ='JSM Eingabe+TW'!CZ49 -> 1e-06 | E162: 0 | F162: 1e-06 | G162: 1.2e-06 | H162: 0 | I162: ='JSM Eingabe+TW'!$K$18*3.6*24 -> 0 | J162: 1e-06 | K162: 1e-06 | M162: 1e-06
B163: 2002-04-19 | C163: 109 | D163: ='JSM Eingabe+TW'!CZ50 -> 1e-06 | E163: 0 | F163: 1e-06 | G163: 1.2e-06 | H163: 0 | I163: ='JSM Eingabe+TW'!$K$18*3.6*24 -> 0 | J163: 1e-06 | K163: 1e-06 | M163: 1e-06
B164: 2002-04-20 | C164: 110 | D164: ='JSM Eingabe+TW'!CZ51 -> 1e-06 | E164: 0 | F164: 1e-06 | G164: 1.2e-06 | H164: 0 | I164: ='JSM Eingabe+TW'!$K$18*3.6*24 -> 0 | J164: 1e-06 | K164: 1e-06 | M164: 1e-06
B165: 2002-04-21 | C165: 111 | D165: ='JSM Eingabe+TW'!CZ52 -> 1e-06 | E165: 0 | F165: 1e-06 | G165: 1.2e-06 | H165: 0 | I165: ='JSM Eingabe+TW'!$K$18*3.6*24 -> 0 | J165: 1e-06 | K165: 1e-06 | M165: 1e-06
B166: 2002-04-22 | C166: 112 | D166: ='JSM Eingabe+TW'!CZ53 -> 1e-06 | E166: 0 | F166: 1e-06 | G166: 1.2e-06 | H166: 0 | I166: ='JSM Eingabe+TW'!$K$18*3.6*24 -> 0 | J166: 1e-06 | K166: 1e-06 | M166: 1e-06
B167: 2002-04-23 | C167: 113 | D167: ='JSM Eingabe+TW'!CZ54 -> 1e-06 | E167: 0 | F167: 1e-06 | G167: 1.2e-06 | H167: 0 | I167: ='JSM Eingabe+TW'!$K$18*3.6*24 -> 0 | J167: 1e-06 | K167: 1e-06 | M167: 1e-06
B168: 2002-04-24 | C168: 114 | D168: ='JSM Eingabe+TW'!CZ55 -> 1e-06 | E168: 0 | F168: 1e-06 | G168: 1.2e-06 | H168: 0 | I168: ='JSM Eingabe+TW'!$K$18*3.6*24 -> 0 | J168: 1e-06 | K168: 1e-06 | M168: 1e-06
B169: 2002-04-25 | C169: 115 | D169: ='JSM Eingabe+TW'!CZ56 -> 1e-06 | E169: 0 | F169: 1e-06 | G169: 1.2e-06 | H169: 0 | I169: ='JSM Eingabe+TW'!$K$18*3.6*24 -> 0 | J169: 1e-06 | K169: 1e-06 | M169: 1e-06
B170: 2002-04-26 | C170: 116 | D170: ='JSM Eingabe+TW'!CZ57 -> 1e-06 | E170: 0 | F170: 1e-06 | G170: 1.2e-06 | H170: 0 | I170: ='JSM Eingabe+TW'!$K$18*3.6*24 -> 0 | J170: 1e-06 | K170: 1e-06 | M170: 1e-06
B171: 2002-04-27 | C171: 117 | D171: ='JSM Eingabe+TW'!CZ58 -> 1e-06 | E171: 0 | F171: 1e-06 | G171: 1.2e-06 | H171: 0 | I171: ='JSM Eingabe+TW'!$K$18*3.6*24 -> 0 | J171: 1e-06 | K171: 1e-06 | M171: 1e-06
B172: 2002-04-28 | C172: 118 | D172: ='JSM Eingabe+TW'!CZ59 -> 1e-06 | E172: 0 | F172: 1e-06 | G172: 1.2e-06 | H172: 0 | I172: ='JSM Eingabe+TW'!$K$18*3.6*24 -> 0 | J172: 1e-06 | K172: 1e-06 | M172: 1e-06
B173: 2002-04-29 | C173: 119 | D173: ='JSM Eingabe+TW'!CZ60 -> 1e-06 | E173: 0 | F173: 1e-06 | G173: 1.2e-06 | H173: 0 | I173: ='JSM Eingabe+TW'!$K$18*3.6*24 -> 0 | J173: 1e-06 | K173: 1e-06 | M173: 1e-06
B174: 2002-04-30 | C174: 120 | D174: ='JSM Eingabe+TW'!CZ61 -> 1e-06 | E174: 0 | F174: 1e-06 | G174: 1.2e-06 | H174: 0 | I174: ='JSM Eingabe+TW'!$K$18*3.6*24 -> 0 | J174: 1e-06 | K174: 1e-06 | M174: 1e-06
B175: 2002-05-01 | C175: 121 | D175: ='JSM Eingabe+TW'!DA32 -> 1e-06 | E175: 0 | F175: 1e-06 | G175: 1.2e-06 | H175: 0 | I175: ='JSM Eingabe+TW'!$K$18*3.6*24 -> 0 | J175: 1e-06 | K175: 1e-06 | M175: 1e-06
B176: 2002-05-02 | C176: 122 | D176: ='JSM Eingabe+TW'!DA33 -> 1e-06 | E176: 0 | F176: 1e-06 | G176: 1.2e-06 | H176: 0 | I176: ='JSM Eingabe+TW'!$K$18*3.6*24 -> 0 | J176: 1e-06 | K176: 1e-06 | M176: 1e-06
B177: 2002-05-03 | C177: 123 | D177: ='JSM Eingabe+TW'!DA34 -> 1e-06 | E177: 0 | F177: 1e-06 | G177: 1.2e-06 | H177: 0 | I177: ='JSM Eingabe+TW'!$K$18*3.6*24 -> 0 | J177: 1e-06 | K177: 1e-06 | M177: 1e-06
B178: 2002-05-04 | C178: 124 | D178: ='JSM Eingabe+TW'!DA35 -> 1e-06 | E178: 0 | F178: 1e-06 | G178: 1.2e-06 | H178: 0 | I178: ='JSM Eingabe+TW'!$K$18*3.6*24 -> 0 | J178: 1e-06 | K178: 1e-06 | M178: 1e-06
B179: 2002-05-05 | C179: 125 | D179: ='JSM Eingabe+TW'!DA36 -> 1e-06 | E179: 0 | F179: 1e-06 | G179: 1.2e-06 | H179: 0 | I179: ='JSM Eingabe+TW'!$K$18*3.6*24 -> 0 | J179: 1e-06 | K179: 1e-06 | M179: 1e-06
B180: 2002-05-06 | C180: 126 | D180: ='JSM Eingabe+TW'!DA37 -> 1e-06 | E180: 0 | F180: 1e-06 | G180: 1.2e-06 | H180: 0 | I180: ='JSM Eingabe+TW'!$K$18*3.6*24 -> 0 | J180: 1e-06 | K180: 1e-06 | M180: 1e-06
B181: 2002-05-07 | C181: 127 | D181: ='JSM Eingabe+TW'!DA38 -> 1e-06 | E181: 0 | F181: 1e-06 | G181: 1.2e-06 | H181: 0 | I181: ='JSM Eingabe+TW'!$K$18*3.6*24 -> 0 | J181: 1e-06 | K181: 1e-06 | M181: 1e-06
B182: 2002-05-08 | C182: 128 | D182: ='JSM Eingabe+TW'!DA39 -> 1e-06 | E182: 0 | F182: 1e-06 | G182: 1.2e-06 | H182: 0 | I182: ='JSM Eingabe+TW'!$K$18*3.6*24 -> 0 | J182: 1e-06 | K182: 1e-06 | M182: 1e-06
B183: 2002-05-09 | C183: 129 | D183: ='JSM Eingabe+TW'!DA40 -> 1e-06 | E183: 0 | F183: 1e-06 | G183: 1.2e-06 | H183: 0 | I183: ='JSM Eingabe+TW'!$K$18*3.6*24 -> 0 | J183: =IF(D183<=G183,D183,0) -> 1e-06 | K183: =IF(F183<E183,0,F183-E183) -> 1e-06 | L183: =IF(M183<0,1, " ") ->  | M183: =F183-E183 -> 1e-06
B184: 2002-05-10 | C184: 130 | D184: ='JSM Eingabe+TW'!DA41 -> 1e-06 | E184: =$E$55 -> 0 | F184: 1e-06 | G184: =F184*1.2 -> 1.2e-06 | H184: 0 | I184: ='JSM Eingabe+TW'!$K$18*3.6*24 -> 0 | J184: 1e-06 | K184: 1e-06 | M184: 1e-06
B185: 2002-05-11 | C185: 131 | D185: ='JSM Eingabe+TW'!DA42 -> 1e-06 | E185: 0 | F185: 1e-06 | G185: 1.2e-06 | H185: =H184 -> 0 | I185: ='JSM Eingabe+TW'!$K$18*3.6*24 -> 0 | J185: 1e-06 | K185: 1e-06 | M185: 1e-06
B186: 2002-05-12 | C186: 132 | D186: ='JSM Eingabe+TW'!DA43 -> 1e-06 | E186: 0 | F186: 1e-06 | G186: 1.2e-06 | H186: 0 | I186: ='JSM Eingabe+TW'!$K$18*3.6*24 -> 0 | J186: 1e-06 | K186: 1e-06 | M186: 1e-06
B187: 2002-05-13 | C187: 133 | D187: ='JSM Eingabe+TW'!DA44 -> 1e-06 | E187: 0 | F187: 1e-06 | G187: 1.2e-06 | H187: 0 | I187: ='JSM Eingabe+TW'!$K$18*3.6*24 -> 0 | J187: 1e-06 | K187: 1e-06 | M187: 1e-06
B188: 2002-05-14 | C188: 134 | D188: ='JSM Eingabe+TW'!DA45 -> 1e-06 | E188: 0 | F188: 1e-06 | G188: 1.2e-06 | H188: 0 | I188: ='JSM Eingabe+TW'!$K$18*3.6*24 -> 0 | J188: 1e-06 | K188: 1e-06 | M188: 1e-06
B189: 2002-05-15 | C189: 135 | D189: ='JSM Eingabe+TW'!DA46 -> 1e-06 | E189: 0 | F189: 1e-06 | G189: 1.2e-06 | H189: 0 | I189: ='JSM Eingabe+TW'!$K$18*3.6*24 -> 0 | J189: 1e-06 | K189: 1e-06 | M189: 1e-06
B190: 2002-05-16 | C190: 136 | D190: ='JSM Eingabe+TW'!DA47 -> 1e-06 | E190: 0 | F190: 1e-06 | G190: 1.2e-06 | H190: 0 | I190: ='JSM Eingabe+TW'!$K$18*3.6*24 -> 0 | J190: 1e-06 | K190: 1e-06 | M190: 1e-06
B191: 2002-05-17 | C191: 137 | D191: ='JSM Eingabe+TW'!DA48 -> 1e-06 | E191: 0 | F191: 1e-06 | G191: 1.2e-06 | H191: 0 | I191: ='JSM Eingabe+TW'!$K$18*3.6*24 -> 0 | J191: 1e-06 | K191: 1e-06 | M191: 1e-06
B192: 2002-05-18 | C192: 138 | D192: ='JSM Eingabe+TW'!DA49 -> 1e-06 | E192: 0 | F192: 1e-06 | G192: 1.2e-06 | H192: 0 | I192: ='JSM Eingabe+TW'!$K$18*3.6*24 -> 0 | J192: 1e-06 | K192: 1e-06 | M192: 1e-06
B193: 2002-05-19 | C193: 139 | D193: ='JSM Eingabe+TW'!DA50 -> 1e-06 | E193: 0 | F193: 1e-06 | G193: 1.2e-06 | H193: 0 | I193: ='JSM Eingabe+TW'!$K$18*3.6*24 -> 0 | J193: 1e-06 | K193: 1e-06 | M193: 1e-06
B194: 2002-05-20 | C194: 140 | D194: ='JSM Eingabe+TW'!DA51 -> 1e-06 | E194: 0 | F194: =SMALL(D184:D204,1) -> 1e-06 | G194: 1.2e-06 | H194: 0 | I194: ='JSM Eingabe+TW'!$K$18*3.6*24 -> 0 | J194: 1e-06 | K194: 1e-06 | M194: 1e-06
B195: 2002-05-21 | C195: 141 | D195: ='JSM Eingabe+TW'!DA52 -> 1e-06 | E195: 0 | F195: 1e-06 | G195: 1.2e-06 | H195: 0 | I195: ='JSM Eingabe+TW'!$K$18*3.6*24 -> 0 | J195: 1e-06 | K195: 1e-06 | M195: 1e-06
B196: 2002-05-22 | C196: 142 | D196: ='JSM Eingabe+TW'!DA53 -> 1e-06 | E196: 0 | F196: 1e-06 | G196: 1.2e-06 | H196: 0 | I196: ='JSM Eingabe+TW'!$K$18*3.6*24 -> 0 | J196: 1e-06 | K196: 1e-06 | M196: 1e-06
B197: 2002-05-23 | C197: 143 | D197: ='JSM Eingabe+TW'!DA54 -> 1e-06 | E197: 0 | F197: 1e-06 | G197: 1.2e-06 | H197: 0 | I197: ='JSM Eingabe+TW'!$K$18*3.6*24 -> 0 | J197: 1e-06 | K197: 1e-06 | M197: 1e-06
B198: 2002-05-24 | C198: 144 | D198: ='JSM Eingabe+TW'!DA55 -> 1e-06 | E198: 0 | F198: 1e-06 | G198: 1.2e-06 | H198: 0 | I198: ='JSM Eingabe+TW'!$K$18*3.6*24 -> 0 | J198: 1e-06 | K198: 1e-06 | M198: 1e-06
B199: 2002-05-25 | C199: 145 | D199: ='JSM Eingabe+TW'!DA56 -> 1e-06 | E199: 0 | F199: 1e-06 | G199: 1.2e-06 | H199: 0 | I199: ='JSM Eingabe+TW'!$K$18*3.6*24 -> 0 | J199: 1e-06 | K199: 1e-06 | M199: 1e-06
B200: 2002-05-26 | C200: 146 | D200: ='JSM Eingabe+TW'!DA57 -> 1e-06 | E200: 0 | F200: 1e-06 | G200: 1.2e-06 | H200: 0 | I200: ='JSM Eingabe+TW'!$K$18*3.6*24 -> 0 | J200: 1e-06 | K200: 1e-06 | M200: 1e-06
B201: 2002-05-27 | C201: 147 | D201: ='JSM Eingabe+TW'!DA58 -> 1e-06 | E201: 0 | F201: 1e-06 | G201: 1.2e-06 | H201: 0 | I201: ='JSM Eingabe+TW'!$K$18*3.6*24 -> 0 | J201: 1e-06 | K201: 1e-06 | M201: 1e-06
B202: 2002-05-28 | C202: 148 | D202: ='JSM Eingabe+TW'!DA59 -> 1e-06 | E202: 0 | F202: 1e-06 | G202: 1.2e-06 | H202: 0 | I202: ='JSM Eingabe+TW'!$K$18*3.6*24 -> 0 | J202: 1e-06 | K202: 1e-06 | M202: 1e-06
B203: 2002-05-29 | C203: 149 | D203: ='JSM Eingabe+TW'!DA60 -> 1e-06 | E203: 0 | F203: 1e-06 | G203: 1.2e-06 | H203: 0 | I203: ='JSM Eingabe+TW'!$K$18*3.6*24 -> 0 | J203: 1e-06 | K203: 1e-06 | M203: 1e-06
B204: 2002-05-30 | C204: 150 | D204: ='JSM Eingabe+TW'!DA61 -> 1e-06 | E204: 0 | F204: 1e-06 | G204: 1.2e-06 | H204: 0 | I204: ='JSM Eingabe+TW'!$K$18*3.6*24 -> 0 | J204: 1e-06 | K204: 1e-06 | M204: 1e-06
B205: 2002-05-31 | C205: 151 | D205: ='JSM Eingabe+TW'!DA62 -> 1e-06 | E205: 0 | F205: 1e-06 | G205: 1.2e-06 | H205: 0 | I205: ='JSM Eingabe+TW'!$K$18*3.6*24 -> 0 | J205: 1e-06 | K205: 1e-06 | M205: 1e-06
B206: 2002-06-01 | C206: 152 | D206: ='JSM Eingabe+TW'!DB32 -> 1e-06 | E206: 0 | F206: 1e-06 | G206: 1.2e-06 | H206: 0 | I206: ='JSM Eingabe+TW'!$K$18*3.6*24 -> 0 | J206: 1e-06 | K206: 1e-06 | M206: 1e-06
B207: 2002-06-02 | C207: 153 | D207: ='JSM Eingabe+TW'!DB33 -> 1e-06 | E207: 0 | F207: 1e-06 | G207: 1.2e-06 | H207: 0 | I207: ='JSM Eingabe+TW'!$K$18*3.6*24 -> 0 | J207: 1e-06 | K207: 1e-06 | M207: 1e-06
B208: 2002-06-03 | C208: 154 | D208: ='JSM Eingabe+TW'!DB34 -> 1e-06 | E208: 0 | F208: 1e-06 | G208: 1.2e-06 | H208: 0 | I208: ='JSM Eingabe+TW'!$K$18*3.6*24 -> 0 | J208: 1e-06 | K208: 1e-06 | M208: 1e-06
B209: 2002-06-04 | C209: 155 | D209: ='JSM Eingabe+TW'!DB35 -> 1e-06 | E209: 0 | F209: 1e-06 | G209: 1.2e-06 | H209: 0 | I209: ='JSM Eingabe+TW'!$K$18*3.6*24 -> 0 | J209: 1e-06 | K209: 1e-06 | M209: 1e-06
B210: 2002-06-05 | C210: 156 | D210: ='JSM Eingabe+TW'!DB36 -> 1e-06 | E210: 0 | F210: 1e-06 | G210: 1.2e-06 | H210: 0 | I210: ='JSM Eingabe+TW'!$K$18*3.6*24 -> 0 | J210: 1e-06 | K210: 1e-06 | M210: 1e-06
B211: 2002-06-06 | C211: 157 | D211: ='JSM Eingabe+TW'!DB37 -> 1e-06 | E211: 0 | F211: 1e-06 | G211: 1.2e-06 | H211: 0 | I211: ='JSM Eingabe+TW'!$K$18*3.6*24 -> 0 | J211: 1e-06 | K211: 1e-06 | M211: 1e-06
B212: 2002-06-07 | C212: 158 | D212: ='JSM Eingabe+TW'!DB38 -> 1e-06 | E212: 0 | F212: 1e-06 | G212: 1.2e-06 | H212: 0 | I212: ='JSM Eingabe+TW'!$K$18*3.6*24 -> 0 | J212: 1e-06 | K212: 1e-06 | M212: 1e-06
B213: 2002-06-08 | C213: 159 | D213: ='JSM Eingabe+TW'!DB39 -> 1e-06 | E213: 0 | F213: 1e-06 | G213: 1.2e-06 | H213: 0 | I213: ='JSM Eingabe+TW'!$K$18*3.6*24 -> 0 | J213: 1e-06 | K213: 1e-06 | M213: 1e-06
B214: 2002-06-09 | C214: 160 | D214: ='JSM Eingabe+TW'!DB40 -> 1e-06 | E214: 0 | F214: 1e-06 | G214: 1.2e-06 | H214: 0 | I214: ='JSM Eingabe+TW'!$K$18*3.6*24 -> 0 | J214: 1e-06 | K214: 1e-06 | M214: 1e-06
B215: 2002-06-10 | C215: 161 | D215: ='JSM Eingabe+TW'!DB41 -> 1e-06 | E215: 0 | F215: 1e-06 | G215: 1.2e-06 | H215: 0 | I215: ='JSM Eingabe+TW'!$K$18*3.6*24 -> 0 | J215: 1e-06 | K215: 1e-06 | M215: 1e-06
B216: 2002-06-11 | C216: 162 | D216: ='JSM Eingabe+TW'!DB42 -> 1e-06 | E216: 0 | F216: 1e-06 | G216: 1.2e-06 | H216: 0 | I216: ='JSM Eingabe+TW'!$K$18*3.6*24 -> 0 | J216: 1e-06 | K216: 1e-06 | M216: 1e-06
B217: 2002-06-12 | C217: 163 | D217: ='JSM Eingabe+TW'!DB43 -> 1e-06 | E217: 0 | F217: 1e-06 | G217: 1.2e-06 | H217: 0 | I217: ='JSM Eingabe+TW'!$K$18*3.6*24 -> 0 | J217: 1e-06 | K217: 1e-06 | M217: 1e-06
B218: 2002-06-13 | C218: 164 | D218: ='JSM Eingabe+TW'!DB44 -> 1e-06 | E218: 0 | F218: 1e-06 | G218: 1.2e-06 | H218: 0 | I218: ='JSM Eingabe+TW'!$K$18*3.6*24 -> 0 | J218: 1e-06 | K218: 1e-06 | M218: 1e-06
B219: 2002-06-14 | C219: 165 | D219: ='JSM Eingabe+TW'!DB45 -> 1e-06 | E219: 0 | F219: 1e-06 | G219: 1.2e-06 | H219: 0 | I219: ='JSM Eingabe+TW'!$K$18*3.6*24 -> 0 | J219: 1e-06 | K219: 1e-06 | M219: 1e-06
B220: 2002-06-15 | C220: 166 | D220: ='JSM Eingabe+TW'!DB46 -> 1e-06 | E220: 0 | F220: 1e-06 | G220: 1.2e-06 | H220: 0 | I220: ='JSM Eingabe+TW'!$K$18*3.6*24 -> 0 | J220: 1e-06 | K220: 1e-06 | M220: 1e-06
B221: 2002-06-16 | C221: 167 | D221: ='JSM Eingabe+TW'!DB47 -> 1e-06 | E221: 0 | F221: 1e-06 | G221: 1.2e-06 | H221: 0 | I221: ='JSM Eingabe+TW'!$K$18*3.6*24 -> 0 | J221: 1e-06 | K221: 1e-06 | M221: 1e-06
B222: 2002-06-17 | C222: 168 | D222: ='JSM Eingabe+TW'!DB48 -> 1e-06 | E222: 0 | F222: 1e-06 | G222: 1.2e-06 | H222: 0 | I222: ='JSM Eingabe+TW'!$K$18*3.6*24 -> 0 | J222: 1e-06 | K222: 1e-06 | M222: 1e-06
B223: 2002-06-18 | C223: 169 | D223: ='JSM Eingabe+TW'!DB49 -> 1e-06 | E223: 0 | F223: 1e-06 | G223: 1.2e-06 | H223: 0 | I223: ='JSM Eingabe+TW'!$K$18*3.6*24 -> 0 | J223: 1e-06 | K223: 1e-06 | M223: 1e-06
B224: 2002-06-19 | C224: 170 | D224: ='JSM Eingabe+TW'!DB50 -> 1e-06 | E224: 0 | F224: 1e-06 | G224: 1.2e-06 | H224: 0 | I224: ='JSM Eingabe+TW'!$K$18*3.6*24 -> 0 | J224: 1e-06 | K224: 1e-06 | M224: 1e-06
B225: 2002-06-20 | C225: 171 | D225: ='JSM Eingabe+TW'!DB51 -> 1e-06 | E225: 0 | F225: 1e-06 | G225: 1.2e-06 | H225: 0 | I225: ='JSM Eingabe+TW'!$K$18*3.6*24 -> 0 | J225: 1e-06 | K225: 1e-06 | M225: 1e-06
B226: 2002-06-21 | C226: 172 | D226: ='JSM Eingabe+TW'!DB52 -> 1e-06 | E226: 0 | F226: 1e-06 | G226: 1.2e-06 | H226: 0 | I226: ='JSM Eingabe+TW'!$K$18*3.6*24 -> 0 | J226: 1e-06 | K226: 1e-06 | M226: 1e-06
B227: 2002-06-22 | C227: 173 | D227: ='JSM Eingabe+TW'!DB53 -> 1e-06 | E227: 0 | F227: 1e-06 | G227: 1.2e-06 | H227: 0 | I227: ='JSM Eingabe+TW'!$K$18*3.6*24 -> 0 | J227: 1e-06 | K227: 1e-06 | M227: 1e-06
B228: 2002-06-23 | C228: 174 | D228: ='JSM Eingabe+TW'!DB54 -> 1e-06 | E228: 0 | F228: 1e-06 | G228: 1.2e-06 | H228: 0 | I228: ='JSM Eingabe+TW'!$K$18*3.6*24 -> 0 | J228: 1e-06 | K228: 1e-06 | M228: 1e-06
B229: 2002-06-24 | C229: 175 | D229: ='JSM Eingabe+TW'!DB55 -> 1e-06 | E229: 0 | F229: 1e-06 | G229: 1.2e-06 | H229: 0 | I229: ='JSM Eingabe+TW'!$K$18*3.6*24 -> 0 | J229: 1e-06 | K229: 1e-06 | M229: 1e-06
... 194 more rows

Sheet JSM Jahresdauerlinie
B2: ='JSM Eingabe+TW'!B2 -> Ergebnisse der Selbstüberwachung | P2: Berichtsjahr : | Q2: =IF(LEN('JSM Eingabe+TW'!AB7)>0,'JSM Eingabe+TW'!AB7,"") -> 
B5: ='JSM Eingabe+TW'!B5 -> Ermittlung der Jahresschmutzwassermenge (JSM) und des Fremdwassers (QF) | Q5: Blatt 3
B7: Kläranlage : | C7: =IF(LEN('JSM Eingabe+TW'!D7)>0,'JSM Eingabe+TW'!D7,"") ->  | H7: VG / Stadt: | I7: =IF(LEN('JSM Eingabe+TW'!M7)>0,'JSM Eingabe+TW'!M7,"") ->  | Q7: ='JSM Eingabe+TW'!AB2 -> Programmversion 7.3.5
B9: JSM über die Jahresdauerlinie
D12: INFO- Feld mit dem Mauszeiger anfahren | E12: INFO | W12: =E30*2 -> 0
V13: =ROUND(E30,0) -> 0 | W13: =ROUND(W12,0) -> 0 | Y13: =COUNTIF(Y18:Y382,">1") -> 0
B17: ausgewertete Betriebsdaten: | U17: Menge
B18: mittlerer Tageswert des Jahres | E18: ='JSM Eingabe+TW'!I102 ->  | F18: m³/d | S18: 365 | T18: 1 | U18: =LARGE('JSM Eingabe+TW'!$DJ$32:$DU$62,S18) -> 1e-06 | V18: =IF(T18=V$13,LARGE(U$18:U$382,1),0) -> 0 | W18: =IF(T18=W$13,LARGE(U$18:U$382,1),0) -> 0 | Y18: =IF(U18>'JSM Eingabe+TW'!$CU$92,'JSM Eingabe+TW'!$CU$92," ") -> 
D19: Kleinstwert | E19: ='JSM Eingabe+TW'!M102 ->  | F19: m³/d | S19: 364 | T19: 2 | U19: =LARGE('JSM Eingabe+TW'!$DJ$32:$DU$62,S19) -> 1e-06 | V19: 0 | W19: 0 | X19: =E$31 -> 0 | Y19: =IF(U19>'JSM Eingabe+TW'!$CU$92,'JSM Eingabe+TW'!$CU$92," ") -> 
B20: Mittelwert (ohne Hochwasser) | E20: ='JSM Eingabe+TW'!Q102 ->  | F20: m³/d | S20: 363 | T20: 3 | U20: =LARGE('JSM Eingabe+TW'!$DJ$32:$DU$62,S20) -> 1e-06 | V20: 0 | W20: 0 | Y20: =IF(U20>'JSM Eingabe+TW'!$CU$92,'JSM Eingabe+TW'!$CU$92," ") -> 
B21: größtes Trockenwetter (TW): | E21: ='JSM Eingabe+TW'!I103 ->  | F21: m³/d | S21: 362 | T21: 4 | U21: =LARGE('JSM Eingabe+TW'!$DJ$32:$DU$62,S21) -> 1e-06 | V21: 0 | W21: 0 | Y21: =IF(U21>'JSM Eingabe+TW'!$CU$92,'JSM Eingabe+TW'!$CU$92," ") -> 
B22: kleinstes TW: | E22: ='JSM Eingabe+TW'!M103 ->  | F22: m³/d | S22: 361 | T22: 5 | U22: =LARGE('JSM Eingabe+TW'!$DJ$32:$DU$62,S22) -> 1e-06 | V22: 0 | W22: 0 | Y22: =IF(U22>'JSM Eingabe+TW'!$CU$92,'JSM Eingabe+TW'!$CU$92," ") -> 
C23: mittleres TW: | E23: ='JSM Eingabe+TW'!Q103 -> 1e-06 | F23: m³/d | S23: 360 | T23: 6 | U23: =LARGE('JSM Eingabe+TW'!$DJ$32:$DU$62,S23) -> 1e-06 | V23: 0 | W23: 0 | Y23: =IF(U23>'JSM Eingabe+TW'!$CU$92,'JSM Eingabe+TW'!$CU$92," ") -> 
S24: 359 | T24: 7 | U24: =LARGE('JSM Eingabe+TW'!$DJ$32:$DU$62,S24) -> 1e-06 | V24: 0 | W24: 0 | X24: =E$31 -> 0 | Y24: =IF(U24>'JSM Eingabe+TW'!$CU$92,'JSM Eingabe+TW'!$CU$92," ") -> 
B25: Anzahl fehlender Einträge / Hochwassertage | E25: ='JSM Eingabe+TW'!N104 -> 365 | F25: d | S25: 358 | T25: 8 | U25: =LARGE('JSM Eingabe+TW'!$DJ$32:$DU$62,S25) -> 1e-06 | V25: 0 | W25: 0 | Y25: =IF(U25>'JSM Eingabe+TW'!$CU$92,'JSM Eingabe+TW'!$CU$92," ") -> 
B26: =IF('JSM Eingabe+TW'!DX18>0,"Für fehlende Einträge und für Hochwassertage wird folgender Ersatzwert berücksichtigt:"," ") -> Für fehlende Einträge und für Hochwassertage wird folgender Ersatzwert berücksichtigt: | E26: =IF('JSM Eingabe+TW'!DX18>0,'JSM Eingabe+TW'!Q103," ") -> 1e-06 | F26: =IF('JSM Eingabe+TW'!DX18>0,"m³/d"," ") -> m³/d | S26: 357 | T26: 9 | U26: =LARGE('JSM Eingabe+TW'!$DJ$32:$DU$62,S26) -> 1e-06 | V26: 0 | W26: 0 | Y26: =IF(U26>'JSM Eingabe+TW'!$CU$92,'JSM Eingabe+TW'!$CU$92," ") -> 
S27: 356 | T27: 10 | U27: =LARGE('JSM Eingabe+TW'!$DJ$32:$DU$62,S27) -> 1e-06 | V27: 0 | W27: 0 | Y27: =IF(U27>'JSM Eingabe+TW'!$CU$92,'JSM Eingabe+TW'!$CU$92," ") -> 
B28: Auswertung der Jahresdauerlinie: | S28: 355 | T28: 11 | U28: =LARGE('JSM Eingabe+TW'!$DJ$32:$DU$62,S28) -> 1e-06 | V28: 0 | W28: 0 | Y28: =IF(U28>'JSM Eingabe+TW'!$CU$92,'JSM Eingabe+TW'!$CU$92," ") -> 
B29: Anzahl der TW-Tage nach Betriebstagebuch | E29: ='JSM Eingabe+TW'!AB64 -> 0 | F29: d | G29: (bis zur gelben Linie) | S29: 354 | T29: 12 | U29: =LARGE('JSM Eingabe+TW'!$DJ$32:$DU$62,S29) -> 1e-06 | V29: 0 | W29: 0 | X29: =E$31 -> 0 | Y29: =IF(U29>'JSM Eingabe+TW'!$CU$92,'JSM Eingabe+TW'!$CU$92," ") -> 
B30: Hälfte der Anzahl der TW-Tage | E30: =E29/2 -> 0 | F30: d | G30: (rote Linie) | S30: 353 | T30: 13 | U30: =LARGE('JSM Eingabe+TW'!$DJ$32:$DU$62,S30) -> 1e-06 | V30: 0 | W30: 0 | Y30: =IF(U30>'JSM Eingabe+TW'!$CU$92,'JSM Eingabe+TW'!$CU$92," ") -> 
B31: Errechneter mittlerer Abfluß bei TW | E31: =IFERROR(VLOOKUP(V13,T18:U382,2,1),0) -> 0 | F31: m³/d | G31: (blau strichliert) | S31: 352 | T31: 14 | U31: =LARGE('JSM Eingabe+TW'!$DJ$32:$DU$62,S31) -> 1e-06 | V31: 0 | W31: 0 | Y31: =IF(U31>'JSM Eingabe+TW'!$CU$92,'JSM Eingabe+TW'!$CU$92," ") -> 
S32: 351 | T32: 15 | U32: =LARGE('JSM Eingabe+TW'!$DJ$32:$DU$62,S32) -> 1e-06 | V32: 0 | W32: 0 | Y32: =IF(U32>'JSM Eingabe+TW'!$CU$92,'JSM Eingabe+TW'!$CU$92," ") -> 
H33: ERGEBNIS: | S33: 350 | T33: 16 | U33: =LARGE('JSM Eingabe+TW'!$DJ$32:$DU$62,S33) -> 1e-06 | V33: 0 | W33: 0 | Y33: =IF(U33>'JSM Eingabe+TW'!$CU$92,'JSM Eingabe+TW'!$CU$92," ") -> 
J34: Jahresschmutzwassermenge | N34: =E31*365 -> 0 | Q34: m³ | S34: 349 | T34: 17 | U34: =LARGE('JSM Eingabe+TW'!$DJ$32:$DU$62,S34) -> 1e-06 | V34: 0 | W34: 0 | X34: =E$31 -> 0
S35: 348 | T35: 18 | U35: =LARGE('JSM Eingabe+TW'!$DJ$32:$DU$62,S35) -> 1e-06 | V35: 0 | W35: 0
S36: 347 | T36: 19 | U36: =LARGE('JSM Eingabe+TW'!$DJ$32:$DU$62,S36) -> 1e-06 | V36: 0 | W36: 0
S37: 346 | T37: 20 | U37: =LARGE('JSM Eingabe+TW'!$DJ$32:$DU$62,S37) -> 1e-06 | V37: 0 | W37: 0
S38: 345 | T38: 21 | U38: =LARGE('JSM Eingabe+TW'!$DJ$32:$DU$62,S38) -> 1e-06 | V38: 0 | W38: 0 | Y38: =IF(U38>'JSM Eingabe+TW'!$CU$92,'JSM Eingabe+TW'!$CU$92," ") -> 
S39: 344 | T39: 22 | U39: =LARGE('JSM Eingabe+TW'!$DJ$32:$DU$62,S39) -> 1e-06 | V39: 0 | W39: 0 | X39: =E$31 -> 0
S40: 343 | T40: 23 | U40: =LARGE('JSM Eingabe+TW'!$DJ$32:$DU$62,S40) -> 1e-06 | V40: 0 | W40: 0
J41: =IF(Y13>0,"Der schwarz liniierte Bereich am rechten Rand liegt ausserhalb des Betrachtungsbereichs (fehlende Daten)"," ") ->  | S41: 342 | T41: 24 | U41: =LARGE('JSM Eingabe+TW'!$DJ$32:$DU$62,S41) -> 1e-06 | V41: 0 | W41: 0 | Y41: =IF(U41>'JSM Eingabe+TW'!$CU$92,'JSM Eingabe+TW'!$CU$92," ") -> 
S42: 341 | T42: 25 | U42: =LARGE('JSM Eingabe+TW'!$DJ$32:$DU$62,S42) -> 1e-06 | V42: 0 | W42: 0 | Y42: =IF(U42>'JSM Eingabe+TW'!$CU$92,'JSM Eingabe+TW'!$CU$92," ") -> 
S43: 340 | T43: 26 | U43: =LARGE('JSM Eingabe+TW'!$DJ$32:$DU$62,S43) -> 1e-06 | V43: 0 | W43: 0 | Y43: =IF(U43>'JSM Eingabe+TW'!$CU$92,'JSM Eingabe+TW'!$CU$92," ") -> 
S44: 339 | T44: 27 | U44: =LARGE('JSM Eingabe+TW'!$DJ$32:$DU$62,S44) -> 1e-06 | V44: 0 | W44: 0 | X44: =E$31 -> 0 | Y44: =IF(U44>'JSM Eingabe+TW'!$CU$92,'JSM Eingabe+TW'!$CU$92," ") -> 
S45: 338 | T45: 28 | U45: =LARGE('JSM Eingabe+TW'!$DJ$32:$DU$62,S45) -> 1e-06 | V45: 0 | W45: 0 | Y45: =IF(U45>'JSM Eingabe+TW'!$CU$92,'JSM Eingabe+TW'!$CU$92," ") -> 
S46: 337 | T46: 29 | U46: =LARGE('JSM Eingabe+TW'!$DJ$32:$DU$62,S46) -> 1e-06 | V46: 0 | W46: 0 | Y46: =IF(U46>'JSM Eingabe+TW'!$CU$92,'JSM Eingabe+TW'!$CU$92," ") -> 
S47: 336 | T47: 30 | U47: =LARGE('JSM Eingabe+TW'!$DJ$32:$DU$62,S47) -> 1e-06 | V47: 0 | W47: 0 | Y47: =IF(U47>'JSM Eingabe+TW'!$CU$92,'JSM Eingabe+TW'!$CU$92," ") -> 
S48: 335 | T48: 31 | U48: =LARGE('JSM Eingabe+TW'!$DJ$32:$DU$62,S48) -> 1e-06 | V48: 0 | W48: 0 | Y48: =IF(U48>'JSM Eingabe+TW'!$CU$92,'JSM Eingabe+TW'!$CU$92," ") -> 
S49: 334 | T49: 32 | U49: =LARGE('JSM Eingabe+TW'!$DJ$32:$DU$62,S49) -> 1e-06 | V49: 0 | W49: 0 | X49: =E$31 -> 0 | Y49: =IF(U49>'JSM Eingabe+TW'!$CU$92,'JSM Eingabe+TW'!$CU$92," ") -> 
S50: 333 | T50: 33 | U50: =LARGE('JSM Eingabe+TW'!$DJ$32:$DU$62,S50) -> 1e-06 | V50: 0 | W50: 0 | Y50: =IF(U50>'JSM Eingabe+TW'!$CU$92,'JSM Eingabe+TW'!$CU$92," ") -> 
S51: 332 | T51: 34 | U51: =LARGE('JSM Eingabe+TW'!$DJ$32:$DU$62,S51) -> 1e-06 | V51: 0 | W51: 0 | Y51: =IF(U51>'JSM Eingabe+TW'!$CU$92,'JSM Eingabe+TW'!$CU$92," ") -> 
S52: 331 | T52: 35 | U52: =LARGE('JSM Eingabe+TW'!$DJ$32:$DU$62,S52) -> 1e-06 | V52: 0 | W52: 0 | Y52: =IF(U52>'JSM Eingabe+TW'!$CU$92,'JSM Eingabe+TW'!$CU$92," ") -> 
S53: 330 | T53: 36 | U53: =LARGE('JSM Eingabe+TW'!$DJ$32:$DU$62,S53) -> 1e-06 | V53: 0 | W53: 0 | Y53: =IF(U53>'JSM Eingabe+TW'!$CU$92,'JSM Eingabe+TW'!$CU$92," ") -> 
S54: 329 | T54: 37 | U54: =LARGE('JSM Eingabe+TW'!$DJ$32:$DU$62,S54) -> 1e-06 | V54: 0 | W54: 0 | X54: =E$31 -> 0 | Y54: =IF(U54>'JSM Eingabe+TW'!$CU$92,'JSM Eingabe+TW'!$CU$92," ") -> 
S55: 328 | T55: 38 | U55: =LARGE('JSM Eingabe+TW'!$DJ$32:$DU$62,S55) -> 1e-06 | V55: 0 | W55: 0 | Y55: =IF(U55>'JSM Eingabe+TW'!$CU$92,'JSM Eingabe+TW'!$CU$92," ") -> 
S56: 327 | T56: 39 | U56: =LARGE('JSM Eingabe+TW'!$DJ$32:$DU$62,S56) -> 1e-06 | V56: 0 | W56: 0 | Y56: =IF(U56>'JSM Eingabe+TW'!$CU$92,'JSM Eingabe+TW'!$CU$92," ") -> 
S57: 326 | T57: 40 | U57: =LARGE('JSM Eingabe+TW'!$DJ$32:$DU$62,S57) -> 1e-06 | V57: 0 | W57: 0 | Y57: =IF(U57>'JSM Eingabe+TW'!$CU$92,'JSM Eingabe+TW'!$CU$92," ") -> 
S58: 325 | T58: 41 | U58: =LARGE('JSM Eingabe+TW'!$DJ$32:$DU$62,S58) -> 1e-06 | V58: 0 | W58: 0 | Y58: =IF(U58>'JSM Eingabe+TW'!$CU$92,'JSM Eingabe+TW'!$CU$92," ") -> 
S59: 324 | T59: 42 | U59: =LARGE('JSM Eingabe+TW'!$DJ$32:$DU$62,S59) -> 1e-06 | V59: 0 | W59: 0 | X59: =E$31 -> 0 | Y59: =IF(U59>'JSM Eingabe+TW'!$CU$92,'JSM Eingabe+TW'!$CU$92," ") -> 
S60: 323 | T60: 43 | U60: =LARGE('JSM Eingabe+TW'!$DJ$32:$DU$62,S60) -> 1e-06 | V60: 0 | W60: 0 | Y60: =IF(U60>'JSM Eingabe+TW'!$CU$92,'JSM Eingabe+TW'!$CU$92," ") -> 
S61: 322 | T61: 44 | U61: =LARGE('JSM Eingabe+TW'!$DJ$32:$DU$62,S61) -> 1e-06 | V61: 0 | W61: 0 | Y61: =IF(U61>'JSM Eingabe+TW'!$CU$92,'JSM Eingabe+TW'!$CU$92," ") -> 
S62: 321 | T62: 45 | U62: =LARGE('JSM Eingabe+TW'!$DJ$32:$DU$62,S62) -> 1e-06 | V62: 0 | W62: 0 | Y62: =IF(U62>'JSM Eingabe+TW'!$CU$92,'JSM Eingabe+TW'!$CU$92," ") -> 
S63: 320 | T63: 46 | U63: =LARGE('JSM Eingabe+TW'!$DJ$32:$DU$62,S63) -> 1e-06 | V63: 0 | W63: 0 | Y63: =IF(U63>'JSM Eingabe+TW'!$CU$92,'JSM Eingabe+TW'!$CU$92," ") -> 
S64: 319 | T64: 47 | U64: =LARGE('JSM Eingabe+TW'!$DJ$32:$DU$62,S64) -> 1e-06 | V64: 0 | W64: 0 | X64: =E$31 -> 0 | Y64: =IF(U64>'JSM Eingabe+TW'!$CU$92,'JSM Eingabe+TW'!$CU$92," ") -> 
S65: 318 | T65: 48 | U65: =LARGE('JSM Eingabe+TW'!$DJ$32:$DU$62,S65) -> 1e-06 | V65: 0 | W65: 0 | Y65: =IF(U65>'JSM Eingabe+TW'!$CU$92,'JSM Eingabe+TW'!$CU$92," ") -> 
S66: 317 | T66: 49 | U66: =LARGE('JSM Eingabe+TW'!$DJ$32:$DU$62,S66) -> 1e-06 | V66: 0 | W66: 0 | Y66: =IF(U66>'JSM Eingabe+TW'!$CU$92,'JSM Eingabe+TW'!$CU$92," ") -> 
S67: 316 | T67: 50 | U67: =LARGE('JSM Eingabe+TW'!$DJ$32:$DU$62,S67) -> 1e-06 | V67: 0 | W67: 0 | Y67: =IF(U67>'JSM Eingabe+TW'!$CU$92,'JSM Eingabe+TW'!$CU$92," ") -> 
S68: 315 | T68: 51 | U68: =LARGE('JSM Eingabe+TW'!$DJ$32:$DU$62,S68) -> 1e-06 | V68: 0 | W68: 0 | Y68: =IF(U68>'JSM Eingabe+TW'!$CU$92,'JSM Eingabe+TW'!$CU$92," ") -> 
S69: 314 | T69: 52 | U69: =LARGE('JSM Eingabe+TW'!$DJ$32:$DU$62,S69) -> 1e-06 | V69: 0 | W69: 0 | X69: =E$31 -> 0 | Y69: =IF(U69>'JSM Eingabe+TW'!$CU$92,'JSM Eingabe+TW'!$CU$92," ") -> 
S70: 313 | T70: 53 | U70: =LARGE('JSM Eingabe+TW'!$DJ$32:$DU$62,S70) -> 1e-06 | V70: 0 | W70: 0 | Y70: =IF(U70>'JSM Eingabe+TW'!$CU$92,'JSM Eingabe+TW'!$CU$92," ") -> 
S71: 312 | T71: 54 | U71: =LARGE('JSM Eingabe+TW'!$DJ$32:$DU$62,S71) -> 1e-06 | V71: 0 | W71: 0 | Y71: =IF(U71>'JSM Eingabe+TW'!$CU$92,'JSM Eingabe+TW'!$CU$92," ") -> 
S72: 311 | T72: 55 | U72: =LARGE('JSM Eingabe+TW'!$DJ$32:$DU$62,S72) -> 1e-06 | V72: 0 | W72: 0 | Y72: =IF(U72>'JSM Eingabe+TW'!$CU$92,'JSM Eingabe+TW'!$CU$92," ") -> 
S73: 310 | T73: 56 | U73: =LARGE('JSM Eingabe+TW'!$DJ$32:$DU$62,S73) -> 1e-06 | V73: 0 | W73: 0 | Y73: =IF(U73>'JSM Eingabe+TW'!$CU$92,'JSM Eingabe+TW'!$CU$92," ") -> 
S74: 309 | T74: 57 | U74: =LARGE('JSM Eingabe+TW'!$DJ$32:$DU$62,S74) -> 1e-06 | V74: 0 | W74: 0 | X74: =E$31 -> 0 | Y74: =IF(U74>'JSM Eingabe+TW'!$CU$92,'JSM Eingabe+TW'!$CU$92," ") -> 
S75: 308 | T75: 58 | U75: =LARGE('JSM Eingabe+TW'!$DJ$32:$DU$62,S75) -> 1e-06 | V75: 0 | W75: 0 | Y75: =IF(U75>'JSM Eingabe+TW'!$CU$92,'JSM Eingabe+TW'!$CU$92," ") -> 
S76: 307 | T76: 59 | U76: =LARGE('JSM Eingabe+TW'!$DJ$32:$DU$62,S76) -> 1e-06 | V76: 0 | W76: 0 | Y76: =IF(U76>'JSM Eingabe+TW'!$CU$92,'JSM Eingabe+TW'!$CU$92," ") -> 
S77: 306 | T77: 60 | U77: =LARGE('JSM Eingabe+TW'!$DJ$32:$DU$62,S77) -> 1e-06 | V77: 0 | W77: 0 | Y77: =IF(U77>'JSM Eingabe+TW'!$CU$92,'JSM Eingabe+TW'!$CU$92," ") -> 
S78: 305 | T78: 61 | U78: =LARGE('JSM Eingabe+TW'!$DJ$32:$DU$62,S78) -> 1e-06 | V78: 0 | W78: 0 | Y78: =IF(U78>'JSM Eingabe+TW'!$CU$92,'JSM Eingabe+TW'!$CU$92," ") -> 
S79: 304 | T79: 62 | U79: =LARGE('JSM Eingabe+TW'!$DJ$32:$DU$62,S79) -> 1e-06 | V79: 0 | W79: 0 | X79: =E$31 -> 0 | Y79: =IF(U79>'JSM Eingabe+TW'!$CU$92,'JSM Eingabe+TW'!$CU$92," ") -> 
S80: 303 | T80: 63 | U80: =LARGE('JSM Eingabe+TW'!$DJ$32:$DU$62,S80) -> 1e-06 | V80: 0 | W80: 0 | Y80: =IF(U80>'JSM Eingabe+TW'!$CU$92,'JSM Eingabe+TW'!$CU$92," ") -> 
S81: 302 | T81: 64 | U81: =LARGE('JSM Eingabe+TW'!$DJ$32:$DU$62,S81) -> 1e-06 | V81: 0 | W81: 0 | Y81: =IF(U81>'JSM Eingabe+TW'!$CU$92,'JSM Eingabe+TW'!$CU$92," ") -> 
S82: 301 | T82: 65 | U82: =LARGE('JSM Eingabe+TW'!$DJ$32:$DU$62,S82) -> 1e-06 | V82: =IF(T82=V$13,LARGE(U$18:U$382,1),0) -> 0 | W82: =IF(T82=W$13,LARGE(U$18:U$382,1),0) -> 0 | Y82: =IF(U82>'JSM Eingabe+TW'!$CU$92,'JSM Eingabe+TW'!$CU$92," ") -> 
S83: 300 | T83: 66 | U83: =LARGE('JSM Eingabe+TW'!$DJ$32:$DU$62,S83) -> 1e-06 | V83: 0 | W83: 0 | Y83: =IF(U83>'JSM Eingabe+TW'!$CU$92,'JSM Eingabe+TW'!$CU$92," ") -> 
S84: 299 | T84: 67 | U84: =LARGE('JSM Eingabe+TW'!$DJ$32:$DU$62,S84) -> 1e-06 | V84: 0 | W84: 0 | X84: =E$31 -> 0 | Y84: =IF(U84>'JSM Eingabe+TW'!$CU$92,'JSM Eingabe+TW'!$CU$92," ") -> 
S85: 298 | T85: 68 | U85: =LARGE('JSM Eingabe+TW'!$DJ$32:$DU$62,S85) -> 1e-06 | V85: 0 | W85: 0 | Y85: =IF(U85>'JSM Eingabe+TW'!$CU$92,'JSM Eingabe+TW'!$CU$92," ") -> 
S86: 297 | T86: 69 | U86: =LARGE('JSM Eingabe+TW'!$DJ$32:$DU$62,S86) -> 1e-06 | V86: 0 | W86: 0 | Y86: =IF(U86>'JSM Eingabe+TW'!$CU$92,'JSM Eingabe+TW'!$CU$92," ") -> 
S87: 296 | T87: 70 | U87: =LARGE('JSM Eingabe+TW'!$DJ$32:$DU$62,S87) -> 1e-06 | V87: 0 | W87: 0 | Y87: =IF(U87>'JSM Eingabe+TW'!$CU$92,'JSM Eingabe+TW'!$CU$92," ") -> 
S88: 295 | T88: 71 | U88: =LARGE('JSM Eingabe+TW'!$DJ$32:$DU$62,S88) -> 1e-06 | V88: 0 | W88: 0 | Y88: =IF(U88>'JSM Eingabe+TW'!$CU$92,'JSM Eingabe+TW'!$CU$92," ") -> 
S89: 294 | T89: 72 | U89: =LARGE('JSM Eingabe+TW'!$DJ$32:$DU$62,S89) -> 1e-06 | V89: 0 | W89: 0 | X89: =E$31 -> 0 | Y89: =IF(U89>'JSM Eingabe+TW'!$CU$92,'JSM Eingabe+TW'!$CU$92," ") -> 
S90: 293 | T90: 73 | U90: =LARGE('JSM Eingabe+TW'!$DJ$32:$DU$62,S90) -> 1e-06 | V90: 0 | W90: 0 | Y90: =IF(U90>'JSM Eingabe+TW'!$CU$92,'JSM Eingabe+TW'!$CU$92," ") -> 
S91: 292 | T91: 74 | U91: =LARGE('JSM Eingabe+TW'!$DJ$32:$DU$62,S91) -> 1e-06 | V91: 0 | W91: 0 | Y91: =IF(U91>'JSM Eingabe+TW'!$CU$92,'JSM Eingabe+TW'!$CU$92," ") -> 
S92: 291 | T92: 75 | U92: =LARGE('JSM Eingabe+TW'!$DJ$32:$DU$62,S92) -> 1e-06 | V92: 0 | W92: 0 | Y92: =IF(U92>'JSM Eingabe+TW'!$CU$92,'JSM Eingabe+TW'!$CU$92," ") -> 
S93: 290 | T93: 76 | U93: =LARGE('JSM Eingabe+TW'!$DJ$32:$DU$62,S93) -> 1e-06 | V93: 0 | W93: 0 | Y93: =IF(U93>'JSM Eingabe+TW'!$CU$92,'JSM Eingabe+TW'!$CU$92," ") -> 
S94: 289 | T94: 77 | U94: =LARGE('JSM Eingabe+TW'!$DJ$32:$DU$62,S94) -> 1e-06 | V94: 0 | W94: 0 | X94: =E$31 -> 0 | Y94: =IF(U94>'JSM Eingabe+TW'!$CU$92,'JSM Eingabe+TW'!$CU$92," ") -> 
S95: 288 | T95: 78 | U95: =LARGE('JSM Eingabe+TW'!$DJ$32:$DU$62,S95) -> 1e-06 | V95: 0 | W95: 0 | Y95: =IF(U95>'JSM Eingabe+TW'!$CU$92,'JSM Eingabe+TW'!$CU$92," ") -> 
S96: 287 | T96: 79 | U96: =LARGE('JSM Eingabe+TW'!$DJ$32:$DU$62,S96) -> 1e-06 | V96: 0 | W96: 0 | Y96: =IF(U96>'JSM Eingabe+TW'!$CU$92,'JSM Eingabe+TW'!$CU$92," ") -> 
S97: 286 | T97: 80 | U97: =LARGE('JSM Eingabe+TW'!$DJ$32:$DU$62,S97) -> 1e-06 | V97: 0 | W97: 0 | Y97: =IF(U97>'JSM Eingabe+TW'!$CU$92,'JSM Eingabe+TW'!$CU$92," ") -> 
S98: 285 | T98: 81 | U98: =LARGE('JSM Eingabe+TW'!$DJ$32:$DU$62,S98) -> 1e-06 | V98: 0 | W98: 0 | Y98: =IF(U98>'JSM Eingabe+TW'!$CU$92,'JSM Eingabe+TW'!$CU$92," ") -> 
S99: 284 | T99: 82 | U99: =LARGE('JSM Eingabe+TW'!$DJ$32:$DU$62,S99) -> 1e-06 | V99: 0 | W99: 0 | X99: =E$31 -> 0 | Y99: =IF(U99>'JSM Eingabe+TW'!$CU$92,'JSM Eingabe+TW'!$CU$92," ") -> 
S100: 283 | T100: 83 | U100: =LARGE('JSM Eingabe+TW'!$DJ$32:$DU$62,S100) -> 1e-06 | V100: 0 | W100: 0 | Y100: =IF(U100>'JSM Eingabe+TW'!$CU$92,'JSM Eingabe+TW'!$CU$92," ") -> 
S101: 282 | T101: 84 | U101: =LARGE('JSM Eingabe+TW'!$DJ$32:$DU$62,S101) -> 1e-06 | V101: 0 | W101: 0 | Y101: =IF(U101>'JSM Eingabe+TW'!$CU$92,'JSM Eingabe+TW'!$CU$92," ") -> 
S102: 281 | T102: 85 | U102: =LARGE('JSM Eingabe+TW'!$DJ$32:$DU$62,S102) -> 1e-06 | V102: 0 | W102: 0 | Y102: =IF(U102>'JSM Eingabe+TW'!$CU$92,'JSM Eingabe+TW'!$CU$92," ") -> 
S103: 280 | T103: 86 | U103: =LARGE('JSM Eingabe+TW'!$DJ$32:$DU$62,S103) -> 1e-06 | V103: 0 | W103: 0 | Y103: =IF(U103>'JSM Eingabe+TW'!$CU$92,'JSM Eingabe+TW'!$CU$92," ") -> 
S104: 279 | T104: 87 | U104: =LARGE('JSM Eingabe+TW'!$DJ$32:$DU$62,S104) -> 1e-06 | V104: 0 | W104: 0 | X104: =E$31 -> 0 | Y104: =IF(U104>'JSM Eingabe+TW'!$CU$92,'JSM Eingabe+TW'!$CU$92," ") -> 
S105: 278 | T105: 88 | U105: =LARGE('JSM Eingabe+TW'!$DJ$32:$DU$62,S105) -> 1e-06 | V105: 0 | W105: 0 | Y105: =IF(U105>'JSM Eingabe+TW'!$CU$92,'JSM Eingabe+TW'!$CU$92," ") -> 
S106: 277 | T106: 89 | U106: =LARGE('JSM Eingabe+TW'!$DJ$32:$DU$62,S106) -> 1e-06 | V106: 0 | W106: 0 | Y106: =IF(U106>'JSM Eingabe+TW'!$CU$92,'JSM Eingabe+TW'!$CU$92," ") -> 
S107: 276 | T107: 90 | U107: =LARGE('JSM Eingabe+TW'!$DJ$32:$DU$62,S107) -> 1e-06 | V107: 0 | W107: 0 | Y107: =IF(U107>'JSM Eingabe+TW'!$CU$92,'JSM Eingabe+TW'!$CU$92," ") -> 
S108: 275 | T108: 91 | U108: =LARGE('JSM Eingabe+TW'!$DJ$32:$DU$62,S108) -> 1e-06 | V108: 0 | W108: 0 | Y108: =IF(U108>'JSM Eingabe+TW'!$CU$92,'JSM Eingabe+TW'!$CU$92," ") -> 
S109: 274 | T109: 92 | U109: =LARGE('JSM Eingabe+TW'!$DJ$32:$DU$62,S109) -> 1e-06 | V109: 0 | W109: 0 | X109: =E$31 -> 0 | Y109: =IF(U109>'JSM Eingabe+TW'!$CU$92,'JSM Eingabe+TW'!$CU$92," ") -> 
S110: 273 | T110: 93 | U110: =LARGE('JSM Eingabe+TW'!$DJ$32:$DU$62,S110) -> 1e-06 | V110: 0 | W110: 0 | Y110: =IF(U110>'JSM Eingabe+TW'!$CU$92,'JSM Eingabe+TW'!$CU$92," ") -> 
S111: 272 | T111: 94 | U111: =LARGE('JSM Eingabe+TW'!$DJ$32:$DU$62,S111) -> 1e-06 | V111: 0 | W111: 0 | Y111: =IF(U111>'JSM Eingabe+TW'!$CU$92,'JSM Eingabe+TW'!$CU$92," ") -> 
S112: 271 | T112: 95 | U112: =LARGE('JSM Eingabe+TW'!$DJ$32:$DU$62,S112) -> 1e-06 | V112: 0 | W112: 0 | Y112: =IF(U112>'JSM Eingabe+TW'!$CU$92,'JSM Eingabe+TW'!$CU$92," ") -> 
S113: 270 | T113: 96 | U113: =LARGE('JSM Eingabe+TW'!$DJ$32:$DU$62,S113) -> 1e-06 | V113: 0 | W113: 0 | Y113: =IF(U113>'JSM Eingabe+TW'!$CU$92,'JSM Eingabe+TW'!$CU$92," ") -> 
S114: 269 | T114: 97 | U114: =LARGE('JSM Eingabe+TW'!$DJ$32:$DU$62,S114) -> 1e-06 | V114: 0 | W114: 0 | X114: =E$31 -> 0 | Y114: =IF(U114>'JSM Eingabe+TW'!$CU$92,'JSM Eingabe+TW'!$CU$92," ") -> 
S115: 268 | T115: 98 | U115: =LARGE('JSM Eingabe+TW'!$DJ$32:$DU$62,S115) -> 1e-06 | V115: 0 | W115: 0 | Y115: =IF(U115>'JSM Eingabe+TW'!$CU$92,'JSM Eingabe+TW'!$CU$92," ") -> 
S116: 267 | T116: 99 | U116: =LARGE('JSM Eingabe+TW'!$DJ$32:$DU$62,S116) -> 1e-06 | V116: 0 | W116: 0 | Y116: =IF(U116>'JSM Eingabe+TW'!$CU$92,'JSM Eingabe+TW'!$CU$92," ") -> 
S117: 266 | T117: 100 | U117: =LARGE('JSM Eingabe+TW'!$DJ$32:$DU$62,S117) -> 1e-06 | V117: 0 | W117: 0 | Y117: =IF(U117>'JSM Eingabe+TW'!$CU$92,'JSM Eingabe+TW'!$CU$92," ") -> 
S118: 265 | T118: 101 | U118: =LARGE('JSM Eingabe+TW'!$DJ$32:$DU$62,S118) -> 1e-06 | V118: 0 | W118: 0 | Y118: =IF(U118>'JSM Eingabe+TW'!$CU$92,'JSM Eingabe+TW'!$CU$92," ") -> 
S119: 264 | T119: 102 | U119: =LARGE('JSM Eingabe+TW'!$DJ$32:$DU$62,S119) -> 1e-06 | V119: 0 | W119: 0 | X119: =E$31 -> 0 | Y119: =IF(U119>'JSM Eingabe+TW'!$CU$92,'JSM Eingabe+TW'!$CU$92," ") -> 
S120: 263 | T120: 103 | U120: =LARGE('JSM Eingabe+TW'!$DJ$32:$DU$62,S120) -> 1e-06 | V120: 0 | W120: 0 | Y120: =IF(U120>'JSM Eingabe+TW'!$CU$92,'JSM Eingabe+TW'!$CU$92," ") -> 
S121: 262 | T121: 104 | U121: =LARGE('JSM Eingabe+TW'!$DJ$32:$DU$62,S121) -> 1e-06 | V121: 0 | W121: 0 | Y121: =IF(U121>'JSM Eingabe+TW'!$CU$92,'JSM Eingabe+TW'!$CU$92," ") -> 
S122: 261 | T122: 105 | U122: =LARGE('JSM Eingabe+TW'!$DJ$32:$DU$62,S122) -> 1e-06 | V122: 0 | W122: 0 | Y122: =IF(U122>'JSM Eingabe+TW'!$CU$92,'JSM Eingabe+TW'!$CU$92," ") -> 
S123: 260 | T123: 106 | U123: =LARGE('JSM Eingabe+TW'!$DJ$32:$DU$62,S123) -> 1e-06 | V123: 0 | W123: 0 | Y123: =IF(U123>'JSM Eingabe+TW'!$CU$92,'JSM Eingabe+TW'!$CU$92," ") -> 
S124: 259 | T124: 107 | U124: =LARGE('JSM Eingabe+TW'!$DJ$32:$DU$62,S124) -> 1e-06 | V124: 0 | W124: 0 | X124: =E$31 -> 0 | Y124: =IF(U124>'JSM Eingabe+TW'!$CU$92,'JSM Eingabe+TW'!$CU$92," ") -> 
S125: 258 | T125: 108 | U125: =LARGE('JSM Eingabe+TW'!$DJ$32:$DU$62,S125) -> 1e-06 | V125: 0 | W125: 0 | Y125: =IF(U125>'JSM Eingabe+TW'!$CU$92,'JSM Eingabe+TW'!$CU$92," ") -> 
S126: 257 | T126: 109 | U126: =LARGE('JSM Eingabe+TW'!$DJ$32:$DU$62,S126) -> 1e-06 | V126: 0 | W126: 0 | Y126: =IF(U126>'JSM Eingabe+TW'!$CU$92,'JSM Eingabe+TW'!$CU$92," ") -> 
S127: 256 | T127: 110 | U127: =LARGE('JSM Eingabe+TW'!$DJ$32:$DU$62,S127) -> 1e-06 | V127: 0 | W127: 0 | Y127: =IF(U127>'JSM Eingabe+TW'!$CU$92,'JSM Eingabe+TW'!$CU$92," ") -> 
S128: 255 | T128: 111 | U128: =LARGE('JSM Eingabe+TW'!$DJ$32:$DU$62,S128) -> 1e-06 | V128: 0 | W128: 0 | Y128: =IF(U128>'JSM Eingabe+TW'!$CU$92,'JSM Eingabe+TW'!$CU$92," ") -> 
S129: 254 | T129: 112 | U129: =LARGE('JSM Eingabe+TW'!$DJ$32:$DU$62,S129) -> 1e-06 | V129: 0 | W129: 0 | X129: =E$31 -> 0 | Y129: =IF(U129>'JSM Eingabe+TW'!$CU$92,'JSM Eingabe+TW'!$CU$92," ") -> 
S130: 253 | T130: 113 | U130: =LARGE('JSM Eingabe+TW'!$DJ$32:$DU$62,S130) -> 1e-06 | V130: 0 | W130: 0 | Y130: =IF(U130>'JSM Eingabe+TW'!$CU$92,'JSM Eingabe+TW'!$CU$92," ") -> 
S131: 252 | T131: 114 | U131: =LARGE('JSM Eingabe+TW'!$DJ$32:$DU$62,S131) -> 1e-06 | V131: 0 | W131: 0 | Y131: =IF(U131>'JSM Eingabe+TW'!$CU$92,'JSM Eingabe+TW'!$CU$92," ") -> 
S132: 251 | T132: 115 | U132: =LARGE('JSM Eingabe+TW'!$DJ$32:$DU$62,S132) -> 1e-06 | V132: 0 | W132: 0 | Y132: =IF(U132>'JSM Eingabe+TW'!$CU$92,'JSM Eingabe+TW'!$CU$92," ") -> 
S133: 250 | T133: 116 | U133: =LARGE('JSM Eingabe+TW'!$DJ$32:$DU$62,S133) -> 1e-06 | V133: 0 | W133: 0 | Y133: =IF(U133>'JSM Eingabe+TW'!$CU$92,'JSM Eingabe+TW'!$CU$92," ") -> 
S134: 249 | T134: 117 | U134: =LARGE('JSM Eingabe+TW'!$DJ$32:$DU$62,S134) -> 1e-06 | V134: 0 | W134: 0 | X134: =E$31 -> 0 | Y134: =IF(U134>'JSM Eingabe+TW'!$CU$92,'JSM Eingabe+TW'!$CU$92," ") -> 
S135: 248 | T135: 118 | U135: =LARGE('JSM Eingabe+TW'!$DJ$32:$DU$62,S135) -> 1e-06 | V135: 0 | W135: 0 | Y135: =IF(U135>'JSM Eingabe+TW'!$CU$92,'JSM Eingabe+TW'!$CU$92," ") -> 
S136: 247 | T136: 119 | U136: =LARGE('JSM Eingabe+TW'!$DJ$32:$DU$62,S136) -> 1e-06 | V136: 0 | W136: 0 | Y136: =IF(U136>'JSM Eingabe+TW'!$CU$92,'JSM Eingabe+TW'!$CU$92," ") -> 
S137: 246 | T137: 120 | U137: =LARGE('JSM Eingabe+TW'!$DJ$32:$DU$62,S137) -> 1e-06 | V137: 0 | W137: 0 | Y137: =IF(U137>'JSM Eingabe+TW'!$CU$92,'JSM Eingabe+TW'!$CU$92," ") -> 
S138: 245 | T138: 121 | U138: =LARGE('JSM Eingabe+TW'!$DJ$32:$DU$62,S138) -> 1e-06 | V138: 0 | W138: 0 | Y138: =IF(U138>'JSM Eingabe+TW'!$CU$92,'JSM Eingabe+TW'!$CU$92," ") -> 
S139: 244 | T139: 122 | U139: =LARGE('JSM Eingabe+TW'!$DJ$32:$DU$62,S139) -> 1e-06 | V139: 0 | W139: 0 | X139: =E$31 -> 0 | Y139: =IF(U139>'JSM Eingabe+TW'!$CU$92,'JSM Eingabe+TW'!$CU$92," ") -> 
S140: 243 | T140: 123 | U140: =LARGE('JSM Eingabe+TW'!$DJ$32:$DU$62,S140) -> 1e-06 | V140: 0 | W140: 0 | Y140: =IF(U140>'JSM Eingabe+TW'!$CU$92,'JSM Eingabe+TW'!$CU$92," ") -> 
S141: 242 | T141: 124 | U141: =LARGE('JSM Eingabe+TW'!$DJ$32:$DU$62,S141) -> 1e-06 | V141: 0 | W141: 0 | Y141: =IF(U141>'JSM Eingabe+TW'!$CU$92,'JSM Eingabe+TW'!$CU$92," ") -> 
S142: 241 | T142: 125 | U142: =LARGE('JSM Eingabe+TW'!$DJ$32:$DU$62,S142) -> 1e-06 | V142: 0 | W142: 0 | Y142: =IF(U142>'JSM Eingabe+TW'!$CU$92,'JSM Eingabe+TW'!$CU$92," ") -> 
S143: 240 | T143: 126 | U143: =LARGE('JSM Eingabe+TW'!$DJ$32:$DU$62,S143) -> 1e-06 | V143: 0 | W143: 0 | Y143: =IF(U143>'JSM Eingabe+TW'!$CU$92,'JSM Eingabe+TW'!$CU$92," ") -> 
S144: 239 | T144: 127 | U144: =LARGE('JSM Eingabe+TW'!$DJ$32:$DU$62,S144) -> 1e-06 | V144: 0 | W144: 0 | X144: =E$31 -> 0 | Y144: =IF(U144>'JSM Eingabe+TW'!$CU$92,'JSM Eingabe+TW'!$CU$92," ") -> 
S145: 238 | T145: 128 | U145: =LARGE('JSM Eingabe+TW'!$DJ$32:$DU$62,S145) -> 1e-06 | V145: 0 | W145: 0 | Y145: =IF(U145>'JSM Eingabe+TW'!$CU$92,'JSM Eingabe+TW'!$CU$92," ") -> 
S146: 237 | T146: 129 | U146: =LARGE('JSM Eingabe+TW'!$DJ$32:$DU$62,S146) -> 1e-06 | V146: =IF(T146=V$13,LARGE(U$18:U$382,1),0) -> 0 | W146: =IF(T146=W$13,LARGE(U$18:U$382,1),0) -> 0 | Y146: =IF(U146>'JSM Eingabe+TW'!$CU$92,'JSM Eingabe+TW'!$CU$92," ") -> 
S147: 236 | T147: 130 | U147: =LARGE('JSM Eingabe+TW'!$DJ$32:$DU$62,S147) -> 1e-06 | V147: 0 | W147: 0 | Y147: =IF(U147>'JSM Eingabe+TW'!$CU$92,'JSM Eingabe+TW'!$CU$92," ") -> 
S148: 235 | T148: 131 | U148: =LARGE('JSM Eingabe+TW'!$DJ$32:$DU$62,S148) -> 1e-06 | V148: 0 | W148: 0 | Y148: =IF(U148>'JSM Eingabe+TW'!$CU$92,'JSM Eingabe+TW'!$CU$92," ") -> 
S149: 234 | T149: 132 | U149: =LARGE('JSM Eingabe+TW'!$DJ$32:$DU$62,S149) -> 1e-06 | V149: 0 | W149: 0 | X149: =E$31 -> 0 | Y149: =IF(U149>'JSM Eingabe+TW'!$CU$92,'JSM Eingabe+TW'!$CU$92," ") -> 
S150: 233 | T150: 133 | U150: =LARGE('JSM Eingabe+TW'!$DJ$32:$DU$62,S150) -> 1e-06 | V150: 0 | W150: 0 | Y150: =IF(U150>'JSM Eingabe+TW'!$CU$92,'JSM Eingabe+TW'!$CU$92," ") -> 
S151: 232 | T151: 134 | U151: =LARGE('JSM Eingabe+TW'!$DJ$32:$DU$62,S151) -> 1e-06 | V151: 0 | W151: 0 | Y151: =IF(U151>'JSM Eingabe+TW'!$CU$92,'JSM Eingabe+TW'!$CU$92," ") -> 
S152: 231 | T152: 135 | U152: =LARGE('JSM Eingabe+TW'!$DJ$32:$DU$62,S152) -> 1e-06 | V152: 0 | W152: 0 | Y152: =IF(U152>'JSM Eingabe+TW'!$CU$92,'JSM Eingabe+TW'!$CU$92," ") -> 
S153: 230 | T153: 136 | U153: =LARGE('JSM Eingabe+TW'!$DJ$32:$DU$62,S153) -> 1e-06 | V153: 0 | W153: 0 | Y153: =IF(U153>'JSM Eingabe+TW'!$CU$92,'JSM Eingabe+TW'!$CU$92," ") -> 
S154: 229 | T154: 137 | U154: =LARGE('JSM Eingabe+TW'!$DJ$32:$DU$62,S154) -> 1e-06 | V154: 0 | W154: 0 | X154: =E$31 -> 0 | Y154: =IF(U154>'JSM Eingabe+TW'!$CU$92,'JSM Eingabe+TW'!$CU$92," ") -> 
S155: 228 | T155: 138 | U155: =LARGE('JSM Eingabe+TW'!$DJ$32:$DU$62,S155) -> 1e-06 | V155: 0 | W155: 0 | Y155: =IF(U155>'JSM Eingabe+TW'!$CU$92,'JSM Eingabe+TW'!$CU$92," ") -> 
S156: 227 | T156: 139 | U156: =LARGE('JSM Eingabe+TW'!$DJ$32:$DU$62,S156) -> 1e-06 | V156: 0 | W156: 0 | Y156: =IF(U156>'JSM Eingabe+TW'!$CU$92,'JSM Eingabe+TW'!$CU$92," ") -> 
S157: 226 | T157: 140 | U157: =LARGE('JSM Eingabe+TW'!$DJ$32:$DU$62,S157) -> 1e-06 | V157: 0 | W157: 0 | Y157: =IF(U157>'JSM Eingabe+TW'!$CU$92,'JSM Eingabe+TW'!$CU$92," ") -> 
S158: 225 | T158: 141 | U158: =LARGE('JSM Eingabe+TW'!$DJ$32:$DU$62,S158) -> 1e-06 | V158: 0 | W158: 0 | Y158: =IF(U158>'JSM Eingabe+TW'!$CU$92,'JSM Eingabe+TW'!$CU$92," ") -> 
S159: 224 | T159: 142 | U159: =LARGE('JSM Eingabe+TW'!$DJ$32:$DU$62,S159) -> 1e-06 | V159: 0 | W159: 0 | X159: =E$31 -> 0 | Y159: =IF(U159>'JSM Eingabe+TW'!$CU$92,'JSM Eingabe+TW'!$CU$92," ") -> 
S160: 223 | T160: 143 | U160: =LARGE('JSM Eingabe+TW'!$DJ$32:$DU$62,S160) -> 1e-06 | V160: 0 | W160: 0 | Y160: =IF(U160>'JSM Eingabe+TW'!$CU$92,'JSM Eingabe+TW'!$CU$92," ") -> 
S161: 222 | T161: 144 | U161: =LARGE('JSM Eingabe+TW'!$DJ$32:$DU$62,S161) -> 1e-06 | V161: 0 | W161: 0 | Y161: =IF(U161>'JSM Eingabe+TW'!$CU$92,'JSM Eingabe+TW'!$CU$92," ") -> 
S162: 221 | T162: 145 | U162: =LARGE('JSM Eingabe+TW'!$DJ$32:$DU$62,S162) -> 1e-06 | V162: 0 | W162: 0 | Y162: =IF(U162>'JSM Eingabe+TW'!$CU$92,'JSM Eingabe+TW'!$CU$92," ") -> 
S163: 220 | T163: 146 | U163: =LARGE('JSM Eingabe+TW'!$DJ$32:$DU$62,S163) -> 1e-06 | V163: 0 | W163: 0 | Y163: =IF(U163>'JSM Eingabe+TW'!$CU$92,'JSM Eingabe+TW'!$CU$92," ") -> 
S164: 219 | T164: 147 | U164: =LARGE('JSM Eingabe+TW'!$DJ$32:$DU$62,S164) -> 1e-06 | V164: 0 | W164: 0 | X164: =E$31 -> 0 | Y164: =IF(U164>'JSM Eingabe+TW'!$CU$92,'JSM Eingabe+TW'!$CU$92," ") -> 
S165: 218 | T165: 148 | U165: =LARGE('JSM Eingabe+TW'!$DJ$32:$DU$62,S165) -> 1e-06 | V165: 0 | W165: 0 | Y165: =IF(U165>'JSM Eingabe+TW'!$CU$92,'JSM Eingabe+TW'!$CU$92," ") -> 
S166: 217 | T166: 149 | U166: =LARGE('JSM Eingabe+TW'!$DJ$32:$DU$62,S166) -> 1e-06 | V166: 0 | W166: 0 | Y166: =IF(U166>'JSM Eingabe+TW'!$CU$92,'JSM Eingabe+TW'!$CU$92," ") -> 
S167: 216 | T167: 150 | U167: =LARGE('JSM Eingabe+TW'!$DJ$32:$DU$62,S167) -> 1e-06 | V167: 0 | W167: 0 | Y167: =IF(U167>'JSM Eingabe+TW'!$CU$92,'JSM Eingabe+TW'!$CU$92," ") -> 
S168: 215 | T168: 151 | U168: =LARGE('JSM Eingabe+TW'!$DJ$32:$DU$62,S168) -> 1e-06 | V168: 0 | W168: 0 | Y168: =IF(U168>'JSM Eingabe+TW'!$CU$92,'JSM Eingabe+TW'!$CU$92," ") -> 
S169: 214 | T169: 152 | U169: =LARGE('JSM Eingabe+TW'!$DJ$32:$DU$62,S169) -> 1e-06 | V169: 0 | W169: 0 | Y169: =IF(U169>'JSM Eingabe+TW'!$CU$92,'JSM Eingabe+TW'!$CU$92," ") -> 
S170: 213 | T170: 153 | U170: =LARGE('JSM Eingabe+TW'!$DJ$32:$DU$62,S170) -> 1e-06 | V170: 0 | W170: 0 | X170: =E$31 -> 0 | Y170: =IF(U170>'JSM Eingabe+TW'!$CU$92,'JSM Eingabe+TW'!$CU$92," ") -> 
S171: 212 | T171: 154 | U171: =LARGE('JSM Eingabe+TW'!$DJ$32:$DU$62,S171) -> 1e-06 | V171: 0 | W171: 0 | Y171: =IF(U171>'JSM Eingabe+TW'!$CU$92,'JSM Eingabe+TW'!$CU$92," ") -> 
S172: 211 | T172: 155 | U172: =LARGE('JSM Eingabe+TW'!$DJ$32:$DU$62,S172) -> 1e-06 | V172: 0 | W172: 0 | Y172: =IF(U172>'JSM Eingabe+TW'!$CU$92,'JSM Eingabe+TW'!$CU$92," ") -> 
S173: 210 | T173: 156 | U173: =LARGE('JSM Eingabe+TW'!$DJ$32:$DU$62,S173) -> 1e-06 | V173: 0 | W173: 0 | Y173: =IF(U173>'JSM Eingabe+TW'!$CU$92,'JSM Eingabe+TW'!$CU$92," ") -> 
S174: 209 | T174: 157 | U174: =LARGE('JSM Eingabe+TW'!$DJ$32:$DU$62,S174) -> 1e-06 | V174: 0 | W174: 0 | Y174: =IF(U174>'JSM Eingabe+TW'!$CU$92,'JSM Eingabe+TW'!$CU$92," ") -> 
S175: 208 | T175: 158 | U175: =LARGE('JSM Eingabe+TW'!$DJ$32:$DU$62,S175) -> 1e-06 | V175: 0 | W175: 0 | X175: =E$31 -> 0 | Y175: =IF(U175>'JSM Eingabe+TW'!$CU$92,'JSM Eingabe+TW'!$CU$92," ") -> 
S176: 207 | T176: 159 | U176: =LARGE('JSM Eingabe+TW'!$DJ$32:$DU$62,S176) -> 1e-06 | V176: 0 | W176: 0 | Y176: =IF(U176>'JSM Eingabe+TW'!$CU$92,'JSM Eingabe+TW'!$CU$92," ") -> 
S177: 206 | T177: 160 | U177: =LARGE('JSM Eingabe+TW'!$DJ$32:$DU$62,S177) -> 1e-06 | V177: 0 | W177: 0 | Y177: =IF(U177>'JSM Eingabe+TW'!$CU$92,'JSM Eingabe+TW'!$CU$92," ") -> 
S178: 205 | T178: 161 | U178: =LARGE('JSM Eingabe+TW'!$DJ$32:$DU$62,S178) -> 1e-06 | V178: 0 | W178: 0 | Y178: =IF(U178>'JSM Eingabe+TW'!$CU$92,'JSM Eingabe+TW'!$CU$92," ") -> 
S179: 204 | T179: 162 | U179: =LARGE('JSM Eingabe+TW'!$DJ$32:$DU$62,S179) -> 1e-06 | V179: 0 | W179: 0 | Y179: =IF(U179>'JSM Eingabe+TW'!$CU$92,'JSM Eingabe+TW'!$CU$92," ") -> 
S180: 203 | T180: 163 | U180: =LARGE('JSM Eingabe+TW'!$DJ$32:$DU$62,S180) -> 1e-06 | V180: 0 | W180: 0 | X180: =E$31 -> 0 | Y180: =IF(U180>'JSM Eingabe+TW'!$CU$92,'JSM Eingabe+TW'!$CU$92," ") -> 
S181: 202 | T181: 164 | U181: =LARGE('JSM Eingabe+TW'!$DJ$32:$DU$62,S181) -> 1e-06 | V181: 0 | W181: 0 | Y181: =IF(U181>'JSM Eingabe+TW'!$CU$92,'JSM Eingabe+TW'!$CU$92," ") -> 
S182: 201 | T182: 165 | U182: =LARGE('JSM Eingabe+TW'!$DJ$32:$DU$62,S182) -> 1e-06 | V182: 0 | W182: 0 | Y182: =IF(U182>'JSM Eingabe+TW'!$CU$92,'JSM Eingabe+TW'!$CU$92," ") -> 
S183: 200 | T183: 166 | U183: =LARGE('JSM Eingabe+TW'!$DJ$32:$DU$62,S183) -> 1e-06 | V183: 0 | W183: 0 | Y183: =IF(U183>'JSM Eingabe+TW'!$CU$92,'JSM Eingabe+TW'!$CU$92," ") -> 
S184: 199 | T184: 167 | U184: =LARGE('JSM Eingabe+TW'!$DJ$32:$DU$62,S184) -> 1e-06 | V184: 0 | W184: 0 | Y184: =IF(U184>'JSM Eingabe+TW'!$CU$92,'JSM Eingabe+TW'!$CU$92," ") -> 
S185: 198 | T185: 168 | U185: =LARGE('JSM Eingabe+TW'!$DJ$32:$DU$62,S185) -> 1e-06 | V185: 0 | W185: 0 | X185: =E$31 -> 0 | Y185: =IF(U185>'JSM Eingabe+TW'!$CU$92,'JSM Eingabe+TW'!$CU$92," ") -> 
S186: 197 | T186: 169 | U186: =LARGE('JSM Eingabe+TW'!$DJ$32:$DU$62,S186) -> 1e-06 | V186: 0 | W186: 0 | Y186: =IF(U186>'JSM Eingabe+TW'!$CU$92,'JSM Eingabe+TW'!$CU$92," ") -> 
S187: 196 | T187: 170 | U187: =LARGE('JSM Eingabe+TW'!$DJ$32:$DU$62,S187) -> 1e-06 | V187: 0 | W187: 0 | Y187: =IF(U187>'JSM Eingabe+TW'!$CU$92,'JSM Eingabe+TW'!$CU$92," ") -> 
S188: 195 | T188: 171 | U188: =LARGE('JSM Eingabe+TW'!$DJ$32:$DU$62,S188) -> 1e-06 | V188: 0 | W188: 0 | Y188: =IF(U188>'JSM Eingabe+TW'!$CU$92,'JSM Eingabe+TW'!$CU$92," ") -> 
S189: 194 | T189: 172 | U189: =LARGE('JSM Eingabe+TW'!$DJ$32:$DU$62,S189) -> 1e-06 | V189: 0 | W189: 0 | Y189: =IF(U189>'JSM Eingabe+TW'!$CU$92,'JSM Eingabe+TW'!$CU$92," ") -> 
S190: 193 | T190: 173 | U190: =LARGE('JSM Eingabe+TW'!$DJ$32:$DU$62,S190) -> 1e-06 | V190: 0 | W190: 0 | X190: =E$31 -> 0 | Y190: =IF(U190>'JSM Eingabe+TW'!$CU$92,'JSM Eingabe+TW'!$CU$92," ") -> 
S191: 192 | T191: 174 | U191: =LARGE('JSM Eingabe+TW'!$DJ$32:$DU$62,S191) -> 1e-06 | V191: 0 | W191: 0 | Y191: =IF(U191>'JSM Eingabe+TW'!$CU$92,'JSM Eingabe+TW'!$CU$92," ") -> 
S192: 191 | T192: 175 | U192: =LARGE('JSM Eingabe+TW'!$DJ$32:$DU$62,S192) -> 1e-06 | V192: 0 | W192: 0 | Y192: =IF(U192>'JSM Eingabe+TW'!$CU$92,'JSM Eingabe+TW'!$CU$92," ") -> 
S193: 190 | T193: 176 | U193: =LARGE('JSM Eingabe+TW'!$DJ$32:$DU$62,S193) -> 1e-06 | V193: 0 | W193: 0 | Y193: =IF(U193>'JSM Eingabe+TW'!$CU$92,'JSM Eingabe+TW'!$CU$92," ") -> 
S194: 189 | T194: 177 | U194: =LARGE('JSM Eingabe+TW'!$DJ$32:$DU$62,S194) -> 1e-06 | V194: 0 | W194: 0 | Y194: =IF(U194>'JSM Eingabe+TW'!$CU$92,'JSM Eingabe+TW'!$CU$92," ") -> 
S195: 188 | T195: 178 | U195: =LARGE('JSM Eingabe+TW'!$DJ$32:$DU$62,S195) -> 1e-06 | V195: 0 | W195: 0 | X195: =E$31 -> 0 | Y195: =IF(U195>'JSM Eingabe+TW'!$CU$92,'JSM Eingabe+TW'!$CU$92," ") -> 
S196: 187 | T196: 179 | U196: =LARGE('JSM Eingabe+TW'!$DJ$32:$DU$62,S196) -> 1e-06 | V196: 0 | W196: 0 | Y196: =IF(U196>'JSM Eingabe+TW'!$CU$92,'JSM Eingabe+TW'!$CU$92," ") -> 
S197: 186 | T197: 180 | U197: =LARGE('JSM Eingabe+TW'!$DJ$32:$DU$62,S197) -> 1e-06 | V197: 0 | W197: 0 | Y197: =IF(U197>'JSM Eingabe+TW'!$CU$92,'JSM Eingabe+TW'!$CU$92," ") -> 
S198: 185 | T198: 181 | U198: =LARGE('JSM Eingabe+TW'!$DJ$32:$DU$62,S198) -> 1e-06 | V198: 0 | W198: 0 | Y198: =IF(U198>'JSM Eingabe+TW'!$CU$92,'JSM Eingabe+TW'!$CU$92," ") -> 
S199: 184 | T199: 182 | U199: =LARGE('JSM Eingabe+TW'!$DJ$32:$DU$62,S199) -> 1e-06 | V199: 0 | W199: 0 | Y199: =IF(U199>'JSM Eingabe+TW'!$CU$92,'JSM Eingabe+TW'!$CU$92," ") -> 
S200: 183 | T200: 183 | U200: =LARGE('JSM Eingabe+TW'!$DJ$32:$DU$62,S200) -> 1e-06 | V200: 0 | W200: 0 | X200: =E$31 -> 0 | Y200: =IF(U200>'JSM Eingabe+TW'!$CU$92,'JSM Eingabe+TW'!$CU$92," ") -> 
S201: 182 | T201: 184 | U201: =LARGE('JSM Eingabe+TW'!$DJ$32:$DU$62,S201) -> 1e-06 | V201: 0 | W201: 0 | Y201: =IF(U201>'JSM Eingabe+TW'!$CU$92,'JSM Eingabe+TW'!$CU$92," ") -> 
S202: 181 | T202: 185 | U202: =LARGE('JSM Eingabe+TW'!$DJ$32:$DU$62,S202) -> 1e-06 | V202: 0 | W202: 0 | Y202: =IF(U202>'JSM Eingabe+TW'!$CU$92,'JSM Eingabe+TW'!$CU$92," ") -> 
S203: 180 | T203: 186 | U203: =LARGE('JSM Eingabe+TW'!$DJ$32:$DU$62,S203) -> 1e-06 | V203: 0 | W203: 0 | Y203: =IF(U203>'JSM Eingabe+TW'!$CU$92,'JSM Eingabe+TW'!$CU$92," ") -> 
S204: 179 | T204: 187 | U204: =LARGE('JSM Eingabe+TW'!$DJ$32:$DU$62,S204) -> 1e-06 | V204: 0 | W204: 0 | Y204: =IF(U204>'JSM Eingabe+TW'!$CU$92,'JSM Eingabe+TW'!$CU$92," ") -> 
S205: 178 | T205: 188 | U205: =LARGE('JSM Eingabe+TW'!$DJ$32:$DU$62,S205) -> 1e-06 | V205: 0 | W205: 0 | X205: =E$31 -> 0 | Y205: =IF(U205>'JSM Eingabe+TW'!$CU$92,'JSM Eingabe+TW'!$CU$92," ") -> 
S206: 177 | T206: 189 | U206: =LARGE('JSM Eingabe+TW'!$DJ$32:$DU$62,S206) -> 1e-06 | V206: 0 | W206: 0 | Y206: =IF(U206>'JSM Eingabe+TW'!$CU$92,'JSM Eingabe+TW'!$CU$92," ") -> 
S207: 176 | T207: 190 | U207: =LARGE('JSM Eingabe+TW'!$DJ$32:$DU$62,S207) -> 1e-06 | V207: 0 | W207: 0 | Y207: =IF(U207>'JSM Eingabe+TW'!$CU$92,'JSM Eingabe+TW'!$CU$92," ") -> 
S208: 175 | T208: 191 | U208: =LARGE('JSM Eingabe+TW'!$DJ$32:$DU$62,S208) -> 1e-06 | V208: 0 | W208: 0 | Y208: =IF(U208>'JSM Eingabe+TW'!$CU$92,'JSM Eingabe+TW'!$CU$92," ") -> 
S209: 174 | T209: 192 | U209: =LARGE('JSM Eingabe+TW'!$DJ$32:$DU$62,S209) -> 1e-06 | V209: 0 | W209: 0 | Y209: =IF(U209>'JSM Eingabe+TW'!$CU$92,'JSM Eingabe+TW'!$CU$92," ") -> 
S210: 173 | T210: 193 | U210: =LARGE('JSM Eingabe+TW'!$DJ$32:$DU$62,S210) -> 1e-06 | V210: =IF(T210=V$13,LARGE(U$18:U$382,1),0) -> 0 | W210: =IF(T210=W$13,LARGE(U$18:U$382,1),0) -> 0 | X210: =E$31 -> 0 | Y210: =IF(U210>'JSM Eingabe+TW'!$CU$92,'JSM Eingabe+TW'!$CU$92," ") -> 
... 173 more rows

Sheet JSM FW Dreieck
B2: ='JSM Eingabe+TW'!B2 -> Ergebnisse der Selbstüberwachung | P2: Berichtsjahr : | Q2: =IF(LEN('JSM Eingabe+TW'!AB7)>0,'JSM Eingabe+TW'!AB7,"") -> 
B5: ='JSM Eingabe+TW'!B5 -> Ermittlung der Jahresschmutzwassermenge (JSM) und des Fremdwassers (QF) | Q5: Blatt 3
B7: Kläranlage : | C7: =IF(LEN('JSM Eingabe+TW'!D7)>0,'JSM Eingabe+TW'!D7,"") ->  | H7: VG / Stadt: | I7: =IF(LEN('JSM Eingabe+TW'!M7)>0,'JSM Eingabe+TW'!M7,"") ->  | Q7: ='JSM Eingabe+TW'!AB2 -> Programmversion 7.3.5
B9: Fremdwassermenge über die Dreiecksmethode
D12: INFO- Feld mit dem Mauszeiger anfahren | E12: INFO | W12: =E30*2 -> 0
V13: =ROUND(E30,0) -> 0 | W13: =ROUND(W12,0) -> 0 | AA13: =COUNTIF(AA18:AA382,">1") -> 0
U15: =SUMIF(W18:W382,W15,U18:U382) -> 0.000365 | W15: =SUM(W18:W382) -> 0 | Y15: =SUM(Y18:Y382) -> 0.066795
B17: ausgewertete Betriebsdaten: | U17: Abfluss | V17: mittl. TW | W17: TW/RW | X17: mittl. FW | Y17: Fremdwasser | Z17: Frischwasser
B18: mittlerer Tageswert des Jahres | E18: ='JSM Eingabe+TW'!I102 ->  | F18: m³/d | S18: 365 | T18: 1 | U18: =LARGE('JSM Eingabe+TW'!$DJ$32:$DU$62,S18) -> 1e-06 | V18: =IF(T18=V$13,LARGE(U$18:U$382,1),0) -> 0 | W18: =IF(T18=W$13,LARGE(U$18:U$382,1),0) -> 0 | X18: =P$35 -> 0.000183 | Y18: =IF(T18<=$W$13,U18,((U$15-P$34)/(365-W$13)*AB18)+P$34) -> 0.000365 | AA18: =IF(U18>'JSM Eingabe+TW'!$CU$92,'JSM Eingabe+TW'!$CU$92," ") ->  | AB18: =IF(T18<=W$13,0,S18) -> 365
D19: Kleinstwert | E19: ='JSM Eingabe+TW'!M102 ->  | F19: m³/d | S19: 364 | T19: 2 | U19: =LARGE('JSM Eingabe+TW'!$DJ$32:$DU$62,S19) -> 1e-06 | V19: 0 | W19: 0 | X19: 0.000183 | Y19: 0.000364 | Z19: =P$34 -> 0 | AA19: =IF(U19>'JSM Eingabe+TW'!$CU$92,'JSM Eingabe+TW'!$CU$92," ") ->  | AB19: =IF(T19<=W$13,0,S19) -> 364
B20: Mittelwert (ohne Hochwasser) | E20: ='JSM Eingabe+TW'!Q102 ->  | F20: m³/d | S20: 363 | T20: 3 | U20: =LARGE('JSM Eingabe+TW'!$DJ$32:$DU$62,S20) -> 1e-06 | V20: 0 | W20: 0 | X20: 0.000183 | Y20: 0.000363 | AA20: =IF(U20>'JSM Eingabe+TW'!$CU$92,'JSM Eingabe+TW'!$CU$92," ") ->  | AB20: 363
B21: größtes Trockenwetter (TW): | E21: ='JSM Eingabe+TW'!I103 ->  | F21: m³/d | S21: 362 | T21: 4 | U21: =LARGE('JSM Eingabe+TW'!$DJ$32:$DU$62,S21) -> 1e-06 | V21: 0 | W21: 0 | X21: 0.000183 | Y21: 0.000362 | AA21: =IF(U21>'JSM Eingabe+TW'!$CU$92,'JSM Eingabe+TW'!$CU$92," ") ->  | AB21: 362
B22: kleinstes TW: | E22: ='JSM Eingabe+TW'!M103 ->  | F22: m³/d | S22: 361 | T22: 5 | U22: =LARGE('JSM Eingabe+TW'!$DJ$32:$DU$62,S22) -> 1e-06 | V22: 0 | W22: 0 | X22: 0.000183 | Y22: 0.000361 | AA22: =IF(U22>'JSM Eingabe+TW'!$CU$92,'JSM Eingabe+TW'!$CU$92," ") ->  | AB22: 361
C23: mittleres TW: | E23: ='JSM Eingabe+TW'!Q103 -> 1e-06 | F23: m³/d | S23: 360 | T23: 6 | U23: =LARGE('JSM Eingabe+TW'!$DJ$32:$DU$62,S23) -> 1e-06 | V23: 0 | W23: 0 | X23: 0.000183 | Y23: 0.00036 | AA23: =IF(U23>'JSM Eingabe+TW'!$CU$92,'JSM Eingabe+TW'!$CU$92," ") ->  | AB23: 360
S24: 359 | T24: 7 | U24: =LARGE('JSM Eingabe+TW'!$DJ$32:$DU$62,S24) -> 1e-06 | V24: 0 | W24: 0 | X24: 0.000183 | Y24: 0.000359 | Z24: =P$34 -> 0 | AA24: =IF(U24>'JSM Eingabe+TW'!$CU$92,'JSM Eingabe+TW'!$CU$92," ") ->  | AB24: 359
B25: Anzahl fehlender Einträge / Hochwassertage | E25: ='JSM Eingabe+TW'!N104 -> 365 | F25: d | S25: 358 | T25: 8 | U25: =LARGE('JSM Eingabe+TW'!$DJ$32:$DU$62,S25) -> 1e-06 | V25: 0 | W25: 0 | X25: 0.000183 | Y25: 0.000358 | AA25: =IF(U25>'JSM Eingabe+TW'!$CU$92,'JSM Eingabe+TW'!$CU$92," ") ->  | AB25: 358
B26: =IF('JSM Eingabe+TW'!DX18>0,"Für fehlende Einträge und für Hochwassertage wird folgender Ersatzwert berücksichtigt:"," ") -> Für fehlende Einträge und für Hochwassertage wird folgender Ersatzwert berücksichtigt: | E26: ='JSM Jahresdauerlinie'!E26 -> 1e-06 | F26: =IF('JSM Eingabe+TW'!DX18>0,"m³/d"," ") -> m³/d | S26: 357 | T26: 9 | U26: =LARGE('JSM Eingabe+TW'!$DJ$32:$DU$62,S26) -> 1e-06 | V26: 0 | W26: 0 | X26: 0.000183 | Y26: 0.000357 | AA26: =IF(U26>'JSM Eingabe+TW'!$CU$92,'JSM Eingabe+TW'!$CU$92," ") ->  | AB26: 357
S27: 356 | T27: 10 | U27: =LARGE('JSM Eingabe+TW'!$DJ$32:$DU$62,S27) -> 1e-06 | V27: 0 | W27: 0 | X27: 0.000183 | Y27: 0.000356 | AA27: =IF(U27>'JSM Eingabe+TW'!$CU$92,'JSM Eingabe+TW'!$CU$92," ") ->  | AB27: 356
B28: Auswertung der Jahresdauerlinie: | S28: 355 | T28: 11 | U28: =LARGE('JSM Eingabe+TW'!$DJ$32:$DU$62,S28) -> 1e-06 | V28: 0 | W28: 0 | X28: 0.000183 | Y28: 0.000355 | AA28: =IF(U28>'JSM Eingabe+TW'!$CU$92,'JSM Eingabe+TW'!$CU$92," ") ->  | AB28: 355
B29: Anzahl der TW-Tage nach Betriebstagebuch | E29: ='JSM Eingabe+TW'!AB64 -> 0 | F29: d | G29: (bis zur roten Linie) | S29: 354 | T29: 12 | U29: =LARGE('JSM Eingabe+TW'!$DJ$32:$DU$62,S29) -> 1e-06 | V29: 0 | W29: 0 | X29: 0.000183 | Y29: 0.000354 | Z29: =P$34 -> 0 | AA29: =IF(U29>'JSM Eingabe+TW'!$CU$92,'JSM Eingabe+TW'!$CU$92," ") ->  | AB29: 354
B30: Hälfte der Anzahl der TW-Tage | E30: =E29/2 -> 0 | F30: d | S30: 353 | T30: 13 | U30: =LARGE('JSM Eingabe+TW'!$DJ$32:$DU$62,S30) -> 1e-06 | V30: 0 | W30: 0 | X30: 0.000183 | Y30: 0.000353 | AA30: =IF(U30>'JSM Eingabe+TW'!$CU$92,'JSM Eingabe+TW'!$CU$92," ") ->  | AB30: 353
S31: 352 | T31: 14 | U31: =LARGE('JSM Eingabe+TW'!$DJ$32:$DU$62,S31) -> 1e-06 | V31: 0 | W31: 0 | X31: 0.000183 | Y31: 0.000352 | AA31: =IF(U31>'JSM Eingabe+TW'!$CU$92,'JSM Eingabe+TW'!$CU$92," ") ->  | AB31: 352
S32: 351 | T32: 15 | U32: =LARGE('JSM Eingabe+TW'!$DJ$32:$DU$62,S32) -> 1e-06 | V32: 0 | W32: 0 | X32: 0.000183 | Y32: 0.000351 | AA32: =IF(U32>'JSM Eingabe+TW'!$CU$92,'JSM Eingabe+TW'!$CU$92," ") ->  | AB32: 351
S33: 350 | T33: 16 | U33: =LARGE('JSM Eingabe+TW'!$DJ$32:$DU$62,S33) -> 1e-06 | V33: 0 | W33: 0 | X33: 0.000183 | Y33: 0.00035 | AA33: =IF(U33>'JSM Eingabe+TW'!$CU$92,'JSM Eingabe+TW'!$CU$92," ") ->  | AB33: 350
I34: Schmutzwasser nach Wasserverbrauch (blau getrichelt) | N34: ='JSM Eingabe+TW'!S18 -> 0 | O34: m³ / a = | P34: ='JSM Eingabe+TW'!S18/365 -> 0 | Q34: m³/d | S34: 349 | T34: 17 | U34: =LARGE('JSM Eingabe+TW'!$DJ$32:$DU$62,S34) -> 1e-06 | V34: 0 | W34: 0 | X34: 0.000183 | Y34: 0.000349 | Z34: =P$34 -> 0 | AB34: 349
I35: Fremdwasser | J35: (dreiecksförmige graue Fläche oberhalb der blauen Fläche des Schmutzwassers) | N35: =Y15-P34*'JSM Eingabe+TW'!AF65 -> 0.066795 | O35: m³ / a = | P35: =Y15/365 -> 0.000183 | Q35: m³/d | S35: 348 | T35: 18 | U35: =LARGE('JSM Eingabe+TW'!$DJ$32:$DU$62,S35) -> 1e-06 | V35: 0 | W35: 0 | X35: 0.000183 | Y35: 0.000348 | AB35: 348
S36: 347 | T36: 19 | U36: =LARGE('JSM Eingabe+TW'!$DJ$32:$DU$62,S36) -> 1e-06 | V36: 0 | W36: 0 | X36: 0.000183 | Y36: 0.000347 | AB36: 347
J37: Jahresschmutzwassermenge | M37: (Fremdwasser + Wasserverbr.) | N37: =N35+'JSM Eingabe+TW'!S18 -> 0.066795 | O37: m³ / a | S37: 346 | T37: 20 | U37: =LARGE('JSM Eingabe+TW'!$DJ$32:$DU$62,S37) -> 1e-06 | V37: 0 | W37: 0 | X37: 0.000183 | Y37: 0.000346 | AB37: 346
M38: Fremdwasseranteil der festgestellten JSM | N38: =N35/N37*100 -> 100 | O38: % | S38: 345 | T38: 21 | U38: =LARGE('JSM Eingabe+TW'!$DJ$32:$DU$62,S38) -> 1e-06 | V38: 0 | W38: 0 | X38: 0.000183 | Y38: 0.000345 | AA38: =IF(U38>'JSM Eingabe+TW'!$CU$92,'JSM Eingabe+TW'!$CU$92," ") ->  | AB38: 345
S39: 344 | T39: 22 | U39: =LARGE('JSM Eingabe+TW'!$DJ$32:$DU$62,S39) -> 1e-06 | V39: 0 | W39: 0 | X39: 0.000183 | Y39: 0.000344 | Z39: =P$34 -> 0 | AB39: 344
S40: 343 | T40: 23 | U40: =LARGE('JSM Eingabe+TW'!$DJ$32:$DU$62,S40) -> 1e-06 | V40: 0 | W40: 0 | X40: 0.000183 | Y40: 0.000343 | AB40: 343
J41: =IF(AA13>0,"Der schwarz liniierte Bereich am rechten Rand liegt ausserhalb des Betrachtungsbereichs (fehlende Daten)"," ") ->  | S41: 342 | T41: 24 | U41: =LARGE('JSM Eingabe+TW'!$DJ$32:$DU$62,S41) -> 1e-06 | V41: 0 | W41: 0 | X41: 0.000183 | Y41: 0.000342 | AA41: =IF(U41>'JSM Eingabe+TW'!$CU$92,'JSM Eingabe+TW'!$CU$92," ") ->  | AB41: 342
S42: 341 | T42: 25 | U42: =LARGE('JSM Eingabe+TW'!$DJ$32:$DU$62,S42) -> 1e-06 | V42: 0 | W42: 0 | X42: 0.000183 | Y42: 0.000341 | AA42: =IF(U42>'JSM Eingabe+TW'!$CU$92,'JSM Eingabe+TW'!$CU$92," ") ->  | AB42: 341
S43: 340 | T43: 26 | U43: =LARGE('JSM Eingabe+TW'!$DJ$32:$DU$62,S43) -> 1e-06 | V43: 0 | W43: 0 | X43: 0.000183 | Y43: 0.00034 | AA43: =IF(U43>'JSM Eingabe+TW'!$CU$92,'JSM Eingabe+TW'!$CU$92," ") ->  | AB43: 340
S44: 339 | T44: 27 | U44: =LARGE('JSM Eingabe+TW'!$DJ$32:$DU$62,S44) -> 1e-06 | V44: 0 | W44: 0 | X44: 0.000183 | Y44: 0.000339 | Z44: =P$34 -> 0 | AA44: =IF(U44>'JSM Eingabe+TW'!$CU$92,'JSM Eingabe+TW'!$CU$92," ") ->  | AB44: 339
S45: 338 | T45: 28 | U45: =LARGE('JSM Eingabe+TW'!$DJ$32:$DU$62,S45) -> 1e-06 | V45: 0 | W45: 0 | X45: 0.000183 | Y45: 0.000338 | AA45: =IF(U45>'JSM Eingabe+TW'!$CU$92,'JSM Eingabe+TW'!$CU$92," ") ->  | AB45: 338
S46: 337 | T46: 29 | U46: =LARGE('JSM Eingabe+TW'!$DJ$32:$DU$62,S46) -> 1e-06 | V46: 0 | W46: 0 | X46: 0.000183 | Y46: 0.000337 | AA46: =IF(U46>'JSM Eingabe+TW'!$CU$92,'JSM Eingabe+TW'!$CU$92," ") ->  | AB46: 337
S47: 336 | T47: 30 | U47: =LARGE('JSM Eingabe+TW'!$DJ$32:$DU$62,S47) -> 1e-06 | V47: 0 | W47: 0 | X47: 0.000183 | Y47: 0.000336 | AA47: =IF(U47>'JSM Eingabe+TW'!$CU$92,'JSM Eingabe+TW'!$CU$92," ") ->  | AB47: 336
S48: 335 | T48: 31 | U48: =LARGE('JSM Eingabe+TW'!$DJ$32:$DU$62,S48) -> 1e-06 | V48: 0 | W48: 0 | X48: 0.000183 | Y48: 0.000335 | AA48: =IF(U48>'JSM Eingabe+TW'!$CU$92,'JSM Eingabe+TW'!$CU$92," ") ->  | AB48: 335
S49: 334 | T49: 32 | U49: =LARGE('JSM Eingabe+TW'!$DJ$32:$DU$62,S49) -> 1e-06 | V49: 0 | W49: 0 | X49: 0.000183 | Y49: 0.000334 | Z49: =P$34 -> 0 | AA49: =IF(U49>'JSM Eingabe+TW'!$CU$92,'JSM Eingabe+TW'!$CU$92," ") ->  | AB49: 334
S50: 333 | T50: 33 | U50: =LARGE('JSM Eingabe+TW'!$DJ$32:$DU$62,S50) -> 1e-06 | V50: 0 | W50: 0 | X50: 0.000183 | Y50: 0.000333 | AA50: =IF(U50>'JSM Eingabe+TW'!$CU$92,'JSM Eingabe+TW'!$CU$92," ") ->  | AB50: 333
S51: 332 | T51: 34 | U51: =LARGE('JSM Eingabe+TW'!$DJ$32:$DU$62,S51) -> 1e-06 | V51: 0 | W51: 0 | X51: 0.000183 | Y51: 0.000332 | AA51: =IF(U51>'JSM Eingabe+TW'!$CU$92,'JSM Eingabe+TW'!$CU$92," ") ->  | AB51: 332
S52: 331 | T52: 35 | U52: =LARGE('JSM Eingabe+TW'!$DJ$32:$DU$62,S52) -> 1e-06 | V52: 0 | W52: 0 | X52: 0.000183 | Y52: 0.000331 | AA52: =IF(U52>'JSM Eingabe+TW'!$CU$92,'JSM Eingabe+TW'!$CU$92," ") ->  | AB52: 331
S53: 330 | T53: 36 | U53: =LARGE('JSM Eingabe+TW'!$DJ$32:$DU$62,S53) -> 1e-06 | V53: 0 | W53: 0 | X53: 0.000183 | Y53: 0.00033 | AA53: =IF(U53>'JSM Eingabe+TW'!$CU$92,'JSM Eingabe+TW'!$CU$92," ") ->  | AB53: 330
S54: 329 | T54: 37 | U54: =LARGE('JSM Eingabe+TW'!$DJ$32:$DU$62,S54) -> 1e-06 | V54: 0 | W54: 0 | X54: 0.000183 | Y54: 0.000329 | Z54: =P$34 -> 0 | AA54: =IF(U54>'JSM Eingabe+TW'!$CU$92,'JSM Eingabe+TW'!$CU$92," ") ->  | AB54: 329
S55: 328 | T55: 38 | U55: =LARGE('JSM Eingabe+TW'!$DJ$32:$DU$62,S55) -> 1e-06 | V55: 0 | W55: 0 | X55: 0.000183 | Y55: 0.000328 | AA55: =IF(U55>'JSM Eingabe+TW'!$CU$92,'JSM Eingabe+TW'!$CU$92," ") ->  | AB55: 328
S56: 327 | T56: 39 | U56: =LARGE('JSM Eingabe+TW'!$DJ$32:$DU$62,S56) -> 1e-06 | V56: 0 | W56: 0 | X56: 0.000183 | Y56: 0.000327 | AA56: =IF(U56>'JSM Eingabe+TW'!$CU$92,'JSM Eingabe+TW'!$CU$92," ") ->  | AB56: 327
S57: 326 | T57: 40 | U57: =LARGE('JSM Eingabe+TW'!$DJ$32:$DU$62,S57) -> 1e-06 | V57: 0 | W57: 0 | X57: 0.000183 | Y57: 0.000326 | AA57: =IF(U57>'JSM Eingabe+TW'!$CU$92,'JSM Eingabe+TW'!$CU$92," ") ->  | AB57: 326
S58: 325 | T58: 41 | U58: =LARGE('JSM Eingabe+TW'!$DJ$32:$DU$62,S58) -> 1e-06 | V58: 0 | W58: 0 | X58: 0.000183 | Y58: 0.000325 | AA58: =IF(U58>'JSM Eingabe+TW'!$CU$92,'JSM Eingabe+TW'!$CU$92," ") ->  | AB58: 325
S59: 324 | T59: 42 | U59: =LARGE('JSM Eingabe+TW'!$DJ$32:$DU$62,S59) -> 1e-06 | V59: 0 | W59: 0 | X59: 0.000183 | Y59: 0.000324 | Z59: =P$34 -> 0 | AA59: =IF(U59>'JSM Eingabe+TW'!$CU$92,'JSM Eingabe+TW'!$CU$92," ") ->  | AB59: 324
S60: 323 | T60: 43 | U60: =LARGE('JSM Eingabe+TW'!$DJ$32:$DU$62,S60) -> 1e-06 | V60: 0 | W60: 0 | X60: 0.000183 | Y60: 0.000323 | AA60: =IF(U60>'JSM Eingabe+TW'!$CU$92,'JSM Eingabe+TW'!$CU$92," ") ->  | AB60: 323
S61: 322 | T61: 44 | U61: =LARGE('JSM Eingabe+TW'!$DJ$32:$DU$62,S61) -> 1e-06 | V61: 0 | W61: 0 | X61: 0.000183 | Y61: 0.000322 | AA61: =IF(U61>'JSM Eingabe+TW'!$CU$92,'JSM Eingabe+TW'!$CU$92," ") ->  | AB61: 322
S62: 321 | T62: 45 | U62: =LARGE('JSM Eingabe+TW'!$DJ$32:$DU$62,S62) -> 1e-06 | V62: 0 | W62: 0 | X62: 0.000183 | Y62: 0.000321 | AA62: =IF(U62>'JSM Eingabe+TW'!$CU$92,'JSM Eingabe+TW'!$CU$92," ") ->  | AB62: 321
S63: 320 | T63: 46 | U63: =LARGE('JSM Eingabe+TW'!$DJ$32:$DU$62,S63) -> 1e-06 | V63: 0 | W63: 0 | X63: 0.000183 | Y63: 0.00032 | AA63: =IF(U63>'JSM Eingabe+TW'!$CU$92,'JSM Eingabe+TW'!$CU$92," ") ->  | AB63: 320
S64: 319 | T64: 47 | U64: =LARGE('JSM Eingabe+TW'!$DJ$32:$DU$62,S64) -> 1e-06 | V64: 0 | W64: 0 | X64: 0.000183 | Y64: 0.000319 | Z64: =P$34 -> 0 | AA64: =IF(U64>'JSM Eingabe+TW'!$CU$92,'JSM Eingabe+TW'!$CU$92," ") ->  | AB64: 319
S65: 318 | T65: 48 | U65: =LARGE('JSM Eingabe+TW'!$DJ$32:$DU$62,S65) -> 1e-06 | V65: 0 | W65: 0 | X65: 0.000183 | Y65: 0.000318 | AA65: =IF(U65>'JSM Eingabe+TW'!$CU$92,'JSM Eingabe+TW'!$CU$92," ") ->  | AB65: 318
S66: 317 | T66: 49 | U66: =LARGE('JSM Eingabe+TW'!$DJ$32:$DU$62,S66) -> 1e-06 | V66: 0 | W66: 0 | X66: 0.000183 | Y66: 0.000317 | AA66: =IF(U66>'JSM Eingabe+TW'!$CU$92,'JSM Eingabe+TW'!$CU$92," ") ->  | AB66: 317
S67: 316 | T67: 50 | U67: =LARGE('JSM Eingabe+TW'!$DJ$32:$DU$62,S67) -> 1e-06 | V67: 0 | W67: 0 | X67: 0.000183 | Y67: 0.000316 | AA67: =IF(U67>'JSM Eingabe+TW'!$CU$92,'JSM Eingabe+TW'!$CU$92," ") ->  | AB67: 316
S68: 315 | T68: 51 | U68: =LARGE('JSM Eingabe+TW'!$DJ$32:$DU$62,S68) -> 1e-06 | V68: 0 | W68: 0 | X68: 0.000183 | Y68: 0.000315 | AA68: =IF(U68>'JSM Eingabe+TW'!$CU$92,'JSM Eingabe+TW'!$CU$92," ") ->  | AB68: 315
S69: 314 | T69: 52 | U69: =LARGE('JSM Eingabe+TW'!$DJ$32:$DU$62,S69) -> 1e-06 | V69: 0 | W69: 0 | X69: 0.000183 | Y69: 0.000314 | Z69: =P$34 -> 0 | AA69: =IF(U69>'JSM Eingabe+TW'!$CU$92,'JSM Eingabe+TW'!$CU$92," ") ->  | AB69: 314
S70: 313 | T70: 53 | U70: =LARGE('JSM Eingabe+TW'!$DJ$32:$DU$62,S70) -> 1e-06 | V70: 0 | W70: 0 | X70: 0.000183 | Y70: 0.000313 | AA70: =IF(U70>'JSM Eingabe+TW'!$CU$92,'JSM Eingabe+TW'!$CU$92," ") ->  | AB70: 313
S71: 312 | T71: 54 | U71: =LARGE('JSM Eingabe+TW'!$DJ$32:$DU$62,S71) -> 1e-06 | V71: 0 | W71: 0 | X71: 0.000183 | Y71: 0.000312 | AA71: =IF(U71>'JSM Eingabe+TW'!$CU$92,'JSM Eingabe+TW'!$CU$92," ") ->  | AB71: 312
S72: 311 | T72: 55 | U72: =LARGE('JSM Eingabe+TW'!$DJ$32:$DU$62,S72) -> 1e-06 | V72: 0 | W72: 0 | X72: 0.000183 | Y72: 0.000311 | AA72: =IF(U72>'JSM Eingabe+TW'!$CU$92,'JSM Eingabe+TW'!$CU$92," ") ->  | AB72: 311
S73: 310 | T73: 56 | U73: =LARGE('JSM Eingabe+TW'!$DJ$32:$DU$62,S73) -> 1e-06 | V73: 0 | W73: 0 | X73: 0.000183 | Y73: 0.00031 | AA73: =IF(U73>'JSM Eingabe+TW'!$CU$92,'JSM Eingabe+TW'!$CU$92," ") ->  | AB73: 310
S74: 309 | T74: 57 | U74: =LARGE('JSM Eingabe+TW'!$DJ$32:$DU$62,S74) -> 1e-06 | V74: 0 | W74: 0 | X74: 0.000183 | Y74: 0.000309 | Z74: =P$34 -> 0 | AA74: =IF(U74>'JSM Eingabe+TW'!$CU$92,'JSM Eingabe+TW'!$CU$92," ") ->  | AB74: 309
S75: 308 | T75: 58 | U75: =LARGE('JSM Eingabe+TW'!$DJ$32:$DU$62,S75) -> 1e-06 | V75: 0 | W75: 0 | X75: 0.000183 | Y75: 0.000308 | AA75: =IF(U75>'JSM Eingabe+TW'!$CU$92,'JSM Eingabe+TW'!$CU$92," ") ->  | AB75: 308
S76: 307 | T76: 59 | U76: =LARGE('JSM Eingabe+TW'!$DJ$32:$DU$62,S76) -> 1e-06 | V76: 0 | W76: 0 | X76: 0.000183 | Y76: 0.000307 | AA76: =IF(U76>'JSM Eingabe+TW'!$CU$92,'JSM Eingabe+TW'!$CU$92," ") ->  | AB76: 307
S77: 306 | T77: 60 | U77: =LARGE('JSM Eingabe+TW'!$DJ$32:$DU$62,S77) -> 1e-06 | V77: 0 | W77: 0 | X77: 0.000183 | Y77: 0.000306 | AA77: =IF(U77>'JSM Eingabe+TW'!$CU$92,'JSM Eingabe+TW'!$CU$92," ") ->  | AB77: 306
S78: 305 | T78: 61 | U78: =LARGE('JSM Eingabe+TW'!$DJ$32:$DU$62,S78) -> 1e-06 | V78: 0 | W78: 0 | X78: 0.000183 | Y78: 0.000305 | AA78: =IF(U78>'JSM Eingabe+TW'!$CU$92,'JSM Eingabe+TW'!$CU$92," ") ->  | AB78: 305
S79: 304 | T79: 62 | U79: =LARGE('JSM Eingabe+TW'!$DJ$32:$DU$62,S79) -> 1e-06 | V79: 0 | W79: 0 | X79: 0.000183 | Y79: 0.000304 | Z79: =P$34 -> 0 | AA79: =IF(U79>'JSM Eingabe+TW'!$CU$92,'JSM Eingabe+TW'!$CU$92," ") ->  | AB79: 304
S80: 303 | T80: 63 | U80: =LARGE('JSM Eingabe+TW'!$DJ$32:$DU$62,S80) -> 1e-06 | V80: 0 | W80: 0 | X80: 0.000183 | Y80: 0.000303 | AA80: =IF(U80>'JSM Eingabe+TW'!$CU$92,'JSM Eingabe+TW'!$CU$92," ") ->  | AB80: 303
S81: 302 | T81: 64 | U81: =LARGE('JSM Eingabe+TW'!$DJ$32:$DU$62,S81) -> 1e-06 | V81: 0 | W81: 0 | X81: 0.000183 | Y81: 0.000302 | AA81: =IF(U81>'JSM Eingabe+TW'!$CU$92,'JSM Eingabe+TW'!$CU$92," ") ->  | AB81: 302
S82: 301 | T82: 65 | U82: =LARGE('JSM Eingabe+TW'!$DJ$32:$DU$62,S82) -> 1e-06 | V82: =IF(T82=V$13,LARGE(U$18:U$382,1),0) -> 0 | W82: =IF(T82=W$13,LARGE(U$18:U$382,1),0) -> 0 | X82: =P$35 -> 0.000183 | Y82: =IF(T82<=$W$13,U82,((U$15-P$34)/(365-W$13)*AB82)+P$34) -> 0.000301 | AA82: =IF(U82>'JSM Eingabe+TW'!$CU$92,'JSM Eingabe+TW'!$CU$92," ") ->  | AB82: 301
S83: 300 | T83: 66 | U83: =LARGE('JSM Eingabe+TW'!$DJ$32:$DU$62,S83) -> 1e-06 | V83: 0 | W83: 0 | X83: 0.000183 | Y83: 0.0003 | AA83: =IF(U83>'JSM Eingabe+TW'!$CU$92,'JSM Eingabe+TW'!$CU$92," ") ->  | AB83: =IF(T83<=W$13,0,S83) -> 300
S84: 299 | T84: 67 | U84: =LARGE('JSM Eingabe+TW'!$DJ$32:$DU$62,S84) -> 1e-06 | V84: 0 | W84: 0 | X84: 0.000183 | Y84: 0.000299 | Z84: =P$34 -> 0 | AA84: =IF(U84>'JSM Eingabe+TW'!$CU$92,'JSM Eingabe+TW'!$CU$92," ") ->  | AB84: 299
S85: 298 | T85: 68 | U85: =LARGE('JSM Eingabe+TW'!$DJ$32:$DU$62,S85) -> 1e-06 | V85: 0 | W85: 0 | X85: 0.000183 | Y85: 0.000298 | AA85: =IF(U85>'JSM Eingabe+TW'!$CU$92,'JSM Eingabe+TW'!$CU$92," ") ->  | AB85: 298
S86: 297 | T86: 69 | U86: =LARGE('JSM Eingabe+TW'!$DJ$32:$DU$62,S86) -> 1e-06 | V86: 0 | W86: 0 | X86: 0.000183 | Y86: 0.000297 | AA86: =IF(U86>'JSM Eingabe+TW'!$CU$92,'JSM Eingabe+TW'!$CU$92," ") ->  | AB86: 297
S87: 296 | T87: 70 | U87: =LARGE('JSM Eingabe+TW'!$DJ$32:$DU$62,S87) -> 1e-06 | V87: 0 | W87: 0 | X87: 0.000183 | Y87: 0.000296 | AA87: =IF(U87>'JSM Eingabe+TW'!$CU$92,'JSM Eingabe+TW'!$CU$92," ") ->  | AB87: 296
S88: 295 | T88: 71 | U88: =LARGE('JSM Eingabe+TW'!$DJ$32:$DU$62,S88) -> 1e-06 | V88: 0 | W88: 0 | X88: 0.000183 | Y88: 0.000295 | AA88: =IF(U88>'JSM Eingabe+TW'!$CU$92,'JSM Eingabe+TW'!$CU$92," ") ->  | AB88: 295
S89: 294 | T89: 72 | U89: =LARGE('JSM Eingabe+TW'!$DJ$32:$DU$62,S89) -> 1e-06 | V89: 0 | W89: 0 | X89: 0.000183 | Y89: 0.000294 | Z89: =P$34 -> 0 | AA89: =IF(U89>'JSM Eingabe+TW'!$CU$92,'JSM Eingabe+TW'!$CU$92," ") ->  | AB89: 294
S90: 293 | T90: 73 | U90: =LARGE('JSM Eingabe+TW'!$DJ$32:$DU$62,S90) -> 1e-06 | V90: 0 | W90: 0 | X90: 0.000183 | Y90: 0.000293 | AA90: =IF(U90>'JSM Eingabe+TW'!$CU$92,'JSM Eingabe+TW'!$CU$92," ") ->  | AB90: 293
S91: 292 | T91: 74 | U91: =LARGE('JSM Eingabe+TW'!$DJ$32:$DU$62,S91) -> 1e-06 | V91: 0 | W91: 0 | X91: 0.000183 | Y91: 0.000292 | AA91: =IF(U91>'JSM Eingabe+TW'!$CU$92,'JSM Eingabe+TW'!$CU$92," ") ->  | AB91: 292
S92: 291 | T92: 75 | U92: =LARGE('JSM Eingabe+TW'!$DJ$32:$DU$62,S92) -> 1e-06 | V92: 0 | W92: 0 | X92: 0.000183 | Y92: 0.000291 | AA92: =IF(U92>'JSM Eingabe+TW'!$CU$92,'JSM Eingabe+TW'!$CU$92," ") ->  | AB92: 291
S93: 290 | T93: 76 | U93: =LARGE('JSM Eingabe+TW'!$DJ$32:$DU$62,S93) -> 1e-06 | V93: 0 | W93: 0 | X93: 0.000183 | Y93: 0.00029 | AA93: =IF(U93>'JSM Eingabe+TW'!$CU$92,'JSM Eingabe+TW'!$CU$92," ") ->  | AB93: 290
S94: 289 | T94: 77 | U94: =LARGE('JSM Eingabe+TW'!$DJ$32:$DU$62,S94) -> 1e-06 | V94: 0 | W94: 0 | X94: 0.000183 | Y94: 0.000289 | Z94: =P$34 -> 0 | AA94: =IF(U94>'JSM Eingabe+TW'!$CU$92,'JSM Eingabe+TW'!$CU$92," ") ->  | AB94: 289
S95: 288 | T95: 78 | U95: =LARGE('JSM Eingabe+TW'!$DJ$32:$DU$62,S95) -> 1e-06 | V95: 0 | W95: 0 | X95: 0.000183 | Y95: 0.000288 | AA95: =IF(U95>'JSM Eingabe+TW'!$CU$92,'JSM Eingabe+TW'!$CU$92," ") ->  | AB95: 288
S96: 287 | T96: 79 | U96: =LARGE('JSM Eingabe+TW'!$DJ$32:$DU$62,S96) -> 1e-06 | V96: 0 | W96: 0 | X96: 0.000183 | Y96: 0.000287 | AA96: =IF(U96>'JSM Eingabe+TW'!$CU$92,'JSM Eingabe+TW'!$CU$92," ") ->  | AB96: 287
S97: 286 | T97: 80 | U97: =LARGE('JSM Eingabe+TW'!$DJ$32:$DU$62,S97) -> 1e-06 | V97: 0 | W97: 0 | X97: 0.000183 | Y97: 0.000286 | AA97: =IF(U97>'JSM Eingabe+TW'!$CU$92,'JSM Eingabe+TW'!$CU$92," ") ->  | AB97: 286
S98: 285 | T98: 81 | U98: =LARGE('JSM Eingabe+TW'!$DJ$32:$DU$62,S98) -> 1e-06 | V98: 0 | W98: 0 | X98: 0.000183 | Y98: 0.000285 | AA98: =IF(U98>'JSM Eingabe+TW'!$CU$92,'JSM Eingabe+TW'!$CU$92," ") ->  | AB98: 285
S99: 284 | T99: 82 | U99: =LARGE('JSM Eingabe+TW'!$DJ$32:$DU$62,S99) -> 1e-06 | V99: 0 | W99: 0 | X99: 0.000183 | Y99: 0.000284 | Z99: =P$34 -> 0 | AA99: =IF(U99>'JSM Eingabe+TW'!$CU$92,'JSM Eingabe+TW'!$CU$92," ") ->  | AB99: 284
S100: 283 | T100: 83 | U100: =LARGE('JSM Eingabe+TW'!$DJ$32:$DU$62,S100) -> 1e-06 | V100: 0 | W100: 0 | X100: 0.000183 | Y100: 0.000283 | AA100: =IF(U100>'JSM Eingabe+TW'!$CU$92,'JSM Eingabe+TW'!$CU$92," ") ->  | AB100: 283
S101: 282 | T101: 84 | U101: =LARGE('JSM Eingabe+TW'!$DJ$32:$DU$62,S101) -> 1e-06 | V101: 0 | W101: 0 | X101: 0.000183 | Y101: 0.000282 | AA101: =IF(U101>'JSM Eingabe+TW'!$CU$92,'JSM Eingabe+TW'!$CU$92," ") ->  | AB101: 282
S102: 281 | T102: 85 | U102: =LARGE('JSM Eingabe+TW'!$DJ$32:$DU$62,S102) -> 1e-06 | V102: 0 | W102: 0 | X102: 0.000183 | Y102: 0.000281 | AA102: =IF(U102>'JSM Eingabe+TW'!$CU$92,'JSM Eingabe+TW'!$CU$92," ") ->  | AB102: 281
S103: 280 | T103: 86 | U103: =LARGE('JSM Eingabe+TW'!$DJ$32:$DU$62,S103) -> 1e-06 | V103: 0 | W103: 0 | X103: 0.000183 | Y103: 0.00028 | AA103: =IF(U103>'JSM Eingabe+TW'!$CU$92,'JSM Eingabe+TW'!$CU$92," ") ->  | AB103: 280
S104: 279 | T104: 87 | U104: =LARGE('JSM Eingabe+TW'!$DJ$32:$DU$62,S104) -> 1e-06 | V104: 0 | W104: 0 | X104: 0.000183 | Y104: 0.000279 | Z104: =P$34 -> 0 | AA104: =IF(U104>'JSM Eingabe+TW'!$CU$92,'JSM Eingabe+TW'!$CU$92," ") ->  | AB104: 279
S105: 278 | T105: 88 | U105: =LARGE('JSM Eingabe+TW'!$DJ$32:$DU$62,S105) -> 1e-06 | V105: 0 | W105: 0 | X105: 0.000183 | Y105: 0.000278 | AA105: =IF(U105>'JSM Eingabe+TW'!$CU$92,'JSM Eingabe+TW'!$CU$92," ") ->  | AB105: 278
S106: 277 | T106: 89 | U106: =LARGE('JSM Eingabe+TW'!$DJ$32:$DU$62,S106) -> 1e-06 | V106: 0 | W106: 0 | X106: 0.000183 | Y106: 0.000277 | AA106: =IF(U106>'JSM Eingabe+TW'!$CU$92,'JSM Eingabe+TW'!$CU$92," ") ->  | AB106: 277
S107: 276 | T107: 90 | U107: =LARGE('JSM Eingabe+TW'!$DJ$32:$DU$62,S107) -> 1e-06 | V107: 0 | W107: 0 | X107: 0.000183 | Y107: 0.000276 | AA107: =IF(U107>'JSM Eingabe+TW'!$CU$92,'JSM Eingabe+TW'!$CU$92," ") ->  | AB107: 276
S108: 275 | T108: 91 | U108: =LARGE('JSM Eingabe+TW'!$DJ$32:$DU$62,S108) -> 1e-06 | V108: 0 | W108: 0 | X108: 0.000183 | Y108: 0.000275 | AA108: =IF(U108>'JSM Eingabe+TW'!$CU$92,'JSM Eingabe+TW'!$CU$92," ") ->  | AB108: 275
S109: 274 | T109: 92 | U109: =LARGE('JSM Eingabe+TW'!$DJ$32:$DU$62,S109) -> 1e-06 | V109: 0 | W109: 0 | X109: 0.000183 | Y109: 0.000274 | Z109: =P$34 -> 0 | AA109: =IF(U109>'JSM Eingabe+TW'!$CU$92,'JSM Eingabe+TW'!$CU$92," ") ->  | AB109: 274
S110: 273 | T110: 93 | U110: =LARGE('JSM Eingabe+TW'!$DJ$32:$DU$62,S110) -> 1e-06 | V110: 0 | W110: 0 | X110: 0.000183 | Y110: 0.000273 | AA110: =IF(U110>'JSM Eingabe+TW'!$CU$92,'JSM Eingabe+TW'!$CU$92," ") ->  | AB110: 273
S111: 272 | T111: 94 | U111: =LARGE('JSM Eingabe+TW'!$DJ$32:$DU$62,S111) -> 1e-06 | V111: 0 | W111: 0 | X111: 0.000183 | Y111: 0.000272 | AA111: =IF(U111>'JSM Eingabe+TW'!$CU$92,'JSM Eingabe+TW'!$CU$92," ") ->  | AB111: 272
S112: 271 | T112: 95 | U112: =LARGE('JSM Eingabe+TW'!$DJ$32:$DU$62,S112) -> 1e-06 | V112: 0 | W112: 0 | X112: 0.000183 | Y112: 0.000271 | AA112: =IF(U112>'JSM Eingabe+TW'!$CU$92,'JSM Eingabe+TW'!$CU$92," ") ->  | AB112: 271
S113: 270 | T113: 96 | U113: =LARGE('JSM Eingabe+TW'!$DJ$32:$DU$62,S113) -> 1e-06 | V113: 0 | W113: 0 | X113: 0.000183 | Y113: 0.00027 | AA113: =IF(U113>'JSM Eingabe+TW'!$CU$92,'JSM Eingabe+TW'!$CU$92," ") ->  | AB113: 270
S114: 269 | T114: 97 | U114: =LARGE('JSM Eingabe+TW'!$DJ$32:$DU$62,S114) -> 1e-06 | V114: 0 | W114: 0 | X114: 0.000183 | Y114: 0.000269 | Z114: =P$34 -> 0 | AA114: =IF(U114>'JSM Eingabe+TW'!$CU$92,'JSM Eingabe+TW'!$CU$92," ") ->  | AB114: 269
S115: 268 | T115: 98 | U115: =LARGE('JSM Eingabe+TW'!$DJ$32:$DU$62,S115) -> 1e-06 | V115: 0 | W115: 0 | X115: 0.000183 | Y115: 0.000268 | AA115: =IF(U115>'JSM Eingabe+TW'!$CU$92,'JSM Eingabe+TW'!$CU$92," ") ->  | AB115: 268
S116: 267 | T116: 99 | U116: =LARGE('JSM Eingabe+TW'!$DJ$32:$DU$62,S116) -> 1e-06 | V116: 0 | W116: 0 | X116: 0.000183 | Y116: 0.000267 | AA116: =IF(U116>'JSM Eingabe+TW'!$CU$92,'JSM Eingabe+TW'!$CU$92," ") ->  | AB116: 267
S117: 266 | T117: 100 | U117: =LARGE('JSM Eingabe+TW'!$DJ$32:$DU$62,S117) -> 1e-06 | V117: 0 | W117: 0 | X117: 0.000183 | Y117: 0.000266 | AA117: =IF(U117>'JSM Eingabe+TW'!$CU$92,'JSM Eingabe+TW'!$CU$92," ") ->  | AB117: 266
S118: 265 | T118: 101 | U118: =LARGE('JSM Eingabe+TW'!$DJ$32:$DU$62,S118) -> 1e-06 | V118: 0 | W118: 0 | X118: 0.000183 | Y118: 0.000265 | AA118: =IF(U118>'JSM Eingabe+TW'!$CU$92,'JSM Eingabe+TW'!$CU$92," ") ->  | AB118: 265
S119: 264 | T119: 102 | U119: =LARGE('JSM Eingabe+TW'!$DJ$32:$DU$62,S119) -> 1e-06 | V119: 0 | W119: 0 | X119: 0.000183 | Y119: 0.000264 | Z119: =P$34 -> 0 | AA119: =IF(U119>'JSM Eingabe+TW'!$CU$92,'JSM Eingabe+TW'!$CU$92," ") ->  | AB119: 264
S120: 263 | T120: 103 | U120: =LARGE('JSM Eingabe+TW'!$DJ$32:$DU$62,S120) -> 1e-06 | V120: 0 | W120: 0 | X120: 0.000183 | Y120: 0.000263 | AA120: =IF(U120>'JSM Eingabe+TW'!$CU$92,'JSM Eingabe+TW'!$CU$92," ") ->  | AB120: 263
S121: 262 | T121: 104 | U121: =LARGE('JSM Eingabe+TW'!$DJ$32:$DU$62,S121) -> 1e-06 | V121: 0 | W121: 0 | X121: 0.000183 | Y121: 0.000262 | AA121: =IF(U121>'JSM Eingabe+TW'!$CU$92,'JSM Eingabe+TW'!$CU$92," ") ->  | AB121: 262
S122: 261 | T122: 105 | U122: =LARGE('JSM Eingabe+TW'!$DJ$32:$DU$62,S122) -> 1e-06 | V122: 0 | W122: 0 | X122: 0.000183 | Y122: 0.000261 | AA122: =IF(U122>'JSM Eingabe+TW'!$CU$92,'JSM Eingabe+TW'!$CU$92," ") ->  | AB122: 261
S123: 260 | T123: 106 | U123: =LARGE('JSM Eingabe+TW'!$DJ$32:$DU$62,S123) -> 1e-06 | V123: 0 | W123: 0 | X123: 0.000183 | Y123: 0.00026 | AA123: =IF(U123>'JSM Eingabe+TW'!$CU$92,'JSM Eingabe+TW'!$CU$92," ") ->  | AB123: 260
S124: 259 | T124: 107 | U124: =LARGE('JSM Eingabe+TW'!$DJ$32:$DU$62,S124) -> 1e-06 | V124: 0 | W124: 0 | X124: 0.000183 | Y124: 0.000259 | Z124: =P$34 -> 0 | AA124: =IF(U124>'JSM Eingabe+TW'!$CU$92,'JSM Eingabe+TW'!$CU$92," ") ->  | AB124: 259
S125: 258 | T125: 108 | U125: =LARGE('JSM Eingabe+TW'!$DJ$32:$DU$62,S125) -> 1e-06 | V125: 0 | W125: 0 | X125: 0.000183 | Y125: 0.000258 | AA125: =IF(U125>'JSM Eingabe+TW'!$CU$92,'JSM Eingabe+TW'!$CU$92," ") ->  | AB125: 258
S126: 257 | T126: 109 | U126: =LARGE('JSM Eingabe+TW'!$DJ$32:$DU$62,S126) -> 1e-06 | V126: 0 | W126: 0 | X126: 0.000183 | Y126: 0.000257 | AA126: =IF(U126>'JSM Eingabe+TW'!$CU$92,'JSM Eingabe+TW'!$CU$92," ") ->  | AB126: 257
S127: 256 | T127: 110 | U127: =LARGE('JSM Eingabe+TW'!$DJ$32:$DU$62,S127) -> 1e-06 | V127: 0 | W127: 0 | X127: 0.000183 | Y127: 0.000256 | AA127: =IF(U127>'JSM Eingabe+TW'!$CU$92,'JSM Eingabe+TW'!$CU$92," ") ->  | AB127: 256
S128: 255 | T128: 111 | U128: =LARGE('JSM Eingabe+TW'!$DJ$32:$DU$62,S128) -> 1e-06 | V128: 0 | W128: 0 | X128: 0.000183 | Y128: 0.000255 | AA128: =IF(U128>'JSM Eingabe+TW'!$CU$92,'JSM Eingabe+TW'!$CU$92," ") ->  | AB128: 255
S129: 254 | T129: 112 | U129: =LARGE('JSM Eingabe+TW'!$DJ$32:$DU$62,S129) -> 1e-06 | V129: 0 | W129: 0 | X129: 0.000183 | Y129: 0.000254 | Z129: =P$34 -> 0 | AA129: =IF(U129>'JSM Eingabe+TW'!$CU$92,'JSM Eingabe+TW'!$CU$92," ") ->  | AB129: 254
S130: 253 | T130: 113 | U130: =LARGE('JSM Eingabe+TW'!$DJ$32:$DU$62,S130) -> 1e-06 | V130: 0 | W130: 0 | X130: 0.000183 | Y130: 0.000253 | AA130: =IF(U130>'JSM Eingabe+TW'!$CU$92,'JSM Eingabe+TW'!$CU$92," ") ->  | AB130: 253
S131: 252 | T131: 114 | U131: =LARGE('JSM Eingabe+TW'!$DJ$32:$DU$62,S131) -> 1e-06 | V131: 0 | W131: 0 | X131: 0.000183 | Y131: 0.000252 | AA131: =IF(U131>'JSM Eingabe+TW'!$CU$92,'JSM Eingabe+TW'!$CU$92," ") ->  | AB131: 252
S132: 251 | T132: 115 | U132: =LARGE('JSM Eingabe+TW'!$DJ$32:$DU$62,S132) -> 1e-06 | V132: 0 | W132: 0 | X132: 0.000183 | Y132: 0.000251 | AA132: =IF(U132>'JSM Eingabe+TW'!$CU$92,'JSM Eingabe+TW'!$CU$92," ") ->  | AB132: 251
S133: 250 | T133: 116 | U133: =LARGE('JSM Eingabe+TW'!$DJ$32:$DU$62,S133) -> 1e-06 | V133: 0 | W133: 0 | X133: 0.000183 | Y133: 0.00025 | AA133: =IF(U133>'JSM Eingabe+TW'!$CU$92,'JSM Eingabe+TW'!$CU$92," ") ->  | AB133: 250
S134: 249 | T134: 117 | U134: =LARGE('JSM Eingabe+TW'!$DJ$32:$DU$62,S134) -> 1e-06 | V134: 0 | W134: 0 | X134: 0.000183 | Y134: 0.000249 | Z134: =P$34 -> 0 | AA134: =IF(U134>'JSM Eingabe+TW'!$CU$92,'JSM Eingabe+TW'!$CU$92," ") ->  | AB134: 249
S135: 248 | T135: 118 | U135: =LARGE('JSM Eingabe+TW'!$DJ$32:$DU$62,S135) -> 1e-06 | V135: 0 | W135: 0 | X135: 0.000183 | Y135: 0.000248 | AA135: =IF(U135>'JSM Eingabe+TW'!$CU$92,'JSM Eingabe+TW'!$CU$92," ") ->  | AB135: 248
S136: 247 | T136: 119 | U136: =LARGE('JSM Eingabe+TW'!$DJ$32:$DU$62,S136) -> 1e-06 | V136: 0 | W136: 0 | X136: 0.000183 | Y136: 0.000247 | AA136: =IF(U136>'JSM Eingabe+TW'!$CU$92,'JSM Eingabe+TW'!$CU$92," ") ->  | AB136: 247
S137: 246 | T137: 120 | U137: =LARGE('JSM Eingabe+TW'!$DJ$32:$DU$62,S137) -> 1e-06 | V137: 0 | W137: 0 | X137: 0.000183 | Y137: 0.000246 | AA137: =IF(U137>'JSM Eingabe+TW'!$CU$92,'JSM Eingabe+TW'!$CU$92," ") ->  | AB137: 246
S138: 245 | T138: 121 | U138: =LARGE('JSM Eingabe+TW'!$DJ$32:$DU$62,S138) -> 1e-06 | V138: 0 | W138: 0 | X138: 0.000183 | Y138: 0.000245 | AA138: =IF(U138>'JSM Eingabe+TW'!$CU$92,'JSM Eingabe+TW'!$CU$92," ") ->  | AB138: 245
S139: 244 | T139: 122 | U139: =LARGE('JSM Eingabe+TW'!$DJ$32:$DU$62,S139) -> 1e-06 | V139: 0 | W139: 0 | X139: 0.000183 | Y139: 0.000244 | Z139: =P$34 -> 0 | AA139: =IF(U139>'JSM Eingabe+TW'!$CU$92,'JSM Eingabe+TW'!$CU$92," ") ->  | AB139: 244
S140: 243 | T140: 123 | U140: =LARGE('JSM Eingabe+TW'!$DJ$32:$DU$62,S140) -> 1e-06 | V140: 0 | W140: 0 | X140: 0.000183 | Y140: 0.000243 | AA140: =IF(U140>'JSM Eingabe+TW'!$CU$92,'JSM Eingabe+TW'!$CU$92," ") ->  | AB140: 243
S141: 242 | T141: 124 | U141: =LARGE('JSM Eingabe+TW'!$DJ$32:$DU$62,S141) -> 1e-06 | V141: 0 | W141: 0 | X141: 0.000183 | Y141: 0.000242 | AA141: =IF(U141>'JSM Eingabe+TW'!$CU$92,'JSM Eingabe+TW'!$CU$92," ") ->  | AB141: 242
S142: 241 | T142: 125 | U142: =LARGE('JSM Eingabe+TW'!$DJ$32:$DU$62,S142) -> 1e-06 | V142: 0 | W142: 0 | X142: 0.000183 | Y142: 0.000241 | AA142: =IF(U142>'JSM Eingabe+TW'!$CU$92,'JSM Eingabe+TW'!$CU$92," ") ->  | AB142: 241
S143: 240 | T143: 126 | U143: =LARGE('JSM Eingabe+TW'!$DJ$32:$DU$62,S143) -> 1e-06 | V143: 0 | W143: 0 | X143: 0.000183 | Y143: 0.00024 | AA143: =IF(U143>'JSM Eingabe+TW'!$CU$92,'JSM Eingabe+TW'!$CU$92," ") ->  | AB143: 240
S144: 239 | T144: 127 | U144: =LARGE('JSM Eingabe+TW'!$DJ$32:$DU$62,S144) -> 1e-06 | V144: 0 | W144: 0 | X144: 0.000183 | Y144: 0.000239 | Z144: =P$34 -> 0 | AA144: =IF(U144>'JSM Eingabe+TW'!$CU$92,'JSM Eingabe+TW'!$CU$92," ") ->  | AB144: 239
S145: 238 | T145: 128 | U145: =LARGE('JSM Eingabe+TW'!$DJ$32:$DU$62,S145) -> 1e-06 | V145: 0 | W145: 0 | X145: 0.000183 | Y145: 0.000238 | AA145: =IF(U145>'JSM Eingabe+TW'!$CU$92,'JSM Eingabe+TW'!$CU$92," ") ->  | AB145: 238
S146: 237 | T146: 129 | U146: =LARGE('JSM Eingabe+TW'!$DJ$32:$DU$62,S146) -> 1e-06 | V146: =IF(T146=V$13,LARGE(U$18:U$382,1),0) -> 0 | W146: =IF(T146=W$13,LARGE(U$18:U$382,1),0) -> 0 | X146: =P$35 -> 0.000183 | Y146: =IF(T146<=$W$13,U146,((U$15-P$34)/(365-W$13)*AB146)+P$34) -> 0.000237 | AA146: =IF(U146>'JSM Eingabe+TW'!$CU$92,'JSM Eingabe+TW'!$CU$92," ") ->  | AB146: 237
S147: 236 | T147: 130 | U147: =LARGE('JSM Eingabe+TW'!$DJ$32:$DU$62,S147) -> 1e-06 | V147: 0 | W147: 0 | X147: 0.000183 | Y147: 0.000236 | AA147: =IF(U147>'JSM Eingabe+TW'!$CU$92,'JSM Eingabe+TW'!$CU$92," ") ->  | AB147: =IF(T147<=W$13,0,S147) -> 236
S148: 235 | T148: 131 | U148: =LARGE('JSM Eingabe+TW'!$DJ$32:$DU$62,S148) -> 1e-06 | V148: 0 | W148: 0 | X148: 0.000183 | Y148: 0.000235 | AA148: =IF(U148>'JSM Eingabe+TW'!$CU$92,'JSM Eingabe+TW'!$CU$92," ") ->  | AB148: 235
S149: 234 | T149: 132 | U149: =LARGE('JSM Eingabe+TW'!$DJ$32:$DU$62,S149) -> 1e-06 | V149: 0 | W149: 0 | X149: 0.000183 | Y149: 0.000234 | Z149: =P$34 -> 0 | AA149: =IF(U149>'JSM Eingabe+TW'!$CU$92,'JSM Eingabe+TW'!$CU$92," ") ->  | AB149: 234
S150: 233 | T150: 133 | U150: =LARGE('JSM Eingabe+TW'!$DJ$32:$DU$62,S150) -> 1e-06 | V150: 0 | W150: 0 | X150: 0.000183 | Y150: 0.000233 | AA150: =IF(U150>'JSM Eingabe+TW'!$CU$92,'JSM Eingabe+TW'!$CU$92," ") ->  | AB150: 233
S151: 232 | T151: 134 | U151: =LARGE('JSM Eingabe+TW'!$DJ$32:$DU$62,S151) -> 1e-06 | V151: 0 | W151: 0 | X151: 0.000183 | Y151: 0.000232 | AA151: =IF(U151>'JSM Eingabe+TW'!$CU$92,'JSM Eingabe+TW'!$CU$92," ") ->  | AB151: 232
S152: 231 | T152: 135 | U152: =LARGE('JSM Eingabe+TW'!$DJ$32:$DU$62,S152) -> 1e-06 | V152: 0 | W152: 0 | X152: 0.000183 | Y152: 0.000231 | AA152: =IF(U152>'JSM Eingabe+TW'!$CU$92,'JSM Eingabe+TW'!$CU$92," ") ->  | AB152: 231
S153: 230 | T153: 136 | U153: =LARGE('JSM Eingabe+TW'!$DJ$32:$DU$62,S153) -> 1e-06 | V153: 0 | W153: 0 | X153: 0.000183 | Y153: 0.00023 | AA153: =IF(U153>'JSM Eingabe+TW'!$CU$92,'JSM Eingabe+TW'!$CU$92," ") ->  | AB153: 230
S154: 229 | T154: 137 | U154: =LARGE('JSM Eingabe+TW'!$DJ$32:$DU$62,S154) -> 1e-06 | V154: 0 | W154: 0 | X154: 0.000183 | Y154: 0.000229 | Z154: =P$34 -> 0 | AA154: =IF(U154>'JSM Eingabe+TW'!$CU$92,'JSM Eingabe+TW'!$CU$92," ") ->  | AB154: 229
S155: 228 | T155: 138 | U155: =LARGE('JSM Eingabe+TW'!$DJ$32:$DU$62,S155) -> 1e-06 | V155: 0 | W155: 0 | X155: 0.000183 | Y155: 0.000228 | AA155: =IF(U155>'JSM Eingabe+TW'!$CU$92,'JSM Eingabe+TW'!$CU$92," ") ->  | AB155: 228
S156: 227 | T156: 139 | U156: =LARGE('JSM Eingabe+TW'!$DJ$32:$DU$62,S156) -> 1e-06 | V156: 0 | W156: 0 | X156: 0.000183 | Y156: 0.000227 | AA156: =IF(U156>'JSM Eingabe+TW'!$CU$92,'JSM Eingabe+TW'!$CU$92," ") ->  | AB156: 227
S157: 226 | T157: 140 | U157: =LARGE('JSM Eingabe+TW'!$DJ$32:$DU$62,S157) -> 1e-06 | V157: 0 | W157: 0 | X157: 0.000183 | Y157: 0.000226 | AA157: =IF(U157>'JSM Eingabe+TW'!$CU$92,'JSM Eingabe+TW'!$CU$92," ") ->  | AB157: 226
S158: 225 | T158: 141 | U158: =LARGE('JSM Eingabe+TW'!$DJ$32:$DU$62,S158) -> 1e-06 | V158: 0 | W158: 0 | X158: 0.000183 | Y158: 0.000225 | AA158: =IF(U158>'JSM Eingabe+TW'!$CU$92,'JSM Eingabe+TW'!$CU$92," ") ->  | AB158: 225
S159: 224 | T159: 142 | U159: =LARGE('JSM Eingabe+TW'!$DJ$32:$DU$62,S159) -> 1e-06 | V159: 0 | W159: 0 | X159: 0.000183 | Y159: 0.000224 | Z159: =P$34 -> 0 | AA159: =IF(U159>'JSM Eingabe+TW'!$CU$92,'JSM Eingabe+TW'!$CU$92," ") ->  | AB159: 224
S160: 223 | T160: 143 | U160: =LARGE('JSM Eingabe+TW'!$DJ$32:$DU$62,S160) -> 1e-06 | V160: 0 | W160: 0 | X160: 0.000183 | Y160: 0.000223 | AA160: =IF(U160>'JSM Eingabe+TW'!$CU$92,'JSM Eingabe+TW'!$CU$92," ") ->  | AB160: 223
S161: 222 | T161: 144 | U161: =LARGE('JSM Eingabe+TW'!$DJ$32:$DU$62,S161) -> 1e-06 | V161: 0 | W161: 0 | X161: 0.000183 | Y161: 0.000222 | AA161: =IF(U161>'JSM Eingabe+TW'!$CU$92,'JSM Eingabe+TW'!$CU$92," ") ->  | AB161: 222
S162: 221 | T162: 145 | U162: =LARGE('JSM Eingabe+TW'!$DJ$32:$DU$62,S162) -> 1e-06 | V162: 0 | W162: 0 | X162: 0.000183 | Y162: 0.000221 | AA162: =IF(U162>'JSM Eingabe+TW'!$CU$92,'JSM Eingabe+TW'!$CU$92," ") ->  | AB162: 221
S163: 220 | T163: 146 | U163: =LARGE('JSM Eingabe+TW'!$DJ$32:$DU$62,S163) -> 1e-06 | V163: 0 | W163: 0 | X163: 0.000183 | Y163: 0.00022 | AA163: =IF(U163>'JSM Eingabe+TW'!$CU$92,'JSM Eingabe+TW'!$CU$92," ") ->  | AB163: 220
S164: 219 | T164: 147 | U164: =LARGE('JSM Eingabe+TW'!$DJ$32:$DU$62,S164) -> 1e-06 | V164: 0 | W164: 0 | X164: 0.000183 | Y164: 0.000219 | Z164: =P$34 -> 0 | AA164: =IF(U164>'JSM Eingabe+TW'!$CU$92,'JSM Eingabe+TW'!$CU$92," ") ->  | AB164: 219
S165: 218 | T165: 148 | U165: =LARGE('JSM Eingabe+TW'!$DJ$32:$DU$62,S165) -> 1e-06 | V165: 0 | W165: 0 | X165: 0.000183 | Y165: 0.000218 | AA165: =IF(U165>'JSM Eingabe+TW'!$CU$92,'JSM Eingabe+TW'!$CU$92," ") ->  | AB165: 218
S166: 217 | T166: 149 | U166: =LARGE('JSM Eingabe+TW'!$DJ$32:$DU$62,S166) -> 1e-06 | V166: 0 | W166: 0 | X166: 0.000183 | Y166: 0.000217 | AA166: =IF(U166>'JSM Eingabe+TW'!$CU$92,'JSM Eingabe+TW'!$CU$92," ") ->  | AB166: 217
S167: 216 | T167: 150 | U167: =LARGE('JSM Eingabe+TW'!$DJ$32:$DU$62,S167) -> 1e-06 | V167: 0 | W167: 0 | X167: 0.000183 | Y167: 0.000216 | AA167: =IF(U167>'JSM Eingabe+TW'!$CU$92,'JSM Eingabe+TW'!$CU$92," ") ->  | AB167: 216
S168: 215 | T168: 151 | U168: =LARGE('JSM Eingabe+TW'!$DJ$32:$DU$62,S168) -> 1e-06 | V168: 0 | W168: 0 | X168: 0.000183 | Y168: 0.000215 | AA168: =IF(U168>'JSM Eingabe+TW'!$CU$92,'JSM Eingabe+TW'!$CU$92," ") ->  | AB168: 215
S169: 214 | T169: 152 | U169: =LARGE('JSM Eingabe+TW'!$DJ$32:$DU$62,S169) -> 1e-06 | V169: 0 | W169: 0 | X169: 0.000183 | Y169: 0.000214 | AA169: =IF(U169>'JSM Eingabe+TW'!$CU$92,'JSM Eingabe+TW'!$CU$92," ") ->  | AB169: 214
S170: 213 | T170: 153 | U170: =LARGE('JSM Eingabe+TW'!$DJ$32:$DU$62,S170) -> 1e-06 | V170: 0 | W170: 0 | X170: 0.000183 | Y170: 0.000213 | Z170: =P$34 -> 0 | AA170: =IF(U170>'JSM Eingabe+TW'!$CU$92,'JSM Eingabe+TW'!$CU$92," ") ->  | AB170: 213
S171: 212 | T171: 154 | U171: =LARGE('JSM Eingabe+TW'!$DJ$32:$DU$62,S171) -> 1e-06 | V171: 0 | W171: 0 | X171: 0.000183 | Y171: 0.000212 | AA171: =IF(U171>'JSM Eingabe+TW'!$CU$92,'JSM Eingabe+TW'!$CU$92," ") ->  | AB171: 212
S172: 211 | T172: 155 | U172: =LARGE('JSM Eingabe+TW'!$DJ$32:$DU$62,S172) -> 1e-06 | V172: 0 | W172: 0 | X172: 0.000183 | Y172: 0.000211 | AA172: =IF(U172>'JSM Eingabe+TW'!$CU$92,'JSM Eingabe+TW'!$CU$92," ") ->  | AB172: 211
S173: 210 | T173: 156 | U173: =LARGE('JSM Eingabe+TW'!$DJ$32:$DU$62,S173) -> 1e-06 | V173: 0 | W173: 0 | X173: 0.000183 | Y173: 0.00021 | AA173: =IF(U173>'JSM Eingabe+TW'!$CU$92,'JSM Eingabe+TW'!$CU$92," ") ->  | AB173: 210
S174: 209 | T174: 157 | U174: =LARGE('JSM Eingabe+TW'!$DJ$32:$DU$62,S174) -> 1e-06 | V174: 0 | W174: 0 | X174: 0.000183 | Y174: 0.000209 | AA174: =IF(U174>'JSM Eingabe+TW'!$CU$92,'JSM Eingabe+TW'!$CU$92," ") ->  | AB174: 209
S175: 208 | T175: 158 | U175: =LARGE('JSM Eingabe+TW'!$DJ$32:$DU$62,S175) -> 1e-06 | V175: 0 | W175: 0 | X175: 0.000183 | Y175: 0.000208 | Z175: =P$34 -> 0 | AA175: =IF(U175>'JSM Eingabe+TW'!$CU$92,'JSM Eingabe+TW'!$CU$92," ") ->  | AB175: 208
S176: 207 | T176: 159 | U176: =LARGE('JSM Eingabe+TW'!$DJ$32:$DU$62,S176) -> 1e-06 | V176: 0 | W176: 0 | X176: 0.000183 | Y176: 0.000207 | AA176: =IF(U176>'JSM Eingabe+TW'!$CU$92,'JSM Eingabe+TW'!$CU$92," ") ->  | AB176: 207
S177: 206 | T177: 160 | U177: =LARGE('JSM Eingabe+TW'!$DJ$32:$DU$62,S177) -> 1e-06 | V177: 0 | W177: 0 | X177: 0.000183 | Y177: 0.000206 | AA177: =IF(U177>'JSM Eingabe+TW'!$CU$92,'JSM Eingabe+TW'!$CU$92," ") ->  | AB177: 206
S178: 205 | T178: 161 | U178: =LARGE('JSM Eingabe+TW'!$DJ$32:$DU$62,S178) -> 1e-06 | V178: 0 | W178: 0 | X178: 0.000183 | Y178: 0.000205 | AA178: =IF(U178>'JSM Eingabe+TW'!$CU$92,'JSM Eingabe+TW'!$CU$92," ") ->  | AB178: 205
S179: 204 | T179: 162 | U179: =LARGE('JSM Eingabe+TW'!$DJ$32:$DU$62,S179) -> 1e-06 | V179: 0 | W179: 0 | X179: 0.000183 | Y179: 0.000204 | AA179: =IF(U179>'JSM Eingabe+TW'!$CU$92,'JSM Eingabe+TW'!$CU$92," ") ->  | AB179: 204
S180: 203 | T180: 163 | U180: =LARGE('JSM Eingabe+TW'!$DJ$32:$DU$62,S180) -> 1e-06 | V180: 0 | W180: 0 | X180: 0.000183 | Y180: 0.000203 | Z180: =P$34 -> 0 | AA180: =IF(U180>'JSM Eingabe+TW'!$CU$92,'JSM Eingabe+TW'!$CU$92," ") ->  | AB180: 203
S181: 202 | T181: 164 | U181: =LARGE('JSM Eingabe+TW'!$DJ$32:$DU$62,S181) -> 1e-06 | V181: 0 | W181: 0 | X181: 0.000183 | Y181: 0.000202 | AA181: =IF(U181>'JSM Eingabe+TW'!$CU$92,'JSM Eingabe+TW'!$CU$92," ") ->  | AB181: 202
S182: 201 | T182: 165 | U182: =LARGE('JSM Eingabe+TW'!$DJ$32:$DU$62,S182) -> 1e-06 | V182: 0 | W182: 0 | X182: 0.000183 | Y182: 0.000201 | AA182: =IF(U182>'JSM Eingabe+TW'!$CU$92,'JSM Eingabe+TW'!$CU$92," ") ->  | AB182: 201
S183: 200 | T183: 166 | U183: =LARGE('JSM Eingabe+TW'!$DJ$32:$DU$62,S183) -> 1e-06 | V183: 0 | W183: 0 | X183: 0.000183 | Y183: 0.0002 | AA183: =IF(U183>'JSM Eingabe+TW'!$CU$92,'JSM Eingabe+TW'!$CU$92," ") ->  | AB183: 200
S184: 199 | T184: 167 | U184: =LARGE('JSM Eingabe+TW'!$DJ$32:$DU$62,S184) -> 1e-06 | V184: 0 | W184: 0 | X184: 0.000183 | Y184: 0.000199 | AA184: =IF(U184>'JSM Eingabe+TW'!$CU$92,'JSM Eingabe+TW'!$CU$92," ") ->  | AB184: 199
S185: 198 | T185: 168 | U185: =LARGE('JSM Eingabe+TW'!$DJ$32:$DU$62,S185) -> 1e-06 | V185: 0 | W185: 0 | X185: 0.000183 | Y185: 0.000198 | Z185: =P$34 -> 0 | AA185: =IF(U185>'JSM Eingabe+TW'!$CU$92,'JSM Eingabe+TW'!$CU$92," ") ->  | AB185: 198
S186: 197 | T186: 169 | U186: =LARGE('JSM Eingabe+TW'!$DJ$32:$DU$62,S186) -> 1e-06 | V186: 0 | W186: 0 | X186: 0.000183 | Y186: 0.000197 | AA186: =IF(U186>'JSM Eingabe+TW'!$CU$92,'JSM Eingabe+TW'!$CU$92," ") ->  | AB186: 197
S187: 196 | T187: 170 | U187: =LARGE('JSM Eingabe+TW'!$DJ$32:$DU$62,S187) -> 1e-06 | V187: 0 | W187: 0 | X187: 0.000183 | Y187: 0.000196 | AA187: =IF(U187>'JSM Eingabe+TW'!$CU$92,'JSM Eingabe+TW'!$CU$92," ") ->  | AB187: 196
S188: 195 | T188: 171 | U188: =LARGE('JSM Eingabe+TW'!$DJ$32:$DU$62,S188) -> 1e-06 | V188: 0 | W188: 0 | X188: 0.000183 | Y188: 0.000195 | AA188: =IF(U188>'JSM Eingabe+TW'!$CU$92,'JSM Eingabe+TW'!$CU$92," ") ->  | AB188: 195
S189: 194 | T189: 172 | U189: =LARGE('JSM Eingabe+TW'!$DJ$32:$DU$62,S189) -> 1e-06 | V189: 0 | W189: 0 | X189: 0.000183 | Y189: 0.000194 | AA189: =IF(U189>'JSM Eingabe+TW'!$CU$92,'JSM Eingabe+TW'!$CU$92," ") ->  | AB189: 194
S190: 193 | T190: 173 | U190: =LARGE('JSM Eingabe+TW'!$DJ$32:$DU$62,S190) -> 1e-06 | V190: 0 | W190: 0 | X190: 0.000183 | Y190: 0.000193 | Z190: =P$34 -> 0 | AA190: =IF(U190>'JSM Eingabe+TW'!$CU$92,'JSM Eingabe+TW'!$CU$92," ") ->  | AB190: 193
S191: 192 | T191: 174 | U191: =LARGE('JSM Eingabe+TW'!$DJ$32:$DU$62,S191) -> 1e-06 | V191: 0 | W191: 0 | X191: 0.000183 | Y191: 0.000192 | AA191: =IF(U191>'JSM Eingabe+TW'!$CU$92,'JSM Eingabe+TW'!$CU$92," ") ->  | AB191: 192
S192: 191 | T192: 175 | U192: =LARGE('JSM Eingabe+TW'!$DJ$32:$DU$62,S192) -> 1e-06 | V192: 0 | W192: 0 | X192: 0.000183 | Y192: 0.000191 | AA192: =IF(U192>'JSM Eingabe+TW'!$CU$92,'JSM Eingabe+TW'!$CU$92," ") ->  | AB192: 191
S193: 190 | T193: 176 | U193: =LARGE('JSM Eingabe+TW'!$DJ$32:$DU$62,S193) -> 1e-06 | V193: 0 | W193: 0 | X193: 0.000183 | Y193: 0.00019 | AA193: =IF(U193>'JSM Eingabe+TW'!$CU$92,'JSM Eingabe+TW'!$CU$92," ") ->  | AB193: 190
S194: 189 | T194: 177 | U194: =LARGE('JSM Eingabe+TW'!$DJ$32:$DU$62,S194) -> 1e-06 | V194: 0 | W194: 0 | X194: 0.000183 | Y194: 0.000189 | AA194: =IF(U194>'JSM Eingabe+TW'!$CU$92,'JSM Eingabe+TW'!$CU$92," ") ->  | AB194: 189
S195: 188 | T195: 178 | U195: =LARGE('JSM Eingabe+TW'!$DJ$32:$DU$62,S195) -> 1e-06 | V195: 0 | W195: 0 | X195: 0.000183 | Y195: 0.000188 | Z195: =P$34 -> 0 | AA195: =IF(U195>'JSM Eingabe+TW'!$CU$92,'JSM Eingabe+TW'!$CU$92," ") ->  | AB195: 188
S196: 187 | T196: 179 | U196: =LARGE('JSM Eingabe+TW'!$DJ$32:$DU$62,S196) -> 1e-06 | V196: 0 | W196: 0 | X196: 0.000183 | Y196: 0.000187 | AA196: =IF(U196>'JSM Eingabe+TW'!$CU$92,'JSM Eingabe+TW'!$CU$92," ") ->  | AB196: 187
S197: 186 | T197: 180 | U197: =LARGE('JSM Eingabe+TW'!$DJ$32:$DU$62,S197) -> 1e-06 | V197: 0 | W197: 0 | X197: 0.000183 | Y197: 0.000186 | AA197: =IF(U197>'JSM Eingabe+TW'!$CU$92,'JSM Eingabe+TW'!$CU$92," ") ->  | AB197: 186
S198: 185 | T198: 181 | U198: =LARGE('JSM Eingabe+TW'!$DJ$32:$DU$62,S198) -> 1e-06 | V198: 0 | W198: 0 | X198: 0.000183 | Y198: 0.000185 | AA198: =IF(U198>'JSM Eingabe+TW'!$CU$92,'JSM Eingabe+TW'!$CU$92," ") ->  | AB198: 185
S199: 184 | T199: 182 | U199: =LARGE('JSM Eingabe+TW'!$DJ$32:$DU$62,S199) -> 1e-06 | V199: 0 | W199: 0 | X199: 0.000183 | Y199: 0.000184 | AA199: =IF(U199>'JSM Eingabe+TW'!$CU$92,'JSM Eingabe+TW'!$CU$92," ") ->  | AB199: 184
S200: 183 | T200: 183 | U200: =LARGE('JSM Eingabe+TW'!$DJ$32:$DU$62,S200) -> 1e-06 | V200: 0 | W200: 0 | X200: 0.000183 | Y200: 0.000183 | Z200: =P$34 -> 0 | AA200: =IF(U200>'JSM Eingabe+TW'!$CU$92,'JSM Eingabe+TW'!$CU$92," ") ->  | AB200: 183
S201: 182 | T201: 184 | U201: =LARGE('JSM Eingabe+TW'!$DJ$32:$DU$62,S201) -> 1e-06 | V201: 0 | W201: 0 | X201: 0.000183 | Y201: 0.000182 | AA201: =IF(U201>'JSM Eingabe+TW'!$CU$92,'JSM Eingabe+TW'!$CU$92," ") ->  | AB201: 182
S202: 181 | T202: 185 | U202: =LARGE('JSM Eingabe+TW'!$DJ$32:$DU$62,S202) -> 1e-06 | V202: 0 | W202: 0 | X202: 0.000183 | Y202: 0.000181 | AA202: =IF(U202>'JSM Eingabe+TW'!$CU$92,'JSM Eingabe+TW'!$CU$92," ") ->  | AB202: 181
S203: 180 | T203: 186 | U203: =LARGE('JSM Eingabe+TW'!$DJ$32:$DU$62,S203) -> 1e-06 | V203: 0 | W203: 0 | X203: 0.000183 | Y203: 0.00018 | AA203: =IF(U203>'JSM Eingabe+TW'!$CU$92,'JSM Eingabe+TW'!$CU$92," ") ->  | AB203: 180
S204: 179 | T204: 187 | U204: =LARGE('JSM Eingabe+TW'!$DJ$32:$DU$62,S204) -> 1e-06 | V204: 0 | W204: 0 | X204: 0.000183 | Y204: 0.000179 | AA204: =IF(U204>'JSM Eingabe+TW'!$CU$92,'JSM Eingabe+TW'!$CU$92," ") ->  | AB204: 179
S205: 178 | T205: 188 | U205: =LARGE('JSM Eingabe+TW'!$DJ$32:$DU$62,S205) -> 1e-06 | V205: 0 | W205: 0 | X205: 0.000183 | Y205: 0.000178 | Z205: =P$34 -> 0 | AA205: =IF(U205>'JSM Eingabe+TW'!$CU$92,'JSM Eingabe+TW'!$CU$92," ") ->  | AB205: 178
S206: 177 | T206: 189 | U206: =LARGE('JSM Eingabe+TW'!$DJ$32:$DU$62,S206) -> 1e-06 | V206: 0 | W206: 0 | X206: 0.000183 | Y206: 0.000177 | AA206: =IF(U206>'JSM Eingabe+TW'!$CU$92,'JSM Eingabe+TW'!$CU$92," ") ->  | AB206: 177
S207: 176 | T207: 190 | U207: =LARGE('JSM Eingabe+TW'!$DJ$32:$DU$62,S207) -> 1e-06 | V207: 0 | W207: 0 | X207: 0.000183 | Y207: 0.000176 | AA207: =IF(U207>'JSM Eingabe+TW'!$CU$92,'JSM Eingabe+TW'!$CU$92," ") ->  | AB207: 176
S208: 175 | T208: 191 | U208: =LARGE('JSM Eingabe+TW'!$DJ$32:$DU$62,S208) -> 1e-06 | V208: 0 | W208: 0 | X208: 0.000183 | Y208: 0.000175 | AA208: =IF(U208>'JSM Eingabe+TW'!$CU$92,'JSM Eingabe+TW'!$CU$92," ") ->  | AB208: 175
S209: 174 | T209: 192 | U209: =LARGE('JSM Eingabe+TW'!$DJ$32:$DU$62,S209) -> 1e-06 | V209: 0 | W209: 0 | X209: 0.000183 | Y209: 0.000174 | AA209: =IF(U209>'JSM Eingabe+TW'!$CU$92,'JSM Eingabe+TW'!$CU$92," ") ->  | AB209: 174
... 174 more rows

Sheet JSM Fremdwasser
B2: ='JSM Eingabe+TW'!B2 -> Ergebnisse der Selbstüberwachung | O2: Berichtsjahr : | P2: =IF(LEN('JSM Eingabe+TW'!AB7)>0,'JSM Eingabe+TW'!AB7,"") -> 
B5: ='JSM Eingabe+TW'!B5 -> Ermittlung der Jahresschmutzwassermenge (JSM) und des Fremdwassers (QF) | P5: Blatt 5
D7: Kläranlage : | E7: =IF(LEN('JSM Eingabe+TW'!D7)>0,'JSM Eingabe+TW'!D7,"") ->  | J7: VG / Stadt: | K7: =IF(LEN('JSM Eingabe+TW'!M7)>0,'JSM Eingabe+TW'!M7,"") ->  | P7: ='JSM Eingabe+TW'!AB2 -> Programmversion 7.3.5
B9: Fremdwasserermittlung über Messung
B13: über Fremdwassermessungen: | F13: Abzug für geschätzten Nachtzufluss der angeschlossenen Einwohner (Ez)
D15: Aktuell angeschlossene Einwohner EZ: | E15: ='JSM Eingabe+TW'!K12 -> 0 | F15: bei EZ | H15: wird q =
F16: < 5.000 E | H16: 0.3 | I16: Gleichförmiges Kanalnetz ohne Einrichtungen , die zu einer deutlichen Verlängerung der tatsächlichen Fließzeiten bei TW führen
B17: INFO
F18: 5.000 - 100.000 E | H18: 0.5
D19: q gewählt = | E19: =IF($E$15<5000,$H$16,IF($E$15<=100000,$H$18,IF($E$15>100000,$H$19))) -> 0.3 | F19: > 100.000 E | H19: 1 | I19: Großes Kanalnetz oder Fließzeiten bei TW von mehr als 10 Std.
P21: Die Ermittlung erfolgt bei Trockenwetter anhand des geringsten Durchflusses (z.B. Nachtmessungen gegen 3 Uhr) und Messungen des Tageswasserabflusses über 24 Stunden (Zählwerksablesung).
E23: Datum der Fremdwasserbestimmung
B26: A | C26: gemessener geringster Nachtzufluss [ l/s ]
B27: B | C27: Abzug für geschätzten Nachtzufluss der angeschlossenen Einwohner (EZ): q * EZ / 1000 [ l/s ] | E27: =$E$19*$E$15/1000 -> 0 | F27: 0 | G27: 0 | H27: 0 | I27: 0 | J27: 0 | K27: 0 | L27: 0 | M27: 0 | N27: 0 | O27: 0 | P27: 0
B29: C | C29: Abzug geschätzter Nachtzufluss aus Industrie [ l/s ]
B30: D | C30: Fremdwasserzufluss A - B - C [ l/s ] | E30: =E26-E27-E29 -> 0 | F30: 0 | G30: 0 | H30: 0 | I30: 0 | J30: 0 | K30: 0 | L30: 0 | M30: 0 | N30: =N26-N27-N29 -> 0 | O30: =O26-O27-O29 -> 0 | P30: 0 | R30: Summen
B31: E | C31: Tagesfremdwasserzufluss D * 86,4 [m³/d] | E31: =IF(E26="",0,IF(E26=0,0,E30*86.4)) -> 0 | F31: =IF(F26="",0,IF(F26=0,0,F30*86.4)) -> 0 | G31: 0 | H31: 0 | I31: 0 | J31: 0 | K31: 0 | L31: 0 | M31: 0 | N31: =IF(N26="",0,IF(N26=0,0,N30*86.4)) -> 0 | O31: =IF(O26="",0,IF(O26=0,0,O30*86.4)) -> 0 | P31: 0 | R31: =SUMIF(E31:P31,">0") -> 0
B32: F | C32: gemessener Tagesabwasserzufluss (24 h bei Trockenwetter) einschl. FW [ m³/d ] | R32: =SUMIF(E32:P32,">0") -> 0
B33: G | C33: Tagesschmutzwasserabfluss F - E [ m³ /d ] | E33: =IF(E32=0,0,E32-E31) -> 0 | F33: 0 | G33: 0 | H33: 0 | I33: 0 | J33: 0 | K33: 0 | L33: 0 | M33: 0 | N33: =IF(N32=0,0,N32-N31) -> 0 | O33: =IF(O32=0,0,O32-O31) -> 0 | P33: =IF(P32=0,0,P32-P31) -> 0
B35: H | C35: Fremdwasseranteil 100 * E / F | E35: =IF(E32=0,0,E31/E32) -> 0 | F35: 0 | G35: 0 | H35: 0 | I35: 0 | J35: 0 | K35: 0 | L35: 0 | M35: 0 | N35: 0 | O35: 0 | P35: 0 | R35: =COUNTIF(E35:P35,">0") -> 0
J37: Mittlerer Fremdwasseranteil aus | M37: =COUNTIF(E35:P35,">0") -> 0 | N37: Messungen: | P37: =IF(M37=0,0,R31/R32) -> 0
B39: über den Zulauf- CSB:
D40: Wasserverbrauch je EZ / EW und Jahr | E40: =IF('JSM Eingabe+TW'!K12=0," ",'JSM Eingabe+TW'!S18/'JSM Eingabe+TW'!K12) ->  | F40: cbm/(E*a) | I40: =IF('JSM Eingabe+TW'!F23=" ","Bei Anlagen ohne automatische Durchflussmengenmessung ist hier die Angabe des arithmetischen Mittels der CSB-Trockenwetterzulaufkonzentration des betreffenden Jahres unbedingt erforderlich",IF(P37=0,"Wegen fehlender Fremdwasserbestimmung ist die Angabe der CSB-Trockenwetterzulaufkonzentration (Jahresmittel) erforderlich","Die CSB-Trockenwetter-Zulaufkonzentration nur dann angeben, wenn hierdurch ein sichereres Ergebnis als nach dem Meßprotokoll erzielt wird. Der höhere Wert wird übernommen.")) -> Wegen fehlender Fremdwasserbestimmung ist die Angabe der CSB-Trockenwetterzulaufkonzentration (Jahresmittel) erforderlich
D41: Wasserverbrauch je EZ / EW im Jahresmittel | E41: =IF(E40=" "," ",E40*1000/365) ->  | F41: l/(E*d)
D42: CSB- Fracht im Rohabwasser im Jahresmittel | E42: 120 | F42: g/(E*d)
D43: CSB- Konzentration bei 0 % Fremdwasser | E43: =IF(E41=0," ",IF(E41=" "," ",E42/E41*1000)) ->  | F43: mg/l | N43: CSB-Trockenwetterzulaufkonzentration im Jahresmittel: | O43: =E43 ->  | P43: mg/l
J45: Fremdwasseranteil über Jahresmittel der CSB- TW- Konzentration: | P45: =IF(E43=" "," ",(100-O43*100/E43)/100) -> 
B46: Bemerkungen:
B101: Quelle: LU Baden-Württemberg, Heft "Fremdwasser in kommunalen Kläranlagen" August 2006

Sheet JSM Ergebnis
B2: ='JSM Eingabe+TW'!B2 -> Ergebnisse der Selbstüberwachung | S2: Berichtsjahr : | T2: =IF(OR('JSM Eingabe+TW'!AB7="",'JSM Eingabe+TW'!AB7=0),"",'JSM Eingabe+TW'!AB7) -> 
B5: ='JSM Eingabe+TW'!B5 -> Ermittlung der Jahresschmutzwassermenge (JSM) und des Fremdwassers (QF) | U5: Blatt 6
D7: Kläranlage : | F7: ='JSM Fremdwasser'!E7 ->  | I7: VG / Stadt: | J7: ='JSM Fremdwasser'!K7 ->  | U7: ='JSM Fremdwasser'!P7 -> Programmversion 7.3.5
B9: Zusammenfassung der Berechnungsergebnisse
C13: JSM nach den Verfahren: | H13: JSM | I13: Fremdwasseranteil im kommunalen Netz | M13: Wichtung | N13: Bemerkungen
C14: ='JSM Eingabe+TW'!E92 -> Achtung, statistische Verfahren können wegen zu wenigen Daten nicht gewertet werden! | H14: m3 | I14: m3 | L14: %
C15: ='JSM Eingabe+TW'!E90 -> weniger als die Hälfte an Trockenwettertagen ! | G15: Dichtemittel | H15: =IF(C14=" ",IF('JSM Dichtemittel '!N28="x",'JSM Dichtemittel '!Q28,IF('JSM Dichtemittel '!N36="x",'JSM Dichtemittel '!Q36,IF('JSM Dichtemittel '!N41="x",'JSM Dichtemittel '!Q41))),0) -> 0 | I15: =IF(H15=0,0,H15-H$28) -> 0 | L15: =IF(H15=0,0,I15/H15) -> 0 | M15: =IF('JSM Eingabe+TW'!F18="X",0,IF(H15=0,0,IF(C15="weniger als die Hälfte an Trockenwettertagen ! ",0,1))) -> 0 | N15: =IF('JSM Eingabe+TW'!AF65<48," Verfahren wegen zu wenigen Daten nicht anwendbar",IF(C15="weniger als die Hälfte an Trockenwettertagen ! "," Weniger als die Hälfte an TW- Tagen. Verfahren nur bedingt anwendbar"," ")) -> Verfahren wegen zu wenigen Daten nicht anwendbar
G16: Jahresdauerlinie | H16: =IF(C14=" ",IF('JSM Jahresdauerlinie'!E29=0,0,'JSM Jahresdauerlinie'!N34),0) -> 0 | I16: =IF(H16=0,0,H16-H$28) -> 0 | L16: =IF(H16=0,0,I16/H16) -> 0 | M16: =IF('JSM Eingabe+TW'!F18="X",0,IF('JSM Eingabe+TW'!AF$65<48,0,IF(H16=0,0,1))) -> 0 | N16: =IF('JSM Eingabe+TW'!AF65<48," Verfahren wegen zu wenigen Daten nicht anwendbar"," ") -> Verfahren wegen zu wenigen Daten nicht anwendbar
G17: Dreiecksmethode | H17: ='JSM FW Dreieck'!N37 -> 0.066795 | I17: ='JSM FW Dreieck'!N35:N35 -> 0.066795 | L17: =IF(H17<0.1,0,'JSM FW Dreieck'!N38/100) -> 0 | M17: =IF('JSM Eingabe+TW'!F18="X",0,IF('JSM Eingabe+TW'!S12=0,0,IF('JSM Eingabe+TW'!AF$65<48,0,IF(H17=0,0,1)))) -> 0 | N17: =IF('JSM Eingabe+TW'!S12=0," Verfahren wegen fehlender Angabe zum Wasserverbrauch nicht anwendbar",IF('JSM Eingabe+TW'!AF65<48," Verfahren wegen zu wenigen Daten nicht anwendbar"," ")) -> Verfahren wegen fehlender Angabe zum Wasserverbrauch nicht anwendbar
G18: gleitendes Minimum A 198 | H18: =IF(C14=" ",'JSM GM A198'!J53,0) -> 0 | I18: =IF(H18<0.1,0,H18-H28) -> 0 | L18: =IF(H18<0.1,0,I18/H18) -> 0 | M18: =IF('JSM Eingabe+TW'!F18="X",0,IF('JSM Eingabe+TW'!AF65<48,0,1)) -> 0 | N18: =IF('JSM Eingabe+TW'!AF65<48," Verfahren wegen zu wenigen Daten nicht anwendbar"," ") -> Verfahren wegen zu wenigen Daten nicht anwendbar
C19: ='JSM Eingabe+TW'!AF91 -> Das Ergebnis nach Wetterschlüssel hinterfragen. Es fehlen die Daten von mindestens einem Monat. | G19: Anzahl der Trockenwettertage | H19: =IF(C14=" ",IF('JSM Eingabe+TW'!AB64=0,0,'JSM Eingabe+TW'!AB72),0) -> 0 | I19: =IF(H19=0,0,H19-H28) -> 0 | L19: =IF(H19=0,0,I19/H19) -> 0 | M19: =IF('JSM Eingabe+TW'!F18="X",0,IF('JSM Eingabe+TW'!AF65<48,0,IF(C19=" ",1,"0"))) -> 0 | N19: =IF('JSM Eingabe+TW'!AF65<48," Verfahren wegen zu wenigen Daten nicht anwendbar"," ") -> Verfahren wegen zu wenigen Daten nicht anwendbar
G20: Wasserverbrauch und Fremdwasser | H20: =IF(L20=0,0,100*H28/(100-L20*100)) -> 0 | I20: =IF(L20=0,0,H20-H28) -> 0 | L20: =MAX('JSM Fremdwasser'!P$37,'JSM Fremdwasser'!P$45) -> 0 | M20: =IF('JSM Eingabe+TW'!F18="X",0,IF('JSM Eingabe+TW'!S12=0,0,IF(H20=0,0,IF(SUM(M15:M19)>0,0,1)))) -> 0 | N20: =IF('JSM Eingabe+TW'!S12=0," Trinkwasserverbrauch angeben!",IF(SUM(M15:M19)+M21=0," maßgebliches Verfahren!")) -> Trinkwasserverbrauch angeben!
G21: gemessene Gesamtmenge (bei Trennsystem) | H21: ='JSM Eingabe+TW'!AB68 -> 0 | I21: =H21-H28 -> 0 | L21: =IF(H21=0,0,I21/H21) -> 0 | M21: =IF('JSM Eingabe+TW'!F18="X",1,0) -> 0 | N21: =IF(M21=1," maßgebliches Verfahren") -> FALSE
C26: Trinkwasserverbrauch:
G27: kommunales Netz einschl. Eigenwasserversorgungen | H27: ='JSM Eingabe+TW'!S17 -> 0 | I27: m3/a
G28: um die Verluste reduziert | H28: ='JSM Eingabe+TW'!S18 -> 0 | I28: m3/a
G32: Ergebnis der Bewertung: | H32: =IF(M21=1,H21,IF(M73=0,0,(H15*M15+H16*M16+H19*M19+H18*M18+H20*M20+H71*M71+H72*M72+H17*M17)/M73)) -> 0 | I32: =IF(H32=" "," ",H32-H28) -> 0 | L32: =IF(H32=0,0,I32/H32) -> 0 | M32: =IF(H28>H32,"Es wird jedoch der um die Verluste reduzierte Wasserverbrauch maßgeblich!"," ") ->  | W32: =H32 -> 0
C34: Rundung: | W34: =ROUND(W32/10,0) -> 0
C35: =W46 -> 1 | F35: Jahresschmutzwassermenge für das Jahr | G35: =T2 ->  | H35: =IF(H32=" "," ",IF(H28>H32,H28,ROUNDUP(H32/C35,1)*C35)) -> 0 | I35: m³ einschließlich | L35: =IF(H35=0,0,(H35-H28)/H35) -> 0 | N35: Fremdwasser im Gesamtablauf | W35: =ROUND(W34/10,0) -> 0
W36: =ROUND(W35/10,0) -> 0
W37: 0
C38: Kommentar | W38: 0
W39: 0
W40: 0
W41: 0
C42: Fünfjahresüberprüfung der JSM (nur auf dem jeweils letzten Blatt einer Fünfjahresüberprüfung durch die Wasserbehörde auszufüllen) | W42: 0
D43: Angeschlossene EZ: | J43: =IF(OR(J46="",J46=0),"",IF(OR('JSM Eingabe+TW'!K12="",'JSM Eingabe+TW'!K12=0),"EZ angeben!",'JSM Eingabe+TW'!$K$12)) -> 
D44: Reduzierter Trinkwasserverbrauch: | J44: =IF(OR(J47="",J47=0),"",IF(OR('JSM Eingabe+TW'!S18="",'JSM Eingabe+TW'!S18=0),"Trinkw. angeben!",'JSM Eingabe+TW'!S18)) -> 
D45: Jahr | F45: =IF(OR($J45="",$J45=0),"",G45-1) ->  | G45: =IF(OR($J45="",$J45=0),"",H45-1) ->  | H45: =IF(OR($J45="",$J45=0),"",I45-1) ->  | I45: =IF(OR($J45="",$J45=0),"",J45-1) ->  | J45: =IF(OR(T2="",T2=0),"",T2) ->  | R45: JSM nach geltendem Bescheid : | W45: =COUNTIF(W34:W42,">1") -> 0
D46: JSM (m³) | J46: =H35 -> 0 | R46: zu beantragende / festzusetzende JSM : | W46: =1*10^W45 -> 1
D47: JSM (m³/E) | F47: =IFERROR(IF(OR(F46="",F46=0),0,F46/F43),"") -> 0 | G47: =IFERROR(IF(OR(G46="",G46=0),0,G46/G43),"") -> 0 | H47: =IFERROR(IF(OR(H46="",H46=0),0,H46/H43),"") -> 0 | I47: =IFERROR(IF(OR(I46="",I46=0),0,I46/I43),"") -> 0 | J47: =IFERROR(IF(OR(J46="",J46=0),0,IF('JSM Eingabe+TW'!K12=0,"EZ angeben!",J46/J43)),"") -> 0
C48: Kommentar: | D48: Reduzierter Trinkwasserverbrauch (m³/E) | F48: =IFERROR(IF(OR(F44="",F44=0),0,F44/F43),"") -> 0 | G48: =IFERROR(IF(OR(G44="",G44=0),0,G44/G43),"") -> 0 | H48: =IFERROR(IF(OR(H44="",H44=0),0,H44/H43),"") -> 0 | I48: =IFERROR(IF(OR(I44="",I44=0),0,I44/I43),"") -> 0 | J48: =IFERROR(IF(OR(J44="",J44=0),0,J44/J43),"") -> 0
C54: Dieses Programm wurde durch den Fachbereich "Abwasserwesen, Gewässergüte" der Regionalstelle Wasserwirtschaft Abfallwirtschaft Bodenschutz bei der SGD Nord in Koblenz erstellt und wird als Hilfsmittel für die Ermittlung der JSM zur Verfügung gestellt. Es entbindet nicht von der fachkundigen Ausarbeitung und der Eigenverantwortung für die übermittelten Ergebnisse. Für die Richtigkeit des Programms wird keine Gewähr übernommen. Der Anwender erkennt durch Anwendung des Programms den Haftungsausschluss der SGD für die Folgen der Anwendung sowie für eventuell entstehende Schäden, auch an Hard- oder Software, ausdrücklich an.
F55: Autoren: Heidi Jung, Thomas Müller und Heinz-Peter Walgenbach, SGD Nord
B66: Beide Zeilen markieren und aufziehen
C67: EÜ-Berichte: | D67: http://www3.chamaeleon.de/klaeranlagen/klaeranlagen.phtml | I67: Kennwort: | J67: mufko | M67: Passwort | P67: k1o2m36
M69: Diese Wertungen werden im Endergebnis berücksichtigt,
C70: weitere Vergleichsberechnungen: | M70: sobald hier eine Zahl außer der 0 eingegeben wird.
C71: ='JSM Eingabe+TW'!AF91 -> Das Ergebnis nach Wetterschlüssel hinterfragen. Es fehlen die Daten von mindestens einem Monat. | G71: Wetterschlüssel ü. Monatssummen | H71: =IF(C14=" ",IF('JSM Eingabe+TW'!AB64=0,0,'JSM Eingabe+TW'!AB98)) -> FALSE | I71: =IF(H71=0,0,H71-H28) -> 0 | L71: =IF(H71=0,0,I71/H71) ->  | M71: 0
C72: =IF('JSM Eingabe+TW'!F23=" ","bevorzugtes Ergebnis, da keine automatische Mengenmessung","Wertung nicht erforderlich, da automatische Mengenmessung vorhanden") -> Wertung nicht erforderlich, da automatische Mengenmessung vorhanden | G72: CSB im Zulauf (siehe das Folgende) | H72: =IF('JSM Fremdwasser'!E42=" ",0,'JSM Ergebnis'!I112) -> 0 | I72: =IF(H72=0,0,H72-H28) -> 0 | L72: =IF(H72=0,0,I72/H72) -> 0 | M72: 0
L73: Summe der Wichtungspunkte: | M73: =SUM(M15:M21)+M71+M72 -> 0
C76: Hilfswert: | G76: Fremdwasser nach gleitendem Minimum | H76: =IF(C14=" ",IF(H15=0,0,'JSM GM A198'!F53),0) -> 0 | I76: =IF(H76=0,0,'JSM GM A198'!M53) -> 0 | L76: =IF(H76=0,0,I76/H76) -> 0
D80: Abschätzung des Fremdwasseranteils über das arithmetische Mittel der CSB- Messwerte bei TW im Zulauf der KA
D81: Dieses Verfahren insbesondere dann anwenden, wenn keine automatische Durchflussmengenmesseinrichtung vorhanden ist.
D82: 1. Ermittlung der CSB- Konzentration
D83: - | E83: nach theoretischem Ansatz:
G84: CSB- Konzentration im Rohabwasser | H84: = | I84: 120 | J84: g/(E*d)
G85: Wasserverbrauch je EZ / EW | H85: = | I85: 150 | J85: l/(E*d)
G86: CSB- Konzentration mit 0 % Fremdwasser | H86: = | I86: =I84/I85*1000 -> 800 | J86: mg/l
D88: Nach dem "Leitfaden Abwasserabgabe" der Landesanstalt für Umweltschutz Baden-Württemberg liegt ein Fremdwasser-anteil von 0 % vor bei einer CSB- Konzentration von
H90: = | I90: 775 | J90: mg/l
D93: - | E93: nach tatsächlicher Belastung: | H93: (EZ) | J93: (EW)
H94: ='JSM Eingabe+TW'!K12 -> 0 | I94: E | J94: 1 | L94: E
F95: Wasserverbrauch je EZ / EW und Jahr | G95: = | H95: =IF('JSM Eingabe+TW'!K12=0,0,'JSM Eingabe+TW'!S18/'JSM Eingabe+TW'!K12) -> 0 | I95: cbm/(E*a) | J95: =IF(J94=0,0,'JSM Eingabe+TW'!S18/J94) -> 0 | L95: cbm/(E*a)
F96: Wasserverbrauch je EZ / EW im Jahresmittel | G96: = | H96: =H95*1000/365 -> 0 | I96: l/(E*d) | J96: =J95*1000/365 -> 0 | L96: l/(E*d)
F97: CSB- Konzentration im Rohabwasser im Jahresmittel | G97: = | H97: =I84 -> 120 | I97: g/(E*d) | J97: 100 | L97: g/(E*d)
F98: CSB- Konzentration bei 0 % Fremdwasser | G98: = | H98: =IF(H96=0,0,H97/H96*1000) -> 0 | I98: mg/l | J98: =IF(J96=0,0,J97/J96*1000) -> 0 | L98: mg/l
D101: 2. Abschätzung des Fremdwasseranteils und der JSM: | L101: Hilfsweise das Mittel aus monatlichen Mittel- oder Maximalwerten gem. KOS
O102: Nebenrechnung:
F103: gewählte CSB- Konzentration mit 0 % Fremdwasser | G103: = | I103: =(H98+J98)/2 -> 0 | J103: mg/l | O103: monatliche Maximalwerte gem. KOS
F104: Angabe des Maßnahmeträgers | G104: = | O104: 350
H105: Angabe Massnahmeträger: | O105: 311
F106: mittlerer CSB im Zulauf bei TW | G106: = | H106: ='JSM Fremdwasser'!O43 ->  | I106: =H106 ->  | J106: mg/l | O106: 482
F107: Fremdwasseranteil | G107: = | I107: =IF(I103=0,0,100-I106*100/I103) -> 0 | J107: % | O107: 384
O108: 588
F109: Reduzierter Frischwasserverbrauch | G109: = | I109: ='JSM Eingabe+TW'!S18 -> 0 | J109: cbm | O109: 471
F110: Fremdwasser | G110: = | I110: =IF(I106=0," ",I112-I109) -> 0 | J110: cbm | O110: 556
O111: 399
F112: JSM | G112: = | I112: =IF(I106=0," ",100*I109/(100-I107)) -> 0 | J112: cbm | O112: 543
O113: 618
F114: Indizien für einen erhöhten Fremdwasseranfall über 50 % sind | G114: - | H114: CSB < 385 mg/l | O114: 635
G115: - | H115: TNb < 38 mg/l | O115: 600
O116: =SUM(O104:O115) -> 5937
F117: Bemerkung: | N117: mittl. max CCSB | O117: =O116/12 -> 494.75 | P117: mg/l
B119: Für weitere Kontrollberechungen die Zeilen 62-115 markieren und aufziehen (oder Doppelklick) | C119: . | U119: JSM
